Workbook

Sheet 01.BALANCE ENERGIA Ene-19 Def
B1: Mes | C1: 2019-01-01
B3: Total | C3: =+SUM(C9:C437) -> -3.725290298e-05 | D3: =+SUM(D9:D437) -> -3.725290298e-05
B4: Positivo | C4: =+SUMIF(C$9:C$437,">0") -> 5.589851722e+10 | D4: =+SUMIF(D$9:D$437,">0") -> 5.589851722e+10
B5: Negativo | C5: =+SUMIF(C$9:C$437,"<0") -> -5.589851722e+10 | D5: =+SUMIF(D$9:D$437,"<0") -> -5.589851722e+10 | J5: CUADRO DE PAGOS 01.BALANCE ENERGIA Ene-19 Def (Valores en $)
F6: ="Balance Energía "& TEXT(C1,"mmm-yy") -> Balance Energía ene-yy
C7: Datos | K7: Reciben
B8: Empresa | C8: Energía SEN | D8: TOTAL | F8: Empresa | G8: Paga | H8: Recibe | J8: Pagan | K8: GASATACAMA | L8: GMETROPOLITANA | M8: IMELSA_ENERGIA | N8: COLBUN | O8: ARAUCO BIO | P8: SGA | Q8: ELEKTRAGEN | R8: GESAN | S8: PUNTILLA | T8: EL MANZANO | U8: ENLASA | V8: PARQUE_EOLICO_LEBU | W8: ALTO_MANGA_ENERGY | X8: GENPAC | Y8: NORVIND | Z8: PANGUIPULLI | AA8: HIDROPALOMA | AB8: EMELDA | AC8: SWO | AD8: BARRICK | AE8: CARRAN | AF8: DONGO | AG8: INACAL | AH8: HIDROLIRCAY | AI8: LOS MORROS | AJ8: DIUTO | AK8: LICAN | AL8: ENERGIA PACIFICO | AM8: DONGUIL | AN8: PEHUI | AO8: COMASA | AP8: CHACAYES | AQ8: ENERBOSCH | AR8: HIDROMUCHI | AS8: BE FORESTALES | AT8: EL CANELO | AU8: CARBOMET | AV8: HIDRONALCAS | AW8: HIDROCALLAO | AX8: KALTEMP | AY8: ESTANCILLA SPA | AZ8: MAPOCHO TREBAL | BA8: UCUQUER | BB8: TAMM | BC8: ROBLERIA | BD8: GENERHOM | BE8: HIDROBONITO | BF8: SUBSOLE | BG8: SOLAIREDIRECT | BH8: SANTAMARTA | BI8: RIO HUASCO | BJ8: SANTA IRENE | BK8: CONTRA | BL8: COLMITO | BM8: COMMONPLACE | BN8: AMANECER SOLAR | BO8: SAN_ANDRES_SPA | BP8: ENERGIA_LEON | BQ8: ENERGIAS_DEL_FUTURO | BR8: BIOCRUZ | BS8: HBS | BT8: ALBA | BU8: LOS_PADRES | BV8: LOS_CURUROS | BW8: LOMAS_COLORADAS | BX8: PAMA | BY8: RIO_PUMA | BZ8: CCAMPESINO | CA8: PH_PUNTA_SIERRA | CB8: UCUQUER_DOS | CC8: EBCO_ATACAMA | CD8: ATRIA_ENERGIA | CE8: PV_SALVADOR | CF8: COLLIL | CG8: MARIA_ELENA | CH8: LAS_FLORES | CI8: BESALCO | CJ8: LLEUQUEREO | CK8: CURILEUFU | CL8: BIOBIO_NEGRETE | CM8: LUZ_DEL_NORTE | CN8: RAKI | CO8: TRAILELFU | CP8: GR_PAN_DE_AZUCAR | CQ8: PUCLARO | CR8: HUAJACHE | CS8: EL_MIRADOR | CT8: RIO_MULCHEN | CU8: EGP_SUR | CV8: ANDES_GENERACION | CW8: EL_MORADO | CX8: CAREN | CY8: CHUNGUNGO | CZ8: SPVP4 | DA8: RENOVALIA_6 | DB8: RENOVALIA_7 | DC8: STERICYCLE | DD8: TILTIL_SOLAR | DE8: BELLAVISTA | DF8: MALLARAUCO | DG8: M_VILLARRICA | DH8: EOLICA_ESPERANZA | DI8: CHANLEUFU | DJ8: RASO_POWER | DK8: CONEJO_SOLAR | DL8: LOS_LOROS | DM8: ALTOS_DEL_PAICO | DN8: EL_AGRIO | DO8: LA_MONTAÑA_1 | DP8: DIVISADERO | DQ8: CUMPEO | DR8: TEATINOS | DS8: GR_HUINGAN | DT8: GR_COIGUE | DU8: HORMIGA_SOLAR | DV8: RAGSA | DW8: GESTEL | DX8: CUZCUZ | DY8: GR_ARAUCARIA | DZ8: MAINCO | EA8: EL_ARROYO | EB8: LOS_PINOS_BIO | EC8: EL_BOCO | ED8: SANTIAGO_SOLAR | EE8: GENERADORA_PIUTEL | EF8: HIDRORIÑINAHUE | EG8: GR_CANELO | EH8: LA_LEONERA | EI8: CABO_LEONES | EJ8: CHILE_GENERACION | EK8: RIO_COLORADO | EL8: LAS_TURCAS | EM8: GR_GUAYACAN | EN8: DOS_VALLES | EO8: SOCER | EP8: GR_ESPINO | EQ8: LA_MONTAÑA_2 | ER8: HIDROMUNILQUE | ES8: SAN_FRANCISCO | ET8: QUINTA_SOLAR | EU8: VALLE_DE_LA_LUNA_II | EV8: GR_LINGUE | EW8: QUELTEHUE | EX8: CHESTER_SOLAR_IV | EY8: CHESTER_SOLAR_V | EZ8: PV_CHANCON | FA8: PITIO | FB8: CH _SANTA_ELENA | FC8: AMPARO | FD8: PARRONAL | FE8: GR_TIACA | FF8: EMBALSE_ANCOA | FG8: GR_BOLDO | FH8: PV_PORTEZUELO | FI8: PLANETA_INVESTMENT | FJ8: SOLAR_E | FK8: GORRIONES | FL8: PV_EL_PICURIO | FM8: CHINCOL | FN8: VILLA_PRAT_ENERGY | FO8: RIGEL | FP8: PS_SANTALAURA | FQ8: GR_ARRAYAN | FR8: PV_LAS_PALOMAS | FS8: PALACIOS | FT8: MINICENTRALES_ARAUCANIA | FU8: LA_ACACIA | FV8: GR_LITRE | FW8: GR_LAUREL | FX8: PATOS | FY8: TACORA_ENERGY | FZ8: CH_CONVENTO_VIEJO | GA8: CH_EL_MANZANO | GB8: MINICENTRAL_ARRAYAN | GC8: GR_TINEO | GD8: GR_QUILLAY | GE8: PV_LA_FRONTERA | GF8: EL_CERNICALO | GG8: FOTOVOLT_SOLAR_I | GH8: ABASTIBLE | GI8: VALLE_SOLAR_ESTE_2 | GJ8: VALLE_SOLAR_OESTE_2 | GK8: PILPEN | GL8: HIDROELECTRICA SAN ANDRES | GM8: LA_MANGA_ENERGY | GN8: EL_QUEULE | GO8: LOA_SOLAR | GP8: PIQUERO | GQ8: PARQUE_SOLAR | GR8: DIEGO_DE_ALMAGRO_SOLAR | GS8: PFALICAHUE_SOLAR | GT8: LUNA_ENERGY | GU8: CALLE_LARGA_SPA | GV8: MAUCO_SPA | GW8: NUOVOSOL_SPA | GX8: APOLO_DEL_NORTE_SPA | GY8: GENERADORA_ZAPALLAR | GZ8: SOLAR_UNO | HA8: COCHRANE | HB8: GENERACION_SOLAR_SPA | HC8: ANDINA | HD8: ANGAMOS | HE8: HELIO_ATACAMA_TRES | HF8: PLANTA_SOLAR_SPIII | HG8: VALLE_DE_LOS_VIENTOS | HH8: CALAMA_SOLAR_1 | HI8: PUERTO_SECO | HJ8: TECNET | HK8: ENERNUEVAS | HL8: CAVANCHA | HM8: SPS_LA_HUAYCA | HN8: LOS_PUQUIOS | HO8: PMGD_PICA_PILOT | HP8: FV_NORTE_GRANDE_5 | HQ8: POZO_ALMONTE_SOLAR_1 | HR8: LA HIGUERA | HS8: LA CONFLUENCIA | HT8: ORAZUL_DUQUECO | HU8: ELETRANS | HV8: REDENOR2 | HW8: ZALDIVAR_TRANSMISION | HX8: Total
A9: =+MATCH(B9,RUT[EMPRESA],0) -> 108 | B9: ENEL_GENERACION | C9: -1.338862608e+10 | D9: =+C9 -> -1.338862608e+10 | F9: =IFERROR(INDEX($B$9:$B$511,MATCH(0,INDEX(COUNTIF($F$8:F8,$B$9:$B$511),0,0),0)),"") -> ENEL_GENERACION | G9: =IF(SUMIF($B$9:$B$400,F9,$D$9:$D$400)<-0.00001,SUMIF($B$9:$B$400,F9,$D$9:$D$400),"") -> -1.338862608e+10 | H9: =IF(SUMIF($B$9:$B$400,F9,$D$9:$D$400)>0.00001,SUMIF($B$9:$B$400,F9,$D$9:$D$400),"") ->  | J9: ENEL_GENERACION | K9: =$HX9*K$67/$HX$67 -> 312177272.1 | L9: 48368430 | M9: 51922943.53 | N9: 2952494044 | O9: 233377362.5 | P9: 90464838.56 | Q9: 2104117.108 | R9: 5367524.613 | S9: 116247231.7 | T9: 15868301.84 | U9: =$HX9*U$67/$HX$67 -> 70344870.32 | V9: 20142761.06 | W9: 7064248.371 | X9: 21729804.43 | Y9: 10156235.89 | Z9: 148713198.2 | AA9: 17373818.12 | AB9: 8833053.251 | AC9: 2337870.507 | AD9: 3101768.686 | AE9: =$HX9*AE$67/$HX$67 -> 3131005.047 | AF9: 10010799.97 | AG9: 2854795.24 | AH9: 79868842.07 | AI9: 16253317.96 | AJ9: 28746214.15 | AK9: 48189043.36 | AL9: 23809407.48 | AM9: 1364052.851 | AN9: 1531135.996 | AO9: =$HX9*AO$67/$HX$67 -> 168370094.4 | AP9: 482013790.6 | AQ9: 15835836.06 | AR9: 72361.81329 | AS9: 183011236.8 | AT9: 4003080.349 | AU9: 21258857.4 | AV9: 19277320.19 | AW9: 3683862.358 | AX9: 1216363.639 | AY9: =$HX9*AY$67/$HX$67 -> 11720.50792 | AZ9: 6063197.859 | BA9: 13238110.28 | BB9: 73839.15201 | BC9: 16511442.18 | BD9: 13575870.9 | BE9: 23228269.25 | BF9: 11218.2415 | BG9: 523815.4962 | BH9: 60269552.53 | BI9: =$HX9*BI$67/$HX$67 -> 18902914.05 | BJ9: 934364.1922 | BK9: 388512.2991 | BL9: 7944676.161 | BM9: 4870289.648 | BN9: 181129069.1 | BO9: 79150242.91 | BP9: 22579272.32 | BQ9: 213220.1201 | BR9: 10284117.21 | BS9: =$HX9*BS$67/$HX$67 -> 3813456.974 | BT9: 59692577.36 | BU9: 2153646.325 | BV9: 90810831.03 | BW9: 3963640.013 | BX9: 3928967.111 | BY9: 801314.2216 | BZ9: 2307494321 | CA9: 113352268 | CB9: 8470078.857 | CC9: =$HX9*CC$67/$HX$67 -> 345416.0471 | CD9: 2257433.921 | CE9: 52215915.72 | CF9: 12751672.19 | CG9: 263178.0336 | CH9: 11981258.93 | CI9: 1719691.304 | CJ9: 2510262.042 | CK9: 1189175.754 | CL9: 8545220.079 | CM9: =$HX9*CM$67/$HX$67 -> 155802000.9 | CN9: 1563887.749 | CO9: 3518186.592 | CP9: 8450537.816 | CQ9: 10346144.44 | CR9: 309887.5016 | CS9: 4138407.781 | CT9: 2719814.593 | CU9: 52014655.43 | CV9: 3668180.09 | CW9: =$HX9*CW$67/$HX$67 -> 48858453.68 | CX9: 18498763.45 | CY9: 94317927.49 | CZ9: 8638403.272 | DA9: 5073612.051 | DB9: 5648862.072 | DC9: 15669001.75 | DD9: 4978962.734 | DE9: 4095306.998 | DF9: 13029414.86 | DG9: =$HX9*DG$67/$HX$67 -> 1991938.572 | DH9: 10387811.74 | DI9: 16549018.99 | DJ9: 713026.7065 | DK9: 13430018.51 | DL9: 54639784.49 | DM9: 363870.3468 | DN9: 3897827.201 | DO9: 4635.587774 | DP9: 9795697.965 | DQ9: =$HX9*DQ$67/$HX$67 -> 22833001.5 | DR9: 3766105.969 | DS9: 5664278.247 | DT9: 5953919.747 | DU9: 5092830.399 | DV9: 73889808.69 | DW9: 1865756.594 | DX9: 5162010.922 | DY9: 26114886.28 | DZ9: 38908609.48 | EA9: =$HX9*EA$67/$HX$67 -> 4564790.14 | EB9: 6896084.47 | EC9: 6677832.714 | ED9: 153175737.4 | EE9: 326536.6465 | EF9: 4906790.919 | EG9: 27347470.77 | EH9: 7693330.947 | EI9: 23269166.65 | EJ9: 1662.485092 | EK9: =$HX9*EK$67/$HX$67 -> 37947699.01 | EL9: 8957046.668 | EM9: 5026179.911 | EN9: 14607010.3 | EO9: 24609854.46 | EP9: 7978380.692 | EQ9: 290340.6638 | ER9: 5212515.875 | ES9: 8737398.337 | ET9: 9514352.878 | EU9: =$HX9*EU$67/$HX$67 -> 7908626.418 | EV9: 12165538.15 | EW9: 8550306.875 | EX9: 22747507.04 | EY9: 7652462.369 | EZ9: 7109824.174 | FA9: 8396704.408 | FB9: 4040054.818 | FC9: 7427508.825 | FD9: 7442120.141 | FE9: =$HX9*FE$67/$HX$67 -> 8211682.678 | FF9: 147932470.4 | FG9: 8264113.201 | FH9: 7160833.678 | FI9: 9309678.915 | FJ9: 41497315.58 | FK9: 8061710.803 | FL9: 8883665.493 | FM9: 8538693.682 | FN9: 7684693.286 | FO9: =$HX9*FO$67/$HX$67 -> 19785037.17 | FP9: 6210983.191 | FQ9: 15864668.62 | FR9: 11355343.47 | FS9: 12409722.84 | FT9: 5956021.821 | FU9: 18351088.32 | FV9: 24889839.02 | FW9: 8786584.617 | FX9: 8923130.031 | FY9: =$HX9*FY$67/$HX$67 -> 8657303.047 | FZ9: 0.03528975628 | GA9: 43424.84832 | GB9: 6293728.344 | GC9: 6534708.621 | GD9: 8988536.423 | GE9: 9323182.036 | GF9: 8489949.084 | GG9: 1282558.986 | GH9: 1884551.76 | GI9: =$HX9*GI$67/$HX$67 -> 10186430.1 | GJ9: 14889308.46 | GK9: 8772884.215 | GL9: 259241014 | GM9: 5869491.64 | GN9: 4055710.584 | GO9: 22979902.94 | GP9: 7998214.884 | GQ9: 3670419.305 | GR9: 22741778.4 | GS9: =$HX9*GS$67/$HX$67 -> 6464954.711 | GT9: 5402657.634 | GU9: 1512861.434 | GV9: 3485352.691 | GW9: 6034125.567 | GX9: 4789351.771 | GY9: 23975.3775 | GZ9: 100318.1971 | HA9: 663498604.7 | HB9: 117167284.6 | HC9: =$HX9*HC$67/$HX$67 -> 160949640.5 | HD9: 364217198.2 | HE9: 232595733.1 | HF9: 56343159.58 | HG9: 27861821.33 | HH9: 26531623.98 | HI9: 26486312.16 | HJ9: 91453.85853 | HK9: 14291406.39 | HL9: 12558337.9 | HM9: =$HX9*HM$67/$HX$67 -> 30552707.92 | HN9: 1975423.899 | HO9: 611014.6476 | HP9: 104832589.7 | HQ9: 24480659.35 | HR9: 561118618.4 | HS9: 407029972.2 | HT9: 65893599.28 | HU9: 1555328.729 | HV9: 9053500.487 | HW9: 36734879.54 | HX9: 1.338862608e+10
A10: =+MATCH(B10,RUT[EMPRESA],0) -> 331 | B10: GASATACAMA | C10: 1303363506 | D10: =+C10 -> 1303363506 | F10: =IFERROR(INDEX($B$9:$B$511,MATCH(0,INDEX(COUNTIF($F$8:F9,$B$9:$B$511),0,0),0)),"") -> GASATACAMA | G10: =IF(SUMIF($B$9:$B$400,F10,$D$9:$D$400)<-0.00001,SUMIF($B$9:$B$400,F10,$D$9:$D$400),"") ->  | H10: =IF(SUMIF($B$9:$B$400,F10,$D$9:$D$400)>0.00001,SUMIF($B$9:$B$400,F10,$D$9:$D$400),"") -> 1303363506 | J10: AES_GENER | K10: 118289334.2 | L10: 18327629.49 | M10: 19674495.76 | N10: 1118750741 | O10: 88430693.97 | P10: 34278682.25 | Q10: 797286.1383 | R10: 2033847.334 | S10: 44048074.15 | T10: 6012772.314 | U10: 26654880.46 | V10: 7632438.383 | W10: 2676765.129 | X10: 8233796.395 | Y10: 3848372.345 | Z10: 56349986.91 | AA10: 6583238.308 | AB10: 3346995.701 | AC10: 885859.3189 | AD10: 1175313.469 | AE10: 1186391.629 | AF10: 3793264.175 | AG10: 1081730.985 | AH10: 30263677.06 | AI10: 6158661.539 | AJ10: 10892434.64 | AK10: 18259656.81 | AL10: 9021793.735 | AM10: 516863.0707 | AN10: 580173.7465 | AO10: 63798322.75 | AP10: 182643310.2 | AQ10: 6000470.473 | AR10: 27419.13482 | AS10: 69346103.27 | AT10: 1516835.95 | AU10: 8055346.469 | AV10: 7304507.964 | AW10: 1395878.766 | AX10: 460901.0898 | AY10: 4441.101906 | AZ10: 2297449.884 | BA10: 5016147.524 | BB10: 27978.92386 | BC10: 6256469.244 | BD10: 5144130.827 | BE10: 8801590.468 | BF10: 4250.784526 | BG10: 198482.6949 | BH10: 22837169.38 | BI10: 7162639.039 | BJ10: 354046.6524 | BK10: 147213.988 | BL10: 3010374.352 | BM10: 1845436.459 | BN10: 68632917.57 | BO10: 29991387.49 | BP10: 8555674.379 | BQ10: 80792.76838 | BR10: 3896828.776 | BS10: 1444984.394 | BT10: 22618543.57 | BU10: 816053.6097 | BV10: 34409784.75 | BW10: 1501891.329 | BX10: 1488753.17 | BY10: 303631.7317 | BZ10: 874349259.8 | CA10: 42951122.66 | CB10: 3209458.464 | CC10: 130884.0773 | CD10: 855380.5137 | CE10: 19785507.96 | CF10: 4831827.771 | CG10: 99722.68049 | CH10: 4539904.943 | CI10: 651620.5935 | CJ10: 951181.4344 | CK10: 450599.1329 | CL10: 3237930.765 | CM10: 59036056.09 | CN10: 592583.9485 | CO10: 1333101.371 | CP10: 3202054.028 | CQ10: 3920331.961 | CR10: 117421.7008 | CS10: 1568113.84 | CT10: 1030584.498 | CU10: 19709246.98 | CV10: 1389936.486 | CW10: 18513307.89 | CX10: 7009499.433 | CY10: 35738683.88 | CZ10: 3273239.478 | DA10: 1922478.812 | DB10: 2140450.933 | DC10: 5937254.085 | DD10: 1886614.559 | DE10: 1551782.213 | DF10: 4937069.243 | DG10: 754779.7628 | DH10: 3936120.417 | DI10: 6270707.743 | DJ10: 270178.0747 | DK10: 5088864.849 | DL10: 20703953.5 | DM10: 137876.7287 | DN10: 1476953.723 | DO10: 1756.503885 | DP10: 3711758.329 | DQ10: 8651816.725 | DR10: 1427042.284 | DS10: 2146292.387 | DT10: 2256042.529 | DU10: 1929760.975 | DV10: 27998118.54 | DW10: 706967.2423 | DX10: 1955974.664 | DY10: 9895379.279 | DZ10: 14743140.9 | EA10: 1729677.445 | EB10: 2613044.937 | EC10: 2530345.595 | ED10: 58040919.71 | EE10: 123730.3479 | EF10: 1859267.418 | EG10: 10362426.73 | EH10: 2915135.33 | EI10: 8817087.199 | EJ10: 629.9441765 | EK10: 14379035.41 | EL10: 3393978.938 | EM10: 1904505.959 | EN10: 5534847.27 | EO10: 9325096.854 | EP10: 3023145.578 | EQ10: 110015.0679 | ER10: 1975111.859 | ES10: 3310750.41 | ET10: 3605151.84 | EU10: 2996714.485 | EV10: 4609731.508 | EW10: 3239858.239 | EX10: 8619421.404 | EY10: 2899649.524 | EZ10: 2694034.584 | FA10: 3181655.624 | FB10: 1530846.212 | FC10: 2814410.759 | FD10: 2819947.238 | FE10: 3111547.71 | FF10: 56054155.74 | FG10: 3131414.537 | FH10: 2713362.962 | FI10: 3527597.357 | FJ10: 15724046.14 | FK10: 3054720.789 | FL10: 3366173.549 | FM10: 3235457.801 | FN10: 2911862.372 | FO10: 7496890.651 | FP10: 2353448.287 | FQ10: 6011395.623 | FR10: 4302734.818 | FS10: 4702257.285 | FT10: 2256839.041 | FU10: 6953542.786 | FV10: 9431187.817 | FW10: 3329387.937 | FX10: 3381127.341 | FY10: 3280400.928 | FZ10: 0.01337189522 | GA10: 16454.42142 | GB10: 2384801.847 | GC10: 2476113.416 | GD10: 3405910.947 | GE10: 3532713.922 | GF10: 3216987.635 | GG10: 485983.6446 | GH10: 714089.0538 | GI10: 3859813.453 | GJ10: 5641814.895 | GK10: 3324196.619 | GL10: 98230876.08 | GM10: 2224051.268 | GN10: 1536778.451 | GO10: 8707480.205 | GP10: 3030661.094 | GQ10: 1390784.962 | GR10: 8617250.727 | GS10: 2449682.461 | GT10: 2047159.84 | GU10: 573249.2006 | GV10: 1320660.041 | GW10: 2286433.893 | GX10: 1814767.706 | GY10: 9084.682628 | GZ10: 38012.28916 | HA10: 251411025.6 | HB10: 44396698.04 | HC10: 60986585.23 | HD10: 138008156.6 | HE10: 88134521.18 | HF10: 21349391.6 | HG10: 10557323 | HH10: 10053288.35 | HI10: 10036118.93 | HJ10: 34653.43892 | HK10: 5415259.524 | HL10: 4758570.084 | HM10: 11576946.17 | HN10: 748522.0693 | HO10: 231523.9522 | HP10: 39722870.13 | HQ10: 9276142.604 | HR10: 212617489.1 | HS10: 154230652.6 | HT10: 24968217.36 | HU10: 589340.7887 | HV10: 3430526.948 | HW10: 13919477.26 | HX10: 5073180547
A11: =+MATCH(B11,RUT[EMPRESA],0) -> 4 | B11: AES_GENER | C11: -5073180547 | D11: -5073180547 | F11: =IFERROR(INDEX($B$9:$B$511,MATCH(0,INDEX(COUNTIF($F$8:F10,$B$9:$B$511),0,0),0)),"") -> AES_GENER | G11: -5073180547 | J11: PEHUENCHE | K11: 12811827.35 | L11: 1985051.538 | M11: 2130929.594 | N11: 121171037.4 | O11: 9577860.855 | P11: 3712697.867 | Q11: 86353.45208 | R11: 220284.4498 | S11: 4770813.235 | T11: 651238.7723 | U11: 2886969.724 | V11: 826663.5659 | W11: 289918.3847 | X11: 891796.1925 | Y11: 416814.2664 | Z11: 6103224.001 | AA11: 713025.508 | AB11: 362510.5454 | AC11: 95946.74555 | AD11: 127297.3033 | AE11: 128497.1703 | AF11: 410845.5427 | AG11: 117161.456 | AH11: 3277835.724 | AI11: 667039.9227 | AJ11: 1179751.268 | AK11: 1977689.469 | AL11: 977143.5819 | AM11: 55981.04402 | AN11: 62838.17491 | AO11: 6909947.561 | AP11: 19781957.29 | AQ11: 649906.3693 | AR11: 2969.74553 | AS11: 7510823.427 | AT11: 164287.3421 | AU11: 872468.4174 | AV11: 791145.6729 | AW11: 151186.562 | AX11: 49919.84466 | AY11: 481.012352 | AZ11: 248835.0404 | BA11: 543295.1033 | BB11: 3030.375852 | BC11: 677633.4004 | BD11: 557156.8769 | BE11: 953293.5344 | BF11: 460.3992221 | BG11: 21497.50894 | BH11: 2473476.355 | BI11: 775779.9582 | BJ11: 38346.52224 | BK11: 15944.63448 | BL11: 326051.3445 | BM11: 199877.8119 | BN11: 7433578.829 | BO11: 3248344.249 | BP11: 926658.5508 | BQ11: 8750.602973 | BR11: 422062.5455 | BS11: 156505.1549 | BT11: 2449797.161 | BU11: 88386.14256 | BV11: 3726897.479 | BW11: 162668.7016 | BX11: 161245.7176 | BY11: 32886.12072 | BZ11: 94700099.85 | CA11: 4652003.257 | CB11: 347613.9925 | CC11: 14175.95435 | CD11: 92645.60946 | CE11: 2142953.24 | CF11: 523331.5717 | CG11: 10800.88728 | CH11: 491713.6334 | CI11: 70576.52829 | CJ11: 103021.7339 | CK11: 48804.04759 | CL11: 350697.8056 | CM11: 6394150.099 | CN11: 64182.31441 | CO11: 144387.1903 | CP11: 346812.0236 | CQ11: 424608.1574 | CR11: 12717.85463 | CS11: 169841.2111 | CT11: 111621.819 | CU11: 2134693.472 | CV11: 150542.9581 | CW11: 2005162.223 | CX11: 759193.5245 | CY11: 3870829.527 | CZ11: 354522.0653 | DA11: 208222.2103 | DB11: 231830.6041 | DC11: 643059.4507 | DD11: 204337.7805 | DE11: 168072.345 | DF11: 534730.1951 | DG11: 81749.61905 | DH11: 426318.1931 | DI11: 679175.5614 | DJ11: 29262.78071 | DK11: 551171.0612 | DL11: 2242429.374 | DM11: 14933.32307 | DN11: 159967.7286 | DO11: 190.2455929 | DP11: 402017.7068 | DQ11: 937071.6548 | DR11: 154561.8587 | DS11: 232463.2874 | DT11: 244350.2415 | DU11: 209010.9358 | DV11: 3032454.814 | DW11: 76571.08151 | DX11: 211850.1204 | DY11: 1071760.964 | DZ11: 1596818.319 | EA11: 187340.0416 | EB11: 283016.8993 | EC11: 274059.7968 | ED11: 6286367.639 | EE11: 13401.13939 | EF11: 201375.8325 | EG11: 1122346.516 | EH11: 315736.0789 | EI11: 954971.9734 | EJ11: 68.22877213 | EK11: 1557382.332 | EL11: 367599.2639 | EM11: 206275.5843 | EN11: 599475.0762 | EO11: 1009994.111 | EP11: 327434.5862 | EQ11: 11915.6479 | ER11: 213922.8553 | ES11: 358584.8457 | ET11: 390471.2395 | EU11: 324571.8547 | EV11: 499276.4953 | EW11: 350906.5688 | EX11: 933562.9423 | EY11: 314058.823 | EZ11: 291788.8261 | FA11: 344602.6881 | FB11: 165804.7828 | FC11: 304826.6776 | FD11: 305426.3294 | FE11: 337009.3536 | FF11: 6071182.752 | FG11: 339161.1144 | FH11: 293882.268 | FI11: 382071.3728 | FJ11: 1703059.415 | FK11: 330854.4732 | FL11: 364587.6835 | FM11: 350429.9607 | FN11: 315381.5873 | FO11: 811982.4947 | FP11: 254900.1846 | FQ11: 651089.6639 | FR11: 466025.9185 | FS11: 509297.8915 | FT11: 244436.5111 | FU11: 753132.9028 | FV11: 1021484.742 | FW11: 360603.4619 | FX11: 366207.3173 | FY11: 355297.7165 | FZ11: 0.001448299748 | GA11: 1782.165804 | GB11: 258296.0648 | GC11: 268185.951 | GD11: 368891.6107 | GE11: 382625.544 | GF11: 348429.4712 | GG11: 52636.51699 | GH11: 77342.43946 | GI11: 418053.444 | GJ11: 611060.6579 | GK11: 360041.1943 | GL11: 10639311.09 | GM11: 240885.2925 | GN11: 166447.299 | GO11: 943100.5237 | GP11: 328248.5861 | GQ11: 150634.856 | GR11: 933327.838 | GS11: 265323.2344 | GT11: 221726.3171 | GU11: 62088.18264 | GV11: 143039.6794 | GW11: 247641.9069 | GX11: 196556.1028 | GY11: 983.9550298 | GZ11: 4117.081977 | HA11: 27230135.97 | HB11: 4808572.422 | HC11: 6605410.42 | HD11: 14947557.93 | HE11: 9545782.606 | HF11: 2312336.282 | HG11: 1143455.582 | HH11: 1088863.976 | HI11: 1087004.368 | HJ11: 3753.287476 | HK11: 586522.6189 | HL11: 515397.0876 | HM11: 1253890.189 | HN11: 81071.85305 | HO11: 25076.18225 | HP11: 4302353.694 | HQ11: 1004691.913 | HR11: 23028437.69 | HS11: 16704604.06 | HT11: 2704288.533 | HU11: 63831.05025 | HV11: 371557.7509 | HW11: 1507607.94 | HX11: 549472306.4
A12: =+MATCH(B12,RUT[EMPRESA],0) -> 338 | B12: GMETROPOLITANA | C12: 201941820 | D12: 201941820 | F12: =IFERROR(INDEX($B$9:$B$511,MATCH(0,INDEX(COUNTIF($F$8:F11,$B$9:$B$511),0,0),0)),"") -> GMETROPOLITANA | H12: 201941820 | J12: GUACOLDA | K12: 18700655.28 | L12: 2897460.568 | M12: 3110390.009 | N12: 176866089.5 | O12: 13980228.53 | P12: 5419202.204 | Q12: 126044.9502 | R12: 321535.9877 | S12: 6963669.688 | T12: 950574.1421 | U12: 4213936.402 | V12: 1206631.183 | W12: 423176.4623 | X12: 1301701.368 | Y12: 608398.7633 | Z12: 8908509.698 | AA12: 1040760.531 | AB12: 529134.8817 | AC12: 140047.7048 | AD12: 185808.2319 | AE12: 187559.6057 | AF12: 599686.5756 | AG12: 171013.5441 | AH12: 4784460.039 | AI12: 973638.1328 | AJ12: 1722012.105 | AK12: 2886714.597 | AL12: 1426277.829 | AM12: 81712.16942 | AN12: 91721.11175 | AO12: 10086035.65 | AP12: 28874535.54 | AQ12: 948629.3135 | AR12: 4334.759276 | AS12: 10963098.08 | AT12: 239800.371 | AU12: 1273489.775 | AV12: 1154787.846 | AW12: 220677.9488 | AX12: 72865.00057 | AY12: 702.1048551 | AZ12: 363209.571 | BA12: 793015.2484 | BB12: 4423.257718 | BC12: 989100.7963 | BD12: 813248.4472 | BE12: 1391465.346 | BF12: 672.0171067 | BG12: 31378.62331 | BH12: 3610384.953 | BI12: 1132359.435 | BJ12: 55972.11658 | BK12: 23273.4258 | BL12: 475917.5747 | BM12: 291749.6434 | BN12: 10850348.78 | BO12: 4741413.102 | BP12: 1352587.859 | BQ12: 12772.72986 | BR12: 616059.3612 | BS12: 228441.1797 | BT12: 3575821.855 | BU12: 129011.9465 | BV12: 5439928.524 | BW12: 237437.7387 | BX12: 235360.6945 | BY12: 48001.89626 | BZ12: 138228050.9 | CA12: 6790249.896 | CB12: 507391.2776 | CC12: 20691.78958 | CD12: 135229.2346 | CE12: 3127940.204 | CF12: 763875.6796 | CG12: 15765.40679 | CH12: 717724.8731 | CI12: 103016.3216 | CJ12: 150374.6406 | CK12: 71236.33856 | CL12: 511892.5344 | CM12: 9333157.06 | CN12: 93683.07148 | CO12: 210753.3141 | CP12: 506220.6918 | CQ12: 619775.0382 | CR12: 18563.48896 | CS12: 247907.0203 | CT12: 162927.6686 | CU12: 3115883.915 | CV12: 219738.5188 | CW12: 2926814.927 | CX12: 1108149.213 | CY12: 5650017.495 | CZ12: 517474.5769 | DA12: 303929.4609 | DB12: 338389.216 | DC12: 938635.2773 | DD12: 298259.5918 | DE12: 245325.1127 | DF12: 780513.5661 | DG12: 119325.0115 | DH12: 622271.0746 | DI12: 991351.7961 | DJ12: 42713.12436 | DK12: 804511.3112 | DL12: 3273139.545 | DM12: 21797.27524 | DN12: 233495.2905 | DO12: 277.6900715 | DP12: 586801.1135 | DQ12: 1367787.242 | DR12: 225604.6669 | DS12: 339312.7059 | DT12: 356663.3792 | DU12: 305080.7161 | DV12: 4426292.253 | DW12: 111766.2111 | DX12: 309224.9034 | DY12: 1564385.142 | DZ12: 2330779.844 | EA12: 273449.0127 | EB12: 413102.7785 | EC12: 400028.6337 | ED12: 9175833.473 | EE12: 19560.83869 | EF12: 293936.2142 | EG12: 1638221.835 | EH12: 460861.0007 | EI12: 1393915.263 | EJ12: 99.58944291 | EK12: 2273217.5 | EL12: 536562.5786 | EM12: 301088.0878 | EN12: 875017.7823 | EO12: 1474227.774 | EP12: 477936.6096 | EQ12: 17392.55594 | ER12: 312250.3502 | ES12: 523404.7734 | ET12: 569947.4283 | EU12: 473758.0523 | EV12: 728763.9287 | EW12: 512197.2537 | EX12: 1362665.785 | EY12: 458412.811 | EZ12: 425906.6334 | FA12: 502995.8574 | FB12: 242015.2882 | FC12: 444937.2025 | FD12: 445812.4783 | FE12: 491912.3228 | FF12: 8861741.01 | FG12: 495053.1189 | FH12: 428962.3048 | FI12: 557686.6471 | FJ12: 2485853.594 | FK12: 482928.4134 | FL12: 532166.7555 | FM12: 511501.5774 | FN12: 460343.5706 | FO12: 1185202.104 | FP12: 372062.4978 | FQ12: 950356.4976 | FR12: 680230.0577 | FS12: 743391.5591 | FT12: 356789.3017 | FU12: 1099302.888 | FV12: 1490999.958 | FW12: 526351.2264 | FX12: 534530.8376 | FY12: 518606.7482 | FZ12: 0.002113996201 | GA12: 2601.320441 | GB12: 377019.2603 | GC12: 391454.9335 | GD12: 538448.9396 | GE12: 558495.5376 | GF12: 508581.5829 | GG12: 76830.36409 | GH12: 112892.116 | GI12: 610207.5166 | GJ12: 891928.5604 | GK12: 525530.5181 | GL12: 15529563.72 | GM12: 351605.8011 | GN12: 242953.1306 | GO12: 1376587.22 | GP12: 479124.7563 | GQ12: 219872.6567 | GR12: 1362322.618 | GS12: 387276.398 | GT12: 323640.5948 | GU12: 90626.39305 | GV12: 208786.4333 | GW12: 361468.0255 | GX12: 286901.144 | GY12: 1436.22009 | GZ12: 6009.457414 | HA12: 39746194.86 | HB12: 7018784.506 | HC12: 9641521.067 | HD12: 21818053.01 | HE12: 13933405.84 | HF12: 3375178.461 | HG12: 1669033.472 | HH12: 1589349.381 | HI12: 1586635.023 | HJ12: 5478.448419 | HK12: 856111.8579 | HL12: 752294.1895 | HM12: 1830228.238 | HN12: 118335.7172 | HO12: 36602.19792 | HP12: 6279887.417 | HQ12: 1466488.474 | HR12: 33613228.1 | HS12: 24382707.78 | HT12: 3947287.633 | HU12: 93170.35227 | HV12: 542340.5444 | HW12: 2200564.809 | HX12: 802031740.9
A13: =+MATCH(B13,RUT[EMPRESA],0) -> 177 | B13: IMELSA_ENERGIA | C13: 216782180.3 | D13: 216782180.3 | F13: =IFERROR(INDEX($B$9:$B$511,MATCH(0,INDEX(COUNTIF($F$8:F12,$B$9:$B$511),0,0),0)),"") -> IMELSA_ENERGIA | H13: 216782180.3 | J13: TECNORED | K13: 5546481.899 | L13: 859366.2813 | M13: 922519.6454 | N13: 52457229.37 | O13: 4146436.759 | P13: 1607296.989 | Q13: 37384.03944 | R13: 95365.29647 | S13: 2065375.105 | T13: 281933.5575 | U13: 1249823.689 | V13: 357878.2621 | W13: 125511.1413 | X13: 386075.4056 | Y13: 180446.7638 | Z13: 2642200.876 | AA13: 308682.2017 | AB13: 156937.658 | AC13: 41537.15727 | AD13: 55109.40549 | AE13: 55628.85056 | AF13: 177862.7907 | AG13: 50721.40588 | AH13: 1419036.959 | AI13: 288774.1738 | AJ13: 510736.5933 | AK13: 856179.1026 | AL13: 423023.9015 | AM13: 24235.25067 | AN13: 27203.83207 | AO13: 2991446.734 | AP13: 8563982.721 | AQ13: 281356.7351 | AR13: 1285.658898 | AS13: 3251577.238 | AT13: 71123.09152 | AU13: 377708.0469 | AV13: 342501.8957 | AW13: 65451.51652 | AX13: 21611.24306 | AY13: 208.239327 | AZ13: 107725.3861 | BA13: 235202.7057 | BB13: 1311.906909 | BC13: 293360.2903 | BD13: 241203.7291 | BE13: 412698.7658 | BF13: 199.3155139 | BG13: 9306.677415 | BH13: 1070814.604 | BI13: 335849.7878 | BJ13: 16600.93332 | BK13: 6902.733245 | BL13: 141153.7817 | BM13: 86530.87775 | BN13: 3218136.594 | BO13: 1406269.542 | BP13: 401167.9786 | BQ13: 3788.301207 | BR13: 182718.8429 | BS13: 67754.03582 | BT13: 1060563.434 | BU13: 38264.02952 | BV13: 1613444.269 | BW13: 70422.35149 | BX13: 69806.3149 | BY13: 14237.02243 | BZ13: 40997460.82 | CA13: 2013940.023 | CB13: 150488.659 | CC13: 6137.038227 | CD13: 40108.03315 | CE13: 927724.9089 | CF13: 226560.116 | CG13: 4675.907985 | CH13: 212872.1137 | CI13: 30553.91132 | CJ13: 44600.0533 | CK13: 21128.19344 | CL13: 151823.6999 | CM13: 2768148.276 | CN13: 27785.73543 | CO13: 62507.94017 | CP13: 150141.4716 | CQ13: 183820.8864 | CR13: 5505.799338 | CS13: 73527.46626 | CT13: 48323.19247 | CU13: 924149.0991 | CV13: 65172.88826 | CW13: 868072.5764 | CX13: 328669.2075 | CY13: 1675755.169 | CZ13: 153479.2942 | DA13: 90143.32533 | DB13: 100363.8446 | DC13: 278392.5748 | DD13: 88461.68233 | DE13: 72761.69076 | DF13: 231494.7952 | DG13: 35390.95322 | DH13: 184561.1931 | DI13: 294027.9209 | DJ13: 12668.41014 | DK13: 238612.3565 | DL13: 970790.0051 | DM13: 6464.917443 | DN13: 69253.0493 | DO13: 82.36090829 | DP13: 174041.0539 | DQ13: 405676.0079 | DR13: 66912.74621 | DS13: 100637.7452 | DT13: 105783.832 | DU13: 90484.77947 | DV13: 1312806.93 | DW13: 33149.06657 | DX13: 91713.91609 | DY13: 463985.5524 | DZ13: 691292.7924 | EA13: 81103.0403 | EB13: 122523.358 | EC13: 118645.6593 | ED13: 2721487.215 | EE13: 5801.606205 | EF13: 87179.39915 | EG13: 485884.9927 | EH13: 136688.1085 | EI13: 413425.3937 | EJ13: 29.53752337 | EK13: 674220.209 | EL13: 159140.6603 | EM13: 89300.59419 | EN13: 259524.0764 | EO13: 437245.5156 | EP13: 141752.6131 | EQ13: 5158.508899 | ER13: 92611.24216 | ES13: 155238.1485 | ET13: 169042.3702 | EU13: 140513.2826 | EV13: 216146.2193 | EW13: 151914.0775 | EX13: 404157.02 | EY13: 135961.9928 | EZ13: 126320.8907 | FA13: 149185.0085 | FB13: 71780.02025 | FC13: 131965.2227 | FD13: 132224.8233 | FE13: 145897.7107 | FF13: 2628329.615 | FG13: 146829.2485 | FH13: 127227.1812 | FI13: 165405.9094 | FJ13: 737286.5685 | FK13: 143233.1468 | FL13: 157836.8903 | FM13: 151707.7448 | FN13: 136534.6424 | FO13: 351522.5492 | FP13: 110351.1015 | FQ13: 281869.0057 | FR13: 201751.417 | FS13: 220484.6709 | FT13: 105821.1797 | FU13: 326045.45 | FV13: 442220.0267 | FW13: 156112.0456 | FX13: 158538.0603 | FY13: 153815.0882 | FZ13: 0.0006269962995 | GA13: 771.5332173 | GB13: 111821.2421 | GC13: 116102.7606 | GD13: 159700.1416 | GE13: 165645.8206 | GF13: 150841.6952 | GG13: 22787.34179 | GH13: 33483.00199 | GI13: 180983.2273 | GJ13: 264539.6934 | GK13: 155868.6293 | GL13: 4605958.601 | GM13: 104283.7901 | GN13: 72058.17768 | GO13: 408286.019 | GP13: 142105.009 | GQ13: 65212.67259 | GR13: 404055.2389 | GS13: 114863.4365 | GT13: 95989.50804 | GU13: 26879.14626 | GV13: 61924.57727 | GW13: 107208.8561 | GX13: 85092.84715 | GY13: 425.9727059 | GZ13: 1782.362503 | HA13: 11788439.87 | HB13: 2081721.77 | HC13: 2859606.857 | HD13: 6471079.983 | HE13: 4132549.48 | HF13: 1001054.025 | HG13: 495023.5058 | HH13: 471389.7688 | HI13: 470584.7096 | HJ13: 1624.868997 | HK13: 253916.7131 | HL13: 223125.128 | HM13: 542832.7317 | HN13: 35097.53552 | HO13: 10855.95264 | HP13: 1862570.127 | HQ13: 434950.0942 | HR13: 9969445.37 | HS13: 7231738.421 | HT13: 1170737.553 | HU13: 27633.66655 | HV13: 160854.364 | HW13: 652671.9356 | HX13: 237876933.5
A14: =+MATCH(B14,RUT[EMPRESA],0) -> 56 | B14: COLBUN | C14: 1.232688389e+10 | D14: 1.232688389e+10 | F14: =IFERROR(INDEX($B$9:$B$511,MATCH(0,INDEX(COUNTIF($F$8:F13,$B$9:$B$511),0,0),0)),"") -> COLBUN | H14: 1.232688389e+10 | J14: NUEVA ENERGIA | K14: 1674580.891 | L14: 259457.8652 | M14: 278524.9818 | N14: 15837764.46 | O14: 1251882.525 | P14: 485271.3617 | Q14: 11286.90208 | R14: 28792.4681 | S14: 623573.2391 | T14: 85120.72276 | U14: 377343.856 | V14: 108049.771 | W14: 37894.03133 | X14: 116562.9869 | Y14: 54480.06648 | Z14: 797727.132 | AA14: 93196.61108 | AB14: 47382.25202 | AC14: 12540.80174 | AD14: 16638.50329 | AE14: 16795.33294 | AF14: 53699.91932 | AG14: 15313.68868 | AH14: 428432.3321 | AI14: 87186.02568 | AJ14: 154200.4022 | AK14: 258495.5997 | AL14: 127718.3907 | AM14: 7317.050413 | AN14: 8213.317592 | AO14: 903170.6275 | AP14: 2585617.708 | AQ14: 84946.56988 | AR14: 388.1631387 | AS14: 981708.6233 | AT14: 21473.31807 | AU14: 114036.7334 | AV14: 103407.3743 | AW14: 19760.96936 | AX14: 6524.816147 | AY14: 62.87113237 | AZ14: 32524.19756 | BA14: 71011.85284 | BB14: 396.087877 | BC14: 88570.65528 | BD14: 72823.66786 | BE14: 124601.0497 | BF14: 60.17687553 | BG14: 2809.85036 | BH14: 323297.8502 | BI14: 101398.9854 | BJ14: 5012.115106 | BK14: 2084.057137 | BL14: 42616.82086 | BM14: 26125.20099 | BN14: 971612.3019 | BO14: 424577.6234 | BP14: 121119.7013 | BQ14: 1143.755073 | BR14: 55166.0473 | BS14: 20456.14062 | BT14: 320202.8408 | BU14: 11552.58663 | BV14: 487127.3341 | BW14: 21261.75227 | BX14: 21075.75994 | BY14: 4298.408638 | BZ14: 12377857.84 | CA14: 608044.079 | CB14: 45435.18528 | CC14: 1852.880282 | CD14: 12109.32391 | CE14: 280096.5428 | CF14: 68402.50231 | CG14: 1411.739244 | CH14: 64269.85254 | CI14: 9224.765713 | CJ14: 13465.54417 | CK14: 6378.974933 | CL14: 45838.25772 | CM14: 835752.8775 | CN14: 8389.004499 | CO14: 18872.25165 | CP14: 45330.36325 | CQ14: 55498.7737 | CR14: 1662.298107 | CS14: 22199.24129 | CT14: 14589.62567 | CU14: 279016.9426 | CV14: 19676.84656 | CW14: 262086.4496 | CX14: 99231.04131 | CY14: 505940.0961 | CZ14: 46338.11087 | DA14: 27215.86274 | DB14: 30301.61811 | DC14: 84051.6375 | DD14: 26708.14501 | DE14: 21968.04013 | DF14: 69892.36917 | DG14: 10685.15413 | DH14: 55722.28538 | DI14: 88772.22475 | DJ14: 3824.816872 | DK14: 72041.28667 | DL14: 293098.6563 | DM14: 1951.87281 | DN14: 20908.71928 | DO14: 24.86621352 | DP14: 52546.06946 | DQ14: 122480.755 | DR14: 20202.14042 | DS14: 30384.31353 | DT14: 31938.00807 | DU14: 27318.95378 | DV14: 396359.6095 | DW14: 10008.28894 | DX14: 27690.05184 | DY14: 140085.4368 | DZ14: 208713.5091 | EA14: 24486.44095 | EB14: 36991.96677 | EC14: 35821.221 | ED14: 821665.0785 | EE14: 1751.607427 | EF14: 26321.00105 | EG14: 146697.2648 | EH14: 41268.55522 | EI14: 124820.4315 | EJ14: 8.917900229 | EK14: 203558.9945 | EL14: 48047.37733 | EM14: 26961.42732 | EN14: 78354.90442 | EO14: 132012.1472 | EP14: 42797.61866 | EQ14: 1557.444987 | ER14: 27960.97044 | ES14: 46869.14007 | ET14: 51036.87854 | EU14: 42423.44288 | EV14: 65258.3629 | EW14: 45865.5443 | EX14: 122022.1458 | EY14: 41049.32805 | EZ14: 38138.50899 | FA14: 45041.59016 | FB14: 21671.65646 | FC14: 39842.63256 | FD14: 39921.01056 | FE14: 44049.09685 | FF14: 793539.1531 | FG14: 44330.34459 | FH14: 38412.1341 | FI14: 49938.96675 | FJ14: 222599.8428 | FK14: 43244.61793 | FL14: 47653.74614 | FM14: 45803.24883 | FN14: 41222.22109 | FO14: 106130.869 | FP14: 33316.94744 | FQ14: 85101.23342 | FR14: 60912.31771 | FS14: 66568.21809 | FT14: 31949.28401 | FU14: 98438.88255 | FV14: 133514.04 | FW14: 47132.98504 | FX14: 47865.44176 | FY14: 46439.49302 | FZ14: 0.0001893012618 | GA14: 232.9395112 | GB14: 33760.80887 | GC14: 35053.47494 | GD14: 48216.29464 | GE14: 50011.40017 | GF14: 45541.77312 | GG14: 6879.901137 | GH14: 10109.10994 | GI14: 54642.03426 | GJ14: 79869.20782 | GK14: 47059.49336 | GL14: 1390620.288 | GM14: 31485.11893 | GN14: 21755.6371 | GO14: 123268.7635 | GP14: 42904.01321 | GQ14: 19688.85815 | GR14: 121991.4162 | GS14: 34679.30111 | GT14: 28980.9286 | GU14: 8115.289208 | GV14: 18696.12408 | GW14: 32368.24801 | GX14: 25691.03414 | GY14: 128.6086868 | GZ14: 538.126734 | HA14: 3559138.297 | HB14: 628508.5861 | HC14: 863365.839 | HD14: 1953733.39 | HE14: 1247689.71 | HF14: 302235.8986 | HG14: 149456.3434 | HH14: 142320.9006 | HI14: 142077.839 | HJ14: 490.5766613 | HK14: 76661.94237 | HL14: 67365.41875 | HM14: 163890.7935 | HN14: 10596.56614 | HO14: 3277.603927 | HP14: 562342.8327 | HQ14: 131319.119 | HR14: 3009951.716 | HS14: 2183389.614 | HT14: 353466.354 | HU14: 8343.092215 | HV14: 48564.77478 | HW14: 197053.19 | HX14: 71819249.47
A15: =+MATCH(B15,RUT[EMPRESA],0) -> 244 | B15: PEHUENCHE | C15: -549472306.4 | D15: -549472306.4 | F15: =IFERROR(INDEX($B$9:$B$511,MATCH(0,INDEX(COUNTIF($F$8:F14,$B$9:$B$511),0,0),0)),"") -> PEHUENCHE | G15: -549472306.4 | J15: PACIFIC HYDRO | K15: 675832.4125 | L15: 104712.7887 | M15: 112407.9532 | N15: 6391852.805 | O15: 505238.5295 | P15: 195847.2815 | Q15: 4555.202023 | R15: 11620.15122 | S15: 251663.5708 | T15: 34353.27832 | U15: 152289.5728 | V15: 43607.05284 | W15: 15293.38759 | X15: 47042.84221 | Y15: 21987.22974 | Z15: 321949.1247 | AA15: 37612.56972 | AB15: 19122.67234 | AC15: 5061.254634 | AD15: 6715.017401 | AE15: 6778.311183 | AF15: 21672.37559 | AG15: 6180.344717 | AH15: 172908.0143 | AI15: 35186.79951 | AJ15: 62232.66393 | AK15: 104324.4347 | AL15: 51544.97375 | AM15: 2953.0373 | AN15: 3314.755515 | AO15: 364504.329 | AP15: 1043511.402 | AQ15: 34282.99318 | AR15: 156.6560516 | AS15: 396200.9305 | AT15: 8666.266546 | AU15: 46023.28922 | AV15: 41733.46037 | AW15: 7975.191684 | AX15: 2633.305003 | AY15: 25.37372145 | AZ15: 13126.21386 | BA15: 28659.178 | BB15: 159.8543414 | BC15: 35745.61251 | BD15: 29390.39577 | BE15: 50286.86789 | BF15: 24.28636513 | BG15: 1134.007893 | BH15: 130477.5226 | BI15: 40922.9087 | BJ15: 2022.804549 | BK15: 841.0900724 | BL15: 17199.42525 | BM15: 10543.6875 | BN15: 392126.2267 | BO15: 171352.3193 | BP15: 48881.85479 | BQ15: 461.6001261 | BR15: 22264.07995 | BS15: 8255.751 | BT15: 129228.4294 | BU15: 4662.427798 | BV15: 196596.3204 | BW15: 8580.882183 | BX15: 8505.818836 | BY15: 1734.764738 | BZ15: 4995493.244 | CA15: 245396.2655 | CB15: 18336.86927 | CC15: 747.791019 | CD15: 4887.117509 | CE15: 113042.2085 | CF15: 27606.08843 | CG15: 569.7539868 | CH15: 25938.22116 | CI15: 3722.958801 | CJ15: 5434.464976 | CK15: 2574.445965 | CL15: 18499.54246 | CM15: 337295.6699 | CN15: 3385.659767 | CO15: 7616.520305 | CP15: 18294.56488 | CQ15: 22398.36267 | CR15: 670.8752895 | CS15: 8959.236831 | CT15: 5888.125184 | CU15: 112606.5002 | CV15: 7941.241152 | CW15: 105773.6407 | CX15: 40047.96329 | CY15: 204188.8317 | CZ15: 18701.27471 | DA15: 10983.86007 | DB15: 12229.21853 | DC15: 33921.81366 | DD15: 10778.95381 | DE15: 8865.92797 | DF15: 28207.3734 | DG15: 4312.346769 | DH15: 22488.56819 | DI15: 35826.96252 | DJ15: 1543.631143 | DK15: 29074.64001 | DL15: 118289.6407 | DM15: 787.7427227 | DN15: 8438.404061 | DO15: 10.03558154 | DP15: 21206.70138 | DQ15: 49431.15295 | DR15: 8153.240834 | DS15: 12262.593 | DT15: 12889.63773 | DU15: 11025.46586 | DV15: 159964.008 | DW15: 4039.17547 | DX15: 11175.23473 | DY15: 56536.1036 | DZ15: 84233.22823 | EA15: 9882.311777 | EB15: 14929.32965 | EC15: 14456.83654 | ED15: 331610.0735 | EE15: 706.9190145 | EF15: 10622.70908 | EG15: 59204.5251 | EH15: 16655.28813 | EI15: 50375.40666 | EJ15: 3.599113103 | EK15: 82152.95367 | EL15: 19391.10563 | EM15: 10881.17425 | EN15: 31622.70893 | EO15: 53277.861 | EP15: 17272.39217 | EQ15: 628.5583506 | ER15: 11284.57288 | ES15: 18915.58907 | ET15: 20597.61755 | EU15: 17121.38118 | EV15: 26337.16715 | EW15: 18510.55486 | EX15: 49246.06604 | EY15: 16566.81177 | EZ15: 15392.05462 | FA15: 18178.02096 | FB15: 8746.312553 | FC15: 16079.80995 | FD15: 16111.44199 | FE15: 17777.46752 | FF15: 320258.9276 | FG15: 17890.97433 | FH15: 15502.48507 | FI15: 20154.51899 | FJ15: 89837.51671 | FK15: 17452.79348 | FL15: 19232.24276 | FM15: 18485.41347 | FN15: 16636.58846 | FO15: 42832.61657 | FP15: 13446.15425 | FQ15: 34345.41275 | FR15: 24583.17711 | FS15: 26865.80246 | FT15: 12894.18851 | FU15: 39728.26146 | FV15: 53883.99943 | FW15: 19022.07242 | FX15: 19317.67952 | FY15: 18742.19082 | FZ15: 7.639877484e-05 | GA15: 94.01043131 | GB15: 13625.28919 | GC15: 14146.98726 | GD15: 19459.27778 | GE15: 20183.75189 | GF15: 18379.88631 | GG15: 2776.611275 | GH15: 4079.865115 | GI15: 22052.59718 | GJ15: 32233.85606 | GK15: 18992.41243 | GL15: 561230.7351 | GM15: 12706.85937 | GN15: 8780.205714 | GO15: 49749.1798 | GP15: 17315.3312 | GQ15: 7946.088826 | GR15: 49233.66413 | GS15: 13995.97706 | GT15: 11696.21068 | GU15: 3275.192924 | GV15: 7545.43821 | GW15: 13063.27527 | GX15: 10368.46513 | GY15: 51.90428216 | GZ15: 217.1788122 | HA15: 1436407.781 | HB15: 253655.393 | HC15: 348439.7923 | HD15: 788493.6211 | HE15: 503546.3805 | HF15: 121977.2766 | HG15: 60318.04238 | HH15: 57438.29881 | HI15: 57340.20328 | HJ15: 197.9884103 | HK15: 30939.45819 | HL15: 27187.53912 | HM15: 66143.54132 | HN15: 4276.594162 | HO15: 1322.78529 | HP15: 226952.0185 | HQ15: 52998.16656 | HR15: 1214765.402 | HS15: 881178.9731 | HT15: 142653.0185 | HU15: 3367.130349 | HV15: 19599.91845 | HW15: 79527.32143 | HX15: 28985029.57
A16: =+MATCH(B16,RUT[EMPRESA],0) -> 156 | B16: GUACOLDA | C16: -802031740.9 | D16: -802031740.9 | F16: =IFERROR(INDEX($B$9:$B$511,MATCH(0,INDEX(COUNTIF($F$8:F15,$B$9:$B$511),0,0),0)),"") -> GUACOLDA | G16: -802031740.9 | J16: ELECTRICA CENIZAS | K16: 5292871.439 | L16: 820072.1339 | M16: 880337.838 | N16: 50058645.5 | O16: 3956842.751 | P16: 1533804.037 | Q16: 35674.67059 | R16: 91004.75999 | S16: 1970936.731 | T16: 269042.2689 | U16: 1192676.047 | V16: 341514.435 | W16: 119772.1993 | X16: 368422.2765 | Y16: 172195.9145 | Z16: 2521387.397 | AA16: 294567.843 | AB16: 149761.7522 | AC16: 39637.88892 | AD16: 52589.55202 | AE16: 53085.24569 | AF16: 169730.0924 | AG16: 48402.19177 | AH16: 1354152.114 | AI16: 275570.101 | AJ16: 487383.3859 | AK16: 817030.6875 | AL16: 403681.3186 | AM16: 23127.10443 | AN16: 25959.94875 | AO16: 2854664.14 | AP16: 8172398.356 | AQ16: 268491.8215 | AR16: 1226.872707 | AS16: 3102900.291 | AT16: 67871.01926 | AU16: 360437.5116 | AV16: 326841.1463 | AW16: 62458.77455 | AX16: 20623.07842 | AY16: 198.7176748 | AZ16: 102799.6899 | BA16: 224448.1648 | BB16: 1251.920539 | BC16: 279946.5193 | BD16: 230174.7941 | BE16: 393828.2952 | BF16: 190.2018992 | BG16: 8881.13366 | BH16: 1021852.075 | BI16: 320493.2031 | BJ16: 15841.8629 | BK16: 6587.108785 | BL16: 134699.5867 | BM16: 82574.2912 | BN16: 3070988.706 | BO16: 1341968.482 | BP16: 382824.7482 | BQ16: 3615.08279 | BR16: 174364.1037 | BS16: 64656.01216 | BT16: 1012069.635 | BU16: 36514.4235 | BV16: 1539670.235 | BW16: 67202.32027 | BX16: 66614.45168 | BY16: 13586.0408 | BZ16: 39122869.85 | CA16: 1921853.496 | CB16: 143607.6309 | CC16: 5856.424838 | CD16: 38274.11087 | CE16: 885305.0931 | CF16: 216200.7537 | CG16: 4462.104137 | CH16: 203138.6293 | CI16: 29156.84709 | CJ16: 42560.73536 | CK16: 20162.11604 | CL16: 144881.6276 | CM16: 2641575.907 | CN16: 26515.24483 | CO16: 59649.79194 | CP16: 143276.3184 | CQ16: 175415.7567 | CR16: 5254.049071 | CS16: 70165.45502 | CT16: 46113.63563 | CU16: 881892.7856 | CV16: 62192.88644 | CW16: 828380.3374 | CX16: 313640.9517 | CY16: 1599131.997 | CZ16: 146461.5206 | DA16: 86021.5612 | DB16: 95774.7517 | DC16: 265663.1961 | DD16: 84416.81059 | DE16: 69434.69426 | DF16: 220909.7969 | DG16: 33772.71736 | DH16: 176122.2133 | DI16: 280583.6228 | DJ16: 12089.15263 | DK16: 227701.9108 | DL16: 926401.0566 | DM16: 6169.31192 | DN16: 66086.4839 | DO16: 78.59499177 | DP16: 166083.1028 | DQ16: 387126.6498 | DR16: 63853.19015 | DS16: 96036.1283 | DT16: 100946.9125 | DU16: 86347.40249 | DV16: 1252779.408 | DW16: 31633.33999 | DX16: 87520.33738 | DY16: 442770.0159 | DZ16: 659683.7318 | EA16: 77394.63925 | EB16: 116921.0311 | EC16: 113220.6384 | ED16: 2597048.402 | EE16: 5536.330298 | EF16: 83193.15924 | EG16: 463668.1138 | EH16: 130438.1045 | EI16: 394521.6983 | EJ16: 28.18693303 | EK16: 643391.7848 | EL16: 151864.0232 | EM16: 85217.36357 | EN16: 247657.4515 | EO16: 417252.6556 | EP16: 135271.0369 | EQ16: 4922.638335 | ER16: 88376.63361 | ES16: 148139.952 | ET16: 161312.9818 | EU16: 134088.3742 | EV16: 206263.028 | EW16: 144967.8727 | EX16: 385677.117 | EY16: 129745.1901 | EZ16: 120544.9232 | FA16: 142363.5892 | FB16: 68497.91021 | FC16: 125931.1706 | FD16: 126178.9011 | FE16: 139226.6017 | FF16: 2508150.393 | FG16: 140115.5454 | FH16: 121409.774 | FI16: 157842.7965 | FJ16: 703574.4625 | FK16: 136683.8738 | FL16: 150619.8675 | FM16: 144770.9745 | FN16: 130291.6556 | FO16: 335449.3344 | FP16: 105305.3456 | FQ16: 268980.6687 | FR16: 192526.4216 | FS16: 210403.1057 | FT16: 100982.5526 | FU16: 311137.1644 | FV16: 421999.7093 | FW16: 148973.8905 | FX16: 151288.9768 | FY16: 146781.9605 | FZ16: 0.0005983271678 | GA16: 736.2551983 | GB16: 106708.2647 | GC16: 110794.0126 | GD16: 152397.9225 | GE16: 158071.7378 | GF16: 143944.5246 | GG16: 21745.40055 | GH16: 31952.00636 | GI16: 172707.8483 | GJ16: 252443.7316 | GK16: 148741.6044 | GL16: 4395353.158 | GM16: 99515.45944 | GN16: 68763.34901 | GO16: 389617.3193 | GP16: 135607.3196 | GQ16: 62230.85165 | GR16: 385579.9898 | GS16: 109611.3561 | GT16: 91600.42976 | GU16: 25650.10905 | GV16: 59093.10305 | GW16: 102306.778 | GX16: 81202.01392 | GY16: 406.4952901 | GZ16: 1700.864757 | HA16: 11249418.61 | HB16: 1986535.952 | HC16: 2728852.584 | HD16: 6175192.681 | HE16: 3943590.462 | HF16: 955281.2672 | HG16: 472388.7725 | HH16: 449835.6777 | HI16: 449067.4295 | HJ16: 1550.572572 | HK16: 242306.4824 | HL16: 212922.8291 | HM16: 518011.9424 | HN16: 33492.71606 | HO16: 10359.56896 | HP16: 1777404.922 | HQ16: 415062.1914 | HR16: 9513596.84 | HS16: 6901070.344 | HT16: 1117206.09 | HU16: 26370.12923 | HV16: 153499.3686 | HW16: 622828.7967 | HX16: 227000114.7
A17: =+MATCH(B17,RUT[EMPRESA],0) -> 19 | B17: ARAUCO BIO | C17: 974367977.6 | D17: 974367977.6 | F17: =IFERROR(INDEX($B$9:$B$511,MATCH(0,INDEX(COUNTIF($F$8:F16,$B$9:$B$511),0,0),0)),"") -> ARAUCO BIO | H17: 974367977.6 | J17: ESPINOS | K17: 278239.402 | L17: 43110.13081 | M17: 46278.22089 | N17: 2631518.212 | O17: 208006.1028 | P17: 80630.0933 | Q17: 1875.371266 | R17: 4784.002462 | S17: 103609.5934 | T17: 14143.2039 | U17: 62697.43635 | V17: 17952.97189 | W17: 6296.269516 | X17: 19367.48229 | Y17: 9052.116383 | Z17: 132546.0725 | AA17: 15485.0503 | AB17: 7872.781504 | AC17: 2083.712525 | AD17: 2764.564693 | AE17: 2790.622668 | AF17: 8922.491305 | AG17: 2544.440583 | AH17: 71186.02422 | AI17: 14486.36359 | AJ17: 25621.11386 | AK17: 42950.24591 | AL17: 21221.00451 | AM17: 1215.761951 | AN17: 1364.680911 | AO17: 150065.9996 | AP17: 429612.4055 | AQ17: 14114.26759 | AR17: 64.49511048 | AS17: 163115.4528 | AT17: 3567.89165 | AU17: 18947.73354 | AV17: 17181.61609 | AW17: 3283.376949 | AX17: 1084.128544 | AY17: 10.446331 | AZ17: 5404.046665 | BA17: 11798.94956 | BB17: 65.8118426 | BC17: 14716.42624 | BD17: 12099.99105 | BE17: 20703.04382 | BF17: 9.998667696 | BG17: 466.8697033 | BH17: 53717.44118 | BI17: 16847.91293 | BJ17: 832.7862317 | BK17: 346.2757844 | BL17: 7080.982958 | BM17: 4340.823628 | BN17: 161437.902 | BO17: 70545.54645 | BP17: 20124.60159 | BQ17: 190.040224 | BR17: 9166.095286 | BS17: 3398.882887 | BT17: 53203.19098 | BU17: 1919.51599 | BV17: 80938.47174 | BW17: 3532.739009 | BX17: 3501.835518 | BY17: 714.2005832 | BZ17: 2056638.638 | CA17: 101029.3512 | CB17: 7549.267311 | CC17: 307.8646748 | CD17: 2012.020477 | CE17: 46539.34306 | CF17: 11365.39384 | CG17: 234.56704 | CH17: 10678.73486 | CI17: 1532.737719 | CJ17: 2237.362779 | CK17: 1059.896348 | CL17: 7616.239671 | CM17: 138864.2269 | CN17: 1393.872107 | CO17: 3135.712368 | CP17: 7531.850644 | CQ17: 9221.379324 | CR17: 276.1985603 | CS17: 3688.507168 | CT17: 2424.134149 | CU17: 46359.96247 | CV17: 3269.399555 | CW17: 43546.88232 | CX17: 16487.69895 | CY17: 84064.29962 | CZ17: 7699.292597 | DA17: 4522.04215 | DB17: 5034.754753 | DC17: 13965.57042 | DD17: 4437.682488 | DE17: 3650.092021 | DF17: 11612.94214 | DG17: 1775.388046 | DH17: 9258.516828 | DI17: 14749.91794 | DJ17: 635.511109 | DK17: 11969.99478 | DL17: 48699.70468 | DM17: 324.3127438 | DN17: 3474.080935 | DO17: 4.131637007 | DP17: 8730.773784 | DQ17: 20350.74699 | DR17: 3356.679573 | DS17: 5048.494983 | DT17: 5306.648555 | DU17: 4539.171206 | DV17: 65856.99222 | DW17: 1662.923746 | DX17: 4600.830875 | DY17: 23275.84674 | DZ17: 34678.72007 | EA17: 4068.536028 | EB17: 6146.387294 | EC17: 5951.862441 | ED17: 136523.4736 | EE17: 291.0377191 | EF17: 4373.35672 | EG17: 24374.4327 | EH17: 6856.962351 | EI17: 20739.49513 | EJ17: 1.481750592 | EK17: 33822.2735 | EL17: 7983.295168 | EM17: 4479.766522 | EN17: 13019.03173 | EO17: 21934.43213 | EP17: 7111.023353 | EQ17: 258.7767268 | ER17: 4645.845259 | ES17: 7787.525567 | ET17: 8480.014695 | EU17: 7048.852308 | EV17: 10842.98045 | EW17: 7620.773464 | EX17: 20274.54693 | EY17: 6820.536738 | EZ17: 6336.890616 | FA17: 7483.869652 | FB17: 3600.846496 | FC17: 6620.038671 | FD17: 6633.06154 | FE17: 7318.962274 | FF17: 131850.2203 | FG17: 7365.692894 | FH17: 6382.354701 | FI17: 8297.591545 | FJ17: 36985.99899 | FK17: 7185.29436 | FL17: 7917.891515 | FM17: 7610.422781 | FN17: 6849.26372 | FO17: 17634.1374 | FP17: 5535.765743 | FQ17: 14139.96566 | FR17: 10120.86483 | FS17: 11060.61898 | FT17: 5308.522105 | FU17: 16356.07809 | FV17: 22183.9786 | FW17: 7831.364636 | FX17: 7953.065726 | FY17: 7716.137712 | FZ17: 3.145328491e-05 | GA17: 38.70398298 | GB17: 5609.515385 | GC17: 5824.297862 | GD17: 8011.361563 | GE17: 8309.626696 | GF17: 7566.977378 | GG17: 1143.127566 | GH17: 1679.675625 | GI17: 9079.028083 | GJ17: 13270.64028 | GK17: 7819.153652 | GL17: 231058.0274 | GM17: 5231.398918 | GN17: 3614.80027 | GO17: 20481.67827 | GP17: 7128.701302 | GQ17: 3271.395337 | GR17: 20269.44108 | GS17: 5762.127141 | GT17: 4815.316051 | GU17: 1348.393039 | GV17: 3106.447954 | GW17: 5378.134923 | GX17: 4268.684787 | GY17: 21.36893135 | GZ17: 89.41225918 | HA17: 591367.3783 | HB17: 104429.6242 | HC17: 143452.2489 | HD17: 324621.8878 | HE17: 207309.4471 | HF17: 50217.89997 | HG17: 24832.86644 | HH17: 23647.27944 | HI17: 23606.89362 | HJ17: 81.5115935 | HK17: 12737.73821 | HL17: 11193.07758 | HM17: 27231.21745 | HN17: 1760.66874 | HO17: 544.5891336 | HP17: 93435.87659 | HQ17: 21819.28226 | HR17: 500117.4742 | HS17: 362780.3372 | HT17: 58730.07837 | HU17: 1386.243568 | HV17: 8069.263159 | HW17: 32741.30383 | HX17: 11933102.27
A18: =+MATCH(B18,RUT[EMPRESA],0) -> 289 | B18: SGA | C18: 377697480.4 | D18: 377697480.4 | F18: =IFERROR(INDEX($B$9:$B$511,MATCH(0,INDEX(COUNTIF($F$8:F17,$B$9:$B$511),0,0),0)),"") -> SGA | H18: 377697480.4 | J18: ORAFTI | K18: 324949.6927 | L18: 50347.37589 | M18: 54047.31878 | N18: 3073292.381 | O18: 242925.7636 | P18: 94166.11685 | Q18: 2190.204953 | R18: 5587.131509 | S18: 121003.3708 | T18: 16517.53752 | U18: 73222.96026 | V18: 20966.88196 | W18: 7353.275021 | X18: 22618.85763 | Y18: 10571.76811 | Z18: 154797.6498 | AA18: 18084.65049 | AB18: 9194.448781 | AC18: 2433.522138 | AD18: 3228.674447 | AE18: 3259.106984 | AF18: 10420.38183 | AG18: 2971.596329 | AH18: 83136.59578 | AI18: 16918.30619 | AJ18: 29922.33673 | AK18: 50160.64982 | AL18: 24783.54555 | AM18: 1419.861707 | AN18: 1593.780893 | AO18: 175258.7883 | AP18: 501734.9022 | AQ18: 16483.74344 | AR18: 75.32242444 | AS18: 190498.9584 | AT18: 4166.862374 | AU18: 22128.64227 | AV18: 20066.03245 | AW18: 3834.583898 | AX18: 1266.129939 | AY18: 12.20004077 | AZ18: 6311.267529 | BA18: 13779.73431 | BB18: 76.86020699 | BC18: 17186.99131 | BD18: 14131.31406 | BE18: 24178.63063 | BF18: 11.67722462 | BG18: 545.2468828 | BH18: 62735.42093 | BI18: 19676.30785 | BJ18: 972.5927677 | BK18: 404.4078909 | BL18: 8269.724632 | BM18: 5069.552673 | BN18: 188539.7837 | BO18: 82388.59585 | BP18: 23503.08064 | BQ18: 221.9438079 | BR18: 10704.88157 | BS18: 3969.480748 | BT18: 62134.8394 | BU18: 2241.760608 | BV18: 94526.26527 | BW18: 4125.808376 | BX18: 4089.716867 | BY18: 834.0991907 | BZ18: 2401903.141 | CA18: 117989.9626 | CB18: 8816.623653 | CC18: 359.5483988 | CD18: 2349.794569 | CE18: 54352.27763 | CF18: 13273.39409 | CG18: 273.9456994 | CH18: 12471.46014 | CI18: 1790.050752 | CJ18: 2612.9669 | CK18: 1237.829689 | CL18: 8894.839203 | CM18: 162176.4838 | CN18: 1627.872651 | CO18: 3662.129674 | CP18: 8796.28311 | CQ18: 10769.44658 | CR18: 322.5662385 | CS18: 4307.726592 | CT18: 2831.093084 | CU18: 54142.78298 | CV18: 3818.260006 | CW18: 50857.44839 | CX18: 19255.62184 | CY18: 98176.85106 | CZ18: 8991.834893 | DA18: 5281.193809 | DB18: 5879.979608 | DC18: 16310.08327 | DD18: 5182.67201 | DE18: 4262.862384 | DF18: 13562.50033 | DG18: 2073.436745 | DH18: 10812.81866 | DI18: 17226.10553 | DJ18: 742.1994803 | DK18: 13979.49427 | DL18: 56875.31656 | DM18: 378.7577377 | DN18: 4057.302899 | DO18: 4.825248207 | DP18: 10196.47914 | DQ18: 23767.1909 | DR18: 3920.192424 | DS18: 5896.026521 | DT18: 6197.518413 | DU18: 5301.198456 | DV18: 76912.93624 | DW18: 1942.092157 | DX18: 5373.209431 | DY18: 27183.35071 | DZ18: 40500.51628 | EA18: 4751.553959 | EB18: 7178.230862 | EC18: 6951.049554 | ED18: 159442.7693 | EE18: 339.8965665 | EF18: 5107.547357 | EG18: 28466.36515 | EH18: 8008.095881 | EI18: 24221.20131 | EJ18: 1.730504005 | EK18: 39500.29113 | EL18: 9323.515265 | EM18: 5231.82103 | EN18: 15204.6415 | EO18: 25616.74202 | EP18: 8304.80815 | EQ18: 302.2196614 | ER18: 5425.780743 | ES18: 9094.880243 | ET18: 9903.623101 | EU18: 8232.19995 | EV18: 12663.27896 | EW18: 8900.13412 | EX18: 23678.19851 | EY18: 7965.555206 | EZ18: 7400.715512 | FA18: 8740.247162 | FB18: 4205.349616 | FC18: 7731.397912 | FD18: 7746.607036 | FE18: 8547.655453 | FF18: 153984.9794 | FG18: 8602.231119 | FH18: 7453.812019 | FI18: 9690.575107 | FJ18: 43195.1367 | FK18: 8391.54763 | FL18: 9247.131773 | FM18: 8888.045785 | FN18: 7999.104819 | FO18: 20594.52215 | FP18: 6465.09935 | FQ18: 16513.75565 | FR18: 11819.93598 | FS18: 12917.45423 | FT18: 6199.706491 | FU18: 19101.90472 | FV18: 25908.18187 | FW18: 9146.078929 | FX18: 9288.210962 | FY18: 9011.507934 | FZ18: 3.673360133e-05 | GA18: 45.20153251 | GB18: 6551.229939 | GC18: 6802.069682 | GD18: 9356.293392 | GE18: 9704.630695 | GF18: 8837.306851 | GG18: 1335.033603 | GH18: 1961.656308 | GI18: 10603.19769 | GJ18: 15498.48961 | GK18: 9131.817989 | GL18: 269847.6005 | GM18: 6109.636014 | GN18: 4221.645922 | GO18: 23920.10266 | GP18: 8325.453839 | GQ18: 3820.590836 | GR18: 23672.2355 | GS18: 6729.46186 | GT18: 5623.701963 | GU18: 1574.758645 | GV18: 3627.952407 | GW18: 6281.005774 | GX18: 4985.303303 | GY18: 24.95630607 | GZ18: 104.4226157 | HA18: 690644.9858 | HB18: 121961.0668 | HC18: 167534.7339 | HD18: 379118.7802 | HE18: 242112.1547 | HF18: 58648.38354 | HG18: 29001.75986 | HH18: 27617.13881 | HI18: 27569.9731 | HJ18: 95.19560159 | HK18: 14876.12497 | HL18: 13072.14972 | HM18: 31802.74137 | HN18: 2056.24639 | HO18: 636.0137002 | HP18: 109121.7102 | HQ18: 25482.26101 | HR18: 584076.2249 | HS18: 423683.196 | HT18: 68589.56992 | HU18: 1618.963447 | HV18: 9423.915395 | HW18: 38237.85036 | HX18: 13936408.31
A19: =+MATCH(B19,RUT[EMPRESA],0) -> 306 | B19: TECNORED | C19: -237876933.5 | D19: -237876933.5 | F19: =IFERROR(INDEX($B$9:$B$511,MATCH(0,INDEX(COUNTIF($F$8:F18,$B$9:$B$511),0,0),0)),"") -> TECNORED | G19: -237876933.5 | J19: GAS SUR | K19: =$HX19*K$67/$HX$67 -> 90330.09634 | L19: 13995.65353 | M19: 15024.17027 | N19: 854319.309 | O19: 67528.93794 | P19: 26176.46546 | Q19: 608.8370874 | R19: 1553.120803 | S19: 33636.73327 | T19: 4591.574602 | U19: =$HX19*U$67/$HX$67 -> 20354.64936 | V19: 5828.411321 | W19: 2044.076533 | X19: 6287.630469 | Y19: 2938.758994 | Z19: 43030.92737 | AA19: 5027.203465 | AB19: 2555.889305 | AC19: 676.4748334 | AD19: 897.5126932 | AE19: =$HX19*AE$67/$HX$67 -> 905.9723843 | AF19: 2896.676364 | AG19: 826.0496587 | AH19: 23110.45948 | AI19: 4702.980992 | AJ19: 8317.864642 | AK19: 13943.74709 | AL19: 6889.374287 | AM19: 394.6956951 | AN19: 443.0420611 | AO19: =$HX19*AO$67/$HX$67 -> 48718.7512 | AP19: 139473.1649 | AQ19: 4582.180462 | AR19: 20.93826217 | AS19: 52955.24092 | AT19: 1158.31185 | AU19: 6151.359527 | AV19: 5577.991564 | AW19: 1065.944485 | AX19: 351.9610634 | AY19: =$HX19*AY$67/$HX$67 -> 3.391389138 | AZ19: 1754.417428 | BA19: 3830.515171 | BB19: 21.36573771 | BC19: 4777.670561 | BD19: 3928.247939 | BE19: 6721.218955 | BF19: 3.24605577 | BG19: 151.568703 | BH19: 17439.30444 | BI19: =$HX19*BI$67/$HX$67 -> 5469.655223 | BJ19: 270.3630758 | BK19: 112.4180283 | BL19: 2298.832833 | BM19: 1409.243313 | BN19: 52410.62603 | BO19: 22902.52913 | BP19: 6533.428363 | BQ19: 61.69633638 | BR19: 2975.762111 | BS19: =$HX19*BS$67/$HX$67 -> 1103.443353 | BT19: 17272.35371 | BU19: 623.1686204 | BV19: 26276.58016 | BW19: 1146.899586 | BX19: 1136.866804 | BY19: 231.8643838 | BZ19: 667685.3279 | CA19: 32799.06067 | CB19: 2450.860801 | CC19: =$HX19*CC$67/$HX$67 -> 99.94790652 | CD19: 653.2000941 | CE19: 15108.94328 | CF19: 3689.761812 | CG19: 76.15191513 | CH19: 3466.838779 | CI19: 497.6015074 | CJ19: 726.3572089 | CK19: 344.0941094 | CL19: 2472.603299 | CM19: =$HX19*CM$67/$HX$67 -> 45082.10881 | CN19: 452.5189489 | CO19: 1018.005352 | CP19: 2445.2065 | CQ19: 2993.710009 | CR19: 89.66753948 | CS19: 1197.469537 | CT19: 786.9923154 | CU19: 15050.70758 | CV19: 1061.406741 | CW19: =$HX19*CW$67/$HX$67 -> 14137.4444 | CX19: 5352.712174 | CY19: 27291.37653 | CZ19: 2499.566334 | DA19: 1468.075694 | DB19: 1634.527241 | DC19: 4533.906098 | DD19: 1440.688428 | DE19: 1184.998104 | DF19: 3770.128081 | DG19: =$HX19*DG$67/$HX$67 -> 576.3776521 | DH19: 3005.766657 | DI19: 4788.543604 | DJ19: 206.3179381 | DK19: 3886.044801 | DL19: 15810.30215 | DM19: 105.2877529 | DN19: 1127.856311 | DO19: 1.341331121 | DP19: 2834.435495 | DQ19: =$HX19*DQ$67/$HX$67 -> 6606.846203 | DR19: 1089.742096 | DS19: 1638.98799 | DT19: 1722.797245 | DU19: 1473.636622 | DV19: 21380.39548 | DW19: 539.8662488 | DX19: 1493.654361 | DY19: 7556.476414 | DZ19: 11258.4059 | EA19: =$HX19*EA$67/$HX$67 -> 1320.845462 | EB19: 1995.417444 | EC19: 1932.265178 | ED19: 44322.18599 | EE19: 94.48505503 | EF19: 1419.805143 | EG19: 7913.131062 | EH19: 2226.104805 | EI19: 6733.052829 | EJ19: 0.4810485962 | EK19: =$HX19*EK$67/$HX$67 -> 10980.36152 | EL19: 2591.767437 | EM19: 1454.35096 | EN19: 4226.613419 | EO19: 7120.987731 | EP19: 2308.585412 | EQ19: 84.01156162 | ER19: 1508.268228 | ES19: 2528.211065 | ET19: 2753.02685 | EU19: =$HX19*EU$67/$HX$67 -> 2288.401655 | EV19: 3520.160919 | EW19: 2474.07519 | EX19: 6582.107942 | EY19: 2214.279273 | EZ19: 2057.264125 | FA19: 2429.629527 | FB19: 1169.010602 | FC19: 2149.18781 | FD19: 2153.415669 | FE19: =$HX19*FE$67/$HX$67 -> 2376.09254 | FF19: 42805.01977 | FG19: 2391.263581 | FH19: 2072.023987 | FI19: 2693.803388 | FJ19: 12007.4613 | FK19: 2332.697408 | FL19: 2570.534217 | FM19: 2470.714853 | FN19: 2223.605454 | FO19: =$HX19*FO$67/$HX$67 -> 5724.902076 | FP19: 1797.179872 | FQ19: 4590.52331 | FR19: 3285.726928 | FS19: 3590.817013 | FT19: 1723.405491 | FU19: 5309.981616 | FV19: 7202.0027 | FW19: 2542.443367 | FX19: 2581.953484 | FY19: =$HX19*FY$67/$HX$67 -> 2505.035081 | FZ19: 1.021127215e-05 | GA19: 12.56520279 | GB19: 1821.122607 | GC19: 1890.851487 | GD19: 2600.879159 | GE19: 2697.710585 | GF19: 2456.610353 | GG19: 371.1150269 | GH19: 545.3047266 | GI19: =$HX19*GI$67/$HX$67 -> 2947.495846 | GJ19: 4308.297841 | GK19: 2538.479086 | GL19: 75012.71829 | GM19: 1698.367539 | GN19: 1173.540679 | GO19: 6649.352888 | GP19: 2314.324538 | GQ19: 1062.054669 | GR19: 6580.450333 | GS19: =$HX19*GS$67/$HX$67 -> 1870.667835 | GT19: 1563.286723 | GU19: 437.7542226 | GV19: 1008.504694 | GW19: 1746.005211 | GX19: 1385.823522 | GY19: 6.937398564 | GZ19: 29.02758534 | HA19: 191986.7275 | HB19: 33902.95532 | HC19: =$HX19*HC$67/$HX$67 -> 46571.60477 | HD19: 105388.1161 | HE19: 67302.76948 | HF19: 16303.18248 | HG19: 8061.96104 | HH19: 7677.061605 | HI19: 7663.950398 | HJ19: 26.46264347 | HK19: 4135.291808 | HL19: 3633.819542 | HM19: =$HX19*HM$67/$HX$67 -> 8840.582886 | HN19: 571.5990466 | HO19: 176.8002251 | HP19: 30333.84803 | HQ19: 7083.60446 | HR19: 162362.5529 | HS19: 117776.2121 | HT19: 19066.65123 | HU19: 450.0423525 | HV19: 2619.676845 | HW19: 10629.42598 | HX19: 3874067.69
A20: =+MATCH(B20,RUT[EMPRESA],0) -> 231 | B20: NUEVA ENERGIA | C20: -71819249.47 | D20: -71819249.47 | F20: =IFERROR(INDEX($B$9:$B$511,MATCH(0,INDEX(COUNTIF($F$8:F19,$B$9:$B$511),0,0),0)),"") -> NUEVA ENERGIA | G20: -71819249.47 | J20: MONTE REDONDO | K20: 12751875.01 | L20: 1975762.583 | M20: 2120958.01 | N20: 120604023.3 | O20: 9533041.71 | P20: 3695324.474 | Q20: 85949.3652 | R20: 219253.6391 | S20: 4748488.441 | T20: 648191.3314 | U20: 2873460.286 | V20: 822795.233 | W20: 288561.7253 | X20: 887623.0745 | Y20: 414863.8038 | Z20: 6074664.254 | AA20: 709688.939 | AB20: 360814.1945 | AC20: 95497.76731 | AD20: 126701.6216 | AE20: 127895.8738 | AF20: 408923.0104 | AG20: 116613.2045 | AH20: 3262497.248 | AI20: 663918.541 | AJ20: 1174230.678 | AK20: 1968434.965 | AL20: 972571.0849 | AM20: 55719.08338 | AN20: 62544.12665 | AO20: 6877612.789 | AP20: 19689388.56 | AQ20: 646865.1633 | AR20: 2955.848746 | AS20: 7475676.885 | AT20: 163518.5672 | AU20: 868385.7429 | AV20: 787443.5443 | AW20: 150479.0916 | AX20: 49686.24711 | AY20: 478.7614776 | AZ20: 247670.6287 | BA20: 540752.7797 | BB20: 3016.195352 | BC20: 674462.4471 | BD20: 554549.6877 | BE20: 948832.6426 | BF20: 458.2448057 | BG20: 21396.91237 | BH20: 2461901.84 | BI20: 772149.7327 | BJ20: 38167.08151 | BK20: 15870.02232 | BL20: 324525.6027 | BM20: 198942.4932 | BN20: 7398793.75 | BO20: 3233143.776 | BP20: 922322.2961 | BQ20: 8709.654942 | BR20: 420087.5238 | BS20: 155772.7965 | BT20: 2438333.451 | BU20: 87972.5438 | BV20: 3709457.639 | BW20: 161907.5011 | BX20: 160491.176 | BY20: 32732.23168 | BZ20: 94256955.23 | CA20: 4630234.429 | CB20: 345987.3493 | CC20: 14109.61864 | CD20: 92212.07873 | CE20: 2132925.392 | CF20: 520882.6664 | CG20: 10750.34504 | CH20: 489412.6828 | CI20: 70246.26877 | CJ20: 102539.6486 | CK20: 48575.67136 | CL20: 349056.7318 | CM20: 6364228.977 | CN20: 63881.97631 | CO20: 143711.5373 | CP20: 345189.1332 | CQ20: 422621.2237 | CR20: 12658.34204 | CS20: 169046.4472 | CT20: 111099.49 | CU20: 2124704.275 | CV20: 149838.4995 | CW20: 1995779.161 | CX20: 755640.9144 | CY20: 3852716.164 | CZ20: 352863.0962 | DA20: 207247.8444 | DB20: 230745.7637 | DC20: 640050.2845 | DD20: 203381.5916 | DE20: 167285.8585 | DF20: 532227.9506 | DG20: 81367.07559 | DH20: 424323.2573 | DI20: 675997.3916 | DJ20: 29125.84692 | DK20: 548591.8823 | DL20: 2231936.033 | DM20: 14863.44329 | DN20: 159219.1672 | DO20: 189.3553476 | DP20: 400136.484 | DQ20: 932686.6725 | DR20: 153838.5939 | DS20: 231375.4865 | DT20: 243206.8161 | DU20: 208032.879 | DV20: 3018264.585 | DW20: 76212.77076 | DX20: 210858.7778 | DY20: 1066745.71 | DZ20: 1589346.084 | EA20: 186463.3928 | EB20: 281692.5352 | EC20: 272777.347 | ED20: 6256950.88 | EE20: 13338.42939 | EF20: 200433.5039 | EG20: 1117094.549 | EH20: 314258.6069 | EI20: 950503.2274 | EJ20: 67.90949883 | EK20: 1550094.635 | EL20: 365879.1006 | EM20: 205310.3275 | EN20: 596669.861 | EO20: 1005267.891 | EP20: 325902.3716 | EQ20: 11859.88919 | ER20: 212921.8135 | ES20: 356906.8649 | ET20: 388644.0478 | EU20: 323053.0361 | EV20: 496940.1547 | EW20: 349264.5182 | EX20: 929194.3789 | EY20: 312589.1996 | EZ20: 290423.4142 | FA20: 342990.1362 | FB20: 165028.9072 | FC20: 303400.2556 | FD20: 303997.1013 | FE20: 335432.3343 | FF20: 6042772.94 | FG20: 337574.0261 | FH20: 292507.0598 | FI20: 380283.4879 | FJ20: 1695090.03 | FK20: 329306.2554 | FL20: 362881.6128 | FM20: 348790.1404 | FN20: 313905.7741 | FO20: 808182.8611 | FP20: 253707.3913 | FQ20: 648042.9208 | FR20: 463845.1723 | FS20: 506914.6562 | FT20: 243292.682 | FU20: 749608.6531 | FV20: 1016704.752 | FW20: 358916.0352 | FX20: 364493.6675 | FY20: 353635.1177 | FZ20: 0.001441522498 | GA20: 1773.826244 | GB20: 257087.3806 | GC20: 266930.9876 | GD20: 367165.3999 | GE20: 380835.0659 | GF20: 346799.012 | GG20: 52390.20691 | GH20: 76980.51919 | GI20: 416097.1828 | GJ20: 608201.2285 | GK20: 358356.3986 | GL20: 10589524.94 | GM20: 239758.0812 | GN20: 165668.4168 | GO20: 938687.3296 | GP20: 326712.5624 | GQ20: 149929.9673 | GR20: 928960.3746 | GS20: 264081.6669 | GT20: 220688.7593 | GU20: 61797.64394 | GV20: 142370.332 | GW20: 246483.0783 | GX20: 195636.3278 | GY20: 979.3506589 | GZ20: 4097.816288 | HA20: 27102713.84 | HB20: 4786070.935 | HC20: 6574500.715 | HD20: 14877611.54 | HE20: 9501113.569 | HF20: 2301515.814 | HG20: 1138104.836 | HH20: 1083768.688 | HI20: 1081917.783 | HJ20: 3735.724145 | HK20: 583778.0141 | HL20: 512985.3114 | HM20: 1248022.669 | HN20: 80692.48116 | HO20: 24958.83945 | HP20: 4282221.034 | HQ20: 999990.5053 | HR20: 22920677.21 | HS20: 16626435.66 | HT20: 2691633.943 | HU20: 63532.35588 | HV20: 369819.064 | HW20: 1500553.161 | HX20: 546901076.8
A21: =+MATCH(B21,RUT[EMPRESA],0) -> 102 | B21: ELEKTRAGEN | C21: 8784846.61 | D21: 8784846.61 | F21: =IFERROR(INDEX($B$9:$B$511,MATCH(0,INDEX(COUNTIF($F$8:F20,$B$9:$B$511),0,0),0)),"") -> ELEKTRAGEN | H21: 8784846.61 | J21: NUEVA DEGAN | K21: 142965.6814 | L21: 22150.95771 | M21: 23778.79386 | N21: 1352133.42 | O21: 106878.2279 | P21: 41429.56083 | Q21: 963.6080618 | R21: 2458.128385 | S21: 53236.94634 | T21: 7267.097215 | U21: 32215.35715 | V21: 9224.641948 | W21: 3235.165312 | X21: 9951.449303 | Y21: 4651.181599 | Z21: 68105.16208 | AA21: 7956.568165 | AB21: 4045.212735 | AC21: 1070.6585 | AD21: 1420.495703 | AE21: 1433.884879 | AF21: 4584.57731 | AG21: 1307.39097 | AH21: 36576.98509 | AI21: 7443.420402 | AJ21: 13164.70628 | AK21: 22068.80524 | AL21: 10903.83083 | AM21: 624.6859161 | AN21: 701.2038369 | AO21: 77107.29584 | AP21: 220744.5454 | AQ21: 7252.229086 | AR21: 33.13904268 | AS21: 83812.39927 | AT21: 1833.263216 | AU21: 9735.772924 | AV21: 8828.301939 | AW21: 1687.073144 | AX21: 557.0497021 | AY21: 5.367560521 | AZ21: 2776.721083 | BA21: 6062.566451 | BB21: 33.81560934 | BC21: 7561.63178 | BD21: 6217.248359 | BE21: 10637.69094 | BF21: 5.137541017 | BG21: 239.8881854 | BH21: 27601.23306 | BI21: 8656.837728 | BJ21: 427.9043522 | BK21: 177.9243095 | BL21: 3638.36878 | BM21: 2230.413102 | BN21: 82950.43586 | BO21: 36247.89317 | BP21: 10340.47428 | BQ21: 97.64695409 | BR21: 4709.746531 | BS21: 1746.422701 | BT21: 27336.99971 | BU21: 986.2906168 | BV21: 41588.01263 | BW21: 1815.200996 | BX21: 1799.322085 | BY21: 366.9723709 | BZ21: 1056747.327 | CA21: 51911.15971 | CB21: 3878.983844 | CC21: 158.1878149 | CD21: 1033.821509 | CE21: 23912.96432 | CF21: 5839.795738 | CG21: 120.5258366 | CH21: 5486.974867 | CI21: 787.5552163 | CJ21: 1149.607468 | CK21: 544.5986532 | CL21: 3913.395754 | CM21: 71351.57235 | CN21: 716.2029322 | CO21: 1611.199752 | CP21: 3870.034768 | CQ21: 4738.152717 | CR21: 141.9170509 | CS21: 1895.23819 | CT21: 1245.57481 | CU21: 23820.79453 | CV21: 1679.891244 | CW21: 22375.37049 | CX21: 8471.751655 | CY21: 43194.13351 | CZ21: 3956.070221 | DA21: 2323.527267 | DB21: 2586.970569 | DC21: 7175.825123 | DD21: 2280.181369 | DE21: 1875.499621 | DF21: 5966.991643 | DG21: 912.234428 | DH21: 4757.234804 | DI21: 7578.840574 | DJ21: 326.5399439 | DK21: 6150.453342 | DL21: 25023.00685 | DM21: 166.6392038 | DN21: 1785.061154 | DO21: 2.122928297 | DP21: 4486.068523 | DQ21: 10456.67289 | DR21: 1724.737686 | DS21: 2594.030609 | DT21: 2726.675737 | DU21: 2332.328562 | DV21: 33838.80823 | DW21: 854.4477338 | DX21: 2364.010691 | DY21: 11959.65512 | DZ21: 17818.70867 | EA21: 2090.505591 | EB21: 3158.152445 | EC21: 3058.201187 | ED21: 70148.8405 | EE21: 149.5417454 | EF21: 2247.129339 | EG21: 12524.13337 | EH21: 3523.261939 | EI21: 10656.42045 | EJ21: 0.7613568802 | EK21: 17378.6471 | EL21: 4101.997148 | EM21: 2301.805095 | EN21: 6689.47219 | EO21: 11270.40604 | EP21: 3653.804212 | EQ21: 132.9653198 | ER21: 2387.140097 | ES21: 4001.406311 | ET21: 4357.222846 | EU21: 3621.859327 | EV21: 5571.367958 | EW21: 3915.725319 | EX21: 10417.51957 | EY21: 3504.545637 | EZ21: 3256.037349 | FA21: 3845.381052 | FB21: 1850.196159 | FC21: 3401.525207 | FD21: 3408.216651 | FE21: 3760.647921 | FF21: 67747.61753 | FG21: 3784.659168 | FH21: 3279.397821 | FI21: 4263.489717 | FJ21: 19004.24063 | FK21: 3691.966331 | FL21: 4068.391276 | FM21: 3910.406904 | FN21: 3519.306208 | FO21: 9060.817594 | FP21: 2844.401317 | FQ21: 7265.433332 | FR21: 5200.328663 | FS21: 5683.195544 | FT21: 2727.638409 | FU21: 8404.121888 | FV21: 11398.62864 | FW21: 4023.931813 | FX21: 4086.464579 | FY21: 3964.725621 | FZ21: 1.616140732e-05 | GA21: 19.88697956 | GB21: 2882.295547 | GC21: 2992.655629 | GD21: 4116.418295 | GE21: 4269.673649 | GF21: 3888.083676 | GG21: 587.3647306 | GH21: 863.0552269 | GI21: 4665.009438 | GJ21: 6818.75434 | GK21: 4017.657535 | GL21: 118722.8268 | GM21: 2688.010777 | GN21: 1857.365923 | GO21: 10523.94833 | GP21: 3662.887541 | GQ21: 1680.916722 | GR21: 10414.89607 | GS21: 2960.71091 | GT21: 2474.218013 | GU21: 692.834761 | GV21: 1596.163036 | GW21: 2763.407046 | GX21: 2193.346539 | GY21: 10.97983898 | GZ21: 45.94203577 | HA21: 303857.8993 | HB21: 53658.29668 | HC21: 73709.00153 | HD21: 166798.0489 | HE21: 106520.2705 | HF21: 25803.08984 | HG21: 12759.68697 | HH21: 12150.50562 | HI21: 12129.75448 | HJ21: 41.88249552 | HK21: 6544.937236 | HL21: 5751.255759 | HM21: 13992.01382 | HN21: 904.6713165 | HO21: 279.8221819 | HP21: 48009.46116 | HQ21: 11211.23944 | HR21: 256971.6401 | HS21: 186404.721 | HT21: 30176.83913 | HU21: 712.2832166 | HV21: 4146.169441 | HW21: 16823.2205 | HX21: 6131497.136
A22: =+MATCH(B22,RUT[EMPRESA],0) -> 138 | B22: GESAN | C22: 22409817.5 | D22: 22409817.5 | F22: =IFERROR(INDEX($B$9:$B$511,MATCH(0,INDEX(COUNTIF($F$8:F21,$B$9:$B$511),0,0),0)),"") -> GESAN | H22: 22409817.5 | J22: LA ARENA SPA | K22: 3557362 | L22: 551174.0612 | M22: 591678.9041 | N22: 33644634.17 | O22: 2659411.287 | P22: 1030876.389 | Q22: 23977.10184 | R22: 61164.69647 | S22: 1324675.181 | T22: 180824.4834 | U22: 801602.7781 | V22: 229533.3427 | W22: 80499.41799 | X22: 247618.2204 | Y22: 115733.6258 | Z22: 1694635.476 | AA22: 197980.3332 | AB22: 100655.5274 | AC22: 26640.79818 | AD22: 35345.66749 | AE22: 35678.82537 | AF22: 114076.336 | AG22: 32531.32439 | AH22: 910131.5475 | AI22: 185211.8679 | AJ22: 327572.5013 | AK22: 549129.8918 | AL22: 271315.9765 | AM22: 15543.82785 | AN22: 17447.79488 | AO22: 1918632.23 | AP22: 5492704.612 | AQ22: 180454.5253 | AR22: 824.5865022 | AS22: 2085472.831 | AT22: 45616.40834 | AU22: 242251.6251 | AV22: 219671.3613 | AW22: 41978.81504 | AX22: 13860.86103 | AY22: 133.5590167 | AZ22: 69092.12037 | BA22: 150852.5914 | BB22: 841.4212595 | BC22: 188153.2777 | BD22: 154701.4839 | BE22: 264693.7164 | BF22: 127.8355268 | BG22: 5969.048703 | BH22: 686791.2404 | BI22: 215404.8809 | BJ22: 10647.38522 | BK22: 4427.224571 | BL22: 90532.18028 | BM22: 55498.5416 | BN22: 2064024.915 | BO22: 901942.8753 | BP22: 257298.1845 | BQ22: 2429.712925 | BR22: 117190.8753 | BS22: 43455.58803 | BT22: 680216.4198 | BU22: 24541.50344 | BV22: 1034819.086 | BW22: 45166.97282 | BX22: 44771.86378 | BY22: 9131.237334 | BZ22: 26294651.62 | CA22: 1291686.125 | CB22: 96519.31564 | CC22: 3936.1287 | CD22: 25724.197 | CE22: 595017.4179 | CF22: 145309.4704 | CG22: 2998.99967 | CH22: 136530.3596 | CI22: 19596.44421 | CJ22: 28605.25603 | CK22: 13551.04621 | CL22: 97375.57441 | CM22: 1775414.699 | CN22: 17821.0118 | CO22: 40090.88556 | CP22: 96296.6391 | CQ22: 117897.6959 | CR22: 3531.269317 | CS22: 47158.50863 | CT22: 30993.17581 | CU22: 592723.9911 | CV22: 41800.11048 | CW22: 556758.0411 | CX22: 210799.4529 | CY22: 1074783.596 | CZ22: 98437.42734 | DA22: 57815.46681 | DB22: 64370.62872 | DC22: 178553.3938 | DD22: 56736.90692 | DE22: 46667.36113 | DF22: 148474.4389 | DG22: 22698.79077 | DH22: 118372.5084 | DI22: 188581.4777 | DJ22: 8125.172257 | DK22: 153039.4483 | DL22: 622638.1943 | DM22: 4146.421473 | DN22: 44417.01433 | DO22: 52.82403708 | DP22: 111625.1784 | DQ22: 260189.5113 | DR22: 42916.00785 | DS22: 64546.30108 | DT22: 67846.86059 | DU22: 58034.46617 | DV22: 841998.5089 | DW22: 21260.9059 | DX22: 58822.80082 | DY22: 297587.6606 | DZ22: 443376.316 | EA22: 52017.27491 | EB22: 78583.1354 | EC22: 76096.08534 | ED22: 1745487.568 | EE22: 3720.991762 | EF22: 55914.48551 | EG22: 311633.3635 | EH22: 87668.01946 | EI22: 265159.7557 | EJ22: 18.94456074 | EK22: 432426.4273 | EL22: 102068.4729 | EM22: 57274.96207 | EN22: 166451.6543 | EO22: 280437.3313 | EP22: 90916.25442 | EQ22: 3308.526715 | ER22: 59398.32126 | ES22: 99565.50845 | ET22: 108419.1593 | EU22: 90121.38169 | EV22: 138630.2815 | EW22: 97433.54011 | EX22: 259215.274 | EY22: 87202.30866 | EZ22: 81018.76915 | FA22: 95683.18982 | FB22: 46037.74448 | FC22: 84638.88953 | FD22: 84805.39025 | FE22: 93574.80677 | FF22: 1685738.828 | FG22: 94172.26971 | FH22: 81600.03912 | FI22: 106086.8326 | FJ22: 472875.4677 | FK22: 91865.82826 | FL22: 101232.2705 | FM22: 97301.20399 | FN22: 87569.59049 | FO22: 225456.962 | FP22: 70776.18252 | FQ22: 180783.0817 | FR22: 129397.8485 | FS22: 141412.8459 | FT22: 67870.81441 | FU22: 209116.6465 | FV22: 283627.8469 | FW22: 100126.0022 | FX22: 101681.9818 | FY22: 98652.79645 | FZ22: 0.0004021383015 | GA22: 494.8403329 | GB22: 71719.09057 | GC22: 74465.13954 | GD22: 102427.309 | GE22: 106240.7051 | GF22: 96745.74337 | GG22: 14615.17864 | GH22: 21475.08296 | GI22: 116077.6988 | GJ22: 169668.534 | GK22: 99969.88162 | GL22: 2954136.045 | GM22: 66884.77472 | GN22: 46216.14706 | GO22: 261863.5012 | GP22: 91142.27152 | GQ22: 41825.62706 | GR22: 259149.9944 | GS22: 73670.27095 | GT22: 61565.04872 | GU22: 17239.55027 | GV22: 39716.73253 | GW22: 68760.83211 | GX22: 54576.22805 | GY22: 273.2072591 | GZ22: 1143.158629 | HA22: 7560783.357 | HB22: 1335159.486 | HC22: 1834073.734 | HD22: 4150373.958 | HE22: 2650504.365 | HF22: 642048.71 | HG22: 317494.5562 | HH22: 302336.5228 | HI22: 301820.1798 | HJ22: 1042.146595 | HK22: 162855.2446 | HL22: 143106.363 | HM22: 348158.0879 | HN22: 22510.60068 | HO22: 6962.711521 | HP22: 1194601.607 | HQ22: 278965.1108 | HR22: 6394129.967 | HS22: 4638239.505 | HT22: 750879.0904 | HU22: 17723.47897 | HV22: 103167.5957 | HW22: 418605.9532 | HX22: 152567768.1
A23: =+MATCH(B23,RUT[EMPRESA],0) -> 237 | B23: PACIFIC HYDRO | C23: -28985029.57 | D23: -28985029.57 | F23: =IFERROR(INDEX($B$9:$B$511,MATCH(0,INDEX(COUNTIF($F$8:F22,$B$9:$B$511),0,0),0)),"") -> PACIFIC HYDRO | G23: -28985029.57 | J23: CARDONES SA | K23: 29124.13927 | L23: 4512.464607 | M23: 4844.077944 | N23: 275448.7767 | O23: 21772.61259 | P23: 8439.789799 | Q23: 196.3006444 | R23: 500.7556549 | S23: 10845.12188 | T23: 1480.410888 | U23: 6562.725678 | V23: 1879.190546 | W23: 659.0491101 | X23: 2027.251524 | Y23: 947.5117339 | Z23: 13873.98854 | AA23: 1620.86591 | AB23: 824.067272 | AC23: 218.1083388 | AD23: 289.3751444 | AE23: 292.1027095 | AF23: 933.9434944 | AG23: 266.3341043 | AH23: 7451.251219 | AI23: 1516.330425 | AJ23: 2681.837594 | AK23: 4495.728983 | AL23: 2221.265163 | AM23: 127.257391 | AN23: 142.845178 | AO23: 15707.85101 | AP23: 44968.79824 | AQ23: 1477.382039 | AR23: 6.750893534 | AS23: 17073.77578 | AT23: 373.4617475 | AU23: 1983.315183 | AV23: 1798.450458 | AW23: 343.6807543 | AX23: 113.4789339 | AY23: 1.093448292 | AZ23: 565.6575114 | BA23: 1235.030868 | BB23: 6.888719771 | BC23: 1540.411761 | BD23: 1266.541769 | BE23: 2167.048689 | BF23: 1.046590053 | BG23: 48.86862954 | BH23: 5622.763084 | BI23: 1763.520764 | BJ23: 87.17019236 | BK23: 36.24570818 | BL23: 741.1873817 | BM23: 454.3668186 | BN23: 16898.1816 | BO23: 7384.210522 | BP23: 2106.501435 | BQ23: 19.89207104 | BR23: 959.442242 | BS23: 355.7711016 | BT23: 5568.934998 | BU23: 200.921403 | BV23: 8472.068681 | BW23: 369.7822169 | BX23: 366.5474573 | BY23: 74.75748259 | BZ23: 215274.4353 | CA23: 10575.04032 | CB23: 790.2040868 | CC23: 32.225104 | CD23: 210.6041207 | CE23: 4871.410372 | CF23: 1189.649311 | CG23: 24.55282427 | CH23: 1117.77469 | CI23: 160.43618 | CJ23: 234.1913644 | CK23: 110.9424784 | CL23: 797.2142813 | CM23: 14535.32841 | CN23: 145.9007066 | CO23: 328.2242668 | CP23: 788.3810328 | CQ23: 965.2289854 | CR23: 28.91051835 | CS23: 386.0869298 | CT23: 253.7412748 | CU23: 4852.634076 | CV23: 342.2176992 | CW23: 4558.180676 | CX23: 1725.816103 | CY23: 8799.258309 | CZ23: 805.9076762 | DA23: 473.3354961 | DB23: 527.0026372 | DC23: 1461.817467 | DD23: 464.5053212 | DE23: 382.065903 | DF23: 1215.560923 | DG23: 185.8351058 | DH23: 969.1162776 | DI23: 1543.917437 | DJ23: 66.52082312 | DK23: 1252.934676 | DL23: 5097.541798 | DM23: 33.94677192 | DN23: 363.6423032 | DO23: 0.4324706376 | DP23: 913.8758558 | DQ23: 2130.172741 | DR23: 351.3535562 | DS23: 528.4408676 | DT23: 555.4625637 | DU23: 475.1284448 | DV23: 6893.445714 | DW23: 174.0631357 | DX23: 481.5825443 | DY23: 2436.351563 | DZ23: 3629.923964 | EA23: 425.865672 | EB23: 643.3604956 | EC23: 622.9990051 | ED23: 14290.31485 | EE23: 30.46377689 | EF23: 457.7721533 | EG23: 2551.343798 | EH23: 717.7384837 | EI23: 2170.864155 | EJ23: 0.155099207 | EK23: 3540.277174 | EL23: 835.6350634 | EM23: 468.9103813 | EN23: 1362.740469 | EO23: 2295.941738 | EP23: 744.3317984 | EQ23: 27.08692363 | ER23: 486.2943328 | ES23: 815.1432815 | ET23: 887.6281619 | EU23: 737.8241717 | EV23: 1134.966761 | EW23: 797.6888468 | EX23: 2122.196656 | EY23: 713.9257072 | EZ23: 663.3010404 | FA23: 783.3587208 | FB23: 376.9112285 | FC23: 692.9389829 | FD23: 694.302125 | FE23: 766.0973789 | FF23: 13801.15164 | FG23: 770.9888108 | FH23: 668.0599004 | FI23: 868.5333926 | FJ23: 3871.433657 | FK23: 752.1059639 | FL23: 828.78907 | FM23: 796.6054103 | FN23: 716.9326453 | FO23: 1845.817198 | FP23: 579.4449359 | FQ23: 1480.071932 | FR23: 1059.380788 | FS23: 1157.747628 | FT23: 555.6586737 | FU23: 1712.038959 | FV23: 2322.062503 | FW23: 819.7320462 | FX23: 832.4708584 | FY23: 807.6709041 | FZ23: 3.292308148e-06 | GA23: 4.051260111 | GB23: 587.1645285 | GC23: 609.6464443 | GD23: 838.5728558 | GE23: 869.7931473 | GF23: 792.0578517 | GG23: 119.6545356 | GH23: 175.8166042 | GI23: 950.3286609 | GJ23: 1389.077079 | GK23: 818.4538865 | GL23: 24185.52556 | GM23: 547.5859622 | GN23: 378.3718112 | GO23: 2143.877704 | GP23: 746.1822015 | GQ23: 342.4266036 | GR23: 2121.662211 | GS23: 603.1388514 | GT23: 504.0333407 | GU23: 141.1402784 | GV23: 325.1610743 | GW23: 562.9452528 | GX23: 446.8158332 | GY23: 2.236749103 | GZ23: 9.359045017 | HA23: 61900.16856 | HB23: 10930.95693 | HC23: 15015.57021 | HD23: 33979.13093 | HE23: 21699.69158 | HF23: 5256.455779 | HG23: 2599.329411 | HH23: 2475.23052 | HI23: 2471.003218 | HJ23: 8.532059026 | HK23: 1333.296646 | HL23: 1171.61246 | HM23: 2850.371887 | HN23: 184.2943926 | HO23: 57.00375165 | HP23: 9780.208925 | HQ23: 2283.888661 | HR23: 52348.77183 | HS23: 37973.28843 | HT23: 6147.450611 | HU23: 145.1022049 | HV23: 844.6335867 | HW23: 3427.128889 | HX23: 1249073.028
A24: =+MATCH(B24,RUT[EMPRESA],0) -> 100 | B24: ELECTRICA CENIZAS | C24: -227000114.7 | D24: -227000114.7 | F24: =IFERROR(INDEX($B$9:$B$511,MATCH(0,INDEX(COUNTIF($F$8:F23,$B$9:$B$511),0,0),0)),"") -> ELECTRICA CENIZAS | G24: -227000114.7 | J24: CAPULLO | K24: 527859.6615 | L24: 81786.04071 | M24: 87796.35752 | N24: 4992363.78 | O24: 394617.1184 | P24: 152966.7382 | Q24: 3557.845634 | R24: 9075.932101 | S24: 196562.1134 | T24: 26831.66644 | U24: 118945.9411 | V24: 34059.33738 | W24: 11944.91748 | X24: 36742.86451 | Y24: 17173.15037 | Z24: 251458.7239 | AA24: 29377.33963 | AB24: 14935.78462 | AC24: 3953.098591 | AD24: 5244.771849 | AE24: 5294.207529 | AF24: 16927.23319 | AG24: 4827.165152 | AH24: 135049.9979 | AI24: 27482.6891 | AJ24: 48606.89175 | AK24: 81482.71635 | AL24: 40259.25939 | AM24: 2306.473085 | AN24: 2588.993501 | AO24: 284696.5138 | AP24: 815035.7475 | AQ24: 26776.77016 | AR24: 122.3563843 | AS24: 309453.1798 | AT24: 6768.797176 | AU24: 35946.54151 | AV24: 32595.96588 | AW24: 6229.032382 | AX24: 2056.745817 | AY24: 19.81817351 | AZ24: 10252.24401 | BA24: 22384.28302 | BB24: 124.8544121 | BC24: 27919.15062 | BD24: 22955.40148 | BE24: 39276.6144 | BF24: 18.96889264 | BG24: 885.7181326 | BH24: 101909.6149 | BI24: 31962.8836 | BJ24: 1579.913755 | BK24: 656.9343415 | BL24: 13433.63032 | BM24: 8235.158912 | BN24: 306270.6278 | BO24: 133834.9206 | BP24: 38179.22734 | BQ24: 360.5332946 | BR24: 17389.38454 | BS24: 6448.16355 | BT24: 100934.0093 | BU24: 3641.594445 | BV24: 153551.7759 | BW24: 6702.107624 | BX24: 6643.479313 | BY24: 1354.939938 | BZ24: 3901735.584 | CA24: 191667.0275 | CB24: 14322.03225 | CC24: 584.0630115 | CD24: 3817.088595 | CE24: 88291.74337 | CF24: 21561.76623 | CG24: 445.0069885 | CH24: 20259.07664 | CI24: 2907.821135 | CJ24: 4244.594946 | CK24: 2010.7739 | CL24: 14449.08833 | CM24: 263445.1601 | CN24: 2644.373347 | CO24: 5948.891701 | CP24: 14288.99036 | CQ24: 17494.26621 | CR24: 523.987895 | CS24: 6997.621945 | CT24: 4598.926759 | CU24: 87951.43291 | CV24: 6202.515281 | CW24: 82614.62035 | CX24: 31279.50651 | CY24: 159481.9153 | CZ24: 14606.65152 | DA24: 8578.956186 | DB24: 9551.64481 | DC24: 26494.67049 | DD24: 8418.913925 | DE24: 6924.742955 | DF24: 22031.40053 | DG24: 3368.163266 | DH24: 17564.72133 | DI24: 27982.68914 | DJ24: 1205.65483 | DK24: 22708.78009 | DL24: 92390.25617 | DM24: 615.2673344 | DN24: 6590.824928 | DO24: 7.838302182 | DP24: 16563.51783 | DQ24: 38608.25729 | DR24: 6368.09787 | DS24: 9577.711977 | DT24: 10067.46597 | DU24: 8611.452436 | DV24: 124940.0673 | DW24: 3154.802517 | DX24: 8728.429585 | DY24: 44157.58693 | DZ24: 65790.4571 | EA24: 7718.590664 | EB24: 11660.56962 | EC24: 11291.52834 | ED24: 259004.4187 | EE24: 552.1398867 | EF24: 8296.878808 | EG24: 46241.76053 | EH24: 13008.63142 | EI24: 39345.7677 | EJ24: 2.811091313 | EK24: 64165.65632 | EL24: 15145.44473 | EM24: 8498.753314 | EN24: 24698.95217 | EO24: 41612.73291 | EP24: 13490.62122 | EQ24: 490.9362026 | ER24: 8813.828266 | ES24: 14774.042 | ET24: 16087.79222 | EU24: 13372.67392 | EV24: 20570.67385 | EW24: 14457.68957 | EX24: 38463.69494 | EY24: 12939.52685 | EZ24: 12021.98147 | FA24: 14197.9636 | FB24: 6831.3172 | FC24: 12559.15355 | FD24: 12583.85978 | FE24: 13885.11088 | FF24: 250138.5935 | FG24: 13973.76551 | FH24: 12108.2333 | FI24: 15741.7096 | FJ24: 70167.69288 | FK24: 13631.52387 | FL24: 15021.36471 | FM24: 14438.05286 | FN24: 12994.02602 | FO24: 33454.46307 | FP24: 10502.13381 | FQ24: 26825.52304 | FR24: 19200.71797 | FS24: 20983.56506 | FT24: 10071.02036 | FU24: 31029.80304 | FV24: 42086.15801 | FW24: 14857.21094 | FX24: 15088.09519 | FY24: 14638.6091 | FZ24: 5.967134851e-05 | GA24: 73.4269525 | GB24: 10642.04736 | GC24: 11049.52022 | GD24: 15198.69067 | GE24: 15764.54199 | GF24: 14355.63076 | GG24: 2168.675341 | GH24: 3186.58321 | GI24: 17224.20569 | GJ24: 25176.28932 | GK24: 14834.04497 | GL24: 438349.8932 | GM24: 9924.706719 | GN24: 6857.789491 | GO24: 38856.65251 | GP24: 13524.1588 | GQ24: 6206.301563 | GR24: 38454.00842 | GS24: 10931.57353 | GT24: 9135.338427 | GU24: 2558.093095 | GV24: 5893.372951 | GW24: 10203.08576 | GX24: 8098.301286 | GY24: 40.53989762 | GZ24: 169.6277541 | HA24: 1121907.903 | HB24: 198117.8283 | HC24: 272149.2894 | HD24: 615853.8244 | HE24: 393295.4636 | HF24: 95270.48827 | HG24: 47111.47444 | HH24: 44862.24751 | HI24: 44785.62989 | HJ24: 154.6390693 | HK24: 24165.29841 | HL24: 21234.85783 | HM24: 51661.48691 | HN24: 3340.238652 | HO24: 1033.16293 | HP24: 177261.1278 | HQ24: 41394.27726 | HR24: 948793.8759 | HS24: 688245.8223 | HT24: 111419.2996 | HU24: 2629.900924 | HV24: 15308.53822 | HW24: 62114.90333 | HX24: 22638789.75
A25: =+MATCH(B25,RUT[EMPRESA],0) -> 261 | B25: PUNTILLA | C25: 485340903.7 | D25: 485340903.7 | F25: =IFERROR(INDEX($B$9:$B$511,MATCH(0,INDEX(COUNTIF($F$8:F24,$B$9:$B$511),0,0),0)),"") -> PUNTILLA | H25: 485340903.7 | J25: ALLIPEN | K25: 174215.1393 | L25: 26992.71703 | M25: 28976.36582 | N25: 1647682.925 | O25: 130239.6854 | P25: 50485.23981 | Q25: 1174.233642 | R25: 2995.426418 | S25: 64873.48523 | T25: 8855.540302 | U25: 39256.99426 | V25: 11240.96543 | W25: 3942.308181 | X25: 12126.63843 | Y25: 5667.837499 | Z25: 82991.59757 | AA25: 9695.715905 | AB25: 4929.415879 | AC25: 1304.68318 | AD25: 1730.987845 | AE25: 1747.303629 | AF25: 5586.674836 | AG25: 1593.160665 | AH25: 44571.98742 | AI25: 9070.404236 | AJ25: 16042.24955 | AK25: 26892.60766 | AL25: 13287.19164 | AM25: 761.2298478 | AN25: 854.473066 | AO25: 93961.41894 | AP25: 268994.9178 | AQ25: 8837.422296 | AR25: 40.38257909 | AS25: 102132.1248 | AT25: 2233.978136 | AU25: 11863.81948 | AV25: 10757.99337 | AW25: 2055.833819 | AX25: 678.8097009 | AY25: 6.540802622 | AZ25: 3383.657152 | BA25: 7387.723041 | BB25: 41.20702979 | BC25: 9214.454272 | BD25: 7576.215342 | BE25: 12962.87886 | BF25: 6.260505424 | BG25: 292.3229773 | BH25: 33634.3143 | BI25: 10549.05048 | BJ25: 521.4357431 | BK25: 216.815029 | BL25: 4433.643918 | BM25: 2717.937099 | BN25: 101081.7533 | BO25: 44170.96253 | BP25: 12600.69654 | BQ25: 118.9906385 | BR25: 5739.203562 | BS25: 2128.15601 | BT25: 33312.32478 | BU25: 1201.874153 | BV25: 50678.32603 | BW25: 2211.967874 | BX25: 2192.618149 | BY25: 447.1852411 | BZ25: 1287731.3 | CA25: 63257.90798 | CB25: 4726.852655 | CC25: 192.7645288 | CD25: 1259.794354 | CE25: 29139.86328 | CF25: 7116.259077 | CG25: 146.8703902 | CH25: 6686.318572 | CI25: 959.6991414 | CJ25: 1400.888823 | CK25: 663.6371001 | CL25: 4768.786324 | CM25: 86947.60864 | CN25: 872.7506655 | CO25: 1963.37601 | CP25: 4715.947489 | CQ25: 5773.818775 | CR25: 172.937299 | CS25: 2309.499609 | CT25: 1517.83272 | CU25: 29027.547 | CV25: 2047.082098 | CW25: 27266.18198 | CX25: 10323.50827 | CY25: 52635.51302 | CZ25: 4820.788582 | DA25: 2831.40417 | DB25: 3152.430944 | DC25: 8744.317944 | DD25: 2778.58372 | DE25: 2285.44658 | DF25: 7271.25748 | DG25: 1111.630752 | DH25: 5797.071828 | DI25: 9235.424566 | DJ25: 397.9150888 | DK25: 7494.820261 | DL25: 30492.53906 | DM25: 203.0632234 | DN25: 2175.240062 | DO25: 2.58695825 | DP25: 5466.633985 | DQ25: 12742.29385 | DR25: 2101.731082 | DS25: 3161.034168 | DT25: 3322.672887 | DU25: 2842.129253 | DV25: 41235.29949 | DW25: 1041.213035 | DX25: 2880.736466 | DY25: 14573.79815 | DZ25: 21713.52441 | EA25: 2547.448584 | EB25: 3848.461831 | EC25: 3726.663214 | ED25: 85481.98349 | EE25: 182.2286003 | EF25: 2738.307172 | EG25: 15261.66013 | EH25: 4293.377007 | EI25: 12985.70226 | EJ25: 0.9277743696 | EK25: 21177.27413 | EL25: 4998.612237 | EM25: 2804.933963 | EN25: 8151.657922 | EO25: 13733.8929 | EP25: 4452.453229 | EQ25: 162.0288974 | ER25: 2908.921501 | ES25: 4876.034241 | ET25: 5309.625202 | EU25: 4413.525826 | EV25: 6789.158316 | EW25: 4771.625086 | EX25: 12694.58241 | EY25: 4270.569694 | EZ25: 3967.742431 | FA25: 4685.90496 | FB25: 2254.612285 | FC25: 4145.031044 | FD25: 4153.185105 | FE25: 4582.65085 | FF25: 82555.90089 | FG25: 4611.910478 | FH25: 3996.209039 | FI25: 5195.403873 | FJ25: 23158.1901 | FK25: 4498.956829 | FL25: 4957.660789 | FM25: 4765.144172 | FN25: 4288.556633 | FO25: 11041.33232 | FP25: 3466.13094 | FQ25: 8853.512728 | FR25: 6337.017202 | FS25: 6925.429191 | FT25: 3323.84598 | FU25: 10241.09598 | FV25: 13890.14243 | FW25: 4903.483371 | FX25: 4979.684557 | FY25: 4831.335881 | FZ25: 1.969396991e-05 | GA25: 24.23387822 | GB25: 3512.308095 | GC25: 3646.790699 | GD25: 5016.18556 | GE25: 5202.93949 | GF25: 4737.941529 | GG25: 715.7509925 | GH25: 1051.701955 | GI25: 5684.687829 | GJ25: 8309.198581 | GK25: 4895.837659 | GL25: 144673.2783 | GM25: 3275.556534 | GN25: 2263.349216 | GO25: 12824.27437 | GP25: 4463.521993 | GQ25: 2048.331725 | GR25: 12691.38546 | GS25: 3607.863499 | GT25: 3015.03292 | GU25: 844.2746763 | GV25: 1945.052567 | GW25: 3367.43293 | GX25: 2672.76852 | GY25: 13.37981366 | GZ25: 55.98405213 | HA25: 370275.1998 | HB25: 65386.93439 | HC25: 89820.32501 | HD25: 203256.7889 | HE25: 129803.4856 | HF25: 31443.1327 | HG25: 15548.70107 | HH25: 14806.36478 | HI25: 14781.07785 | HJ25: 51.03717702 | HK25: 7975.530498 | HL25: 7008.366018 | HM25: 17050.39008 | HN25: 1102.414495 | HO25: 340.9857521 | HP25: 58503.37565 | HQ25: 13661.79366 | HR25: 313140.5358 | HS25: 227149.09 | HT25: 36772.89668 | HU25: 867.9741779 | HV25: 5052.439716 | HW25: 20500.4423 | HX25: 7471720.606
A26: =+MATCH(B26,RUT[EMPRESA],0) -> 91 | B26: EL MANZANO | C26: 66251349.35 | D26: 66251349.35 | F26: =IFERROR(INDEX($B$9:$B$511,MATCH(0,INDEX(COUNTIF($F$8:F25,$B$9:$B$511),0,0),0)),"") -> EL MANZANO | H26: 66251349.35 | J26: ORAZUL_CHILE | K26: 189557.0341 | L26: 29369.77465 | M26: 31528.10936 | N26: 1792782.704 | O26: 141708.9731 | P26: 54931.11773 | Q26: 1277.640091 | R26: 3259.212431 | S26: 70586.43413 | T26: 9635.385088 | U26: 42714.08002 | V26: 12230.87773 | W26: 4289.479373 | X26: 13194.54569 | Y26: 6166.963851 | Z26: 90300.08044 | AA26: 10549.54901 | AB26: 5363.514662 | AC26: 1419.577397 | AD26: 1883.423699 | AE26: 1901.176298 | AF26: 6078.653765 | AG26: 1733.459054 | AH26: 48497.12702 | AI26: 9869.170568 | AJ26: 17454.97697 | AK26: 29260.84937 | AL26: 14457.30061 | AM26: 828.2659751 | AN26: 929.7204639 | AO26: 102235.9364 | AP26: 292683.3972 | AQ26: 9615.671557 | AR26: 43.93878714 | AS26: 111126.1785 | AT26: 2430.708786 | AU26: 12908.58213 | AV26: 11705.37373 | AW26: 2236.87656 | AX26: 738.5876691 | AY26: 7.116804836 | AZ26: 3681.631899 | BA26: 8038.307545 | BB26: 44.83584138 | BC26: 10025.90607 | BD26: 8243.39903 | BE26: 14104.4279 | BF26: 6.811823847 | BG26: 318.0657938 | BH26: 36596.25041 | BI26: 11478.03073 | BJ26: 567.3549001 | BK26: 235.9083947 | BL26: 4824.083572 | BM26: 2957.286591 | BN26: 109983.3082 | BO26: 48060.78672 | BP26: 13710.35074 | BQ26: 129.4693022 | BR26: 6244.614617 | BS26: 2315.567654 | BT26: 36245.90556 | BU26: 1307.714707 | BV26: 55141.20768 | BW26: 2406.760236 | BX26: 2385.706517 | BY26: 486.5656817 | BZ26: 1401132.686 | CA26: 68828.58442 | CB26: 5143.113128 | CC26: 209.7399371 | CD26: 1370.73553 | CE26: 31706.00489 | CF26: 7742.93767 | CG26: 159.8042265 | CH26: 7275.135346 | CI26: 1044.213055 | CJ26: 1524.255191 | CK26: 722.0789246 | CL26: 5188.739599 | CM26: 94604.46942 | CN26: 949.6076423 | CO26: 2136.276646 | CP26: 5131.247621 | CQ26: 6282.278148 | CR26: 188.1666635 | CS26: 2512.880901 | CT26: 1651.49751 | CU26: 31583.79771 | CV26: 2227.354137 | CW26: 29667.32173 | CX26: 11232.62661 | CY26: 57270.75029 | CZ26: 5245.321328 | DA26: 3080.745904 | DB26: 3430.043235 | DC26: 9514.368163 | DD26: 3023.273931 | DE26: 2486.709692 | DF26: 7911.585685 | DG26: 1209.524208 | DH26: 6307.578933 | DI26: 10048.72307 | DJ26: 432.9566557 | DK26: 8154.83606 | DL26: 33177.80125 | DM26: 220.9455649 | DN26: 2366.798065 | DO26: 2.814773362 | DP26: 5948.041766 | DQ26: 13864.41753 | DR26: 2286.815669 | DS26: 3439.404085 | DT26: 3615.277182 | DU26: 3092.41547 | DV26: 44866.6006 | DW26: 1132.9053 | DX26: 3134.422547 | DY26: 15857.20945 | DZ26: 23625.68089 | EA26: 2771.784359 | EB26: 4187.368639 | EC26: 4054.844079 | ED26: 93009.77704 | EE26: 198.2761839 | EF26: 2979.450513 | EG26: 16605.64657 | EH26: 4671.464347 | EI26: 14129.26119 | EJ26: 1.009476895 | EK26: 23042.20684 | EL26: 5438.804654 | EM26: 3051.944654 | EN26: 8869.516766 | EO26: 14943.33969 | EP26: 4844.549286 | EQ26: 176.2976361 | ER26: 3165.089639 | ES26: 5305.432081 | ET26: 5777.206331 | EU26: 4802.193822 | EV26: 7387.031459 | EW26: 5191.82835 | EX26: 13812.50447 | EY26: 4646.648555 | EZ26: 4317.153437 | FA26: 5098.559459 | FB26: 2453.160038 | FC26: 4510.054604 | FD26: 4518.926736 | FE26: 4986.21249 | FF26: 89826.01504 | FG26: 5018.048807 | FH26: 4348.126898 | FI26: 5652.926337 | FJ26: 25197.56807 | FK26: 4895.148129 | FL26: 5394.246901 | FM26: 5184.776708 | FN26: 4666.219476 | FO26: 12013.66435 | FP26: 3771.368571 | FQ26: 9633.17896 | FR26: 6895.073476 | FS26: 7535.302746 | FT26: 3616.553581 | FU26: 11142.95685 | FV26: 15113.349 | FW26: 5335.298462 | FX26: 5418.210147 | FY26: 5256.797452 | FZ26: 2.142827852e-05 | GA26: 26.36798444 | GB26: 3821.612221 | GC26: 3967.937757 | GD26: 5457.925536 | GE26: 5661.125562 | GF26: 5155.178521 | GG26: 778.7821188 | GH26: 1144.317905 | GI26: 6185.298069 | GJ26: 9040.930917 | GK26: 5326.979446 | GL26: 157413.6304 | GM26: 3564.011625 | GN26: 2462.66637 | GO26: 13953.61749 | GP26: 4856.592798 | GQ26: 2228.713809 | GR26: 13809.02599 | GS26: 3925.582513 | GT26: 3280.545539 | GU26: 918.6239742 | GV26: 2116.339586 | GW26: 3663.978925 | GX26: 2908.140335 | GY26: 14.55807919 | GZ26: 60.91417154 | HA26: 402882.7172 | HB26: 71145.09912 | HC26: 97730.1656 | HD26: 221156.1764 | HE26: 141234.3603 | HF26: 34212.10695 | HG26: 16917.96517 | HH26: 16110.25657 | HI26: 16082.7428 | HJ26: 55.53166014 | HK26: 8677.879046 | HL26: 7625.543232 | HM26: 18551.89731 | HN26: 1199.49634 | HO26: 371.013955 | HP26: 63655.35406 | HQ26: 14864.89118 | HR26: 340716.6075 | HS26: 247152.5034 | HT26: 40011.22555 | HU26: 944.4105233 | HV26: 5497.372338 | HW26: 22305.77123 | HX26: 8129702.181
A27: =+MATCH(B27,RUT[EMPRESA],0) -> 125 | B27: ESPINOS | C27: -11933102.27 | D27: -11933102.27 | F27: =IFERROR(INDEX($B$9:$B$511,MATCH(0,INDEX(COUNTIF($F$8:F26,$B$9:$B$511),0,0),0)),"") -> ESPINOS | G27: -11933102.27 | J27: RUCATAYO | K27: 4012924.195 | L27: 621758.4057 | M27: 667450.3718 | N27: 37953226.71 | O27: 2999980.293 | P27: 1162892.279 | Q27: 27047.65275 | R27: 68997.55783 | S27: 1494315.475 | T27: 203981.193 | U27: 904257.4758 | V27: 258927.7966 | W27: 90808.31867 | X27: 279328.6563 | Y27: 130554.6827 | Z27: 1911653.552 | AA27: 223334.0518 | AB27: 113545.6559 | AC27: 30052.46685 | AD27: 39872.09743 | AE27: 40247.92011 | AF27: 128685.1574 | AG27: 36697.34447 | AH27: 1026684.635 | AI27: 208930.4338 | AJ27: 369522.0267 | AK27: 619452.4563 | AL27: 306061.1898 | AM27: 17534.39849 | AN27: 19682.19097 | AO27: 2164335.735 | AP27: 6196110.272 | AQ27: 203563.8573 | AR27: 930.1845371 | AS27: 2352542.244 | AT27: 51458.12787 | AU27: 273274.8052 | AV27: 247802.8721 | AW27: 47354.69781 | AX27: 15635.9079 | AY27: 150.6628253 | AZ27: 77940.18194 | BA27: 170171.0463 | BB27: 949.1751838 | BC27: 212248.5259 | BD27: 174512.835 | BE27: 298590.8712 | BF27: 144.2063749 | BG27: 6733.455847 | BH27: 774742.9655 | BI27: 242990.0185 | BJ27: 12010.90857 | BK27: 4994.182935 | BL27: 102125.8946 | BM27: 62605.78494 | BN27: 2328347.669 | BO27: 1017447.307 | BP27: 290248.2541 | BQ27: 2740.866345 | BR27: 132198.5502 | BS27: 49020.58902 | BT27: 767326.1616 | BU27: 27684.33264 | BV27: 1167339.885 | BW27: 50951.13684 | BX27: 50505.42941 | BY27: 10300.60006 | BZ27: 29661992.13 | CA27: 1457101.78 | CB27: 108879.7533 | CC27: 4440.196441 | CD27: 29018.48407 | CE27: 671216.4217 | CF27: 163918.0633 | CG27: 3383.056978 | CH27: 154014.6837 | CI27: 22106.00021 | CJ27: 32268.49672 | CK27: 15286.41763 | CL27: 109845.6661 | CM27: 2002777.508 | CN27: 20103.20272 | CO27: 45224.99668 | CP27: 108628.5604 | CQ27: 132995.8875 | CR27: 3983.490036 | CS27: 53197.71231 | CT27: 34962.21782 | CU27: 668629.2946 | CV27: 47153.10803 | CW27: 628057.4801 | CX27: 237794.8111 | CY27: 1212422.322 | CZ27: 111043.5019 | DA27: 65219.41978 | DB27: 72614.04755 | DC27: 201419.2635 | DD27: 64002.73756 | DE27: 52643.66758 | DF27: 167488.3434 | DG27: 25605.63886 | DH27: 133531.5053 | DI27: 212731.562 | DJ27: 9165.696473 | DK27: 172637.9561 | DL27: 702374.3647 | DM27: 4677.419687 | DN27: 50105.13731 | DO27: 59.58877855 | DP27: 125920.1001 | DQ27: 293509.8495 | DR27: 48411.90923 | DS27: 72812.21682 | DT27: 76535.45194 | DU27: 65466.46459 | DV27: 949826.3568 | DW27: 23983.61587 | DX27: 66355.7548 | DY27: 335697.2732 | DZ27: 500155.8868 | EA27: 58678.70096 | EB27: 88646.63347 | EC27: 85841.08729 | ED27: 1969017.855 | EE27: 4197.508679 | EF27: 63074.99538 | EG27: 351541.6941 | EH27: 98894.94417 | EI27: 299116.5924 | EJ27: 21.37063536 | EK27: 487803.7356 | EL27: 115139.5457 | EM27: 64609.69703 | EN27: 187767.7534 | EO27: 316350.6418 | EP27: 102559.154 | EQ27: 3732.222614 | ER27: 67004.97742 | ES27: 112316.0471 | ET27: 122303.5124 | EU27: 101662.4884 | EV27: 156383.5255 | EW27: 109911.055 | EX27: 292410.8496 | EY27: 98369.59361 | EZ27: 91394.17887 | FA27: 107936.5517 | FB27: 51933.42109 | FC27: 95477.8984 | FD27: 95665.72151 | FE27: 105558.1653 | FF27: 1901617.583 | FG27: 106232.1404 | FH27: 92049.88732 | FI27: 119672.5037 | FJ27: 533432.7531 | FK27: 103630.3319 | FL27: 114196.2576 | FM27: 109761.7717 | FN27: 98783.91021 | FO27: 254329.3873 | FP27: 79839.90812 | FQ27: 203934.4892 | FR27: 145968.7703 | FS27: 159522.43 | FT27: 76562.47333 | FU27: 235896.5014 | FV27: 319949.7406 | FW27: 112948.3186 | FX27: 114703.5598 | FY27: 111286.4515 | FZ27: 0.0004536368578 | GA27: 558.2104785 | GB27: 80903.56667 | GC27: 84001.27963 | GD27: 115544.3349 | GE27: 119846.0814 | GF27: 109135.1778 | GG27: 16486.82478 | GH27: 24225.22082 | GI27: 130942.8183 | GJ27: 191396.5926 | GK27: 112772.205 | GL27: 3332448.036 | GM27: 75450.15963 | GN27: 52134.67022 | GO27: 295398.2135 | GP27: 102814.1152 | GQ27: 47181.89231 | GR27: 292337.2101 | GS27: 83104.61873 | GT27: 69449.17992 | GU27: 19447.27818 | GV27: 44802.92894 | GW27: 77566.46831 | GX27: 61565.35826 | GY27: 308.1946735 | GZ27: 1289.553585 | HA27: 8529030.912 | HB27: 1506142.418 | HC27: 2068948.525 | HD27: 4681878.334 | HE27: 2989932.735 | HF27: 724270.6259 | HG27: 358153.4818 | HH27: 341054.2832 | HI27: 340471.8164 | HJ27: 1175.605768 | HK27: 183710.781 | HL27: 161432.822 | HM27: 392743.8406 | HN27: 25393.3488 | HO27: 7854.368918 | HP27: 1347584.444 | HQ27: 314689.8861 | HR27: 7212973.785 | HS27: 5232220.823 | HT27: 847038.0212 | HU27: 19993.17966 | HV27: 116379.4241 | HW27: 472213.3867 | HX27: 172105871.6
A28: =+MATCH(B28,RUT[EMPRESA],0) -> 119 | B28: ENLASA | C28: 293695105.2 | D28: 293695105.2 | F28: =IFERROR(INDEX($B$9:$B$511,MATCH(0,INDEX(COUNTIF($F$8:F27,$B$9:$B$511),0,0),0)),"") -> ENLASA | H28: 293695105.2 | J28: TALINAY | K28: 1224995.279 | L28: 189799.5263 | M28: 203747.5702 | N28: 11585696.93 | O28: 915781.4892 | P28: 354987.4062 | Q28: 8256.634142 | R28: 21062.36711 | S28: 456158.48 | T28: 62267.80925 | U28: 276035.8992 | V28: 79040.94692 | W28: 27720.37452 | X28: 85268.56441 | Y28: 39853.44905 | Z28: 583556.1456 | AA28: 68175.51136 | AB28: 34661.23095 | AC28: 9173.891212 | AD28: 12171.45621 | AE28: 12286.18078 | AF28: 39282.75307 | AG28: 11202.32318 | AH28: 313408.3201 | AI28: 63778.62688 | AJ28: 112801.2183 | AK28: 189095.6065 | AL28: 93429.00446 | AM28: 5352.594346 | AN28: 6008.234852 | AO28: 660690.5407 | AP28: 1891440.122 | AQ28: 62140.41233 | AR28: 283.9504587 | AS28: 718142.9305 | AT28: 15708.23684 | AU28: 83420.55065 | AV28: 75644.92463 | AW28: 14455.61352 | AX28: 4773.056361 | AY28: 45.99171096 | AZ28: 23792.21492 | BA28: 51946.83931 | BB28: 289.7475911 | BC28: 64791.51597 | BD28: 53272.22458 | BE28: 91148.59631 | BF28: 44.02079875 | BG28: 2055.471577 | BH28: 236499.9758 | BI28: 74175.74093 | BJ28: 3666.479998 | BK28: 1524.536776 | BL28: 31175.20606 | BM28: 19111.19853 | BN28: 710757.2342 | BO28: 310588.5102 | BP28: 88601.90813 | BQ28: 836.6837171 | BR28: 40355.26014 | BS28: 14964.14763 | BT28: 234235.9036 | BU28: 8450.988637 | BV28: 356345.0936 | BW28: 15553.47149 | BX28: 15417.41373 | BY28: 3144.386942 | BZ28: 9054693.922 | CA28: 444798.5344 | CB28: 33236.90587 | CC28: 1355.425473 | CD28: 8858.255041 | CE28: 204897.204 | CF28: 50038.03807 | CG28: 1032.720436 | CH28: 47014.90764 | CI28: 6748.132924 | CJ28: 9850.362033 | CK28: 4666.370085 | CL28: 33531.76283 | CM28: 611372.8721 | CN28: 6136.753953 | CO28: 13805.49562 | CP28: 33160.2261 | CQ28: 40598.65732 | CR28: 1216.010133 | CS28: 16239.26674 | CT28: 10672.65407 | CU28: 204107.4511 | CV28: 14394.07572 | CW28: 191722.3975 | CX28: 72589.83889 | CY28: 370107.0711 | CZ28: 33897.41716 | DA28: 19909.04324 | DB28: 22166.34581 | DC28: 61485.74826 | DD28: 19537.63578 | DE28: 16070.13766 | DF28: 51127.91069 | DG28: 7816.441375 | DH28: 40762.16137 | DI28: 64938.96878 | DJ28: 2797.943435 | DK28: 52699.89435 | DL28: 214408.5556 | DM28: 1427.840835 | DN28: 15295.21956 | DO28: 18.19021961 | DP28: 38438.68477 | DQ28: 89597.55091 | DR28: 14778.34052 | DS28: 22226.83946 | DT28: 23363.40352 | DU28: 19984.45675 | DV28: 289946.3698 | DW28: 7321.298577 | DX28: 20255.92371 | DY28: 102475.7894 | DZ28: 152678.8372 | EA28: 17912.40705 | EB28: 27060.49309 | EC28: 26204.06505 | ED28: 601067.3161 | EE28: 1281.342 | EF28: 19254.43088 | EG28: 107312.497 | EH28: 30188.91805 | EI28: 91309.07926 | EJ28: 6.52365361 | EK28: 148908.1886 | EL28: 35147.78575 | EM28: 19722.91774 | EN28: 57318.45412 | EO28: 96569.98832 | EP28: 31307.4639 | EQ28: 1139.307612 | ER28: 20454.10703 | ES28: 34285.8775 | ET28: 37334.67614 | EU28: 31033.74553 | EV28: 47738.0262 | EW28: 33551.72361 | EX28: 89262.06744 | EY28: 30028.54823 | EZ28: 27899.21568 | FA28: 32948.98179 | FB28: 15853.32604 | FC28: 29145.82212 | FD28: 29203.15747 | FE28: 32222.94961 | FF28: 580492.5406 | FG28: 32428.68894 | FH28: 28099.37888 | FI28: 36531.52787 | FJ28: 162837.0167 | FK28: 31634.45437 | FL28: 34859.83528 | FM28: 33506.15301 | FN28: 30155.02355 | FO28: 77637.22499 | FP28: 24372.13008 | FQ28: 62253.55234 | FR28: 44558.792 | FS28: 48696.21605 | FT28: 23371.65214 | FU28: 72010.35615 | FV28: 97668.65819 | FW28: 34478.8863 | FX28: 35014.6956 | FY28: 33971.58059 | FZ28: 0.000138478322 | GA28: 170.4007271 | GB28: 24696.82515 | GC28: 25642.44076 | GD28: 35271.35273 | GE28: 36584.51462 | GF28: 33314.87739 | GG28: 5032.809376 | GH28: 7395.051511 | GI28: 39971.93229 | GJ28: 58426.20265 | GK28: 34425.12541 | GL28: 1017271.424 | GM28: 23032.10447 | GN28: 15914.75985 | GO28: 90173.99763 | GP28: 31385.29401 | GQ28: 14402.86248 | GR28: 89239.58808 | GS28: 25368.72381 | GT28: 21200.2304 | GU28: 5936.524786 | GV28: 13676.65417 | GW28: 23678.13416 | GX28: 18793.59527 | GY28: 94.08027701 | GZ28: 393.6523532 | HA28: 2603593.313 | HB28: 459768.8022 | HC28: 631572.4025 | HD28: 1429201.893 | HE28: 912714.3464 | HF28: 221092.6631 | HG28: 109330.8278 | HH28: 104111.0837 | HI28: 103933.2784 | HJ28: 358.8683575 | HK28: 56080.01259 | HL28: 49279.38707 | HM28: 119889.9673 | HN28: 7751.63718 | HO28: 2397.644304 | HP28: 411366.9986 | HQ28: 96063.02185 | HR28: 2201850.422 | HS28: 1597200.817 | HT28: 258568.9453 | HU28: 6103.168039 | HV28: 35526.27414 | HW28: 144149.0397 | HX28: 52537468.92
A29: =+MATCH(B29,RUT[EMPRESA],0) -> 241 | B29: PARQUE_EOLICO_LEBU | C29: 84097536.92 | D29: 84097536.92 | F29: =IFERROR(INDEX($B$9:$B$511,MATCH(0,INDEX(COUNTIF($F$8:F28,$B$9:$B$511),0,0),0)),"") -> PARQUE_EOLICO_LEBU | H29: 84097536.92 | J29: WENKE | K29: =$HX29*K$67/$HX$67 -> 2459.994884 | L29: 381.1491129 | M29: 409.1591119 | N29: 23266.01226 | O29: 1839.042009 | P29: 712.8739337 | Q29: 16.5806988 | R29: 42.29674696 | S29: 916.042328 | T29: 125.044149 | U29: =$HX29*U$67/$HX$67 -> 554.3261362 | V29: 158.7274077 | W29: 55.6671366 | X29: 171.2335026 | Y29: 80.03237439 | Z29: 1171.878094 | AA29: 136.9078004 | AB29: 69.60553424 | AC29: 18.42270402 | AD29: 24.44231461 | AE29: =$HX29*AE$67/$HX$67 -> 24.67270069 | AF29: 78.88632165 | AG29: 22.49613381 | AH29: 629.3761923 | AI29: 128.0781229 | AJ29: 226.5236648 | AK29: 379.7355243 | AL29: 187.6210276 | AM29: 10.74890241 | AN29: 12.06553793 | AO29: =$HX29*AO$67/$HX$67 -> 1326.776828 | AP29: 3798.327311 | AQ29: 124.7883147 | AR29: 0.5702198922 | AS29: 1442.150811 | AT29: 31.54476016 | AU29: 167.5223826 | AV29: 151.9076284 | AW29: 29.02928355 | AX29: 9.585093456 | AY29: =$HX29*AY$67/$HX$67 -> 0.09235902834 | AZ29: 47.77873677 | BA29: 104.3179196 | BB29: 0.5818615011 | BC29: 130.1121731 | BD29: 106.9795143 | BE29: 183.0415876 | BF29: 0.08840110783 | BG29: 4.127729837 | BH29: 474.9314063 | BI29: =$HX29*BI$67/$HX$67 -> 148.9572624 | BJ29: 7.362903509 | BK29: 3.061524183 | BL29: 62.60501469 | BM29: 38.37847494 | BN29: 1427.319101 | BO29: 623.7135435 | BP29: 177.9274129 | BQ29: 1.680200487 | BR29: 81.04009478 | BS29: =$HX29*BS$67/$HX$67 -> 30.0505049 | BT29: 470.3847718 | BU29: 16.97099505 | BV29: 715.6003965 | BW29: 31.23396552 | BX29: 30.96073883 | BY29: 6.314453554 | BZ29: 18183.33598 | CA29: 893.2296621 | CB29: 66.74525186 | CC29: =$HX29*CC$67/$HX$67 -> 2.721920474 | CD29: 17.78885393 | CE29: 411.4677684 | CF29: 100.4847282 | CG29: 2.073874923 | CH29: 94.41377796 | CI29: 13.55137669 | CJ29: 19.78117028 | CK29: 9.370849616 | CL29: 67.33737383 | CM29: =$HX29*CM$67/$HX$67 -> 1227.738722 | CN29: 12.32362572 | CO29: 27.72373836 | CP29: 66.59126607 | CQ29: 81.52887692 | CR29: 2.441951213 | CS29: 32.61115679 | CT29: 21.43246988 | CU29: 409.8818128 | CV29: 28.90570538 | CW29: =$HX29*CW$67/$HX$67 -> 385.0105591 | CX29: 145.7725066 | CY29: 743.2367432 | CZ29: 68.07166872 | DA29: 39.98068021 | DB29: 44.51372036 | DC29: 123.4736401 | DD29: 39.23483208 | DE29: 32.27151738 | DF29: 102.6733743 | DG29: =$HX29*DG$67/$HX$67 -> 15.69671829 | DH29: 81.85722032 | DI29: 130.408283 | DJ29: 5.618737194 | DK29: 105.8301797 | DL29: 430.5681492 | DM29: 2.867342601 | DN29: 30.71535255 | DO29: 0.03652899562 | DP29: 77.1912917 | DQ29: =$HX29*DQ$67/$HX$67 -> 179.9268297 | DR29: 29.67737321 | DS29: 44.6352017 | DT29: 46.91761196 | DU29: 40.13212314 | DV29: 582.2606818 | DW29: 14.70238895 | DX29: 40.67727407 | DY29: 205.788481 | DZ29: 306.6045763 | EA29: =$HX29*EA$67/$HX$67 -> 35.97110165 | EB29: 54.3419846 | EC29: 52.62213421 | ED29: 1207.043446 | EE29: 2.5731485 | EF29: 38.6661094 | EG29: 215.5013967 | EH29: 60.62438383 | EI29: 183.3638641 | EJ29: 0.01310058478 | EK29: =$HX29*EK$67/$HX$67 -> 299.0324849 | EL29: 70.58261745 | EM29: 39.60690918 | EN29: 115.1050182 | EO29: 193.9286472 | EP29: 62.87061049 | EQ29: 2.287919754 | ER29: 41.07525924 | ES29: 68.85176188 | ET29: 74.97425819 | EU29: =$HX29*EU$67/$HX$67 -> 62.32093833 | EV29: 95.86592067 | EW29: 67.3774584 | EX29: 179.2531229 | EY29: 60.30233446 | EZ29: 56.02627947 | FA29: 66.16705227 | FB29: 31.83612347 | FC29: 58.52967317 | FD29: 58.64481211 | FE29: =$HX29*FE$67/$HX$67 -> 64.70905853 | FF29: 1165.725864 | FG29: 65.12221743 | FH29: 56.42824057 | FI29: 73.36140246 | FJ29: 327.0038953 | FK29: 63.52726191 | FL29: 70.00436487 | FM29: 67.28594502 | FN29: 60.55631801 | FO29: =$HX29*FO$67/$HX$67 -> 155.9084999 | FP29: 48.94330317 | FQ29: 125.0155188 | FR29: 89.48148801 | FS29: 97.79012575 | FT29: 46.93417656 | FU29: 144.6088085 | FV29: 196.1349596 | FW29: 69.23935575 | FX29: 70.31535022 | FY29: =$HX29*FY$67/$HX$67 -> 68.22060125 | FZ29: 2.780875728e-07 | GA29: 0.3421930878 | GB29: 49.59534504 | GC29: 51.49429894 | GD29: 70.83076055 | GE29: 73.4678087 | GF29: 66.90183166 | GG29: 10.10672084 | GH29: 14.85049714 | GI29: =$HX29*GI$67/$HX$67 -> 80.27030849 | GJ29: 117.3295621 | GK29: 69.13139492 | GL29: 2042.850729 | GM29: 46.2523082 | GN29: 31.95949282 | GO29: 181.0844308 | GP29: 63.02690635 | GQ29: 28.92335066 | GR29: 179.2079806 | GS29: =$HX29*GS$67/$HX$67 -> 50.94462964 | GT29: 42.57359944 | GU29: 11.92153215 | GV29: 27.46500323 | GW29: 47.54964358 | GX29: 37.74067462 | GY29: 0.1889288915 | GZ29: 0.7905195977 | HA29: 5228.449726 | HB29: 923.2924574 | HC29: =$HX29*HC$67/$HX$67 -> 1268.302748 | HD29: 2870.075832 | HE29: 1832.882674 | HF29: 443.9909521 | HG29: 219.5545418 | HH29: 209.0724247 | HI29: 208.7153621 | HJ29: 0.7206675314 | HK29: 112.618021 | HL29: 98.96123045 | HM29: =$HX29*HM$67/$HX$67 -> 240.7590554 | HN29: 15.56658065 | HO29: 4.814869759 | HP29: 826.0935609 | HQ29: 192.9105739 | HR29: 4421.682979 | HS29: 3207.4457 | HT29: 519.2495789 | HU29: 12.25617961 | HV29: 71.34268528 | HW29: 289.4753199 | HX29: 105504.0023
A30: =+MATCH(B30,RUT[EMPRESA],0) -> 234 | B30: ORAFTI | C30: -13936408.31 | D30: -13936408.31 | F30: =IFERROR(INDEX($B$9:$B$511,MATCH(0,INDEX(COUNTIF($F$8:F29,$B$9:$B$511),0,0),0)),"") -> ORAFTI | G30: -13936408.31 | J30: ARRAYAN | K30: 352.7102537 | L30: 54.64856906 | M30: 58.66459931 | N30: 3335.844778 | O30: 263.6789929 | P30: 102.2107597 | Q30: 2.377314896 | R30: 6.064442024 | S30: 131.3407292 | T30: 17.92863628 | U30: 79.47842226 | V30: 22.75808971 | W30: 7.981467767 | X30: 24.5511942 | Y30: 11.4749178 | Z30: 168.0220649 | AA30: 19.62962823 | AB30: 9.979933618 | AC30: 2.641418749 | AD30: 3.504501185 | AE30: 3.537533585 | AF30: 11.31059853 | AG30: 3.225460799 | AH30: 90.23898299 | AI30: 18.36364275 | AJ30: 32.47861197 | AK30: 54.44589093 | AL30: 26.90081214 | AM30: 1.541160968 | AN30: 1.729938128 | AO30: 190.2312052 | AP30: 544.5982829 | AQ30: 17.89195516 | AR30: 0.08175724437 | AS30: 206.7733481 | AT30: 4.522838821 | AU30: 24.01909958 | AV30: 21.78028032 | AW30: 4.162173684 | AX30: 1.374295844 | AY30: 0.01324229434 | AZ30: 6.850441227 | BA30: 14.95694162 | BB30: 0.0834264002 | BC30: 18.65528173 | BD30: 15.33855695 | BE30: 26.24421913 | BF30: 0.01267481383 | BG30: 0.5918275065 | BH30: 68.09492894 | BI30: 21.35726142 | BJ30: 1.055681693 | BK30: 0.4389565924 | BL30: 8.976209975 | BM30: 5.502646254 | BN30: 204.6468005 | BO30: 89.42708117 | BP30: 25.51095669 | BQ30: 0.2409045417 | BR30: 11.61940319 | BS30: 4.308594817 | BT30: 67.44303953 | BU30: 2.433274967 | BV30: 102.6016757 | BW30: 4.478277567 | BX30: 4.439102748 | BY30: 0.9053565638 | BZ30: 2607.09853 | CA30: 128.0698845 | CB30: 9.569830763 | CC30: 0.3902647389 | CD30: 2.550538306 | CE30: 58.9956109 | CF30: 14.40734459 | CG30: 0.2973489722 | CH30: 13.53690115 | CI30: 1.942975387 | CJ30: 2.836193537 | CK30: 1.343577894 | CL30: 9.654728293 | CM30: 176.0312751 | CN30: 1.766942356 | CO30: 3.974986638 | CP30: 9.54775252 | CQ30: 11.68948401 | CR30: 0.3501231802 | CS30: 4.675737116 | CT30: 3.072954314 | CU30: 58.76821905 | CV30: 4.144455237 | CW30: 55.20221723 | CX30: 20.90063606 | CY30: 106.5641323 | CZ30: 9.760010358 | DA30: 5.732367963 | DB30: 6.382308234 | DC30: 17.70345914 | DD30: 5.625429414 | DE30: 4.627040144 | DF30: 14.72114927 | DG30: 2.25057114 | DH30: 11.73656138 | DI30: 18.69773749 | DJ30: 0.8056058304 | DK30: 15.17376714 | DL30: 61.73419389 | DM30: 0.411115138 | DN30: 4.403919644 | DO30: 0.005237470777 | DP30: 11.06756777 | DQ30: 25.79762997 | DR30: 4.255095775 | DS30: 6.39972604 | DT30: 6.726974485 | DU30: 5.754081615 | DV30: 83.48363412 | DW30: 2.10800574 | DX30: 5.832244511 | DY30: 29.50563346 | DZ30: 43.96048895 | EA30: 5.157480804 | EB30: 7.791469527 | EC30: 7.544880044 | ED30: 173.0640185 | EE30: 0.3689340439 | EF30: 5.543886837 | EG30: 30.89825626 | EH30: 8.692230192 | EI30: 26.29042664 | EJ30: 0.001878341542 | EK30: 42.87481422 | EL30: 10.12002629 | EM30: 5.678777251 | EN30: 16.50357911 | EO30: 27.80518886 | EP30: 9.01429069 | EQ30: 0.3280383882 | ER30: 5.889307008 | ES30: 9.871858906 | ET30: 10.74969294 | EU30: 8.935479548 | EV30: 13.74510712 | EW30: 9.660475557 | EX30: 25.70103494 | EY30: 8.646055253 | EZ30: 8.032961115 | FA30: 9.486929402 | FB30: 4.564614041 | FC30: 8.391893824 | FD30: 8.408402268 | FE30: 9.27788452 | FF30: 167.1399677 | FG30: 9.337122603 | FH30: 8.090593675 | FI30: 10.51844418 | FJ30: 46.88531169 | FK30: 9.108440352 | FL30: 10.03711734 | FM30: 9.647354511 | FN30: 8.682471021 | FO30: 22.35391907 | FP30: 7.017414952 | FQ30: 17.92453132 | FR30: 12.82971706 | FS30: 14.02099667 | FT30: 6.729349492 | FU30: 20.73378684 | FV30: 28.12152652 | FW30: 9.927431513 | FX30: 10.08170593 | FY30: 9.781364072 | FZ30: 3.987176518e-08 | GA30: 0.04906311456 | GB30: 7.110903705 | GC30: 7.383172771 | GD30: 10.15560467 | GE30: 10.53370054 | GF30: 9.592280933 | GG30: 1.44908597 | GH30: 2.129241263 | GI30: 11.50903242 | GJ30: 16.82253076 | GK30: 9.911952257 | GL30: 292.9007714 | GM30: 6.631584263 | GN30: 4.582302546 | GO30: 25.96360503 | GP30: 9.036700147 | GQ30: 4.14698519 | GR30: 25.6945625 | GS30: 7.304362039 | GT30: 6.104136704 | GU30: 1.709290803 | GV30: 3.937889595 | GW30: 6.817594199 | GX30: 5.411199433 | GY30: 0.02708833165 | GZ30: 0.1133434747 | HA30: 749.6470181 | HB30: 132.3802415 | HC30: 181.8472823 | HD30: 411.5070245 | HE30: 262.7958771 | HF30: 63.65873458 | HG30: 31.47938991 | HH30: 29.97648022 | HI30: 29.92528513 | HJ30: 0.1033281937 | HK30: 16.14699731 | HL30: 14.18890784 | HM30: 34.51966021 | HN30: 2.231912208 | HO30: 0.6903485635 | HP30: 118.4440144 | HQ30: 27.6592191 | HR30: 633.9740523 | HS30: 459.8785933 | HT30: 74.44919984 | HU30: 1.757272036 | HV30: 10.22900364 | HW30: 41.50452272 | HX30: 15127.00034
A31: =+MATCH(B31,RUT[EMPRESA],0) -> 130 | B31: GAS SUR | C31: -3874067.69 | D31: -3874067.69 | F31: =IFERROR(INDEX($B$9:$B$511,MATCH(0,INDEX(COUNTIF($F$8:F30,$B$9:$B$511),0,0),0)),"") -> GAS SUR | G31: -3874067.69 | J31: AELA_GENERACION | K31: 14715569.95 | L31: 2280015.487 | M31: 2447569.942 | N31: 139176155.7 | O31: 11001060.01 | P31: 4264377.26 | Q31: 99184.93519 | R31: 253017.0867 | S31: 5479720.73 | T31: 748008.0282 | U31: 3315952.033 | V31: 949499.6463 | W31: 332998.1084 | X31: 1024310.499 | Y31: 478749.7778 | Z31: 7010117.863 | AA31: 818975.815 | AB31: 416376.9263 | AC31: 110203.721 | AD31: 146212.7393 | AE31: 147590.8976 | AF31: 471894.146 | AG31: 134570.7802 | AH31: 3764897.825 | AI31: 766157.1125 | AJ31: 1355053.564 | AK31: 2271559.469 | AL31: 1122339.878 | AM31: 64299.41235 | AN31: 72175.46208 | AO31: 7936714.566 | AP31: 22721409.56 | AQ31: 746477.6401 | AR31: 3411.02771 | AS31: 8626876.133 | AT31: 188699.2237 | AU31: 1002110.759 | AV31: 908704.0576 | AW31: 173651.7648 | AX31: 57337.56367 | AY31: 552.4872233 | AZ31: 285810.0836 | BA31: 624024.7299 | BB31: 3480.667249 | BC31: 778324.7025 | BD31: 639946.2603 | BE31: 1094945.89 | BF31: 528.8111349 | BG31: 24691.87947 | BH31: 2841016.613 | BI31: 891055.1115 | BJ31: 44044.5313 | BK31: 18313.88902 | BL31: 374500.1583 | BM31: 229578.1737 | BN31: 8538153.561 | BO31: 3731024.134 | BP31: 1064353.145 | BQ31: 10050.87773 | BR31: 484777.9123 | BS31: 179760.6613 | BT31: 2813818.866 | BU31: 101519.6684 | BV31: 4280686.828 | BW31: 186840.0652 | BX31: 185205.6365 | BY31: 37772.75458 | BZ31: 108771833 | CA31: 5343256.47 | CB31: 399266.856 | CC31: 16282.39612 | CD31: 106412.0605 | CE31: 2461380.213 | CF31: 601094.7654 | CG31: 12405.8191 | CH31: 564778.6358 | CI31: 81063.67742 | CJ31: 118330.0002 | CK31: 56055.96742 | CL31: 402808.9008 | CM31: 7344273.424 | CN31: 73719.33074 | CO31: 165842.0568 | CP31: 398345.7205 | CQ31: 487701.7833 | CR31: 14607.63359 | CS31: 195078.3565 | CT31: 128207.9942 | CU31: 2451893.104 | CV31: 172912.5261 | CW31: 2303114.471 | CX31: 872004.0566 | CY31: 4446006.112 | CZ31: 407201.4173 | DA31: 239162.4879 | DB31: 266278.914 | DC31: 738613.32 | DD31: 234700.8606 | DE31: 193046.6501 | DF31: 614187.1398 | DG31: 93897.00668 | DH31: 489665.9176 | DI31: 780096.0172 | DJ31: 33611.01309 | DK31: 633070.9967 | DL31: 2575637.763 | DM31: 17152.30422 | DN31: 183737.7477 | DO31: 218.5146783 | DP31: 461754.5591 | DQ31: 1076313.559 | DR31: 177528.6057 | DS31: 267005.6094 | DT31: 280658.8768 | DU31: 240068.4121 | DV31: 3483055.129 | DW31: 87948.97683 | DX31: 243329.4785 | DY31: 1231016.702 | DZ31: 1834093.689 | EA31: 215177.3836 | EB31: 325071.1134 | EC31: 314783.0519 | ED31: 7220475.289 | EE31: 15392.4494 | EF31: 231298.7891 | EG31: 1289118.892 | EH31: 362652.1206 | EI31: 1096873.732 | EJ31: 78.3670621 | EK31: 1788797.806 | EL31: 422221.7906 | EM31: 236926.6077 | EN31: 688552.6304 | EO31: 1160071.752 | EP31: 376088.9395 | EQ31: 13686.22488 | ER31: 245710.2065 | ES31: 411867.8967 | ET31: 448492.3723 | EU31: 372800.8273 | EV31: 573465.2829 | EW31: 403048.6848 | EX31: 1072283.478 | EY31: 360725.6369 | EZ31: 335146.4836 | FA31: 395808.0941 | FB31: 190442.1449 | FC31: 350121.6631 | FD31: 350810.4187 | FE31: 387086.4463 | FF31: 6973315.522 | FG31: 389557.9428 | FH31: 337550.9953 | FI31: 438844.3476 | FJ31: 1956121.425 | FK31: 380016.9964 | FL31: 418762.7118 | FM31: 402501.2562 | FN31: 362244.9542 | FO31: 932637.0767 | FP31: 292776.4633 | FQ31: 747836.7635 | FR31: 535273.9167 | FS31: 584975.7843 | FT31: 280757.9654 | FU31: 865042.8715 | FV31: 1173269.805 | FW31: 414186.4643 | FX31: 420623.0111 | FY31: 408092.3244 | FZ31: 0.001663506359 | GA31: 2046.982437 | GB31: 296676.9461 | GC31: 308036.3961 | GD31: 423706.1706 | GE31: 439480.8646 | GF31: 400203.5088 | GG31: 60457.91338 | GH31: 88834.95286 | GI31: 480173.0881 | GJ31: 701859.7437 | GK31: 413540.6479 | GL31: 12220233.88 | GM31: 276679.062 | GN31: 191180.1343 | GO31: 1083238.273 | GP31: 377023.8937 | GQ31: 173018.0794 | GR31: 1072013.439 | GS31: 304748.301 | GT31: 254673.2048 | GU31: 71314.02651 | GV31: 164294.3158 | GW31: 284439.6592 | GX31: 225762.8832 | GY31: 1130.163456 | GZ31: 4728.849852 | HA31: 31276332.4 | HB31: 5523090.652 | HC31: 7586925.462 | HD31: 17168654.28 | HE31: 10964215.17 | HF31: 2655932.319 | HG31: 1313364.609 | HH31: 1250661.094 | HI31: 1248525.162 | HJ31: 4310.998183 | HK31: 673675.5339 | HL31: 591981.2758 | HM31: 1440208.98 | HN31: 93118.52967 | HO31: 28802.31712 | HP31: 4941651.573 | HQ31: 1153981.687 | HR31: 26450292.89 | HS31: 19186784.45 | HT31: 3106125.77 | HU31: 73315.87133 | HV31: 426768.4795 | HW31: 1731627.309 | HX31: 631119819.6
A32: =+MATCH(B32,RUT[EMPRESA],0) -> 246 | B32: PETROPOWER | C32: 0 | D32: 0 | F32: =IFERROR(INDEX($B$9:$B$511,MATCH(0,INDEX(COUNTIF($F$8:F31,$B$9:$B$511),0,0),0)),"") -> PETROPOWER | J32: AGUAS DEL MELADO | K32: 1786026.758 | L32: 276725.1749 | M32: 297061.2366 | N32: 16891791.41 | O32: 1335197.182 | P32: 517566.8979 | Q32: 12038.06232 | R32: 30708.64999 | S32: 665072.9724 | T32: 90785.63438 | U32: 402456.6549 | V32: 115240.6451 | W32: 40415.93589 | X32: 124320.4283 | Y32: 58105.79652 | Z32: 850817.0677 | AA32: 99398.98517 | AB32: 50535.61187 | AC32: 13375.41088 | AD32: 17745.82061 | AE32: 17913.08751 | AF32: 57273.7294 | AG32: 16332.8376 | AH32: 456945.1456 | AI32: 92988.38631 | AJ32: 164462.6699 | AK32: 275698.8691 | AL32: 136218.2409 | AM32: 7804.01108 | AN32: 8759.926182 | AO32: 963277.9858 | AP32: 2757694.44 | AQ32: 90599.89137 | AR32: 413.9959771 | AS32: 1047042.803 | AT32: 22902.39955 | AU32: 121626.0489 | AV32: 110289.29 | AW32: 21076.09147 | AX32: 6959.052437 | AY32: 67.05530042 | AZ32: 34688.73163 | BA32: 75737.79803 | BB32: 422.4481186 | BC32: 94465.16508 | BD32: 77670.19206 | BE32: 132893.4363 | BF32: 64.18173674 | BG32: 2996.850111 | BH32: 344813.8065 | BI32: 108147.2398 | BJ32: 5345.678875 | BK32: 2222.754262 | BL32: 45453.03414 | BM32: 27863.87225 | BN32: 1036274.556 | BO32: 452833.9003 | BP32: 129180.3989 | BQ32: 1219.873687 | BR32: 58837.4304 | BS32: 21817.52742 | BT32: 341512.8196 | BU32: 12321.42858 | BV32: 519546.388 | BW32: 22676.75374 | BX32: 22478.38334 | BY32: 4584.474173 | BZ32: 13201622.82 | CA32: 648510.3234 | CB32: 48458.96493 | CC32: 1976.19224 | CD32: 12915.21756 | CE32: 298737.3873 | CF32: 72954.79131 | CG32: 1505.692605 | CH32: 68547.10751 | CI32: 9838.687691 | CJ32: 14361.69631 | CK32: 6803.505271 | CL32: 48888.86244 | CM32: 891373.4835 | CN32: 8947.305316 | CO32: 20128.22827 | CP32: 48347.16684 | CQ32: 59192.30023 | CR32: 1772.926536 | CS32: 23676.63405 | CT32: 15560.58712 | CU32: 297585.9382 | CV32: 20986.37018 | CW32: 279528.6954 | CX32: 105835.0158 | CY32: 539611.1674 | CZ32: 49421.98157 | DA32: 29027.11918 | DB32: 32318.23619 | DC32: 89645.3999 | DD32: 28485.61207 | DE32: 23430.04611 | DF32: 74543.81104 | DG32: 11396.26715 | DH32: 59430.68695 | DI32: 94680.1493 | DJ32: 4079.364165 | DK32: 76835.74223 | DL32: 312604.811 | DM32: 2081.77287 | DN32: 22300.22587 | DO32: 26.52109728 | DP32: 56043.0891 | DQ32: 130632.0328 | DR32: 21546.62313 | DS32: 32406.43512 | DT32: 34063.53035 | DU32: 29137.07108 | DV32: 422737.9353 | DW32: 10674.35556 | DX32: 29532.86627 | DY32: 149408.3325 | DZ32: 222603.7058 | EA32: 26116.05028 | EB32: 39453.83757 | EC32: 38205.17692 | ED32: 876348.1204 | EE32: 1868.179525 | EF32: 28072.70311 | EG32: 156460.1876 | EH32: 44015.03939 | EI32: 133127.4183 | EJ32: 9.511399849 | EK32: 217106.1505 | EL32: 51245.00228 | EM32: 28755.7507 | EN32: 83569.54069 | EO32: 140797.7534 | EP32: 45645.8643 | EQ32: 1661.095284 | ER32: 29821.81491 | ES32: 49988.35155 | ET32: 54433.45926 | EU32: 45246.78656 | EV32: 69601.40472 | EW32: 48917.96498 | EX32: 130142.9024 | EY32: 43781.22233 | EZ32: 40676.6839 | FA32: 48039.17546 | FB32: 23113.93766 | FC32: 42494.21944 | FD32: 42577.81362 | FE32: 46980.63024 | FF32: 846350.3725 | FG32: 47280.59544 | FH32: 40968.51917 | FI32: 53262.4798 | FJ32: 237414.1958 | FK32: 46122.61204 | FL32: 50825.17434 | FM32: 48851.52365 | FN32: 43965.62166 | FO32: 113194.0373 | FP32: 35534.2402 | FQ32: 90764.848 | FR32: 64966.12371 | FS32: 70998.43273 | FT32: 34075.55672 | FU32: 104990.1377 | FV32: 142399.5994 | FW32: 50269.7558 | FX32: 51050.95861 | FY32: 49530.11085 | FZ32: 0.0002018995443 | GA32: 248.4419847 | GB32: 36007.64128 | GC32: 37386.33621 | GD32: 51425.16128 | GE32: 53339.73378 | GF32: 48572.64635 | GG32: 7337.768864 | GH32: 10781.88635 | GI32: 58278.5435 | GJ32: 85184.62325 | GK32: 50191.37314 | GL32: 1483168.152 | GM32: 33580.50076 | GN32: 23203.50734 | GO32: 131472.4844 | GP32: 45759.33956 | GQ32: 20999.18116 | GR32: 130110.1277 | GS32: 36987.26055 | GT32: 30909.65282 | GU32: 8655.373863 | GV32: 19940.37915 | GW32: 34522.40341 | GX32: 27400.81095 | GY32: 137.1677876 | GZ32: 573.9398743 | HA32: 3796004.282 | HB32: 670336.774 | HC32: 920824.129 | HD32: 2083757.274 | HE32: 1330725.329 | HF32: 322350.1504 | HG32: 159402.887 | HH32: 151792.5697 | HI32: 151533.332 | HJ32: 523.2252731 | HK32: 81763.90948 | HL32: 71848.68829 | HM32: 174797.9713 | HN32: 11301.7835 | HO32: 3495.733379 | HP32: 599767.5907 | HQ32: 140058.6031 | HR32: 3210268.512 | HS32: 2328697.463 | HT32: 376990.0694 | HU32: 8898.337501 | HV32: 51796.83329 | HW32: 210167.375 | HX32: 76598928.12
A33: =+MATCH(B33,RUT[EMPRESA],0) -> 336 | B33: ALTO_MANGA_ENERGY | C33: 29493766.34 | D33: 29493766.34 | F33: =IFERROR(INDEX($B$9:$B$511,MATCH(0,INDEX(COUNTIF($F$8:F32,$B$9:$B$511),0,0),0)),"") -> ALTO_MANGA_ENERGY | H33: 29493766.34 | J33: ENORCHILE | K33: 20079148.13 | L33: 3111042.851 | M33: 3339668.09 | N33: 189903527.7 | O33: 15010761.67 | P33: 5818671.171 | Q33: 135336.1787 | R33: 345237.5666 | S33: 7476986.931 | T33: 1020644.395 | U33: 4524560.873 | V33: 1295576.325 | W33: 454370.3277 | X33: 1397654.477 | Y33: 653246.0335 | Z33: 9565188.122 | AA33: 1117478.749 | AB33: 568139.3249 | AC33: 150371.1269 | AD33: 199504.8278 | AE33: 201385.3017 | AF33: 643891.639 | AG33: 183619.5701 | AH33: 5137139.868 | AI33: 1045408.516 | AJ33: 1848947.837 | AK33: 3099504.756 | AL33: 1531413.919 | AM33: 87735.46854 | AN33: 98482.20616 | AO33: 10829513.77 | AP33: 31002981.84 | AQ33: 1018556.206 | AR33: 4654.290038 | AS33: 11771227.64 | AT33: 257476.9225 | AU33: 1367363.305 | AV33: 1239911.429 | AW33: 236944.9174 | AX33: 78236.14292 | AY33: 753.8595398 | AZ33: 389983.0603 | BA33: 851471.2664 | BB33: 4749.312019 | BC33: 1062010.988 | BD33: 873195.9274 | BE33: 1494035.282 | BF33: 721.5539147 | BG33: 33691.65496 | BH33: 3876519.467 | BI33: 1215829.739 | BJ33: 60098.02344 | BK33: 24988.99407 | BL33: 510999.178 | BM33: 313255.5634 | BN33: 11650167.18 | BO33: 5090919.786 | BP33: 1452291.996 | BQ33: 13714.25391 | BR33: 661471.3217 | BS33: 245280.4041 | BT33: 3839408.598 | BU33: 138521.883 | BV33: 5840925.303 | BW33: 254940.1319 | BX33: 252709.9813 | BY33: 51540.2894 | BZ33: 148417339.8 | CA33: 7290783.739 | CB33: 544792.9212 | CC33: 22217.05612 | CD33: 145197.4699 | CE33: 3358511.973 | CF33: 820183.7148 | CG33: 16927.53186 | CH33: 770630.9657 | CI33: 110610.0268 | CJ33: 161459.2985 | CK33: 76487.42636 | CL33: 549625.9819 | CM33: 10021137.77 | CN33: 100588.789 | CO33: 226288.702 | CP33: 543536.0473 | CQ33: 665460.8947 | CR33: 19931.87077 | CS33: 266181.1421 | CT33: 174937.6555 | CU33: 3345566.972 | CV33: 235936.2387 | CW33: 3142561.026 | CX33: 1189834.894 | CY33: 6066500.691 | CZ33: 555619.4968 | DA33: 326333.1991 | DB33: 363333.1072 | DC33: 1007825.474 | DD33: 320245.3836 | DE33: 263408.9128 | DF33: 838048.0399 | DG33: 128120.8891 | DH33: 668140.9229 | DI33: 1064427.917 | DJ33: 45861.66302 | DK33: 863814.7456 | DL33: 3514414.482 | DM33: 23404.03112 | DN33: 250707.0717 | DO33: 298.1596096 | DP33: 630056.3429 | DQ33: 1468611.78 | DR33: 242234.8017 | DS33: 364324.671 | DT33: 382954.325 | DU33: 327569.3175 | DV33: 4752570.242 | DW33: 120004.9022 | DX33: 332018.9879 | DY33: 1679701.621 | DZ33: 2502590.044 | EA33: 293605.927 | EB33: 443554.0762 | EC33: 429516.189 | ED33: 9852217.298 | EE33: 21002.73876 | EF33: 315603.3141 | EG33: 1758981.083 | EH33: 494832.7295 | EI33: 1496665.791 | EJ33: 106.9305404 | EK33: 2440784.572 | EL33: 576114.5441 | EM33: 323282.3781 | EN33: 939518.5032 | EO33: 1582898.427 | EP33: 513167.0433 | EQ33: 18674.62406 | ER33: 335267.4512 | ES33: 561986.8296 | ET33: 611960.3117 | EU33: 508680.4694 | EV33: 782483.7499 | EW33: 549953.1631 | EX33: 1463112.802 | EY33: 492204.0749 | EZ33: 457301.7496 | FA33: 540073.4987 | FB33: 259855.1091 | FC33: 477735.1307 | FD33: 478674.9261 | FE33: 528172.9567 | FF33: 9514971.946 | FG33: 531545.2722 | FH33: 460582.6656 | FI33: 598795.744 | FJ33: 2669094.841 | FK33: 518526.8109 | FL33: 571394.6891 | FM33: 549206.206 | FN33: 494277.1578 | FO33: 1272567.632 | FP33: 399488.5683 | FQ33: 1020410.707 | FR33: 730372.272 | FS33: 798189.6358 | FT33: 383089.5298 | FU33: 1180336.474 | FV33: 1600906.95 | FW33: 565150.4763 | FX33: 573933.0362 | FY33: 556835.1247 | FZ33: 0.002269826496 | GA33: 2793.073165 | GB33: 404810.7116 | GC33: 420310.4904 | GD33: 578139.9557 | GE33: 599664.2607 | GF33: 546070.9682 | GG33: 82493.80771 | GH33: 121213.8016 | GI33: 655188.1165 | GJ33: 957675.8359 | GK33: 564269.2706 | GL33: 16674303.95 | GM33: 377523.9346 | GN33: 260862.0833 | GO33: 1478060.436 | GP33: 514442.7726 | GQ33: 236080.2643 | GR33: 1462744.338 | GS33: 415823.94 | GT33: 347497.3119 | GU33: 97306.79179 | GV33: 224176.8354 | GW33: 388113.1392 | GX33: 308049.6635 | GY33: 1542.08906 | GZ33: 6452.436224 | HA33: 42676030.43 | HB33: 7536164.461 | HC33: 10352232.41 | HD33: 23426340.5 | HE33: 14960487.5 | HF33: 3623975.055 | HG33: 1792063.957 | HH33: 1706506.064 | HI33: 1703591.621 | HJ33: 5882.284638 | HK33: 919218.9549 | HL33: 807748.5113 | HM33: 1965140.972 | HN33: 127058.6703 | HO33: 39300.27812 | HP33: 6742800.599 | HQ33: 1574588.636 | HR33: 36090980.55 | HS33: 26180045.23 | HT33: 4238256.461 | HU33: 100038.2754 | HV33: 582318.4247 | HW33: 2362776.389 | HX33: 861152397.1
A34: =+MATCH(B34,RUT[EMPRESA],0) -> 136 | B34: GENPAC | C34: 90723561.94 | D34: 90723561.94 | F34: =IFERROR(INDEX($B$9:$B$511,MATCH(0,INDEX(COUNTIF($F$8:F33,$B$9:$B$511),0,0),0)),"") -> GENPAC | H34: 90723561.94 | J34: ARRAYAN_EOLICO | K34: 9509135.327 | L34: 1473335.785 | M34: 1581608.723 | N34: 89935007.83 | O34: 7108835.653 | P34: 2755621.466 | Q34: 64092.86042 | R34: 163498.507 | S34: 3540970.967 | T34: 483359.4341 | U34: 2142753.337 | V34: 613562.4143 | W34: 215181.8846 | X34: 661904.8516 | Y34: 309365.9599 | Z34: 4529906.733 | AA34: 529218.4998 | AB34: 269060.9029 | AC34: 71213.1504 | AD34: 94482.01656 | AE34: 95372.5763 | AF34: 304935.8814 | AG34: 86959.03481 | AH34: 2432860.094 | AI34: 495087.291 | AJ34: 875629.5379 | AK34: 1467871.545 | AL34: 725250.9969 | AM34: 41549.99197 | AN34: 46639.45999 | AO34: 5128669.368 | AP34: 14682472.98 | AQ34: 482370.5042 | AR34: 2204.190813 | AS34: 5574648.678 | AT34: 121936.5923 | AU34: 647559.4797 | AV34: 587200.4878 | AW34: 112212.9918 | AX34: 37051.27657 | AY34: 357.0147666 | AZ34: 184689.1946 | BA34: 403241.9826 | BB34: 2249.19157 | BC34: 502949.9331 | BD34: 413530.4042 | BE34: 707549.1248 | BF34: 341.7153845 | BG34: 15955.78181 | BH34: 1835852.198 | BI34: 575795.818 | BJ34: 28461.37865 | BK34: 11834.35297 | BL34: 242000.3232 | BM34: 148352.3865 | BN34: 5517316.55 | BO34: 2410971.067 | BP34: 687780.2302 | BQ34: 6494.832128 | BR34: 313261.3134 | BS34: 116160.5333 | BT34: 1818277.136 | BU34: 65601.55456 | BV34: 2766160.636 | BW34: 120735.2125 | BX34: 119679.0519 | BY34: 24408.58465 | BZ34: 70287870.78 | CA34: 3452788.375 | CB34: 258004.4522 | CC34: 10521.61137 | CD34: 68762.99641 | CE34: 1590532.858 | CF34: 388424.7424 | CG34: 8016.584679 | CH34: 364957.4222 | CI34: 52382.9849 | CJ34: 76464.31561 | CK34: 36223.11482 | CL34: 260293.3057 | CM34: 4745836.558 | CN34: 47637.101 | CO34: 107166.3936 | CP34: 257409.2186 | CQ34: 315150.7057 | CR34: 9439.387335 | CS34: 126058.7594 | CT34: 82847.43105 | CU34: 1584402.33 | CV34: 111735.2991 | CW34: 1488262.245 | CX34: 563485.1117 | CY34: 2872989.216 | CZ34: 263131.7301 | DA34: 154545.7274 | DB34: 172068.2403 | DC34: 477288.6158 | DD34: 151662.6438 | DE34: 124745.8798 | DF34: 396884.976 | DG34: 60675.82473 | DH34: 316419.9205 | DI34: 504094.5487 | DJ34: 21719.28596 | DK34: 409087.6397 | DL34: 1664365.575 | DM34: 11083.74209 | DN34: 118730.5088 | DO34: 141.2032054 | DP34: 298383.7258 | DQ34: 695508.9962 | DR34: 114718.189 | DS34: 172537.8277 | DT34: 181360.5078 | DU34: 155131.1315 | DV34: 2250734.608 | DW34: 56832.23451 | DX34: 157238.418 | DY34: 795477.4735 | DZ34: 1185183.119 | EA34: 139046.6605 | EB34: 210059.496 | EC34: 203411.3968 | ED34: 4665838.758 | EE34: 9946.531788 | EF34: 149464.2405 | EG34: 833022.8482 | EH34: 234344.1744 | EI34: 708794.888 | EJ34: 50.64044417 | EK34: 1155913.122 | EL34: 272837.8281 | EM34: 153100.9116 | EN34: 444939.6226 | EO34: 749633.1648 | EP34: 243026.9865 | EQ34: 8843.977156 | ER34: 158776.8338 | ES34: 266147.1882 | ET34: 289813.7602 | EU34: 240902.2231 | EV34: 370570.6947 | EW34: 260448.253 | EX34: 692904.7758 | EY34: 233099.2893 | EZ34: 216570.155 | FA34: 255769.4158 | FB34: 123062.8602 | FC34: 226247.0489 | FD34: 226692.1197 | FE34: 250133.5261 | FF34: 4506125.225 | FG34: 251730.5961 | FH34: 218123.9398 | FI34: 283579.2499 | FJ34: 1264036.894 | FK34: 245565.2792 | FL34: 270602.5868 | FM34: 260094.5072 | FN34: 234081.0653 | FO34: 602665.8974 | FP34: 189190.8379 | FQ34: 483248.7636 | FR34: 345891.6051 | FS34: 378008.7291 | FT34: 181424.5385 | FU34: 558986.8251 | FV34: 758161.6879 | FW34: 267645.4362 | FX34: 271804.7039 | FY34: 263707.4303 | FZ34: 0.001074950351 | GA34: 1322.750873 | GB34: 191711.3124 | GC34: 199051.7381 | GD34: 273797.0278 | GE34: 283990.5643 | GF34: 258609.713 | GG34: 39067.63256 | GH34: 57404.74825 | GI34: 310285.6967 | GJ34: 453538.6196 | GK34: 267228.1125 | GL34: 7896660.342 | GM34: 178788.7694 | GN34: 123539.7456 | GO34: 699983.7155 | GP34: 243631.1497 | GQ34: 111803.5072 | GR34: 692730.2778 | GS34: 196926.9858 | GT34: 164568.6831 | GU34: 46082.80419 | GV34: 106166.2503 | GW34: 183803.6325 | GX34: 145886.9629 | GY34: 730.3065583 | GZ34: 3055.761572 | HA34: 20210625.77 | HB34: 3568996.417 | HC34: 4902637.218 | HD34: 11094307.42 | HE34: 7085026.683 | HF34: 1716251.556 | HG34: 848690.3218 | HH34: 808171.5915 | HI34: 806791.3622 | HJ34: 2785.747697 | HK34: 435326.1096 | HL34: 382535.6462 | HM34: 930656.5856 | HN34: 60172.77638 | HO34: 18611.92819 | HP34: 3193273.09 | HQ34: 745697.7923 | HR34: 17092060.68 | HS34: 12398414.09 | HT34: 2007164.546 | HU34: 47376.38734 | HV34: 275775.878 | HW34: 1118969.803 | HX34: 407826797.8
A35: =+MATCH(B35,RUT[EMPRESA],0) -> 229 | B35: NORVIND | C35: 42403045.93 | D35: 42403045.93 | F35: =IFERROR(INDEX($B$9:$B$511,MATCH(0,INDEX(COUNTIF($F$8:F34,$B$9:$B$511),0,0),0)),"") -> NORVIND | H35: 42403045.93 | J35: ALMEYDA | K35: 4351630.452 | L35: 674237.2098 | M35: 723785.7538 | N35: 41156625.22 | O35: 3253190.184 | P35: 1261044.866 | Q35: 29330.57881 | R35: 74821.21745 | S35: 1620441.456 | T35: 221197.9912 | U35: 980580.2894 | V35: 280782.2998 | W35: 98472.8905 | X35: 302905.0707 | Y35: 141574.0008 | Z35: 2073004.475 | AA35: 242184.3059 | AB35: 123129.3465 | AC35: 32589.0108 | AD35: 43237.45601 | AE35: 43644.99958 | AF35: 139546.6803 | AG35: 39794.74168 | AH35: 1113340.773 | AI35: 226564.967 | AJ35: 400711.1089 | AK35: 671736.6294 | AL35: 331893.933 | AM35: 19014.36925 | AN35: 21343.44369 | AO35: 2347014.006 | AP35: 6719085.842 | AQ35: 220745.4309 | AR35: 1008.695694 | AS35: 2551105.87 | AT35: 55801.39205 | AU35: 296340.2512 | AV35: 268718.3888 | AW35: 51351.61669 | AX35: 16955.63875 | AY35: 163.379348 | AZ35: 84518.63347 | BA35: 184534.138 | BB35: 1029.289225 | BC35: 230163.1189 | BD35: 189242.3904 | BE35: 323793.0907 | BF35: 156.3779483 | BG35: 7301.785454 | BH35: 840134.2556 | BI35: 263499.3119 | BJ35: 13024.67551 | BK35: 5415.711209 | BL35: 110745.7134 | BM35: 67889.95431 | BN35: 2524869.18 | BO35: 1103323.778 | BP35: 314746.3246 | BQ35: 2972.206021 | BR35: 143356.617 | BS35: 53158.11552 | BT35: 832091.4449 | BU35: 30020.99694 | BV35: 1265867.867 | BW35: 55251.60902 | BX35: 54768.28217 | BY35: 11170.01038 | BZ35: 32165578.51 | CA35: 1580086.782 | CB35: 118069.6238 | CC35: 4814.966121 | CD35: 31467.75589 | CE35: 727869.6728 | CF35: 177753.3792 | CG35: 3668.600016 | CH35: 167014.1162 | CI35: 23971.83176 | CJ35: 34992.08212 | CK35: 16576.65015 | CL35: 119117.0634 | CM35: 2171819.643 | CN35: 21799.99046 | CO35: 49042.16058 | CP35: 117797.2293 | CQ35: 144221.2526 | CR35: 4319.711936 | CS35: 57687.80411 | CT35: 37913.16365 | CU35: 725064.1822 | CV35: 51133.01195 | CW35: 681067.9503 | CX35: 257865.6089 | CY35: 1314755.436 | CZ35: 120416.0011 | DA35: 70724.18999 | DB35: 78742.95283 | DC35: 218419.8251 | DD35: 69404.81511 | DE35: 57086.99587 | DF35: 181625.0046 | DG35: 27766.8534 | DH35: 144802.0787 | DI35: 230686.9251 | DJ35: 9939.316556 | DK35: 187209.2645 | DL35: 761657.4661 | DM35: 5072.211923 | DN35: 54334.20387 | DO35: 64.61830096 | DP35: 136548.2416 | DQ35: 318283.2112 | DR35: 52498.06082 | DS35: 78957.84835 | DT35: 82995.33885 | DU35: 70992.08633 | DV35: 1029995.359 | DW35: 26007.92541 | DX35: 71956.43607 | DY35: 364031.416 | DZ35: 542370.9699 | EA35: 63631.40932 | EB35: 96128.75075 | EC35: 93086.40566 | ED35: 2135210.545 | EE35: 4551.794578 | EF35: 68398.76792 | EG35: 381213.167 | EH35: 107242.0583 | EI35: 324363.1848 | EJ35: 23.17439929 | EK35: 528976.2496 | EL35: 124857.7668 | EM35: 70063.00429 | EN35: 203616.0749 | EO35: 343051.8544 | EP35: 111215.5415 | EQ35: 4047.236577 | ER35: 72660.45558 | ES35: 121795.954 | ET35: 132626.3998 | EU35: 110243.1939 | EV35: 169582.8973 | EW35: 119187.9714 | EX35: 317091.4515 | EY35: 106672.3662 | EZ35: 99108.19956 | FA35: 117046.8124 | FB35: 56316.80184 | FC35: 103536.6007 | FD35: 103740.2768 | FE35: 114467.681 | FF35: 2062121.431 | FG35: 115198.5422 | FH35: 99819.25233 | FI35: 129773.324 | FJ35: 578456.5319 | FK35: 112377.1311 | FL35: 123834.8616 | FM35: 119026.0879 | FN35: 107121.6527 | FO35: 275795.7671 | FP35: 86578.70385 | FQ35: 221147.3455 | FR35: 158289.0967 | FS35: 172986.7375 | FT35: 83024.64095 | FU35: 255807.0747 | FV35: 346954.7309 | FW35: 122481.5917 | FX35: 124384.982 | FY35: 120679.4566 | FZ35: 0.0004919255557 | GA35: 605.3255928 | GB35: 87732.13929 | GC35: 91091.31115 | GD35: 125296.7218 | GE35: 129961.5522 | GF35: 118346.6071 | GG35: 17878.37629 | GH35: 26269.92276 | GI35: 141994.8965 | GJ35: 207551.2021 | GK35: 122290.6134 | GL35: 3613719.485 | GM35: 81818.44368 | GN35: 56535.03717 | GO35: 320330.9604 | GP35: 111492.0225 | GQ35: 51164.22573 | GR35: 317011.5965 | GS35: 90118.96862 | GT35: 75310.95818 | GU35: 21088.70335 | GV35: 48584.4687 | GW35: 84113.37697 | GX35: 66761.7116 | GY35: 334.2074909 | GZ35: 1398.396874 | HA35: 9248913.969 | HB35: 1633266.638 | HC35: 2243575.749 | HD35: 5077046.897 | HE35: 3242294.573 | HF35: 785401.8562 | HG35: 388383.015 | HH35: 369840.5782 | HI35: 369208.949 | HJ35: 1274.831422 | HK35: 199216.6785 | HL35: 175058.3739 | HM35: 425892.9334 | HN35: 27536.64524 | HO35: 8517.307904 | HP35: 1461325.761 | HQ35: 341250.9244 | HR35: 7821776.552 | HS35: 5673840.411 | HT35: 918531.2924 | HU35: 21680.68103 | HV35: 126202.2957 | HW35: 512070.0152 | HX35: 186632270
A36: =+MATCH(B36,RUT[EMPRESA],0) -> 226 | B36: MONTE REDONDO | C36: -546901076.8 | D36: -546901076.8 | F36: =IFERROR(INDEX($B$9:$B$511,MATCH(0,INDEX(COUNTIF($F$8:F35,$B$9:$B$511),0,0),0)),"") -> MONTE REDONDO | G36: -546901076.8 | J36: PUNTA_PALMERAS | K36: 88859.39668 | L36: 13767.78482 | M36: 14779.55587 | N36: 840409.8019 | O36: 66429.47287 | P36: 25750.27618 | Q36: 598.9243725 | R36: 1527.833835 | S36: 33089.08045 | T36: 4516.817378 | U36: 20023.24735 | V36: 5733.516675 | W36: 2010.796122 | X36: 6185.259096 | Y36: 2890.911908 | Z36: 42330.324 | AA36: 4945.353598 | AB36: 2514.275871 | AC36: 665.4608819 | AD36: 882.8999378 | AE36: 891.2218933 | AF36: 2849.514442 | AG36: 812.6004209 | AH36: 22734.18905 | AI36: 4626.409917 | AJ36: 8182.438232 | AK36: 13716.72348 | AL36: 6777.205688 | AM36: 388.2695 | AN36: 435.8287199 | AO36: 47925.54214 | AP36: 137202.3477 | AQ36: 4507.576189 | AR36: 20.59735812 | AS36: 52093.05591 | AT36: 1139.452921 | AU36: 6051.206835 | AV36: 5487.1741 | AW36: 1048.589426 | AX36: 346.2306476 | AY36: 3.336172604 | AZ36: 1725.853071 | BA36: 3768.149055 | BB36: 21.01787377 | BC36: 4699.883437 | BD36: 3864.290597 | BE36: 6611.788158 | BF36: 3.193205466 | BG36: 149.1009536 | BH36: 17155.36829 | BI36: 5380.601626 | BJ36: 265.9611888 | BK36: 110.5877064 | BL36: 2261.404636 | BM36: 1386.298871 | BN36: 51557.30812 | BO36: 22529.64408 | BP36: 6427.055059 | BQ36: 60.69183418 | BR36: 2927.312564 | BS36: 1085.47776 | BT36: 16991.13576 | BU36: 613.0225682 | BV36: 25848.76088 | BW36: 1128.226465 | BX36: 1118.357031 | BY36: 228.089309 | BZ36: 656814.4818 | CA36: 32265.04633 | CB36: 2410.957377 | CC36: 98.32061553 | CD36: 642.5650877 | CE36: 14862.94866 | CF36: 3629.687356 | CG36: 74.91205599 | CH36: 3410.39382 | CI36: 489.4998625 | CJ36: 714.5311029 | CK36: 338.4917785 | CL36: 2432.345877 | CM36: 44348.10935 | CN36: 445.1513107 | CO36: 1001.430808 | CP36: 2405.395136 | CQ36: 2944.968245 | CR36: 88.20762717 | CS36: 1177.973067 | CT36: 774.1789854 | CU36: 14805.66112 | CV36: 1044.125562 | CW36: 13907.26713 | CX36: 5265.562572 | CY36: 26847.03494 | CZ36: 2458.869917 | DA36: 1444.173379 | DB36: 1607.914863 | DC36: 4460.087798 | DD36: 1417.232016 | DE36: 1165.704686 | DF36: 3708.74515 | DG36: 566.9934219 | DH36: 2956.828593 | DI36: 4710.579451 | DJ36: 202.9587949 | DK36: 3822.774585 | DL36: 15552.88843 | DM36: 103.5735218 | DN36: 1109.493241 | DO36: 1.319492384 | DP36: 2788.286941 | DQ36: 6499.277554 | DR36: 1071.999579 | DS36: 1612.302985 | DT36: 1694.747709 | DU36: 1449.643767 | DV36: 21032.29289 | DW36: 531.0764751 | DX36: 1469.33559 | DY36: 7433.446464 | DZ36: 11075.10339 | EA36: 1299.34026 | EB36: 1962.929272 | EC36: 1900.805213 | ED36: 43600.55913 | EE36: 92.94670687 | EF36: 1396.68874 | EG36: 7784.294278 | EH36: 2189.860722 | EI36: 6623.429361 | EJ36: 0.4732164557 | EK36: 10801.58596 | EL36: 2549.569857 | EM36: 1430.672103 | EN36: 4157.798272 | EO36: 7005.048142 | EP36: 2270.99843 | EQ36: 82.6437365 | ER36: 1483.711523 | ES36: 2487.048271 | ET36: 2708.203742 | EU36: 2251.143292 | EV36: 3462.847801 | EW36: 2433.793803 | EX36: 6474.942066 | EY36: 2178.227725 | EZ36: 2023.769003 | FA36: 2390.071778 | FB36: 1149.977483 | FC36: 2114.196042 | FD36: 2118.355066 | FE36: 2337.406447 | FF36: 42108.09449 | FG36: 2352.330483 | FH36: 2038.288553 | FI36: 2649.944521 | FJ36: 11811.96312 | FK36: 2294.717848 | FL36: 2528.682344 | FM36: 2430.488177 | FN36: 2187.402063 | FO36: 5631.692704 | FP36: 1767.919283 | FQ36: 4515.783203 | FR36: 3232.230722 | FS36: 3532.353516 | FT36: 1695.346052 | FU36: 5223.527726 | FV36: 7084.744075 | FW36: 2501.048852 | FX36: 2539.915689 | FY36: 2464.249625 | FZ36: 1.004501843e-05 | GA36: 12.36062381 | GB36: 1791.472197 | GC36: 1860.065794 | GD36: 2558.533228 | GE36: 2653.788103 | GF36: 2416.613318 | GG36: 365.0727579 | GH36: 536.4264069 | GI36: 2899.506512 | GJ36: 4238.152758 | GK36: 2497.149114 | GL36: 73791.40686 | GM36: 1670.715752 | GN36: 1154.433804 | GO36: 6541.092171 | GP36: 2276.644114 | GQ36: 1044.762941 | GR36: 6473.311445 | GS36: 1840.21076 | GT36: 1537.83424 | GU36: 430.6269747 | GV36: 992.0848345 | GW36: 1717.577817 | GX36: 1363.260387 | GY36: 6.824448063 | GZ36: 28.55497586 | HA36: 188860.9165 | HB36: 33350.96804 | HC36: 45813.35425 | HD36: 103672.2509 | HE36: 66206.98674 | HF36: 16037.74398 | HG36: 7930.701096 | HH36: 7552.06836 | HI36: 7539.170621 | HJ36: 26.03179481 | HK36: 4067.963503 | HL36: 3574.655904 | HM36: 8696.645896 | HN36: 562.2926188 | HO36: 173.9216714 | HP36: 29839.97077 | HQ36: 6968.273523 | HR36: 159719.0646 | HS36: 115858.6515 | HT36: 18756.21962 | HU36: 442.7150368 | HV36: 2577.02486 | HW36: 10456.36414 | HX36: 3810992.478
A37: =+MATCH(B37,RUT[EMPRESA],0) -> 240 | B37: PANGUIPULLI | C37: 620888747.1 | D37: 620888747.1 | F37: =IFERROR(INDEX($B$9:$B$511,MATCH(0,INDEX(COUNTIF($F$8:F36,$B$9:$B$511),0,0),0)),"") -> PANGUIPULLI | H37: 620888747.1 | J37: EOLICA_TALTAL | K37: 6062046.334 | L37: 939247.3122 | M37: 1008270.997 | N37: 57333308 | O37: 4531862.217 | P37: 1756700.734 | Q37: 40859.01359 | R37: 104229.8265 | S37: 2257358.775 | T37: 308140.2446 | U37: 1365999.07 | V37: 391144.2688 | W37: 137177.8306 | X37: 421962.4331 | Y37: 197219.9068 | Z37: 2887802.472 | AA37: 337375.2666 | AB37: 171525.5493 | AC37: 45398.17791 | AD37: 60232.01294 | AE37: 60799.74221 | AF37: 194395.7445 | AG37: 55436.13378 | AH37: 1550941.291 | AI37: 315616.7195 | AJ37: 558211.304 | AK37: 935763.8744 | AL37: 462345.4179 | AM37: 26488 | AN37: 29732.52118 | AO37: 3269511.924 | AP37: 9360034.164 | AQ37: 307509.8046 | AR37: 1405.165283 | AS37: 3553822.448 | AT37: 77734.22579 | AU37: 412817.2999 | AV37: 374338.6167 | AW37: 71535.45852 | AX37: 23620.08191 | AY37: 227.5958836 | AZ37: 117738.8287 | BA37: 257065.6004 | BB37: 1433.853137 | BC37: 320629.1312 | BD37: 263624.4395 | BE37: 451060.5256 | BF37: 217.8425716 | BG37: 10171.76487 | BH37: 1170350.479 | BI37: 367068.1726 | BJ37: 18144.04677 | BK37: 7544.365875 | BL37: 154274.5078 | BM37: 94574.21837 | BN37: 3517273.382 | BO37: 1536987.099 | BP37: 438457.9123 | BQ37: 4140.436742 | BR37: 199703.1834 | BS37: 74052.00485 | BT37: 1159146.428 | BU37: 41820.80175 | BV37: 1763419.424 | BW37: 76968.34958 | BX37: 76295.05028 | BY37: 15560.40229 | BZ37: 44808314.82 | CA37: 2201142.626 | CB37: 164477.0939 | CC37: 6707.496891 | CD37: 43836.21181 | CE37: 1013960.108 | CF37: 247619.6525 | CG37: 5110.549603 | CH37: 232659.3037 | CI37: 33394.00173 | CJ37: 48745.78058 | CK37: 23092.13118 | CL37: 165936.2314 | CM37: 3025457.113 | CN37: 30368.51444 | CO37: 68318.26669 | CP37: 164097.6341 | CQ37: 200907.6656 | CR37: 6017.582191 | CS37: 80362.09537 | CT37: 52814.99825 | CU37: 1010051.914 | CV37: 71230.93081 | CW37: 948762.8872 | CX37: 359220.1329 | CY37: 1831522.336 | CZ37: 167745.7187 | DA37: 98522.45529 | DB37: 109693.0067 | DC37: 304270.1154 | DD37: 96684.49784 | DE37: 79525.13842 | DF37: 253013.0271 | DG37: 38680.6632 | DH37: 201716.7863 | DI37: 321358.8203 | DJ37: 13845.98213 | DK37: 260792.19 | DL37: 1061028.252 | DM37: 7065.853599 | DN37: 75690.35675 | DO37: 90.01663601 | DP37: 190218.7643 | DQ37: 443384.9783 | DR37: 73132.5145 | DS37: 109992.3673 | DT37: 115616.8005 | DU37: 98895.64876 | DV37: 1434836.818 | DW37: 36230.38552 | DX37: 100239.0378 | DY37: 507114.5942 | DZ37: 755550.8185 | EA37: 88641.8449 | EB37: 133912.3226 | EC37: 129674.1785 | ED37: 2974458.746 | EE37: 6340.885316 | EF37: 95283.02205 | EG37: 531049.6622 | EH37: 149393.735 | EI37: 451854.696 | EJ37: 32.28313704 | EK37: 736891.2802 | EL37: 173933.3282 | EM37: 97601.38941 | EN37: 283647.7256 | EO37: 477888.9796 | EP37: 154929.0027 | EQ37: 5638.009919 | ER37: 101219.7734 | ES37: 169668.0646 | ET37: 184755.4359 | EU37: 153574.4722 | EV37: 236237.7486 | EW37: 166035.0098 | EX37: 441724.7954 | EY37: 148600.1243 | EZ37: 138062.849 | FA37: 163052.2646 | FB37: 78452.21829 | FC37: 144231.8409 | FD37: 144515.5722 | FE37: 159459.4012 | FF37: 2872641.829 | FG37: 160477.5287 | FH37: 139053.3823 | FI37: 180780.9536 | FJ37: 805819.8731 | FK37: 156547.157 | FL37: 172508.3683 | FM37: 165809.4979 | FN37: 149226.0037 | FO37: 384197.7707 | FP37: 120608.6133 | FQ37: 308069.6925 | FR37: 220504.9002 | FS37: 240979.4741 | FT37: 115657.6198 | FU37: 356352.4882 | FV37: 483325.8885 | FW37: 170623.1934 | FX37: 173274.7145 | FY37: 168112.726 | FZ37: 0.0006852777469 | GA37: 843.2498649 | GB37: 122215.4085 | GC37: 126894.9087 | GD37: 174544.8152 | GE37: 181043.1653 | GF37: 164862.9459 | GG37: 24905.50304 | GH37: 36595.36138 | GI37: 197806.2363 | GJ37: 289129.5614 | GK37: 170357.1507 | GL37: 5034098.184 | GM37: 113977.3246 | GN37: 78756.2314 | GO37: 446237.5989 | GP37: 155314.155 | GQ37: 71274.41323 | GR37: 441613.5533 | GS37: 125540.3852 | GT37: 104912.0607 | GU37: 29377.65471 | GV37: 67680.67822 | GW37: 117174.2854 | GX37: 93002.51792 | GY37: 465.5683237 | GZ37: 1948.039186 | HA37: 12884215.62 | HB37: 2275224.918 | HC37: 3125417.081 | HD37: 7072588.969 | HE37: 4516684.068 | HF37: 1094105.415 | HG37: 541037.6314 | HH37: 515207.0577 | HI37: 514327.1655 | HJ37: 1775.906119 | HK37: 277519.1388 | HL37: 243865.3707 | HM37: 593290.8881 | HN37: 38359.97132 | HO37: 11865.05052 | HP37: 2035702.381 | HQ37: 475380.191 | HR37: 10896139.37 | HS37: 7903953.207 | HT37: 1279561.607 | HU37: 30202.31023 | HV37: 175806.3265 | HW37: 713340.0211 | HX37: 259988406.9
A38: =+MATCH(B38,RUT[EMPRESA],0) -> 171 | B38: HIDROPALOMA | C38: 72536992.62 | D38: 72536992.62 | F38: =IFERROR(INDEX($B$9:$B$511,MATCH(0,INDEX(COUNTIF($F$8:F37,$B$9:$B$511),0,0),0)),"") -> HIDROPALOMA | H38: 72536992.62 | J38: ACCIONA_ENERGIA | K38: 39850418.66 | L38: 6174383.46 | M38: 6628128.382 | N38: 376895226.7 | O38: 29791360.33 | P38: 11548123.49 | Q38: 268597.2208 | R38: 685181.5366 | S38: 14839327.73 | T38: 2025639.046 | U38: 8979745.751 | V38: 2571287.319 | W38: 901773.7045 | X38: 2773878.438 | Y38: 1296475.715 | Z38: 18983711.3 | AA38: 2217822.973 | AB38: 1127567.256 | AC38: 298436.5833 | AD38: 395950.6081 | AE38: 399682.7223 | AF38: 1277910.359 | AG38: 364423.6646 | AH38: 10195510.94 | AI38: 2074787.574 | AJ38: 3669545.387 | AK38: 6151484.186 | AL38: 3039346.362 | AM38: 174125.6716 | AN38: 195454.365 | AO38: 21492976.43 | AP38: 61530588.77 | AQ38: 2021494.687 | AR38: 9237.214917 | AS38: 23361964.69 | AT38: 511005.8999 | AU38: 2713760.556 | AV38: 2460811.049 | AW38: 470256.711 | AX38: 155272.6754 | AY38: 1496.160001 | AZ38: 773986.4324 | BA38: 1689886.754 | BB38: 9425.801889 | BC38: 2107737.95 | BD38: 1733002.967 | BE38: 2965162.223 | BF38: 1432.044099 | BG38: 66866.70905 | BH38: 7693599.488 | BI38: 2413016.917 | BJ38: 119274.5519 | BK38: 49594.82691 | BL38: 1014163.104 | BM38: 621707.9166 | BN38: 23121700.01 | BO38: 10103779.48 | BP38: 2882315.708 | BQ38: 27218.22443 | BR38: 1312800.172 | BS38: 486799.8747 | BT38: 7619946.778 | BU38: 274919.7823 | BV38: 11592290.53 | BW38: 505971.2159 | BX38: 501545.11 | BY38: 102290.3013 | BZ38: 294558966.8 | CA38: 14469776.44 | CB38: 1081232.424 | CC38: 44093.45368 | CD38: 288168.598 | CE38: 6665527.212 | CF38: 1627791.389 | CG38: 33595.5105 | CH38: 1529445.693 | CI38: 219524.0479 | CJ38: 320442.9093 | CK38: 151802.0557 | CL38: 1090824.439 | CM38: 19888619.44 | CN38: 199635.2301 | CO38: 449107.6742 | CP38: 1078737.948 | CQ38: 1320718.144 | CR38: 39558.12219 | CS38: 528280.8756 | CT38: 347192.957 | CU38: 6639835.697 | CV38: 468254.8199 | CW38: 6236936.536 | CX38: 2361425.812 | CY38: 12039982.51 | CZ38: 1102719.569 | DA38: 647662.6661 | DB38: 721095.1553 | DC38: 2000197.758 | DD38: 635580.3807 | DE38: 522778.924 | DF38: 1663246.122 | DG38: 254277.2749 | DH38: 1326037.108 | DI38: 2112534.749 | DJ38: 91020.12 | DK38: 1714384.447 | DL38: 6974941.746 | DM38: 46449.20355 | DN38: 497570.0018 | DO38: 591.7474783 | DP38: 1250451.906 | DQ38: 2914705.042 | DR38: 480755.3687 | DS38: 723063.079 | DT38: 760036.7349 | DU38: 650115.9492 | DV38: 9432268.375 | DW38: 238169.7453 | DX38: 658947.0623 | DY38: 3333648.041 | DZ38: 4966807.375 | EA38: 582709.9358 | EB38: 880307.0492 | EC38: 852446.5205 | ED38: 19553368.58 | EE38: 41683.43833 | EF38: 626367.4196 | EG38: 3490991.359 | EH38: 982078.09 | EI38: 2970382.907 | EJ38: 212.2214935 | EK38: 4844144.106 | EL38: 1143395.409 | EM38: 641607.803 | EN38: 1864631.182 | EO38: 3141525.957 | EP38: 1018465.594 | EQ38: 37062.90637 | ER38: 665394.1797 | ES38: 1115356.603 | ET38: 1214537.314 | EU38: 1009561.24 | EV38: 1552969.52 | EW38: 1091473.784 | EX38: 2903791.403 | EY38: 976861.0865 | EZ38: 907591.6002 | FA38: 1071865.943 | FB38: 515725.808 | FC38: 948145.0532 | FD38: 950010.234 | FE38: 1048247.332 | FF38: 18884048.93 | FG38: 1054940.255 | FH38: 914103.1252 | FI38: 1188410.033 | FJ38: 5297263.917 | FK38: 1029102.947 | FL38: 1134028.069 | FM38: 1089991.324 | FN38: 980975.4652 | FO38: 2525622.73 | FP38: 792851.6986 | FQ38: 2025175.254 | FR38: 1449545.6 | FS38: 1584140.47 | FT38: 760305.0713 | FU38: 2342574.613 | FV38: 3177266.874 | FW38: 1121635.387 | FX38: 1139065.843 | FY38: 1105132.185 | FZ38: 0.004504849288 | GA38: 5543.319582 | GB38: 803414.3798 | GC38: 834176.2762 | GD38: 1147415.176 | GE38: 1190133.75 | GF38: 1083768.921 | GG38: 163722.7214 | GH38: 240569.0078 | GI38: 1300330.103 | GJ38: 1900667.437 | GK38: 1119886.488 | GL38: 33092937.46 | GM38: 749259.2192 | GN38: 517724.3162 | GO38: 2933457.476 | GP38: 1020997.491 | GQ38: 468540.6627 | GR38: 2903060.125 | GS38: 825271.9684 | GT38: 689666.3782 | GU38: 193121.5591 | GV38: 444916.3226 | GW38: 770275.2621 | GX38: 611375.9399 | GY38: 3060.532961 | GZ38: 12805.93596 | HA38: 84697700.76 | HB38: 14956775.41 | HC38: 20545731.97 | HD38: 46493480.23 | HE38: 29691582.87 | HF38: 7192382.977 | HG38: 3556649.84 | HH38: 3386845.929 | HI38: 3381061.732 | HJ38: 11674.37503 | HK38: 1824343.342 | HL38: 1603111.653 | HM38: 3900150.044 | HN38: 252169.1245 | HO38: 77997.95722 | HP38: 13382212.49 | HQ38: 3125033.791 | HR38: 71628570.88 | HS38: 51958666.6 | HT38: 8411526.888 | HU38: 198542.644 | HV38: 1155708.045 | HW38: 4689323.855 | HX38: 1709100573
A39: =+MATCH(B39,RUT[EMPRESA],0) -> 106 | B39: EMELDA | C39: 36878659.27 | D39: 36878659.27 | F39: =IFERROR(INDEX($B$9:$B$511,MATCH(0,INDEX(COUNTIF($F$8:F38,$B$9:$B$511),0,0),0)),"") -> EMELDA | H39: 36878659.27 | J39: JAVIERA | K39: =$HX39*K$67/$HX$67 -> 11180891.13 | L39: 1732355.935 | M39: 1859663.821 | N39: 105746053.3 | O39: 8358606.201 | P39: 3240074.155 | Q39: 75360.72104 | R39: 192242.4011 | S39: 4163492.213 | T39: 568336.5548 | U39: =$HX39*U$67/$HX$67 -> 2519460.598 | V39: 721429.9009 | W39: 253011.9872 | X39: 778271.192 | Y39: 363754.1163 | Z39: 5326288.067 | AA39: 622257.8844 | AB39: 316363.2192 | AC39: 83732.7953 | AD39: 111092.45 | AE39: =$HX39*AE$67/$HX$67 -> 112139.5748 | AF39: 358545.2068 | AG39: 102246.8887 | AH39: 2860569.644 | AI39: 582126.2303 | AJ39: 1029569.798 | AK39: 1725931.052 | AL39: 852753.9214 | AM39: 48854.69822 | AN39: 54838.92138 | AO39: =$HX39*AO$67/$HX$67 -> 6030316.31 | AP39: 17263728.65 | AQ39: 567173.7657 | AR39: 2591.699104 | AS39: 6554701.119 | AT39: 143373.684 | AU39: 761403.8285 | AV39: 690433.4097 | AW39: 131940.6236 | AX39: 43565.08509 | AY39: =$HX39*AY$67/$HX$67 -> 419.7798328 | AZ39: 217158.5225 | BA39: 474134.0356 | BB39: 2644.611231 | BC39: 591371.1661 | BD39: 486231.2156 | BE39: 831939.9675 | BF39: 401.7907392 | BG39: 18760.89184 | BH39: 2158604.631 | BI39: =$HX39*BI$67/$HX$67 -> 677023.7392 | BJ39: 33465.03812 | BK39: 13914.89422 | BL39: 284545.2477 | BM39: 174433.5132 | BN39: 6487289.703 | BO39: 2834832.411 | BP39: 808695.5977 | BQ39: 7636.65764 | BR39: 368334.2933 | BS39: =$HX39*BS$67/$HX$67 -> 136582.1636 | BT39: 2137939.781 | BU39: 77134.65151 | BV39: 3252466.166 | BW39: 141961.0953 | BX39: 140719.2562 | BY39: 28699.7417 | BZ39: 82644846.68 | CA39: 4059806.659 | CB39: 303362.9865 | CC39: =$HX39*CC$67/$HX$67 -> 12371.36577 | CD39: 80851.8914 | CE39: 1870156.866 | CF39: 456711.8469 | CG39: 9425.942261 | CH39: 429118.8489 | CI39: 61592.18806 | CJ39: 89907.14285 | CK39: 42591.32816 | CL39: 306054.2324 | CM39: =$HX39*CM$67/$HX$67 -> 5580179.487 | CN39: 56011.95291 | CO39: 126006.807 | CP39: 302663.1077 | CQ39: 370555.8507 | CR39: 11098.88108 | CS39: 148220.5496 | CT39: 97412.44343 | CU39: 1862948.56 | CV39: 131378.9501 | CW39: =$HX39*CW$67/$HX$67 -> 1749906.544 | CX39: 662548.7463 | CY39: 3378075.77 | CZ39: 309391.6667 | DA39: 181715.6759 | DB39: 202318.7384 | DC39: 561198.4548 | DD39: 178325.7311 | DE39: 146676.8589 | DF39: 466659.4339 | DG39: =$HX39*DG$67/$HX$67 -> 71342.95257 | DH39: 372048.2001 | DI39: 592717.0111 | DJ39: 25537.65021 | DK39: 481007.3898 | DL39: 1956969.762 | DM39: 13032.32201 | DN39: 139603.9542 | DO39: 166.0274686 | DP39: 350841.1479 | DQ39: =$HX39*DQ$67/$HX$67 -> 817783.1212 | DR39: 134886.2476 | DS39: 202870.8816 | DT39: 213244.6352 | DU39: 182403.9971 | DV39: 2646425.543 | DW39: 66823.63906 | DX39: 184881.7556 | DY39: 935326.5805 | DZ39: 1393544.52 | EA39: =$HX39*EA$67/$HX$67 -> 163491.7919 | EB39: 246989.0558 | EC39: 239172.1859 | ED39: 5486117.655 | EE39: 11695.18418 | EF39: 175740.8369 | EG39: 979472.6288 | EH39: 275543.1079 | EI39: 833404.7424 | EJ39: 59.54329954 | EK39: =$HX39*EK$67/$HX$67 -> 1359128.704 | EL39: 320804.1475 | EM39: 180016.8539 | EN39: 523162.3392 | EO39: 881422.6022 | EP39: 285752.4038 | EQ39: 10398.79467 | ER39: 186690.6329 | ES39: 312937.2581 | ET39: 340764.5374 | EU39: =$HX39*EU$67/$HX$67 -> 283254.0959 | EV39: 435718.9641 | EW39: 306236.4203 | EX39: 814721.0653 | EY39: 274079.3654 | EZ39: 254644.3228 | FA39: 300735.019 | FB39: 144697.9557 | FC39: 266022.4653 | FD39: 266545.7819 | FE39: =$HX39*FE$67/$HX$67 -> 294108.3103 | FF39: 5298325.645 | FG39: 295986.1536 | FH39: 256471.271 | FI39: 333433.9675 | FJ39: 1486261.202 | FK39: 288736.9417 | FL39: 318175.9391 | FM39: 305820.484 | FN39: 275233.7428 | FO39: =$HX39*FO$67/$HX$67 -> 708617.7193 | FP39: 222451.5783 | FQ39: 568206.4278 | FR39: 406701.1612 | FS39: 444464.6439 | FT39: 213319.9227 | FU39: 657259.6373 | FV39: 891450.4843 | FW39: 314698.906 | FX39: 319589.3947 | FY39: =$HX39*FY$67/$HX$67 -> 310068.578 | FZ39: 0.001263932253 | GA39: 1555.297406 | GB39: 225415.1654 | GC39: 234046.0764 | GD39: 321931.9795 | GE39: 333917.5932 | GF39: 304074.6554 | GG39: 45935.92703 | GH39: 67496.80371 | GI39: =$HX39*GI$67/$HX$67 -> 364835.5476 | GJ39: 533273.0848 | GK39: 314208.2146 | GL39: 9284934.598 | GM39: 210220.7716 | GN39: 145258.6801 | GO39: 823044.5196 | GP39: 286462.7821 | GQ39: 131459.1494 | GR39: 814515.8895 | GS39: =$HX39*GS$67/$HX$67 -> 231547.7815 | GT39: 193500.7197 | GU39: 54184.40258 | GV39: 124830.8332 | GW39: 216117.274 | GX39: 171534.6552 | GY39: 858.698277 | GZ39: 3592.980465 | HA39: 23763759.66 | HB39: 4196444.683 | HC39: =$HX39*HC$67/$HX$67 -> 5764546.523 | HD39: 13044744.78 | HE39: 8330611.489 | HF39: 2017977.571 | HG39: 997894.5263 | HH39: 950252.391 | HI39: 948629.5101 | HJ39: 3275.496736 | HK39: 511858.7202 | HL39: 449787.4168 | HM39: =$HX39*HM$67/$HX$67 -> 1094270.889 | HN39: 70751.46568 | HO39: 21884.00267 | HP39: 3754667.228 | HQ39: 876795.3706 | HR39: 20096934.48 | HS39: 14578120.23 | HT39: 2360034.588 | HU39: 55705.40442 | HV39: 324258.722 | HW39: 1315690.557 | HX39: 479524885.2
A40: =+MATCH(B40,RUT[EMPRESA],0) -> 300 | B40: SWO | C40: 9760784.568 | D40: 9760784.568 | F40: =IFERROR(INDEX($B$9:$B$511,MATCH(0,INDEX(COUNTIF($F$8:F39,$B$9:$B$511),0,0),0)),"") -> SWO | H40: 9760784.568 | J40: LOS_GUINDOS | K40: 117891.2164 | L40: 18265.94552 | M40: 19608.27874 | N40: 1114985.443 | O40: 88133.06922 | P40: 34163.31299 | Q40: 794.6027704 | R40: 2027.002162 | S40: 43899.82476 | T40: 5992.535564 | U40: 26565.17007 | V40: 7606.75044 | W40: 2667.756136 | X40: 8206.084506 | Y40: 3835.420158 | Z40: 56160.33386 | AA40: 6561.081582 | AB40: 3335.730961 | AC40: 882.8778467 | AD40: 1171.357802 | AE40: 1182.398677 | AF40: 3780.497462 | AG40: 1078.090282 | AH40: 30161.8208 | AI40: 6137.93378 | AJ40: 10855.77476 | AK40: 18198.20161 | AL40: 8991.42974 | AM40: 515.1235023 | AN40: 578.2210979 | AO40: 63583.60138 | AP40: 182028.6009 | AQ40: 5980.275126 | AR40: 27.32685224 | AS40: 69112.71013 | AT40: 1511.730846 | AU40: 8028.235176 | AV40: 7279.923713 | AW40: 1391.180759 | AX40: 459.3498686 | AY40: 4.426154813 | AZ40: 2289.717524 | BA40: 4999.265042 | BB40: 27.88475723 | BC40: 6235.4123 | BD40: 5126.8176 | BE40: 8771.967596 | BF40: 4.236477969 | BG40: 197.8146762 | BH40: 22760.30798 | BI40: 7138.532266 | BJ40: 352.8550634 | BK40: 146.7185205 | BL40: 3000.242554 | BM40: 1839.225408 | BN40: 68401.92476 | BO40: 29890.44766 | BP40: 8526.879168 | BQ40: 80.52085004 | BR40: 3883.713503 | BS40: 1440.121115 | BT40: 22542.41798 | BU40: 813.3070775 | BV40: 34293.97424 | BW40: 1496.836522 | BX40: 1483.742582 | BY40: 302.6098205 | BZ40: 871406.5261 | CA40: 42806.56519 | CB40: 3198.656623 | CC40: 130.4435703 | CD40: 852.5016217 | CE40: 19718.91732 | CF40: 4815.565639 | CG40: 99.38705112 | CH40: 4524.625315 | CI40: 649.4274815 | CJ40: 947.9801122 | CK40: 449.0825842 | CL40: 3227.033097 | CM40: 58837.36273 | CN40: 590.5895318 | CO40: 1328.614649 | CP40: 3191.277107 | CQ40: 3907.137585 | CR40: 117.0265031 | CS40: 1562.836153 | CT40: 1027.115935 | CU40: 19642.913 | CV40: 1385.258477 | CW40: 18450.99899 | CX40: 6985.90807 | CY40: 35618.40079 | CZ40: 3262.222974 | DA40: 1916.008465 | DB40: 2133.246973 | DC40: 5917.271501 | DD40: 1880.264918 | DE40: 1546.559492 | DF40: 4920.452909 | DG40: 752.2394555 | DH40: 3922.872903 | DI40: 6249.602878 | DJ40: 269.268756 | DK40: 5071.737627 | DL40: 20634.27171 | DM40: 137.412687 | DN40: 1471.982847 | DO40: 1.750592148 | DP40: 3699.265934 | DQ40: 8622.697935 | DR40: 1422.239392 | DS40: 2139.068766 | DT40: 2248.449531 | DU40: 1923.266119 | DV40: 27903.88731 | DW40: 704.5878541 | DX40: 1949.391582 | DY40: 9862.075121 | DZ40: 14693.52098 | EA40: 1723.855995 | EB40: 2604.250402 | EC40: 2521.829395 | ED40: 57845.57561 | EE40: 123.3139177 | EF40: 1853.009817 | EG40: 10327.55066 | EH40: 2905.324071 | EI40: 8787.41217 | EJ40: 0.6278240192 | EK40: 14330.64093 | EL40: 3382.55607 | EM40: 1898.096102 | EN40: 5516.219037 | EO40: 9293.712054 | EP40: 3012.970797 | EQ40: 109.6447982 | ER40: 1968.464368 | ES40: 3299.607658 | ET40: 3593.018243 | EU40: 2986.628661 | EV40: 4594.21687 | EW40: 3228.954084 | EX40: 8590.411645 | EY40: 2889.890384 | EZ40: 2684.967468 | FA40: 3170.947357 | FB40: 1525.693954 | FC40: 2804.938502 | FD40: 2810.456347 | FE40: 3101.075401 | FF40: 55865.49834 | FG40: 3120.875363 | FH40: 2704.230794 | FI40: 3515.724779 | FJ40: 15671.12486 | FK40: 3044.439738 | FL40: 3354.844264 | FM40: 3224.568456 | FN40: 2902.062129 | FO40: 7471.658911 | FP40: 2345.527457 | FQ40: 5991.163506 | FR40: 4288.253416 | FS40: 4686.43124 | FT40: 2249.243362 | FU40: 6930.139753 | FV40: 9399.445954 | FW40: 3318.182458 | FX40: 3369.747727 | FY40: 3269.360321 | FZ40: 1.332689041e-05 | GA40: 16.39904197 | GB40: 2376.775493 | GC40: 2467.779741 | GD40: 3394.447921 | GE40: 3520.824124 | GF40: 3206.160454 | GG40: 484.3480048 | GH40: 711.6856962 | GI40: 3846.822759 | GJ40: 5622.826649 | GK40: 3313.008612 | GL40: 97900.26757 | GM40: 2216.565941 | GN40: 1531.606227 | GO40: 8678.174072 | GP40: 3020.461019 | GQ40: 1386.104099 | GR40: 8588.248273 | GS40: 2441.437743 | GT40: 2040.269863 | GU40: 571.3198574 | GV40: 1316.215192 | GW40: 2278.738609 | GX40: 1808.659874 | GY40: 9.054106972 | GZ40: 37.88435397 | HA40: 250564.8698 | HB40: 44247.27531 | HC40: 60781.32712 | HD40: 137543.6726 | HE40: 87837.89323 | HF40: 21277.53751 | HG40: 10521.79098 | HH40: 10019.45273 | HI40: 10002.34109 | HJ40: 34.53680836 | HK40: 5397.033779 | HL40: 4742.55451 | HM40: 11537.98249 | HN40: 746.002823 | HO40: 230.7447289 | HP40: 39589.17776 | HQ40: 9244.922566 | HR40: 211901.8979 | HS40: 153711.5697 | HT40: 24884.18365 | HU40: 587.3572873 | HV40: 3418.981073 | HW40: 13872.62949 | HX40: 5056106.112
A41: =+MATCH(B41,RUT[EMPRESA],0) -> 131 | B41: GEN. INDUSTRIAL | C41: 0 | D41: 0 | F41: =IFERROR(INDEX($B$9:$B$511,MATCH(0,INDEX(COUNTIF($F$8:F40,$B$9:$B$511),0,0),0)),"") -> GEN. INDUSTRIAL | J41: ERNC1 | K41: 3029352.534 | L41: 469364.81 | M41: 503857.6303 | N41: 28650853.58 | O41: 2264682.178 | P41: 877866.2396 | Q41: 20418.2465 | R41: 52086.18866 | S41: 1128057.284 | T41: 153985.2023 | U41: 682623.0806 | V41: 195464.3394 | W41: 68551.1106 | X41: 210864.9284 | Y41: 98555.6018 | Z41: 1443105.39 | AA41: 168594.6564 | AB41: 85715.50411 | AC41: 22686.57772 | AD41: 30099.4072 | AE41: 30383.11537 | AF41: 97144.29896 | AG41: 27702.78931 | AH41: 775043.2231 | AI41: 157721.3793 | AJ41: 278951.8151 | AK41: 467624.0511 | AL41: 231045.2917 | AM41: 13236.7002 | AN41: 14858.06664 | AO41: 1633854.921 | AP41: 4677437.56 | AQ41: 153670.156 | AR41: 702.1953937 | AS41: 1775931.83 | AT41: 38845.6902 | AU41: 206294.8821 | AV41: 187066.1448 | AW41: 35748.01488 | AX41: 11803.53152 | AY41: 113.7352189 | AZ41: 58836.96682 | BA41: 128461.9558 | BB41: 716.5314142 | BC41: 160226.2038 | BD41: 131739.5678 | BE41: 225405.9555 | BF41: 108.8612508 | BG41: 5083.079208 | BH41: 584852.7039 | BI41: 183432.9264 | BJ41: 9067.023088 | BK41: 3770.103794 | BL41: 77094.73755 | BM41: 47261.04558 | BN41: 1757667.369 | BO41: 768069.9729 | BP41: 219108.122 | BQ41: 2069.077313 | BR41: 99796.55573 | BS41: 37005.59451 | BT41: 579253.7659 | BU41: 20898.87553 | BV41: 881223.7331 | BW41: 38462.96317 | BX41: 38126.49907 | BY41: 7775.91287 | BZ41: 22391808.74 | CA41: 1099964.703 | CB41: 82193.21886 | CC41: 3351.899934 | CD41: 21906.02513 | CE41: 506700.6177 | CF41: 123741.585 | CG41: 2553.86639 | CH41: 116265.5335 | CI41: 16687.79785 | CJ41: 24359.45649 | CK41: 11539.70166 | CL41: 82922.3855 | CM41: 1511894.774 | CN41: 15175.88799 | CO41: 34140.30559 | CP41: 82003.59358 | CQ41: 100398.4649 | CR41: 3007.132716 | CS41: 40158.90079 | CT41: 26392.9439 | CU41: 504747.598 | CV41: 35595.83495 | CW41: 474119.9751 | CX41: 179511.0694 | CY41: 915256.4206 | CZ41: 83826.63051 | DA41: 49234.07595 | DB41: 54816.2732 | DC41: 152051.2043 | DD41: 48315.60374 | DE41: 39740.65296 | DF41: 126436.786 | DG41: 19329.67164 | DH41: 100802.8023 | DI41: 160590.8472 | DJ41: 6919.175268 | DK41: 130324.2235 | DL41: 530221.7182 | DM41: 3530.979529 | DN41: 37824.31895 | DO41: 44.98351042 | DP41: 95056.95996 | DQ41: 221570.2972 | DR41: 36546.10274 | DS41: 54965.87099 | DT41: 57776.53752 | DU41: 49420.56984 | DV41: 717022.9841 | DW41: 18105.20807 | DX41: 50091.89414 | DY41: 253417.5419 | DZ41: 377567.1878 | EA41: 44296.49374 | EB41: 66919.25657 | EC41: 64801.35251 | ED41: 1486409.645 | EE41: 3168.69518 | EF41: 47615.25208 | EG41: 265378.4797 | EH41: 74655.69625 | EI41: 225802.8219 | EJ41: 16.13267165 | EK41: 368242.561 | EL41: 86918.72999 | EM41: 48773.79685 | EN41: 141745.6927 | EO41: 238812.7889 | EP41: 77421.80462 | EQ41: 2817.451187 | ER41: 50581.99166 | ES41: 84787.27365 | ET41: 92326.8014 | EU41: 76744.91266 | EV41: 118053.7698 | EW41: 82971.74751 | EX41: 220740.6632 | EY41: 74259.10963 | EZ41: 68993.37589 | FA41: 81481.1969 | FB41: 39204.48858 | FC41: 72076.17175 | FD41: 72217.95923 | FE41: 79685.75535 | FF41: 1435529.246 | FG41: 80194.53851 | FH41: 69488.36956 | FI41: 90340.65556 | FJ41: 402687.8615 | FK41: 78230.43583 | FL41: 86206.64276 | FM41: 82859.05367 | FN41: 74571.87682 | FO41: 191993.0047 | FP41: 60271.06824 | FQ41: 153949.9457 | FR41: 110191.6814 | FS41: 120423.3258 | FT41: 57796.93594 | FU41: 178078.0373 | FV41: 241529.745 | FW41: 85264.57482 | FX41: 86589.60465 | FY41: 84010.03298 | FZ41: 0.0003424500185 | GA41: 421.3925421 | GB41: 61074.02304 | GC41: 63412.48351 | GD41: 87224.30499 | GE41: 90471.68917 | GF41: 82386.03855 | GG41: 12445.88784 | GH41: 18287.59541 | GI41: 98848.60497 | GJ41: 144485.0998 | GK41: 85131.62681 | GL41: 2515661.75 | GM41: 56957.25142 | GN41: 39356.41135 | GO41: 222995.8213 | GP41: 77614.27463 | GQ41: 35617.56418 | GR41: 220685.0729 | GS41: 62735.59508 | GT41: 52427.11773 | GU41: 14680.7312 | GV41: 33821.68707 | GW41: 58554.85076 | GX41: 46475.6285 | GY41: 232.6558564 | GZ41: 973.4827348 | HA41: 6438557.061 | HB41: 1136985.432 | HC41: 1561847.21 | HD41: 3534345.357 | HE41: 2257097.286 | HF41: 546751.1843 | HG41: 270369.7117 | HH41: 257461.5435 | HI41: 257021.8399 | HJ41: 887.4636396 | HK41: 138683.0882 | HL41: 121865.4788 | HM41: 296481.9397 | HN41: 19169.41408 | HO41: 5929.255384 | HP41: 1017290.174 | HQ41: 237559.086 | HR41: 5445066.828 | HS41: 3949798.362 | HT41: 639428.1705 | HU41: 15092.8317 | HV41: 87854.71299 | HW41: 356473.4219 | HX41: 129922553.5
A42: =+MATCH(B42,RUT[EMPRESA],0) -> 230 | B42: NUEVA DEGAN | C42: -6131497.136 | D42: -6131497.136 | F42: =IFERROR(INDEX($B$9:$B$511,MATCH(0,INDEX(COUNTIF($F$8:F41,$B$9:$B$511),0,0),0)),"") -> NUEVA DEGAN | G42: -6131497.136 | J42: AGSA | K42: 286525.9654 | L42: 44394.04254 | M42: 47656.48511 | N42: 2709890.442 | O42: 214200.9686 | P42: 83031.42962 | Q42: 1931.223826 | R42: 4926.480269 | S42: 106695.3082 | T42: 14564.41871 | U42: 64564.69986 | V42: 18487.64972 | W42: 6483.785865 | X42: 19944.28726 | Y42: 9321.707734 | Z42: 136493.5775 | AA42: 15946.22816 | AB42: 8107.249745 | AC42: 2145.769932 | AD42: 2846.899331 | AE42: 2873.733368 | AF42: 9188.222144 | AG42: 2620.219456 | AH42: 73306.096 | AI42: 14917.79842 | AJ42: 26384.16533 | AK42: 44229.39593 | AL42: 21853.01133 | AM42: 1251.969937 | AN42: 1405.324021 | AO42: 154535.2854 | AP42: 442407.1802 | AQ42: 14534.62062 | AR42: 66.41591256 | AS42: 167973.3792 | AT42: 3674.15108 | AU42: 19512.0375 | AV42: 17693.3213 | AW42: 3381.162924 | AX42: 1116.416206 | AY42: 10.75744504 | AZ42: 5564.990712 | BA42: 12150.34747 | BB42: 67.77185978 | BC42: 15154.71283 | BD42: 12460.35462 | BE42: 21319.62466 | BF42: 10.29644937 | BG42: 480.7740798 | BH42: 55317.26126 | BI42: 17349.67975 | BJ42: 857.5883836 | BK42: 356.5886165 | BL42: 7291.869748 | BM42: 4470.102623 | BN42: 166245.8674 | BO42: 72646.54344 | BP42: 20723.95519 | BQ42: 195.7000276 | BR42: 9439.081173 | BS42: 3500.108875 | BT42: 54787.69559 | BU42: 1976.683274 | BV42: 83348.99223 | BW42: 3637.951519 | BX42: 3606.127656 | BY42: 735.4710013 | BZ42: 2117889.728 | CA42: 104038.221 | CB42: 7774.100609 | CC42: 317.0335421 | CD42: 2071.942743 | CE42: 47925.38405 | CF42: 11703.87953 | CG42: 241.5529473 | CH42: 10996.77038 | CI42: 1578.385921 | CJ42: 2303.99622 | CK42: 1091.462324 | CL42: 7843.067549 | CM42: 142999.9 | CN42: 1435.384594 | CO42: 3229.100577 | CP42: 7756.165236 | CQ42: 9496.011687 | CR42: 284.4243431 | CS42: 3798.358786 | CT42: 2496.330039 | CU42: 47740.66113 | CV42: 3366.769254 | CW42: 44843.80144 | CX42: 16978.73782 | CY42: 86567.91393 | CZ42: 7928.593968 | DA42: 4656.71822 | DB42: 5184.700499 | DC42: 14381.49492 | DD42: 4569.846146 | DE42: 3758.799554 | DF42: 11958.80035 | DG42: 1828.262892 | DH42: 9534.255226 | DI42: 15189.20199 | DJ42: 654.4379866 | DK42: 12326.48678 | DL42: 50150.08585 | DM42: 333.9714697 | DN42: 3577.546482 | DO42: 4.254685977 | DP42: 8990.794867 | DQ42: 20956.83569 | DR42: 3456.648657 | DS42: 5198.849942 | DT42: 5464.691878 | DU42: 4674.357415 | DV42: 67818.35405 | DW42: 1712.449166 | DX42: 4737.85344 | DY42: 23969.05115 | DZ42: 35711.52639 | EA42: 4189.705717 | EB42: 6329.43983 | EC42: 6129.121611 | ED42: 140589.4341 | EE42: 299.7054437 | EF42: 4503.60462 | EG42: 25100.35535 | EH42: 7061.177329 | EI42: 21357.16157 | EJ42: 1.525880288 | EK42: 34829.57302 | EL42: 8221.054742 | EM42: 4613.183533 | EN42: 13406.76629 | EO42: 22587.68635 | EP42: 7322.80481 | EQ42: 266.4836502 | ER42: 4784.20845 | ES42: 8019.454704 | ET42: 8732.567636 | EU42: 7258.782178 | EV42: 11165.90756 | EW42: 7847.736367 | EX42: 20878.36622 | EY42: 7023.666883 | EZ42: 6525.616747 | FA42: 7706.755267 | FB42: 3708.087392 | FC42: 6817.197555 | FD42: 6830.608274 | FE42: 7536.936596 | FF42: 135777.0014 | FG42: 7585.058953 | FH42: 6572.43485 | FI42: 8544.711536 | FJ42: 38087.521 | FK42: 7399.287766 | FL42: 8153.703228 | FM42: 7837.077419 | FN42: 7053.249417 | FO42: 18159.31966 | FP42: 5700.632665 | FQ42: 14561.08403 | FR42: 10422.2858 | FS42: 11390.02783 | FT42: 5466.621226 | FU42: 16843.19701 | FV42: 22844.66485 | FW42: 8064.599394 | FX42: 8189.925003 | FY42: 7945.940767 | FZ42: 3.239003088e-05 | GA42: 39.85667022 | GB42: 5776.578729 | GC42: 5997.757887 | GD42: 8249.957014 | GE42: 8557.105119 | GF42: 7792.338119 | GG42: 1177.172345 | GH42: 1729.699951 | GI42: 9349.420922 | GJ42: 13665.86828 | GK42: 8052.024741 | GL42: 237939.4288 | GM42: 5387.201147 | GN42: 3722.456739 | GO42: 21091.66637 | GP42: 7341.009246 | GQ42: 3368.824474 | GR42: 20873.10831 | GS42: 5933.735589 | GT42: 4958.726443 | GU42: 1388.551062 | GV42: 3198.964606 | GW42: 5538.307262 | GX42: 4395.815333 | GY42: 22.00534375 | GZ42: 92.07514714 | HA42: 608979.5613 | HB42: 107539.7613 | HC42: 147724.5631 | HD42: 334289.8207 | HE42: 213483.565 | HF42: 51713.49624 | HG42: 25572.44222 | HH42: 24351.54591 | HI42: 24309.95731 | HJ42: 83.93918277 | HK42: 13117.09525 | HL42: 11526.43133 | HM42: 28042.22124 | HN42: 1813.105214 | HO42: 560.8081606 | HP42: 96218.59648 | HQ42: 22469.10707 | HR42: 515012.0403 | HS42: 373584.7102 | HT42: 60479.18549 | HU42: 1427.528861 | HV42: 8309.583043 | HW42: 33716.40976 | HX42: 12288495.53
A43: =+MATCH(B43,RUT[EMPRESA],0) -> 23 | B43: BARRICK | C43: 12950116.71 | D43: 12950116.71 | F43: =IFERROR(INDEX($B$9:$B$511,MATCH(0,INDEX(COUNTIF($F$8:F42,$B$9:$B$511),0,0),0)),"") -> BARRICK | H43: 12950116.71 | J43: KDM_ENERGIA | K43: 11271579.79 | L43: 1746407.144 | M43: 1874747.63 | N43: 106603763.8 | O43: 8426403.193 | P43: 3266354.527 | Q43: 75971.97489 | R43: 193801.6869 | S43: 4197262.467 | T43: 572946.3555 | U43: 2539896.045 | V43: 727281.448 | W43: 255064.1776 | X43: 784583.781 | Y43: 366704.5407 | Z43: 5369489.804 | AA43: 627305.0432 | AB43: 318929.254 | AC43: 84411.95538 | AD43: 111993.5254 | AE43: 113049.1434 | AF43: 361453.3814 | AG43: 103076.2173 | AH43: 2883771.839 | AI43: 586847.8797 | AJ43: 1037920.68 | AK43: 1739930.148 | AL43: 859670.6429 | AM43: 49250.96065 | AN43: 55283.72209 | AO43: 6079228.449 | AP43: 17403755.45 | AQ43: 571774.135 | AR43: 2612.72048 | AS43: 6607866.565 | AT43: 144536.5938 | AU43: 767579.6057 | AV43: 696033.5429 | AW43: 133010.7994 | AX43: 43918.44325 | AY43: 423.184684 | AZ43: 218919.9041 | BA43: 477979.7559 | BB43: 2666.061779 | BC43: 596167.8015 | BD43: 490175.0566 | BE43: 838687.8661 | BF43: 405.0496801 | BG43: 18913.06219 | BH43: 2176113.161 | BI43: 682515.106 | BJ43: 33736.47439 | BK43: 14027.75849 | BL43: 286853.2057 | BM43: 175848.3505 | BN43: 6539908.371 | BO43: 2857825.851 | BP43: 815254.9603 | BQ43: 7698.598879 | BR43: 371321.8677 | BS43: 137689.9871 | BT43: 2155280.697 | BU43: 77760.29378 | BV43: 3278847.05 | BW43: 143112.5475 | BX43: 141860.6358 | BY43: 28932.52646 | BZ43: 83315182.36 | CA43: 4092735.914 | CB43: 305823.5759 | CC43: 12471.71041 | CD43: 81507.68436 | CE43: 1885325.784 | CF43: 460416.2551 | CG43: 9502.396459 | CH43: 432599.4492 | CI43: 62091.76478 | CJ43: 90636.38332 | CK43: 42936.78815 | CL43: 308536.6507 | CM43: 5625440.548 | CN43: 56466.26812 | CO43: 127028.8533 | CP43: 305118.0204 | CQ43: 373561.4442 | CR43: 11188.90455 | CS43: 149422.7725 | CT43: 98202.55969 | CU43: 1878059.011 | CV43: 132444.57 | CW43: 1764100.107 | CX43: 667922.7059 | CY43: 3405475.479 | CZ43: 311901.155 | DA43: 183189.579 | DB43: 203959.7538 | DC43: 565750.3581 | DD43: 179772.1383 | DE43: 147866.5608 | DF43: 470444.5274 | DG43: 71921.61814 | DH43: 375065.8981 | DI43: 597524.5627 | DJ43: 25744.78712 | DK43: 484908.8601 | DL43: 1972842.822 | DM43: 13138.0277 | DN43: 140736.2875 | DO43: 167.3741241 | DP43: 353686.8346 | DQ43: 824416.1932 | DR43: 135980.3154 | DS43: 204516.3756 | DT43: 214974.271 | DU43: 183883.4833 | DV43: 2667890.807 | DW43: 67365.64829 | DX43: 186381.339 | DY43: 942913.0522 | DZ43: 1404847.615 | EA43: 164817.8804 | EB43: 248992.394 | EC43: 241112.1212 | ED43: 5530615.776 | EE43: 11790.04429 | EF43: 177166.2779 | EG43: 987417.1708 | EH43: 277778.0491 | EI43: 840164.5219 | EJ43: 60.02625764 | EK43: 1370152.652 | EL43: 323406.2029 | EM43: 181476.9779 | EN43: 527405.73 | EO43: 888571.8565 | EP43: 288070.1531 | EQ43: 10483.13971 | ER43: 188204.8882 | ES43: 315475.5049 | ET43: 343528.4923 | EU43: 285551.5813 | EV43: 439253.0982 | EW43: 308720.3163 | EX43: 821329.3007 | EY43: 276302.4342 | EZ43: 256709.7532 | FA43: 303174.2928 | FB43: 145871.6066 | FC43: 268180.1843 | FD43: 268707.7455 | FE43: 296493.8347 | FF43: 5341300.579 | FG43: 298386.9092 | FH43: 258551.5199 | FI43: 336138.4639 | FJ43: 1498316.327 | FK43: 291078.8987 | FL43: 320756.677 | FM43: 308301.0063 | FN43: 277466.1748 | FO43: 714365.3462 | FP43: 224255.892 | FQ43: 572815.1731 | FR43: 409999.9308 | FS43: 448069.7145 | FT43: 215050.1692 | FU43: 662590.6967 | FV43: 898681.0751 | FW43: 317251.4415 | FX43: 322181.5972 | FY43: 312583.5568 | FZ43: 0.001274184059 | GA43: 1567.912486 | GB43: 227243.5169 | GC43: 235944.4335 | GD43: 324543.1828 | GE43: 336626.0123 | GF43: 306541.0172 | GG43: 46308.51519 | GH43: 68044.27301 | GI43: 367794.7434 | GJ43: 537598.4843 | GK43: 316756.7701 | GL43: 9360245.077 | GM43: 211925.8808 | GN43: 146436.8791 | GO43: 829720.2669 | GP43: 288786.2933 | GQ43: 132525.4199 | GR43: 821122.4608 | GS43: 233425.8749 | GT43: 195070.2119 | GU43: 54623.89446 | GV43: 125843.3412 | GW43: 217870.2099 | GX43: 172925.9797 | GY43: 865.6632134 | GZ43: 3622.123274 | HA43: 23956508.47 | HB43: 4230482.215 | HC43: 5811302.993 | HD43: 13150551.23 | HE43: 8398181.416 | HF43: 2034345.468 | HG43: 1005988.489 | HH43: 957959.9265 | HI43: 956323.8823 | HJ43: 3302.064422 | HK43: 516010.4269 | HL43: 453435.6607 | HM43: 1103146.564 | HN43: 71325.33368 | HO43: 22061.5047 | HP43: 3785121.485 | HQ43: 883907.0932 | HR43: 20259941.53 | HS43: 14696363.95 | HT43: 2379176.924 | HU43: 56157.2332 | HV43: 326888.7976 | HW43: 1326362.176 | HX43: 483414330.9
A44: =+MATCH(B44,RUT[EMPRESA],0) -> 36 | B44: CARRAN | C44: 13072180.71 | D44: 13072180.71 | F44: =IFERROR(INDEX($B$9:$B$511,MATCH(0,INDEX(COUNTIF($F$8:F43,$B$9:$B$511),0,0),0)),"") -> CARRAN | H44: 13072180.71 | J44: SAN_JUAN_LAP | K44: 3356195.38 | L44: 520005.509 | M44: 558219.8281 | N44: 31742050.92 | O44: 2509023.224 | P44: 972580.9671 | Q44: 22621.21156 | R44: 57705.87073 | S44: 1249765.619 | T44: 170598.9708 | U44: 756272.6369 | V44: 216553.3741 | W44: 75947.22571 | X44: 233615.5632 | Y44: 109188.9609 | Z44: 1598804.889 | AA44: 186784.6679 | AB44: 94963.51964 | AC44: 25134.27753 | AD44: 33346.89186 | AE44: 33661.20987 | AF44: 107625.3898 | AG44: 30691.69812 | AH44: 858664.1716 | AI44: 174738.2513 | AJ44: 309048.479 | AK44: 518076.9362 | AL44: 255973.2259 | AM44: 14664.834 | AN44: 16461.13288 | AO44: 1810134.765 | AP44: 5182095.564 | AQ44: 170249.9335 | AR44: 777.9566456 | AS44: 1967540.633 | AT44: 43036.82867 | AU44: 228552.4455 | AV44: 207249.0817 | AW44: 39604.93902 | AX44: 13077.03792 | AY44: 126.006337 | AZ44: 65185.00371 | BA44: 142321.9707 | BB44: 793.8394078 | BC44: 177513.3263 | BD44: 145953.2107 | BE44: 249725.4505 | BF44: 120.6065068 | BG44: 5631.502692 | BH44: 647953.6206 | BI44: 203223.8682 | BJ44: 10045.28217 | BK44: 4176.86776 | BL44: 85412.6415 | BM44: 52360.13341 | BN44: 1947305.583 | BO44: 850938.5637 | BP44: 242748.1313 | BQ44: 2292.314162 | BR44: 110563.8038 | BS44: 40998.20141 | BT44: 641750.6021 | BU44: 23153.6966 | BV44: 976300.7073 | BW44: 42612.80845 | BX44: 42240.04258 | BY44: 8614.871513 | BZ44: 24807705.34 | CA44: 1218642.073 | CB44: 91061.20806 | CC44: 3713.543057 | CD44: 24269.50958 | CE44: 561369.551 | CF44: 137092.3098 | CG44: 2829.408094 | CH44: 128809.6522 | CI44: 18488.27742 | CJ44: 26987.6465 | CK44: 12784.74293 | CL44: 91869.04593 | CM44: 1675016.096 | CN44: 16813.24461 | CO44: 37823.77079 | CP44: 90851.12373 | CQ44: 111230.6541 | CR44: 3331.578222 | CS44: 44491.72414 | CT44: 29240.5309 | CU44: 559205.8161 | CV44: 39436.34009 | CW44: 525273.7183 | CX44: 198878.8742 | CY44: 1014005.249 | CZ44: 92870.85173 | DA44: 54546.03793 | DB44: 60730.50949 | DC44: 168456.3099 | DD44: 53528.46994 | DE44: 44028.35073 | DF44: 140078.3012 | DG44: 21415.1882 | DH44: 111678.6163 | DI44: 177917.3119 | DJ44: 7665.698793 | DK44: 144385.1622 | DL44: 587428.3897 | DM44: 3911.943904 | DN44: 41905.25965 | DO44: 49.83687046 | DP44: 105312.8437 | DQ44: 245475.9554 | DR44: 40489.13416 | DS44: 60896.24768 | DT44: 64010.1626 | DU44: 54752.65301 | DV44: 794384.0141 | DW44: 20058.61483 | DX44: 55496.40783 | DY44: 280759.2625 | DZ44: 418303.6596 | EA44: 49075.73019 | EB44: 74139.30771 | EC44: 71792.89879 | ED44: 1646781.326 | EE44: 3510.57198 | EF44: 52752.55594 | EG44: 294010.6896 | EH44: 82710.4472 | EI44: 250165.1356 | EJ44: 17.87325755 | EK44: 407972.9804 | EL44: 96296.56394 | EM44: 54036.0984 | EN44: 157038.9162 | EO44: 264578.7737 | EP44: 85774.99648 | EQ44: 3121.431576 | ER44: 56039.38294 | ES44: 93935.14055 | ET44: 102288.1229 | EU44: 85025.07331 | EV44: 130790.8249 | EW44: 91923.7337 | EX44: 244556.8106 | EY44: 82271.07206 | EZ44: 76437.20788 | FA44: 90272.36463 | FB44: 43434.33851 | FC44: 79852.61269 | FD44: 80009.6979 | FE44: 88283.20934 | FF44: 1590411.34 | FG44: 88846.88612 | FH44: 76985.60739 | FI44: 100087.6878 | FJ44: 446134.6526 | FK44: 86670.87251 | FL44: 95507.64821 | FM44: 91798.8811 | FN44: 82617.58433 | FO44: 212707.5103 | FP44: 66773.83318 | FQ44: 170559.9102 | FR44: 122080.4802 | FS44: 133416.0369 | FT44: 64032.76185 | FU44: 197291.2295 | FV44: 267588.8676 | FW44: 94463.9387 | FX44: 95931.92861 | FY44: 93074.04185 | FZ44: 0.0003793976294 | GA44: 466.8574182 | GB44: 67663.42037 | GC44: 70254.18197 | GD44: 96635.10803 | GE44: 100232.8589 | GF44: 91274.83144 | GG44: 13788.69933 | GH44: 20260.68031 | GI44: 109513.5768 | GJ44: 160073.8834 | GK44: 94316.64666 | GL44: 2787081.48 | GM44: 63102.48209 | GN44: 43602.65253 | GO44: 247055.2822 | GP44: 85988.23246 | GQ44: 39460.41373 | GR44: 244495.2225 | GS44: 69504.2627 | GT44: 58083.58331 | GU44: 16264.66437 | GV44: 37470.77588 | GW44: 64872.4496 | GX44: 51489.97612 | GY44: 257.7575576 | GZ44: 1078.513715 | HA44: 7133225.736 | HB44: 1259657.043 | HC44: 1730357.999 | HD44: 3915672.879 | HE44: 2500619.983 | HF44: 605741.2526 | HG44: 299540.4355 | HH44: 285239.5794 | HI44: 284752.4353 | HJ44: 983.2138496 | HK44: 153645.8813 | HL44: 135013.7867 | HM44: 328469.9634 | HN44: 21237.64013 | HO44: 6568.974492 | HP44: 1127047.626 | HQ44: 263189.8063 | HR44: 6032545.874 | HS44: 4375949.931 | HT44: 708417.3424 | HU44: 16721.2272 | HV44: 97333.532 | HW44: 394934.0455 | HX44: 143940155.2
A45: =+MATCH(B45,RUT[EMPRESA],0) -> 77 | B45: DONGO | C45: 41795840.07 | D45: 41795840.07 | F45: =IFERROR(INDEX($B$9:$B$511,MATCH(0,INDEX(COUNTIF($F$8:F44,$B$9:$B$511),0,0),0)),"") -> DONGO | H45: 41795840.07 | J45: SAFIRA_ENERGIA_CHILE | K45: 55108.59766 | L45: 8538.470243 | M45: 9165.947876 | N45: 521203.2421 | O45: 41198.0638 | P45: 15969.74167 | Q45: 371.4394145 | R45: 947.5281539 | S45: 20521.10288 | T45: 2801.228468 | U45: 12417.9673 | V45: 3555.797985 | W45: 1247.050494 | X45: 3835.958466 | Y45: 1792.878493 | Z45: 26252.31412 | AA45: 3066.996985 | AB45: 1559.297301 | AC45: 412.7038599 | AD45: 547.554668 | AE45: 552.7157575 | AF45: 1767.204716 | AG45: 503.95649 | AH45: 14099.23232 | AI45: 2869.195294 | AJ45: 5074.564011 | AK45: 8506.803152 | AL45: 4203.070418 | AM45: 240.7960042 | AN45: 270.2911619 | AO45: 29722.34247 | AP45: 85089.8077 | AQ45: 2795.49729 | AR45: 12.77401788 | AS45: 32306.9407 | AT45: 706.6630536 | AU45: 3752.822271 | AV45: 3403.021864 | AW45: 650.311559 | AX45: 214.7244542 | AY45: 2.069019154 | AZ45: 1070.335227 | BA45: 2336.921225 | BB45: 13.03481222 | BC45: 2914.761916 | BD45: 2396.546046 | BE45: 4100.482189 | BF45: 1.980354153 | BG45: 92.46905527 | BH45: 10639.37326 | BI45: 3336.928015 | BJ45: 164.9431427 | BK45: 68.58400624 | BL45: 1402.472253 | BM45: 859.751355 | BN45: 31974.68198 | BO45: 13972.37814 | BP45: 3985.914879 | BQ45: 37.63970943 | BR45: 1815.45336 | BS45: 673.1888733 | BT45: 10537.51994 | BU45: 380.1827981 | BV45: 16030.81966 | BW45: 699.7006582 | BX45: 693.579857 | BY45: 141.4558553 | BZ45: 407341.5572 | CA45: 20010.05547 | CB45: 1495.221496 | CC45: 60.97623263 | CD45: 398.5044037 | CE45: 9217.666204 | CF45: 2251.050397 | CG45: 46.45877091 | CH45: 2115.049482 | CI45: 303.5767964 | CJ45: 443.1361064 | CK45: 209.9249818 | CL45: 1508.486163 | CM45: 27503.69918 | CN45: 276.0728229 | CO45: 621.0648459 | CP45: 1491.77192 | CQ45: 1826.403016 | CR45: 54.70438488 | CS45: 730.5523807 | CT45: 480.1283806 | CU45: 9182.137761 | CV45: 647.5431712 | CW45: 8624.974034 | CX45: 3265.583383 | CY45: 16649.92676 | CZ45: 1524.935775 | DA45: 895.6438222 | DB45: 997.1926049 | DC45: 2766.046059 | DD45: 878.9353954 | DE45: 722.9438074 | DF45: 2300.080261 | DG45: 351.6365577 | DH45: 1833.758538 | DI45: 2921.395344 | DJ45: 125.8704762 | DK45: 2370.79875 | DL45: 9645.551321 | DM45: 64.23396683 | DN45: 688.0827343 | DO45: 0.8183194755 | DP45: 1729.232799 | DQ45: 4030.705645 | DR45: 664.8300088 | DS45: 999.9140196 | DT45: 1051.044381 | DU45: 899.0364338 | DV45: 13043.75463 | DW45: 329.3616757 | DX45: 911.248859 | DY45: 4610.056175 | DZ45: 6868.529829 | EA45: 805.8215819 | EB45: 1217.36455 | EC45: 1178.836607 | ED45: 27040.08535 | EE45: 57.64345544 | EF45: 866.1949178 | EG45: 4827.644092 | EH45: 1358.102328 | EI45: 4107.701801 | EJ45: 0.2934781941 | EK45: 6698.900477 | EL45: 1581.185836 | EM45: 887.270635 | EN45: 2578.572899 | EO45: 4344.373179 | EP45: 1408.422108 | EQ45: 51.25378513 | ER45: 920.1644892 | ES45: 1542.411356 | ET45: 1679.567001 | EU45: 1396.108398 | EV45: 2147.58026 | EW45: 1509.384134 | EX45: 4015.613323 | EY45: 1350.887805 | EZ45: 1255.095982 | FA45: 1482.268718 | FB45: 713.1901498 | FC45: 1311.176796 | FD45: 1313.756129 | FE45: 1449.606865 | FF45: 26114.49238 | FG45: 1458.862416 | FH45: 1264.10068 | FI45: 1643.435943 | FJ45: 7325.513651 | FK45: 1423.132357 | FL45: 1568.231871 | FM45: 1507.334059 | FN45: 1356.577523 | FO45: 3492.64905 | FP45: 1096.423745 | FQ45: 2800.587095 | FR45: 2004.556739 | FS45: 2190.68614 | FT45: 1051.41546 | FU45: 3239.514318 | FV45: 4393.798803 | FW45: 1551.094201 | FX45: 1575.198538 | FY45: 1528.272149 | FZ45: 6.229694324e-06 | GA45: 7.665780658 | GB45: 1111.030732 | GC45: 1153.570937 | GD45: 1586.744717 | GE45: 1645.819647 | GF45: 1498.729184 | GG45: 226.409907 | GH45: 332.679583 | GI45: 1798.208673 | GJ45: 2628.406942 | GK45: 1548.675672 | GL45: 45763.76954 | GM45: 1036.140303 | GN45: 715.9538595 | GO45: 4056.638129 | GP45: 1411.923434 | GQ45: 647.9384593 | GR45: 4014.602049 | GS45: 1141.257292 | GT45: 953.7301799 | GU45: 267.0651566 | GV45: 615.2686832 | GW45: 1065.2031 | GX45: 845.4634061 | GY45: 4.232369075 | GZ45: 17.70915328 | HA45: 117127.2893 | HB45: 20683.51967 | HC45: 28412.41108 | HD45: 64295.19644 | HE45: 41060.08291 | HF45: 9946.24782 | HG45: 4918.442306 | HH45: 4683.622805 | HI45: 4675.623918 | HJ45: 16.14433319 | HK45: 2522.859398 | HL45: 2216.921128 | HM45: 5393.46403 | HN45: 348.7212254 | HO45: 107.8623058 | HP45: 18506.0782 | HQ45: 4321.566388 | HR45: 99054.16872 | HS45: 71852.92774 | HT45: 11632.18522 | HU45: 274.5619006 | HV45: 1598.212811 | HW45: 6484.801674 | HX45: 2363491.752
A46: =+MATCH(B46,RUT[EMPRESA],0) -> 178 | B46: INACAL | C46: 11918984.07 | D46: 11918984.07 | F46: =IFERROR(INDEX($B$9:$B$511,MATCH(0,INDEX(COUNTIF($F$8:F45,$B$9:$B$511),0,0),0)),"") -> INACAL | H46: 11918984.07 | J46: ENERKEY | K46: 5688.738168 | L46: 881.4073235 | M46: 946.1804463 | N46: 53802.65335 | O46: 4252.784645 | P46: 1648.520972 | Q46: 38.34286597 | R46: 97.81122735 | S46: 2118.347884 | T46: 289.1645946 | U46: 1281.87919 | V46: 367.0571303 | W46: 128.7302534 | X46: 395.9774747 | Y46: 185.0748658 | Z46: 2709.968093 | AA46: 316.5992885 | AB46: 160.9627979 | AC46: 42.60250305 | AD46: 56.52285253 | AE46: 57.05562034 | AF46: 182.4246188 | AG46: 52.02230943 | AH46: 1455.432445 | AI46: 296.1806591 | AJ46: 523.8359748 | AK46: 878.1384 | AL46: 433.8736263 | AM46: 24.85683683 | AN46: 27.90155646 | AO46: 3068.171414 | AP46: 8783.631907 | AQ46: 288.5729779 | AR46: 1.318633501 | AS46: 3334.973751 | AT46: 72.94725788 | AU46: 387.3955099 | AV46: 351.2863907 | AW46: 67.13021822 | AX46: 22.16552862 | AY46: 0.213580253 | AZ46: 110.4883288 | BA46: 241.235189 | BB46: 1.345554721 | BC46: 300.8844004 | BD46: 247.3901268 | BE46: 423.2836713 | BF46: 0.2044275619 | BG46: 9.545375248 | BH46: 1098.278877 | BI46: 344.4636693 | BJ46: 17.02671436 | BK46: 7.079774674 | BL46: 144.7740965 | BM46: 88.7502233 | BN46: 3300.675421 | BO46: 1442.337569 | BP46: 411.4571422 | BQ46: 3.885463626 | BR46: 187.4052192 | BS46: 69.49179257 | BT46: 1087.764785 | BU46: 39.24542605 | BV46: 1654.825917 | BW46: 72.22854526 | BX46: 71.59670855 | BY46: 14.60217384 | BZ46: 42048.96445 | CA46: 2065.593594 | CB46: 154.3483949 | CC46: 6.294441096 | CD46: 41.13672472 | CE46: 951.5192144 | CF46: 232.370934 | CG46: 4.795835759 | CH46: 218.3318615 | CI46: 31.3375586 | CJ46: 45.74395628 | CK46: 21.67008974 | CL46: 155.717677 | CM46: 2839.145794 | CN46: 28.49838449 | CO46: 64.11114497 | CP46: 153.9923028 | CQ46: 188.5355279 | CR46: 5.647012181 | CS46: 75.41330007 | CT46: 49.5625866 | CU46: 947.8516922 | CV46: 66.84444369 | CW46: 890.3369178 | CX46: 337.0989214 | CY46: 1718.734969 | CZ46: 157.4157339 | DA46: 92.45532299 | DB46: 102.9379783 | DC46: 285.5327927 | DD46: 90.73054919 | DE46: 74.62788394 | DF46: 237.432178 | DG46: 36.29866104 | DH46: 189.294822 | DI46: 301.5691544 | DJ46: 12.99332976 | DK46: 244.7322906 | DL46: 995.688845 | DM46: 6.630729764 | DN46: 71.02925278 | DO46: 0.08447330238 | DP46: 178.5048621 | DQ46: 416.0807936 | DR46: 68.62892556 | DS46: 103.2189039 | DT46: 108.4969777 | DU46: 92.80553476 | DV46: 1346.477827 | DW46: 33.99927444 | DX46: 94.06619629 | DY46: 475.8858624 | DZ46: 709.0230827 | EA46: 83.18317257 | EB46: 125.6658394 | EC46: 121.6886854 | ED46: 2791.287969 | EE46: 5.950405907 | EF46: 89.41537798 | EG46: 498.3469799 | EH46: 140.1938876 | EI46: 424.0289358 | EJ46: 0.03029510231 | EK46: 691.5126213 | EL46: 163.2223029 | EM46: 91.59097747 | EN46: 266.1803547 | EO46: 448.4599966 | EP46: 145.3882868 | EQ46: 5.29081443 | ER46: 94.986537 | ES46: 159.2196994 | ET46: 173.3779721 | EU46: 144.1171699 | EV46: 221.6899416 | EW46: 155.8103725 | EX46: 414.5228467 | EY46: 139.4491484 | EZ46: 129.5607713 | FA46: 153.0113084 | FB46: 73.62103553 | FC46: 135.3498692 | FD46: 135.616128 | FE46: 149.6396978 | FF46: 2695.741061 | FG46: 150.5951278 | FH46: 130.4903063 | FI46: 169.6482432 | FJ46: 756.1965079 | FK46: 146.9067932 | FL46: 161.8850938 | FM46: 155.5987479 | FN46: 140.0364854 | FO46: 360.538406 | FP46: 113.1813886 | FQ46: 289.0983872 | FR46: 206.925941 | FS46: 226.1396658 | FT46: 108.5352833 | FU46: 334.4078697 | FV46: 453.562094 | FW46: 160.1160102 | FX46: 162.6042474 | FY46: 157.7601404 | FZ46: 6.430775121e-07 | GA46: 0.7913215154 | GB46: 114.6892354 | GC46: 119.0805663 | GD46: 163.7961338 | GE46: 169.8943076 | GF46: 154.7104857 | GG46: 23.37179195 | GH46: 34.34177464 | GI46: 185.6250884 | GJ46: 271.3246123 | GK46: 159.8663507 | GL46: 4724.092312 | GM46: 106.9584627 | GN46: 73.90632714 | GO46: 418.7577463 | GP46: 145.7497209 | GQ46: 66.88524841 | GR46: 414.4184551 | GS46: 117.809456 | GT46: 98.45144871 | GU46: 27.5685431 | GV46: 63.51281997 | GW46: 109.9585508 | GX46: 87.27531006 | GY46: 0.4368980617 | GZ46: 1.82807657 | HA46: 12090.78999 | HB46: 2135.113808 | HC46: 2932.950106 | HD46: 6637.050362 | HE46: 4238.541185 | HF46: 1026.729077 | HG46: 507.7198778 | HH46: 483.4799822 | HI46: 482.6542749 | HJ46: 1.666543666 | HK46: 260.4291736 | HL46: 228.8478454 | HM46: 556.7553156 | HN46: 35.99771776 | HO46: 11.13438632 | HP46: 1910.34136 | HQ46: 446.1057022 | HR46: 10225.14189 | HS46: 7417.218181 | HT46: 1200.764651 | HU46: 28.34241534 | HV46: 164.9799597 | HW46: 669.4116774 | HX46: 243978.0054
A47: =+MATCH(B47,RUT[EMPRESA],0) -> 166 | B47: HIDROLIRCAY | C47: 333458401 | D47: 333458401 | F47: =IFERROR(INDEX($B$9:$B$511,MATCH(0,INDEX(COUNTIF($F$8:F46,$B$9:$B$511),0,0),0)),"") -> HIDROLIRCAY | H47: 333458401 | J47: COYANCO | K47: 32352.43297 | L47: 5012.65316 | M47: 5381.024502 | N47: 305981.1658 | O47: 24186.01913 | P47: 9375.306555 | Q47: 218.0597814 | R47: 556.2624053 | S47: 12047.26002 | T47: 1644.508481 | U47: 7290.177425 | V47: 2087.49126 | W47: 732.1020534 | X47: 2251.964202 | Y47: 1052.539599 | Z47: 15411.86437 | AA47: 1800.532378 | AB47: 915.4118149 | AC47: 242.284771 | AD47: 321.4512153 | AE47: 324.4811201 | AF47: 1037.467375 | AG47: 295.8561686 | AH47: 8277.19245 | AI47: 1684.409554 | AJ47: 2979.108506 | AK47: 4994.062459 | AL47: 2467.483473 | AM47: 141.363361 | AN47: 158.6789915 | AO47: 17449.00312 | AP47: 49953.40867 | AQ47: 1641.143897 | AR47: 7.499202932 | AS47: 18966.33516 | AT47: 414.8584803 | AU47: 2203.157694 | AV47: 1997.801458 | AW47: 381.7763837 | AX47: 126.0576173 | AY47: 1.214652638 | AZ47: 628.3583715 | BA47: 1371.929073 | BB47: 7.652306652 | BC47: 1711.16021 | BD47: 1406.932831 | BE47: 2407.257321 | BF47: 1.162600351 | BG47: 54.28552058 | BH47: 6246.023758 | BI47: 1958.999948 | BJ47: 96.8326576 | BK47: 40.26339916 | BL47: 823.345022 | BM47: 504.731553 | BN47: 18771.27707 | BO47: 8202.72056 | BP47: 2339.998647 | BQ47: 22.09702711 | BR47: 1065.792556 | BS47: 395.2068974 | BT47: 6186.229045 | BU47: 223.1927324 | BV47: 9411.163421 | BW47: 410.7710884 | BX47: 407.1777688 | BY47: 83.04404888 | BZ47: 239136.7406 | CA47: 11747.24101 | CB47: 877.7950317 | CC47: 35.79712717 | CD47: 233.9487404 | CE47: 5411.38662 | CF47: 1321.517153 | CG47: 27.27440609 | CH47: 1241.675519 | CI47: 178.2198854 | CJ47: 260.1505353 | CK47: 123.240006 | CL47: 885.5822782 | CM47: 16146.5111 | CN47: 162.0732132 | CO47: 364.6066068 | CP47: 875.7698996 | CQ47: 1072.220736 | CR47: 32.11513303 | CS47: 428.8831132 | CT47: 281.8674746 | CU47: 5390.529047 | CV47: 380.1511548 | CW47: 5063.436672 | CX47: 1917.115877 | CY47: 9774.620703 | CZ47: 895.2393009 | DA47: 525.8028321 | DB47: 585.41876 | DC47: 1623.854054 | DD47: 515.993868 | DE47: 424.4163717 | DF47: 1350.300963 | DG47: 206.4341799 | DH47: 1076.538919 | DI47: 1715.054475 | DJ47: 73.89438883 | DK47: 1391.817446 | DL47: 5662.583804 | DM47: 37.70963506 | DN47: 403.95059 | DO47: 0.4804082685 | DP47: 1015.175319 | DQ47: 2366.293823 | DR47: 390.2996848 | DS47: 587.0164125 | DT47: 617.0333549 | DU47: 527.7945221 | DV47: 7657.556448 | DW47: 193.3573342 | DX47: 534.9640325 | DY47: 2706.411336 | DZ47: 4032.286437 | EA47: 473.071169 | EB47: 714.674419 | EC47: 692.0559393 | ED47: 15874.33878 | EE47: 33.84056404 | EF47: 508.5143554 | EG47: 2834.149997 | EH47: 797.296908 | EI47: 2411.495716 | EJ47: 0.1722913303 | EK47: 3932.702661 | EL47: 928.2618494 | EM47: 520.8872112 | EN47: 1513.794769 | EO47: 2550.437646 | EP47: 826.8379847 | EQ47: 30.08940017 | ER47: 540.1981038 | ES47: 905.4986359 | ET47: 986.0181738 | EU47: 819.6090137 | EV47: 1260.773262 | EW47: 886.1094473 | EX47: 2357.43362 | EY47: 793.0615006 | EZ47: 736.8252931 | FA47: 870.1908845 | FB47: 418.6903223 | FC47: 769.7484823 | FD47: 771.2627233 | FE47: 851.0161922 | FF47: 15330.95379 | FG47: 856.4498197 | FH47: 742.1116535 | FI47: 964.8068261 | FJ47: 4300.566508 | FK47: 835.4738852 | FL47: 920.6570051 | FM47: 884.9059162 | FN47: 796.4017456 | FO47: 2050.418611 | FP47: 643.6740767 | FQ47: 1644.131953 | FR47: 1176.808888 | FS47: 1286.079296 | FT47: 617.251203 | FU47: 1901.811592 | FV47: 2579.453793 | FW47: 910.5960467 | FX47: 924.7469051 | FY47: 897.1979755 | FZ47: 3.657247265e-06 | GA47: 4.500326 | GB47: 652.2493551 | GC47: 677.2233008 | GD47: 931.5252842 | GE47: 966.2062195 | GF47: 879.854279 | GG47: 132.9177597 | GH47: 195.3051677 | GI47: 1055.668771 | GJ47: 1543.050686 | GK47: 909.1762081 | GL47: 26866.3938 | GM47: 608.2836639 | GN47: 420.3128048 | GO47: 2381.517925 | GP47: 828.8934976 | GQ47: 380.3832154 | GR47: 2356.839934 | GS47: 669.9943674 | GT47: 559.9034094 | GU47: 156.7851106 | GV47: 361.2038716 | GW47: 625.34547 | GX47: 496.3435713 | GY47: 2.484683745 | GZ47: 10.39645752 | HA47: 68761.5533 | HB47: 12142.60954 | HC47: 16679.98577 | HD47: 37745.58094 | HE47: 24105.01512 | HF47: 5839.112762 | HG47: 2887.454622 | HH47: 2749.599868 | HI47: 2744.903987 | HJ47: 9.477803455 | HK47: 1481.087217 | HL47: 1301.480989 | HM47: 3166.324147 | HN47: 204.7226848 | HO47: 63.32238827 | HP47: 10864.30575 | HQ47: 2537.048534 | HR47: 58151.42265 | HS47: 42182.47474 | HT47: 6828.870787 | HU47: 161.1862008 | HV47: 938.2578228 | HW47: 3807.012343 | HX47: 1387527.749
A48: =+MATCH(B48,RUT[EMPRESA],0) -> 200 | B48: LOS MORROS | C48: 67858820.49 | D48: 67858820.49 | F48: =IFERROR(INDEX($B$9:$B$511,MATCH(0,INDEX(COUNTIF($F$8:F47,$B$9:$B$511),0,0),0)),"") -> LOS MORROS | H48: 67858820.49 | J48: EL_PELICANO | K48: 2877689.819 | L48: 445866.3426 | M48: 478632.3006 | N48: 27216465.8 | O48: 2151302.224 | P48: 833916.3934 | Q48: 19396.01925 | R48: 49478.5249 | S48: 1071581.774 | T48: 146276.0256 | U48: 648447.9659 | V48: 185678.5346 | W48: 65119.14041 | X48: 200308.1024 | Y48: 93621.47478 | Z48: 1370857.185 | AA48: 160154.0662 | AB48: 81424.20887 | AC48: 21550.78783 | AD48: 28592.49845 | AE48: 28862.00294 | AF48: 92280.82796 | AG48: 26315.8658 | AH48: 736241.1495 | AI48: 149825.1531 | AJ48: 264986.26 | AK48: 444212.7337 | AL48: 219478.1479 | AM48: 12574.01275 | AN48: 14114.20645 | AO48: 1552056.955 | AP48: 4443264.458 | AQ48: 145976.7519 | AR48: 667.0404029 | AS48: 1687020.869 | AT48: 36900.90405 | AU48: 195966.8527 | AV48: 177700.7906 | AW48: 33958.31198 | AX48: 11212.5948 | AY48: 108.0411335 | AZ48: 55891.3294 | BA48: 122030.5851 | BB48: 680.6586992 | BC48: 152204.5751 | BD48: 125144.1054 | BE48: 214121.1417 | BF48: 103.4111777 | BG48: 4828.597899 | BH48: 555572.4045 | BI48: 174249.4671 | BJ48: 8613.088021 | BK48: 3581.355811 | BL48: 73235.03581 | BM48: 44894.94971 | BN48: 1669670.808 | BO48: 729617.0109 | BP48: 208138.6054 | BQ48: 1965.490199 | BR48: 94800.3011 | BS48: 35152.93165 | BT48: 550253.774 | BU48: 19852.58587 | BV48: 837105.7961 | BW48: 36537.33801 | BX48: 36217.71879 | BY48: 7386.616461 | BZ48: 21270776.28 | CA48: 1044895.63 | CB48: 78078.26471 | CC48: 3184.089076 | CD48: 20809.31314 | CE48: 481332.9555 | CF48: 117546.5369 | CG48: 2426.008603 | CH48: 110444.7694 | CI48: 15852.33327 | CJ48: 23139.91493 | CK48: 10961.97342 | CL48: 78770.92606 | CM48: 1436202.67 | CN48: 14416.11627 | CO48: 32431.09169 | CP48: 77898.13291 | CQ48: 95372.07602 | CR48: 2856.582423 | CS48: 38148.36953 | CT48: 25071.59701 | CU48: 479477.7126 | CV48: 33813.75085 | CW48: 450383.4432 | CX48: 170523.9555 | CY48: 869434.6575 | CZ48: 79629.90059 | DA48: 46769.2015 | DB48: 52071.92939 | DC48: 144438.852 | DD48: 45896.71205 | DE48: 37751.06104 | DF48: 120106.8042 | DG48: 18361.94323 | DH48: 95756.1705 | DI48: 152550.9629 | DJ48: 6572.770913 | DK48: 123799.6195 | DL48: 503676.4863 | DM48: 3354.203159 | DN48: 35930.66714 | DO48: 42.73143798 | DP48: 90297.99033 | DQ48: 210477.5133 | DR48: 34716.44405 | DS48: 52214.03766 | DT48: 54883.98986 | DU48: 46946.35868 | DV48: 681125.6589 | DW48: 17198.7817 | DX48: 47584.07354 | DY48: 240730.3448 | DZ48: 358664.5133 | EA48: 42078.81638 | EB48: 63568.98417 | EC48: 61557.11171 | ED48: 1411993.439 | EE48: 3010.056359 | EF48: 45231.42308 | EG48: 252092.4655 | EH48: 70918.10364 | EI48: 214498.1392 | EJ48: 15.32499913 | EK48: 349806.7183 | EL48: 82567.19596 | EM48: 46331.96599 | EN48: 134649.2797 | EO48: 226856.77 | EP48: 73545.72846 | EQ48: 2676.397185 | ER48: 48049.63462 | ES48: 80542.4497 | ET48: 87704.51552 | EU48: 72902.72469 | EV48: 112143.4787 | EW48: 78817.81679 | EX48: 209689.4145 | EY48: 70541.37189 | EZ48: 65539.26395 | FA48: 77401.8897 | FB48: 37241.7394 | FC48: 68467.72149 | FD48: 68602.41046 | FE48: 75696.33585 | FF48: 1363660.337 | FG48: 76179.64709 | FH48: 66009.47606 | FI48: 85817.80489 | FJ48: 382527.5355 | FK48: 74313.87603 | FL48: 81890.75896 | FM48: 78710.7649 | FN48: 70838.48059 | FO48: 182380.9902 | FP48: 57253.6334 | FQ48: 146242.5341 | FR48: 104675.001 | FS48: 114394.4043 | FT48: 54903.36705 | FU48: 169162.6673 | FV48: 229437.7033 | FW48: 80995.85508 | FX48: 82254.54809 | FY48: 79804.12112 | FZ48: 0.000325305464 | GA48: 400.2957776 | GB48: 58016.38875 | GC48: 60237.7756 | GD48: 82857.47253 | GE48: 85942.27838 | GF48: 78261.431 | GG48: 11822.79194 | GH48: 17372.03793 | GI48: 93899.80892 | GJ48: 137251.54 | GK48: 80869.56304 | GL48: 2389716.655 | GM48: 54105.72082 | GN48: 37386.05625 | GO48: 211831.6694 | GP48: 73728.56257 | GQ48: 33834.39221 | GR48: 209636.6072 | GS48: 59594.77518 | GT48: 49802.38556 | GU48: 13945.74921 | GV48: 32128.42461 | GW48: 55623.33732 | GX48: 44148.85406 | GY48: 221.0080806 | GZ48: 924.7459062 | HA48: 6116214.568 | HB48: 1080062.939 | HC48: 1483654.267 | HD48: 3357400.479 | HE48: 2144097.066 | HF48: 519378.4146 | HG48: 256833.8145 | HH48: 244571.8859 | HI48: 244154.1958 | HJ48: 843.0333054 | HK48: 131740.0027 | HL48: 115764.3568 | HM48: 281638.7494 | HN48: 18209.70887 | HO48: 5632.410773 | HP48: 966360.152 | HQ48: 225665.833 | HR48: 5172462.827 | HS48: 3752054.078 | HT48: 607415.5831 | HU48: 14337.21814 | HV48: 83456.31954 | HW48: 338626.7941 | HX48: 123418058.9
A49: =+MATCH(B49,RUT[EMPRESA],0) -> 75 | B49: DIUTO | C49: 120017598.3 | D49: 120017598.3 | F49: =IFERROR(INDEX($B$9:$B$511,MATCH(0,INDEX(COUNTIF($F$8:F48,$B$9:$B$511),0,0),0)),"") -> DIUTO | H49: 120017598.3 | J49: LIPIGAS | K49: =$HX49*K$67/$HX$67 -> 193284.1502 | L49: 29947.25024 | M49: 32148.02264 | N49: 1828032.829 | O49: 144495.2891 | P49: 56011.18659 | Q49: 1302.761358 | R49: 3323.295851 | S49: 71974.3216 | T49: 9824.838351 | U49: =$HX49*U$67/$HX$67 -> 43553.93455 | V49: 12471.36419 | W49: 4373.820149 | X49: 13453.98002 | Y49: 6288.220179 | Z49: 92075.58237 | AA49: 10756.97679 | AB49: 5468.973379 | AC49: 1447.48947 | AD49: 1920.45603 | AE49: =$HX49*AE$67/$HX$67 -> 1938.557684 | AF49: 6198.17372 | AG49: 1767.542743 | AH49: 49450.68921 | AI49: 10063.22058 | AJ49: 17798.18093 | AK49: 29836.18323 | AL49: 14741.56353 | AM49: 844.5515402 | AN49: 948.0008516 | AO49: =$HX49*AO$67/$HX$67 -> 104246.124 | AP49: 298438.2087 | AQ49: 9804.737208 | AR49: 44.80272215 | AS49: 113311.1682 | AT49: 2478.501968 | AU49: 13162.39378 | AV49: 11935.52761 | AW49: 2280.858566 | AX49: 753.1099577 | AY49: =$HX49*AY$67/$HX$67 -> 7.256737167 | AZ49: 3754.021032 | BA49: 8196.358684 | BB49: 45.71741449 | BC49: 10223.03785 | BD49: 8405.482727 | BE49: 14381.75255 | BF49: 6.945759568 | BG49: 324.3196801 | BH49: 37315.8147 | BI49: =$HX49*BI$67/$HX$67 -> 11703.71454 | BJ49: 578.5103688 | BK49: 240.5468824 | BL49: 4918.935865 | BM49: 3015.433472 | BN49: 112145.8265 | BO49: 49005.76948 | BP49: 13979.92696 | BQ49: 132.0149588 | BR49: 6367.397734 | BS49: =$HX49*BS$67/$HX$67 -> 2361.096903 | BT49: 36958.58128 | BU49: 1333.427308 | BV49: 56225.40738 | BW49: 2454.082535 | BX49: 2432.614853 | BY49: 496.1326533 | BZ49: 1428682.094 | CA49: 70181.90863 | CB49: 5244.238258 | CC49: =$HX49*CC$67/$HX$67 -> 213.8638942 | CD49: 1397.687262 | CE49: 32329.41599 | CF49: 7895.181175 | CG49: 162.9463357 | CH49: 7418.180809 | CI49: 1064.744624 | CJ49: 1554.225463 | CK49: 736.2766143 | CL49: 5290.761847 | CM49: =$HX49*CM$67/$HX$67 -> 96464.60528 | CN49: 968.2790565 | CO49: 2178.280632 | CP49: 5232.139447 | CQ49: 6405.801814 | CR49: 191.8664417 | CS49: 2562.28977 | CT49: 1683.969652 | CU49: 32204.80595 | CV49: 2271.14891 | CW49: =$HX49*CW$67/$HX$67 -> 30250.64776 | CX49: 11453.48522 | CY49: 58396.82157 | CZ49: 5348.456099 | DA49: 3141.320272 | DB49: 3497.485571 | DC49: 9701.441962 | DD49: 3082.718271 | DE49: 2535.603977 | DF49: 8067.145189 | DG49: =$HX49*DG$67/$HX$67 -> 1233.306164 | DH49: 6431.600069 | DI49: 10246.30349 | DJ49: 441.4695537 | DK49: 8315.17841 | DL49: 33830.15117 | DM49: 225.2898498 | DN49: 2413.334619 | DO49: 2.870118114 | DP49: 6064.993596 | DQ49: =$HX49*DQ$67/$HX$67 -> 14137.02305 | DR49: 2331.77959 | DS49: 3507.030476 | DT49: 3686.361632 | DU49: 3153.219288 | DV49: 45748.77851 | DW49: 1155.180757 | DX49: 3196.052318 | DY49: 16168.99772 | DZ49: 24090.21472 | EA49: =$HX49*EA$67/$HX$67 -> 2826.283851 | EB49: 4269.701689 | EC49: 4134.5714 | ED49: 94838.55768 | EE49: 202.174738 | EF49: 3038.033186 | EG49: 16932.15079 | EH49: 4763.315804 | EI49: 14407.07413 | EJ49: 1.029325473 | EK49: =$HX49*EK$67/$HX$67 -> 23495.26826 | EL49: 5545.743741 | EM49: 3111.952725 | EN49: 9043.911341 | EO49: 15237.15924 | EP49: 4939.803981 | EQ49: 179.7640427 | ER49: 3227.322393 | ES49: 5409.748765 | ET49: 5890.799153 | EU49: =$HX49*EU$67/$HX$67 -> 4896.615714 | EV49: 7532.27705 | EW49: 5293.91133 | EX49: 14084.08926 | EY49: 4738.012078 | EZ49: 4402.038348 | FA49: 5198.808563 | FB49: 2501.394662 | FC49: 4598.732384 | FD49: 4607.778962 | FE49: =$HX49*FE$67/$HX$67 -> 5084.252601 | FF49: 91592.19578 | FG49: 5116.714891 | FH49: 4433.620816 | FI49: 5764.075536 | FJ49: 25693.00872 | FK49: 4991.397711 | FL49: 5500.309883 | FM49: 5286.721037 | FN49: 4757.967808 | FO49: =$HX49*FO$67/$HX$67 -> 12249.87991 | FP49: 3845.522128 | FQ49: 9822.588845 | FR49: 7030.646072 | FS49: 7683.463683 | FT49: 3687.663129 | FU49: 11362.05236 | FV49: 15410.51131 | FW49: 5440.202385 | FX49: 5524.7443 | FY49: =$HX49*FY$67/$HX$67 -> 5360.15787 | FZ49: 2.184960649e-05 | GA49: 26.8864381 | GB49: 3896.753681 | GC49: 4045.956304 | GD49: 5565.240582 | GE49: 5772.435976 | GF49: 5256.540883 | GG49: 794.0947204 | GH49: 1166.81776 | GI49: =$HX49*GI$67/$HX$67 -> 6306.91489 | GJ49: 9218.695878 | GK49: 5431.719799 | GL49: 160508.7351 | GM49: 3634.08808 | GN49: 2511.087909 | GO49: 14227.97688 | GP49: 4952.084295 | GQ49: 2272.535317 | GR49: 14080.54239 | GS49: =$HX49*GS$67/$HX$67 -> 4002.768262 | GT49: 3345.048415 | GU49: 936.68618 | GV49: 2157.951565 | GW49: 3736.020961 | GX49: 2965.320891 | GY49: 14.84432365 | GZ49: 62.11188066 | HA49: 410804.2942 | HB49: 72543.9712 | HC49: =$HX49*HC$67/$HX$67 -> 99651.75965 | HD49: 225504.6024 | HE49: 144011.3443 | HF49: 34884.79364 | HG49: 17250.61028 | HH49: 16427.02032 | HI49: 16398.96557 | HJ49: 56.62353702 | HK49: 8848.505593 | HL49: 7775.4785 | HM49: =$HX49*HM$67/$HX$67 -> 18916.66919 | HN49: 1223.081126 | HO49: 378.3089208 | HP49: 64906.96096 | HQ49: 15157.16825 | HR49: 347415.8595 | HS49: 252012.0755 | HT49: 40797.9359 | HU49: 962.9797505 | HV49: 5605.462997 | HW49: 22744.35267 | HX49: 8289550.343
A50: =+MATCH(B50,RUT[EMPRESA],0) -> 195 | B50: LICAN | C50: 201192867.3 | D50: 201192867.3 | F50: =IFERROR(INDEX($B$9:$B$511,MATCH(0,INDEX(COUNTIF($F$8:F49,$B$9:$B$511),0,0),0)),"") -> LICAN | H50: 201192867.3 | J50: AASA_ENERGIA | K50: 92748.18576 | L50: 14370.30986 | M50: 15426.35945 | N50: 877188.9899 | O50: 69336.65228 | P50: 26877.19575 | Q50: 625.1353377 | R50: 1594.697034 | S50: 34537.17102 | T50: 4714.488651 | U50: 20899.53268 | V50: 5984.434843 | W50: 2098.795392 | X50: 6455.947047 | Y50: 3017.428034 | Z50: 44182.84278 | AA50: 5161.779072 | AB50: 2624.309124 | AC50: 694.5837107 | AD50: 921.5386384 | AE50: 930.224791 | AF50: 2974.218874 | AG50: 848.1625758 | AH50: 23729.11439 | AI50: 4828.877332 | AJ50: 8540.529527 | AK50: 14317.0139 | AL50: 7073.799232 | AM50: 405.2614923 | AN50: 454.9020652 | AO50: 50022.92668 | AP50: 143206.7885 | AQ50: 4704.843036 | AR50: 21.49876849 | AS50: 54372.82501 | AT50: 1189.319252 | AU50: 6316.028203 | AV50: 5727.311479 | AW50: 1094.479261 | AX50: 361.382877 | AY50: 3.482174851 | AZ50: 1801.382264 | BA50: 3933.056058 | BB50: 21.93768733 | BC50: 4905.566302 | BD50: 4033.405081 | BE50: 6901.14247 | BF50: 3.332950985 | BG50: 155.6261179 | BH50: 17906.14549 | BI50: 5616.075032 | BJ50: 277.6005539 | BK50: 115.4274001 | BL50: 2360.371386 | BM50: 1446.968019 | BN50: 53813.63107 | BO50: 23515.61785 | BP50: 6708.324822 | BQ50: 63.34791503 | BR50: 3055.421706 | BS50: 1132.981954 | BT50: 17734.72558 | BU50: 639.8505183 | BV50: 26979.99046 | BW50: 1177.601488 | BX50: 1167.300134 | BY50: 238.071272 | BZ50: 685558.9148 | CA50: 33677.07436 | CB50: 2516.469062 | CC50: 102.6234597 | CD50: 670.6859189 | CE50: 15513.40178 | CF50: 3788.534805 | CG50: 78.19046205 | CH50: 3559.644239 | CI50: 510.9220394 | CJ50: 745.8014113 | CK50: 353.3053287 | CL50: 2538.793596 | CM50: 46288.93328 | CN50: 464.6326444 | CO50: 1045.256823 | CP50: 2510.663399 | CQ50: 3073.85006 | CR50: 92.0678926 | CS50: 1229.52517 | CT50: 808.0596879 | CU50: 15453.60715 | CV50: 1089.820044 | CW50: 14515.89639 | CX50: 5496.001478 | CY50: 28021.9524 | CZ50: 2566.478417 | DA50: 1507.375312 | DB50: 1678.28268 | DC50: 4655.276392 | DD50: 1479.254903 | DE50: 1216.719884 | DF50: 3871.052437 | DG50: 591.8069803 | DH50: 3086.229458 | DI50: 4916.730411 | DJ50: 211.8409613 | DK50: 3990.072187 | DL50: 16233.53567 | DM50: 108.1062509 | DN50: 1158.048435 | DO50: 1.377237853 | DP50: 2910.31185 | DQ50: 6783.708019 | DR50: 1118.913922 | DS50: 1682.862841 | DT50: 1768.915626 | DU50: 1513.085103 | DV50: 21952.73748 | DW50: 554.3181858 | DX50: 1533.638707 | DY50: 7758.759334 | DZ50: 11559.78754 | EA50: 1356.203804 | EB50: 2048.833725 | EC50: 1983.990906 | ED50: 45508.66772 | EE50: 97.01437051 | EF50: 1457.812584 | EG50: 8124.96144 | EH50: 2285.696466 | EI50: 6913.293131 | EJ50: 0.4939260154 | EK50: 11274.30006 | EL50: 2661.147695 | EM50: 1493.283175 | EN50: 4339.757649 | EO50: 7311.612846 | EP50: 2370.385036 | EQ50: 86.26050717 | ER50: 1548.64378 | ES50: 2595.889952 | ET50: 2826.723938 | EU50: 2349.66097 | EV50: 3614.393785 | EW50: 2540.304888 | EX50: 6758.307527 | EY50: 2273.55437 | EZ50: 2112.336009 | FA50: 2494.669438 | FB50: 1200.304404 | FC50: 2206.720443 | FD50: 2211.06148 | FE50: 2439.699294 | FF50: 43950.88776 | FG50: 2455.276456 | FH50: 2127.490985 | FI50: 2765.915095 | FJ50: 12328.89476 | FK50: 2395.142497 | FL50: 2639.346073 | FM50: 2536.854596 | FN50: 2283.130209 | FO50: 5878.154709 | FP50: 1845.289437 | FQ50: 4713.409217 | FR50: 3373.684119 | FS50: 3686.941306 | FT50: 1769.540154 | FU50: 5452.127045 | FV50: 7394.796544 | FW50: 2610.503246 | FX50: 2651.071028 | FY50: 2572.09356 | FZ50: 1.048462256e-05 | GA50: 12.9015667 | GB50: 1869.873106 | GC50: 1941.468592 | GD50: 2670.503333 | GE50: 2769.926886 | GF50: 2522.372527 | GG50: 381.049582 | GH50: 559.9022488 | GI50: 3026.398767 | GJ50: 4423.62872 | GK50: 2606.432843 | GL50: 77020.76951 | GM50: 1743.831949 | GN50: 1204.955749 | GO50: 6827.352586 | GP50: 2376.277795 | GQ50: 1090.485317 | GR50: 6756.605545 | GS50: 1920.744634 | GT50: 1605.13509 | GU50: 449.4726741 | GV50: 1035.501837 | GW50: 1792.744857 | GX50: 1422.921293 | GY50: 7.123109094 | GZ50: 29.80463861 | HA50: 197126.1118 | HB50: 34810.5197 | HC50: 47818.30226 | HD50: 108209.3008 | HE50: 69104.4294 | HF50: 16739.61014 | HG50: 8277.775518 | HH50: 7882.572527 | HI50: 7869.11034 | HJ50: 27.17103459 | HK50: 4245.991406 | HL50: 3731.09499 | HM50: 9077.240665 | HN50: 586.900454 | HO50: 181.5330746 | HP50: 31145.86927 | HQ50: 7273.228845 | HR50: 166708.9135 | HS50: 120929.0196 | HT50: 19577.05551 | HU50: 462.0897508 | HV50: 2689.804223 | HW50: 10913.97016 | HX50: 3977774.455
A51: =+MATCH(B51,RUT[EMPRESA],0) -> 111 | B51: ENERGIA PACIFICO | C51: 99406060.51 | D51: 99406060.51 | F51: =IFERROR(INDEX($B$9:$B$511,MATCH(0,INDEX(COUNTIF($F$8:F50,$B$9:$B$511),0,0),0)),"") -> ENERGIA PACIFICO | H51: 99406060.51 | J51: ERSA | K51: 17187789.46 | L51: 2663058.67 | M51: 2858762.316 | N51: 162557785.4 | O51: 12849240.89 | P51: 4980793.726 | Q51: 115848.0296 | R51: 295524.0218 | S51: 6400315.21 | T51: 873673.5676 | U51: 3873032.82 | V51: 1109015.829 | W51: 388941.8754 | X51: 1196394.923 | Y51: 559179.8625 | Z51: 8187819.45 | AA51: 956563.9607 | AB51: 486328.356 | AC51: 128717.9742 | AD51: 170776.5167 | AE51: 172386.206 | AF51: 551172.4828 | AG51: 157178.7056 | AH51: 4397401.619 | AI51: 894871.7027 | AJ51: 1582702.909 | AK51: 2653182.039 | AL51: 1310893.263 | AM51: 75101.73001 | AN51: 84300.9581 | AO51: 9270084.636 | AP51: 26538612.16 | AQ51: 871886.0739 | AR51: 3984.081234 | AS51: 10076193.52 | AT51: 220400.7414 | AU51: 1170465.622 | AV51: 1061366.571 | AW51: 202825.3055 | AX51: 66970.28899 | AY51: 645.3052176 | AZ51: 333826.2505 | BA51: 728861.0436 | BB51: 4065.420234 | BC51: 909083.4509 | BD51: 747457.3952 | BE51: 1278897.078 | BF51: 617.6515404 | BG51: 28840.12152 | BH51: 3318308.129 | BI51: 1040752.597 | BJ51: 51444.02379 | BK51: 21390.62704 | BL51: 437416.2803 | BM51: 268147.3654 | BN51: 9972565.536 | BO51: 4357837.14 | BP51: 1243164.745 | BQ51: 11739.42776 | BR51: 566220.7251 | BS51: 209960.4982 | BT51: 3286541.153 | BU51: 118574.9986 | BV51: 4999843.306 | BW51: 218229.2438 | BX51: 216320.2306 | BY51: 44118.58697 | BZ51: 127045528.6 | CA51: 6240924.919 | CB51: 466343.7895 | CC51: 19017.84282 | CD51: 124289.3138 | CE51: 2874892.716 | CF51: 702078.8392 | CG51: 14489.99987 | CH51: 659661.5905 | CI51: 94682.39589 | CJ51: 138209.4704 | CK51: 65473.38424 | CL51: 470480.8988 | CM51: 8578113.231 | CN51: 86104.1971 | CO51: 193703.5647 | CP51: 465267.9031 | CQ51: 569635.8072 | CR51: 17061.71976 | CS51: 227851.5702 | CT51: 149746.9699 | CU51: 2863811.77 | CV51: 201961.8746 | CW51: 2690038.289 | CX51: 1018500.96 | CY51: 5192936.272 | CZ51: 475611.3592 | DA51: 279341.8468 | DB51: 311013.8394 | DC51: 862700.546 | DD51: 274130.665 | DE51: 225478.5365 | DF51: 717370.7359 | DG51: 109671.7277 | DH51: 571929.9165 | DI51: 911152.3469 | DJ51: 39257.67185 | DK51: 739427.0855 | DL51: 3008345.564 | DM51: 20033.8957 | DN51: 214605.7361 | DO51: 255.2251999 | DP51: 539329.4427 | DQ51: 1257134.511 | DR51: 207353.4567 | DS51: 311862.6199 | DT51: 327809.6396 | DU51: 280399.9665 | DV51: 4068209.278 | DW51: 102724.4274 | DX51: 284208.8929 | DY51: 1437827.822 | DZ51: 2142221.896 | EA51: 251327.2389 | EB51: 379683.1433 | EC51: 367666.6848 | ED51: 8433516.978 | EE51: 17978.38482 | EF51: 270157.0446 | EG51: 1505691.194 | EH51: 423577.7693 | EI51: 1281148.799 | EJ51: 91.53274851 | EK51: 2089316.293 | EL51: 493155.1591 | EM51: 276730.3382 | EN51: 804229.6478 | EO51: 1354964.102 | EP51: 439271.9771 | EQ51: 15985.51415 | ER51: 286989.5838 | ES51: 481061.8083 | ET51: 523839.2052 | EU51: 435431.4613 | EV51: 669807.5966 | EW51: 470760.9666 | EX51: 1252427.376 | EY51: 421327.6359 | EZ51: 391451.1782 | FA51: 462303.9548 | FB51: 222436.4738 | FC51: 408942.1918 | FD51: 409746.6585 | FE51: 452117.068 | FF51: 8144834.307 | FG51: 455003.7765 | FH51: 394259.6486 | FI51: 512570.3099 | FJ51: 2284750.323 | FK51: 443859.9486 | FL51: 489114.9541 | FM51: 470121.5699 | FN51: 423102.1988 | FO51: 1089320.343 | FP51: 341962.9837 | FQ51: 873473.5304 | FR51: 625200.0712 | FS51: 683251.8652 | FT51: 327925.3751 | FU51: 1010370.294 | FV51: 1370379.432 | FW51: 483769.8959 | FX51: 491287.7841 | FY51: 476651.9389 | FZ51: 0.001942975851 | GA51: 2390.876008 | GB51: 346518.7486 | GC51: 359786.5891 | GD51: 494888.9153 | GE51: 513313.7619 | GF51: 467437.8003 | GG51: 70614.85824 | GH51: 103759.2476 | GI51: 560842.2893 | GJ51: 819772.3595 | GK51: 483015.5821 | GL51: 14273236.28 | GM51: 323161.2149 | GN51: 223298.4456 | GO51: 1265222.579 | GP51: 440364.0039 | GQ51: 202085.1608 | GR51: 1252111.97 | GS51: 355946.0933 | GT51: 297458.3681 | GU51: 83294.80114 | GV51: 191895.8028 | GW51: 332225.5945 | GX51: 263691.1051 | GY51: 1320.031205 | GZ51: 5523.297832 | HA51: 36530764.22 | HB51: 6450971.29 | HC51: 8861530.874 | HD51: 20052992.57 | HE51: 12806206.11 | HF51: 3102129.625 | HG51: 1534010.198 | HH51: 1460772.476 | HI51: 1458277.708 | HJ51: 5035.246976 | HK51: 786853.1954 | HL51: 691434.281 | HM51: 1682164.456 | HN51: 108762.4664 | HO51: 33641.11374 | HP51: 5771850.296 | HQ51: 1347850.905 | HR51: 30893948.84 | HS51: 22410169.13 | HT51: 3627955.691 | HU51: 85632.9564 | HV51: 498465.6928 | HW51: 2022541.138 | HX51: 737148110.1
A52: =+MATCH(B52,RUT[EMPRESA],0) -> 78 | B52: DONGUIL | C52: 5695022.873 | D52: 5695022.873 | F52: =IFERROR(INDEX($B$9:$B$511,MATCH(0,INDEX(COUNTIF($F$8:F51,$B$9:$B$511),0,0),0)),"") -> DONGUIL | H52: 5695022.873 | J52: NEOMAS | K52: 2923360.786 | L52: 452942.556 | M52: 486228.5329 | N52: 27648410.31 | O52: 2185444.908 | P52: 847151.2349 | Q52: 19703.84776 | R52: 50263.784 | S52: 1088588.533 | T52: 148597.5293 | U52: 658739.2926 | V52: 188625.3839 | W52: 66152.62711 | X52: 203487.1333 | Y52: 95107.31363 | Z52: 1392613.656 | AA52: 162695.8242 | AB52: 82716.4685 | AC52: 21892.81404 | AD52: 29046.28157 | AE52: 29320.06329 | AF52: 93745.38981 | AG52: 26733.51715 | AH52: 747925.8159 | AI52: 152202.984 | AJ52: 269191.7789 | AK52: 451262.7032 | AL52: 222961.4209 | AM52: 12773.57121 | AN52: 14338.20886 | AO52: 1576689.194 | AP52: 4513782.199 | AQ52: 148293.506 | AR52: 677.6268047 | AS52: 1713795.081 | AT52: 37486.54743 | AU52: 199076.9849 | AV52: 180521.0275 | AW52: 34497.25435 | AX52: 11390.54659 | AY52: 109.7558225 | AZ52: 56778.36423 | BA52: 123967.2966 | BB52: 691.461233 | BC52: 154620.1691 | BD52: 127130.2307 | BE52: 217519.3953 | BF52: 105.052386 | BG52: 4905.231154 | BH52: 564389.7305 | BI52: 177014.9291 | BJ52: 8749.783804 | BK52: 3638.194455 | BL52: 74397.32749 | BM52: 45607.46424 | BN52: 1696169.662 | BO52: 741196.5476 | BP52: 211441.912 | BQ52: 1996.683916 | BR52: 96304.84875 | BS52: 35710.83347 | BT52: 558986.6895 | BU52: 20167.66042 | BV52: 850391.2556 | BW52: 37117.21134 | BX52: 36792.51954 | BY52: 7503.847276 | BZ52: 21608358.5 | CA52: 1061478.861 | CB52: 79317.42186 | CC52: 3234.622816 | CD52: 21139.57162 | CE52: 488972.0491 | CF52: 119412.0834 | CG52: 2464.511071 | CH52: 112197.6058 | CI52: 16103.92098 | CJ52: 23507.1617 | CK52: 11135.94767 | CL52: 80021.07623 | CM52: 1458996.219 | CN52: 14644.91021 | CO52: 32945.796 | CP52: 79134.43124 | CQ52: 96885.69815 | CR52: 2901.918401 | CS52: 38753.81107 | CT52: 25469.50094 | CU52: 487087.3621 | CV52: 34350.39893 | CW52: 457531.3462 | CX52: 173230.2909 | CY52: 883233.1989 | CZ52: 80893.68329 | DA52: 47511.46172 | DB52: 52898.34765 | DC52: 146731.1985 | DD52: 46625.12525 | DE52: 38350.19701 | DF52: 122012.9839 | DG52: 18653.36023 | DH52: 97275.88848 | DI52: 154972.0543 | DJ52: 6677.085424 | DK52: 125764.4068 | DL52: 511670.1874 | DM52: 3407.436729 | DN52: 36500.91217 | DO52: 43.40961605 | DP52: 91731.08314 | DQ52: 213817.9399 | DR52: 35267.41851 | DS52: 53042.71127 | DT52: 55755.0375 | DU52: 47691.43051 | DV52: 691935.6037 | DW52: 17471.7385 | DX52: 48339.26636 | DY52: 244550.9053 | DZ52: 364356.7721 | EA52: 42746.63688 | EB52: 64577.86879 | EC52: 62534.0665 | ED52: 1434402.771 | EE52: 3057.828077 | EF52: 45949.27767 | EG52: 256093.3507 | EH52: 72043.62398 | EI52: 217902.376 | EJ52: 15.56821768 | EK52: 355358.3977 | EL52: 83877.59561 | EM52: 47067.28698 | EN52: 136786.2587 | EO52: 230457.147 | EP52: 74712.95106 | EQ52: 2718.873496 | ER52: 48812.21622 | ES52: 81820.7152 | ET52: 89096.44806 | EU52: 74059.74236 | EV52: 113923.2748 | EW52: 80068.71115 | EX52: 213017.3334 | EY52: 71660.91323 | EZ52: 66579.41831 | FA52: 78630.3123 | FB52: 37832.79208 | FC52: 69554.35254 | FD52: 69691.17912 | FE52: 76897.69011 | FF52: 1385302.588 | FG52: 77388.67184 | FH52: 67057.09301 | FI52: 87179.79399 | FJ52: 388598.5174 | FK52: 75493.28967 | FL52: 83190.42308 | FM52: 79959.96027 | FN52: 71962.73725 | FO52: 185275.5052 | FP52: 58162.28896 | FQ52: 148563.5063 | FR52: 106336.2672 | FS52: 116209.9242 | FT52: 55774.72222 | FU52: 171847.3982 | FV52: 233079.0415 | FW52: 82281.31644 | FX52: 83559.98579 | FY52: 81070.66882 | FZ52: 0.0003304682912 | GA52: 406.6487539 | GB52: 58937.14977 | GC52: 61193.7916 | GD52: 84172.47908 | GE52: 87306.24297 | GF52: 79503.49512 | GG52: 12010.42799 | GH52: 17647.74443 | GI52: 95390.06513 | GJ52: 139429.8188 | GK52: 82153.02005 | GL52: 2427643.145 | GM52: 54964.41678 | GN52: 37979.39934 | GO52: 215193.5875 | GP52: 74898.68687 | GQ52: 34371.36789 | GR52: 212963.6881 | GS52: 60540.58631 | GT52: 50592.78455 | GU52: 14167.07809 | GV52: 32638.32538 | GW52: 56506.11892 | GX52: 44849.52752 | GY52: 224.5156348 | GZ52: 939.4222761 | HA52: 6213283.208 | HB52: 1097204.3 | HC52: 1507200.907 | HD52: 3410684.793 | HE52: 2178125.399 | HF52: 527621.3165 | HG52: 260909.9483 | HH52: 248453.4143 | HI52: 248029.0952 | HJ52: 856.4128387 | HK52: 133830.8095 | HL52: 117601.6188 | HM52: 286108.555 | HN52: 18498.7098 | HO52: 5721.801106 | HP52: 981696.9694 | HQ52: 229247.309 | HR52: 5254553.461 | HS52: 3811601.824 | HT52: 617055.6969 | HU52: 14564.75991 | HV52: 84780.83021 | HW52: 344001.0402 | HX52: 125376790.5
A53: =+MATCH(B53,RUT[EMPRESA],0) -> 245 | B53: PEHUI | C53: 6392607.528 | D53: 6392607.528 | F53: =IFERROR(INDEX($B$9:$B$511,MATCH(0,INDEX(COUNTIF($F$8:F52,$B$9:$B$511),0,0),0)),"") -> PEHUI | H53: 6392607.528 | J53: ENGIE | K53: 458396187.3 | L53: 71023440.46 | M53: 76242832.11 | N53: 4335395731 | O53: 342687641.7 | P53: 132837143.5 | Q53: 3089652.407 | R53: 7881588.565 | S53: 170695603.2 | T53: 23300764.38 | U53: 103293299.1 | V53: 29577312.95 | W53: 10373031 | X53: 31907702.43 | Y53: 14913256.74 | Z53: 218368117 | AA53: 25511440.76 | AB53: 12970316.21 | AC53: 3432892.215 | AD53: 4554588.264 | AE53: 4597518.475 | AF53: 14699700.93 | AG53: 4191936.347 | AH53: 117278149.2 | AI53: 23866115.98 | AJ53: 42210487.9 | AK53: 70760031.95 | AL53: 34961358.78 | AM53: 2002953.712 | AN53: 2248295.971 | AO53: 247231993.6 | AP53: 707781454.9 | AQ53: 23253092.15 | AR53: 106254.9464 | AS53: 268730816.4 | AT53: 5878060.108 | AU53: 31216171.22 | AV53: 28306513.22 | AW53: 5409325.439 | AX53: 1786089.201 | AY53: 17210.20915 | AZ53: 8903104.197 | BA53: 19438632.54 | BB53: 108424.2473 | BC53: 24245141.52 | BD53: 19934594.9 | BE53: 34108024.55 | BF53: 16472.68905 | BG53: 769162.4208 | BH53: 88498861.26 | BI53: 27756741.13 | BJ53: 1372005.657 | BK53: 570485.3382 | BL53: 11665837.29 | BM53: 7151456.576 | BN53: 265967071 | BO53: 116222969.5 | BP53: 33155047.69 | BQ53: 313089.0646 | BR53: 15101035.66 | BS53: 5599620.131 | BT53: 87651640.01 | BU53: 3162380.328 | BV53: 133345193.4 | BW53: 5820146.54 | BX53: 5769233.397 | BY53: 1176637.177 | BZ53: 3388288301 | CA53: 166444684.2 | CB53: 12437330.33 | CC53: 507203.4808 | CD53: 3314780.398 | CE53: 76673027.86 | CF53: 18724354.51 | CG53: 386446.4776 | CH53: 17593091.81 | CI53: 2525167.613 | CJ53: 3686029.227 | CK53: 1746166.939 | CL53: 12547666.51 | CM53: 228777203.1 | CN53: 2296388.128 | CO53: 5166049.755 | CP53: 12408636.57 | CQ53: 15192115.47 | CR53: 455033.9244 | CS53: 6076772.775 | CT53: 3993732.891 | CU53: 76377500.43 | CV53: 5386297.845 | CW53: 71742983.51 | CX53: 27163292.77 | CY53: 138494958.5 | CZ53: 12684495.25 | DA53: 7450011.99 | DB53: 8294700.056 | DC53: 23008115.27 | DD53: 7311030.424 | DE53: 6013484.266 | DF53: 19132187.48 | DG53: 2924931.212 | DH53: 15253299.08 | DI53: 24300318.72 | DJ53: 1046997.181 | DK53: 19720427.55 | DL53: 80232198.57 | DM53: 534301.4836 | DN53: 5723508.044 | DO53: 6806.824044 | DP53: 14383848.54 | DQ53: 33527619.62 | DR53: 5530090.661 | DS53: 8317336.925 | DT53: 8742641.94 | DU53: 7478231.91 | DV53: 108498630.8 | DW53: 2739647.583 | DX53: 7579815.499 | DY53: 38346687.52 | DZ53: 57132789.07 | EA53: 6702865.913 | EB53: 10126101.77 | EC53: 9805624.333 | ED53: 224920839.2 | EE53: 479481.2664 | EF53: 7205054.468 | EG53: 40156595.15 | EH53: 11296765.94 | EI53: 34168077.65 | EJ53: 2441.166913 | EK53: 55721803.28 | EL53: 13152386.19 | EM53: 7380363.382 | EN53: 21448703.76 | EO53: 36136722.51 | EP53: 11715328.49 | EQ53: 426331.6558 | ER53: 7653976.176 | ES53: 12829858.04 | ET53: 13970725.85 | EU53: 11612902.41 | EV53: 17863684.52 | EW53: 12555135.89 | EX53: 33402080.89 | EY53: 11236755.16 | EZ53: 10439953.79 | FA53: 12329588.44 | FB53: 5932352.834 | FC53: 10906436.92 | FD53: 10927891.95 | FE53: 12057905.45 | FF53: 217221708.6 | FG53: 12134893.61 | FH53: 10514855.34 | FI53: 13670185.82 | FJ53: 60934004.32 | FK53: 11837689.11 | FL53: 13044634.43 | FM53: 12538083.26 | FN53: 11284082.53 | FO53: 29052036.82 | FP53: 9120109.85 | FQ53: 23295429.41 | FR53: 16674007.42 | FS53: 18222241.48 | FT53: 8745728.592 | FU53: 26946448.93 | FV53: 36547847.43 | FW53: 12902082.4 | FX53: 13102583.53 | FY53: 12712247.38 | FZ53: 0.05181892205 | GA53: 63764.36301 | GB53: 9241611.529 | GC53: 9595463.17 | GD53: 13198625.25 | GE53: 13690013.59 | GF53: 12466507.46 | GG53: 1883289.405 | GH53: 2767246.109 | GI53: 14957593.46 | GJ53: 21863225.93 | GK53: 12881964.94 | GL53: 380665420 | GM53: 8618669.037 | GN53: 5955341.515 | GO53: 33743327.37 | GP53: 11744452.71 | GQ53: 5389585.872 | GR53: 33393669.06 | GS53: 9493037.627 | GT53: 7933177.34 | GU53: 2221461.891 | GV53: 5117836.972 | GW53: 8860414.902 | GX53: 7032608.673 | GY53: 35205.06654 | GZ53: 147305.6599 | HA53: 974270896.2 | HB53: 172046594.5 | HC53: 236335916.1 | HD53: 534810794.8 | HE53: 341539909.5 | HF53: 82733407.71 | HG53: 40911859.42 | HH53: 38958618.58 | HI53: 38892083.42 | HJ53: 134289.4048 | HK53: 20985275.95 | HL53: 18440465.48 | HM53: 44863114.88 | HN53: 2900681.326 | HO53: 897204.2807 | HP53: 153934522.9 | HQ53: 35947014.44 | HR53: 823937737.7 | HS53: 597676397.6 | HT53: 96757122.88 | HU53: 2283820.198 | HV53: 13294017.46 | HW53: 53940918.28 | HX53: 1.965964757e+10
A54: =+MATCH(B54,RUT[EMPRESA],0) -> 61 | B54: COMASA | C54: 702957761.9 | D54: 702957761.9 | F54: =IFERROR(INDEX($B$9:$B$511,MATCH(0,INDEX(COUNTIF($F$8:F53,$B$9:$B$511),0,0),0)),"") -> COMASA | H54: 702957761.9 | J54: GEOTERMICA_DEL_NORTE | K54: 5362137.494 | L54: 830804.1461 | M54: 891858.5276 | N54: 50713746.4 | O54: 4008624.641 | P54: 1553876.422 | Q54: 36141.53318 | R54: 92195.70913 | S54: 1996729.727 | T54: 272563.1359 | U54: 1208284.204 | V54: 345983.7213 | W54: 121339.6183 | X54: 373243.6967 | Y54: 174449.3853 | Z54: 2554383.958 | AA54: 298422.7548 | AB54: 151721.6346 | AC54: 40156.61684 | AD54: 53277.77406 | AE54: 53779.95471 | AF54: 171951.2938 | AG54: 49035.61522 | AH54: 1371873.454 | AI54: 279176.3956 | AJ54: 493761.6107 | AK54: 827722.8974 | AL54: 408964.1622 | AM54: 23429.76119 | AN54: 26299.67799 | AO54: 2892022.183 | AP54: 8279347.825 | AQ54: 272005.485 | AR54: 1242.928383 | AS54: 3143506.919 | AT54: 68759.2248 | AU54: 365154.4379 | AV54: 331118.4081 | AW54: 63276.15183 | AX54: 20892.96581 | AY54: 201.3182271 | AZ54: 104144.9954 | BA54: 227385.4435 | BB54: 1268.304008 | BC54: 283610.0866 | BD54: 233187.0153 | BE54: 398982.1955 | BF54: 192.6910084 | BG54: 8997.358113 | BH54: 1035224.714 | BI54: 324687.3915 | BJ54: 16049.18011 | BK54: 6673.312095 | BL54: 136462.3556 | BM54: 83654.91359 | BN54: 3111177.717 | BO54: 1359530.379 | BP54: 387834.6488 | BQ54: 3662.392181 | BR54: 176645.949 | BS54: 65502.14396 | BT54: 1025314.255 | BU54: 36992.27566 | BV54: 1559819.389 | BW54: 68081.77476 | BX54: 67486.21293 | BY54: 13763.83682 | BZ54: 39634857.88 | CA54: 1947004.156 | CB54: 145486.9764 | CC54: 5933.065929 | CD54: 38774.99147 | CE54: 896890.7875 | CF54: 219030.1014 | CG54: 4520.498216 | CH54: 205797.0373 | CI54: 29538.41308 | CJ54: 43117.7136 | CK54: 20425.97097 | CL54: 146777.6455 | CM54: 2676145.335 | CN54: 26862.24105 | CO54: 60430.409 | CP54: 145151.3281 | CQ54: 177711.3646 | CR54: 5322.80707 | CS54: 71083.68708 | CT54: 46717.1095 | CU54: 893433.8243 | CV54: 63006.78413 | CW54: 839221.0764 | CX54: 317745.4669 | CY54: 1620059.308 | CZ54: 148378.2139 | DA54: 87147.29686 | DB54: 97028.12414 | DC54: 269139.8423 | DD54: 85521.54542 | DE54: 70343.3631 | DF54: 223800.7703 | DG54: 34214.68972 | DH54: 178427.0663 | DI54: 284255.5276 | DJ54: 12247.35936 | DK54: 230681.7703 | DL54: 938524.5602 | DM54: 6250.047661 | DN54: 66951.33582 | DO54: 79.62353839 | DP54: 168256.5773 | DQ54: 392192.848 | DR54: 64688.81569 | DS54: 97292.92129 | DT54: 102267.9713 | DU54: 87477.40234 | DV54: 1269174.117 | DW54: 32047.31503 | DX54: 88665.68703 | DY54: 448564.4004 | DZ54: 668316.7942 | EA54: 78407.47725 | EB54: 118451.1379 | EC54: 114702.3194 | ED54: 2631035.114 | EE54: 5608.782418 | EF54: 84281.88055 | EG54: 469735.9848 | EH54: 132145.1047 | EI54: 399684.6731 | EJ54: 28.55580608 | EK54: 651811.6399 | EL54: 153851.4173 | EM54: 86332.57497 | EN54: 250898.4625 | EO54: 422713.1028 | EP54: 137041.2841 | EQ54: 4987.059272 | ER54: 89533.18933 | ES54: 150078.6105 | ET54: 163424.0313 | EU54: 135843.1444 | EV54: 208962.3239 | EW54: 146865.0192 | EX54: 390724.3456 | EY54: 131443.1224 | EZ54: 122122.4547 | FA54: 144226.6544 | FB54: 69394.31967 | FC54: 127579.1901 | FD54: 127830.1626 | FE54: 141048.6141 | FF54: 2540973.726 | FG54: 141949.1911 | FH54: 122998.6235 | FI54: 159908.4329 | FJ54: 712781.9083 | FK54: 138472.6103 | FL54: 152590.9798 | FM54: 146665.5443 | FN54: 131996.7393 | FO54: 339839.2486 | FP54: 106683.4418 | FQ54: 272500.7296 | FR54: 195045.9511 | FS54: 213156.5815 | FT54: 102304.0778 | FU54: 315208.9134 | FV54: 427522.2797 | FW54: 150923.4625 | FX54: 153268.8455 | FY54: 148702.8474 | FZ54: 0.0006061572772 | GA54: 745.8903261 | GB54: 108104.7204 | GC54: 112243.9371 | GD54: 154392.3036 | GE54: 160140.3703 | GF54: 145828.2789 | GG54: 22029.9754 | GH54: 32370.15168 | GI54: 174968.0187 | GJ54: 255747.379 | GK54: 150688.1364 | GL54: 4452873.688 | GM54: 100817.7853 | GN54: 69663.23217 | GO54: 394716.1121 | GP54: 137381.9677 | GQ54: 63045.24618 | GR54: 390625.9473 | GS54: 111045.8036 | GT54: 92799.17423 | GU54: 25985.78353 | GV54: 59866.43491 | GW54: 103645.6329 | GX54: 82264.67777 | GY54: 411.8149593 | GZ54: 1723.123411 | HA54: 11396636.02 | HB54: 2012533.09 | HC54: 2764564.173 | HD54: 6256005.381 | HE54: 3995198.923 | HF54: 967782.7166 | HG54: 478570.7678 | HH54: 455722.5282 | HI54: 454944.2261 | HJ54: 1570.864402 | HK54: 245477.4671 | HL54: 215709.2796 | HM54: 524790.9931 | HN54: 33931.02414 | HO54: 10495.1412 | HP54: 1800665.231 | HQ54: 420493.9727 | HR54: 9638098.129 | HS54: 6991382.365 | HT54: 1131826.596 | HU54: 26715.22637 | HV54: 155508.1639 | HW54: 630979.5508 | HX54: 229970790
A55: =+MATCH(B55,RUT[EMPRESA],0) -> 44 | B55: CHACAYES | C55: 2012443698 | D55: 2012443698 | F55: =IFERROR(INDEX($B$9:$B$511,MATCH(0,INDEX(COUNTIF($F$8:F54,$B$9:$B$511),0,0),0)),"") -> CHACAYES | H55: 2012443698 | J55: ATACAMA_GX_CHILE | K55: 5824003.589 | L55: 902365.2106 | M55: 968678.4928 | N55: 55081959.65 | O55: 4353906.315 | P55: 1687719.099 | Q55: 39254.57323 | R55: 100136.9587 | S55: 2168717.44 | T55: 296040.2794 | U55: 1312359.399 | V55: 375784.9247 | W55: 131791.1698 | X55: 405392.9299 | Y55: 189475.5305 | Z55: 2774405.05 | AA55: 324127.3087 | AB55: 164790.1318 | AC55: 43615.49491 | AD55: 57866.83905 | AE55: 58412.27488 | AF55: 186762.2666 | AG55: 53259.28314 | AH55: 1490039.36 | AI55: 303223.1702 | AJ55: 536291.6181 | AK55: 899018.5594 | AL55: 444190.1669 | AM55: 25447.8766 | AN55: 28564.99282 | AO55: 3141125.642 | AP55: 8992486.952 | AQ55: 295434.5953 | AR55: 1349.987645 | AS55: 3414271.939 | AT55: 74681.77988 | AU55: 396606.9053 | AV55: 359639.1923 | AW55: 68726.42408 | AX55: 22692.57512 | AY55: 218.6587119 | AZ55: 113115.4932 | BA55: 246971.2201 | BB55: 1377.548991 | BC55: 308038.7559 | BD55: 253272.5085 | BE55: 433348.4066 | BF55: 209.2883903 | BG55: 9772.342839 | BH55: 1124393.483 | BI55: 352654.242 | BJ55: 17431.5714 | BK55: 7248.115819 | BL55: 148216.4994 | BM55: 90860.50433 | BN55: 3379158.071 | BO55: 1476633.118 | BP55: 421240.6692 | BQ55: 3977.851227 | BR55: 191861.2945 | BS55: 71144.15137 | BT55: 1113629.389 | BU55: 40178.59417 | BV55: 1694173.962 | BW55: 73945.97789 | BX55: 73299.11752 | BY55: 14949.38075 | BZ55: 43048794.41 | CA55: 2114708.771 | CB55: 158018.4532 | CC55: 6444.108773 | CD55: 42114.86367 | CE55: 974144.2049 | CF55: 237896.193 | CG55: 4909.869965 | CH55: 223523.303 | CI55: 32082.69538 | CJ55: 46831.64485 | CK55: 22185.35581 | CL55: 159420.2937 | CM55: 2906654.306 | CN55: 29176.01208 | CO55: 65635.56404 | CP55: 157653.894 | CQ55: 193018.4794 | CR55: 5781.285451 | CS55: 77206.45902 | CT55: 50741.07363 | CU55: 970389.4772 | CV55: 68433.85448 | CW55: 911507.1306 | CX55: 345114.3769 | CY55: 1759602.627 | CZ55: 161158.7266 | DA55: 94653.70298 | DB55: 105385.6123 | DC55: 292322.1214 | DD55: 92887.91793 | DE55: 76402.36745 | DF55: 243077.7821 | DG55: 37161.7617 | DH55: 193795.8278 | DI55: 308739.7918 | DJ55: 13302.28197 | DK55: 250551.4749 | DL55: 1019364.09 | DM55: 6788.39363 | DN55: 72718.16893 | DO55: 86.48188784 | DP55: 182749.3069 | DQ55: 425974.2606 | DR55: 70260.76731 | DS55: 105673.2177 | DT55: 111076.7922 | DU55: 95012.24199 | DV55: 1378494.046 | DW55: 34807.70084 | DX55: 96302.87923 | DY55: 487201.3596 | DZ55: 725882.0596 | EA55: 85161.08164 | EB55: 128653.8909 | EC55: 124582.1691 | ED55: 2857658.529 | EE55: 6091.893199 | EF55: 91541.4749 | EG55: 510196.5521 | EH55: 143527.3835 | EI55: 434111.3918 | EJ55: 31.01545182 | EK55: 707955.2388 | EL55: 167103.3627 | EM55: 93768.80526 | EN55: 272509.5258 | EO55: 459123.3684 | EP55: 148845.2938 | EQ55: 5416.618117 | ER55: 97245.10358 | ES55: 163005.5863 | ET55: 177500.5109 | EU55: 147543.9526 | EV55: 226961.2306 | EW55: 159515.1934 | EX55: 424379.2692 | EY55: 142764.9361 | EZ55: 132641.4355 | FA55: 156649.5737 | FB55: 75371.57845 | FC55: 138568.1852 | FD55: 138840.775 | FE55: 153197.7939 | FF55: 2759839.731 | FG55: 154175.9418 | FH55: 133593.0728 | FI55: 173682.0975 | FJ55: 774177.163 | FK55: 150399.9069 | FL55: 165734.3578 | FM55: 159298.5367 | FN55: 143366.2386 | FO55: 369111.1998 | FP55: 115872.5879 | FQ55: 295972.4977 | FR55: 211846.1753 | FS55: 231516.7593 | FT55: 111116.0086 | FU55: 342359.338 | FV55: 464346.7822 | FW55: 163923.2094 | FX55: 166470.6113 | FY55: 161511.3223 | FZ55: 0.0006583684514 | GA55: 810.1373643 | GB55: 117416.2879 | GC55: 121912.0348 | GD55: 167690.8381 | GE55: 173934.0128 | GF55: 158389.1537 | GG55: 23927.52069 | GH55: 35158.34493 | GI55: 190038.8362 | GJ55: 277776.1024 | GK55: 163667.6136 | GL55: 4836420.62 | GM55: 109501.6948 | GN55: 75663.65366 | GO55: 428714.8653 | GP55: 149215.322 | GQ55: 68475.62944 | GR55: 424272.3954 | GS55: 120610.7004 | GT55: 100792.4031 | GU55: 28224.06115 | GV55: 65023.01222 | GW55: 112573.1182 | GX55: 89350.52097 | GY55: 447.2865166 | GZ55: 1871.544126 | HA55: 12378281.83 | HB55: 2185882.02 | HC55: 3002689.074 | HD55: 6794864.517 | HE55: 4339324.177 | HF55: 1051142.389 | HG55: 519792.3165 | HH55: 494976.0506 | HI55: 494130.7098 | HJ55: 1706.170333 | HK55: 266621.5946 | HL55: 234289.3334 | HM55: 569993.7069 | HN55: 36853.66266 | HO55: 11399.13702 | HP55: 1955764.988 | HQ55: 456713.0942 | HR55: 10468272.8 | HS55: 7593582.976 | HT55: 1229316.138 | HU55: 29016.33434 | HV55: 168902.8127 | HW55: 685328.784 | HX55: 249779254.6
A56: =+MATCH(B56,RUT[EMPRESA],0) -> 109 | B56: ENERBOSCH | C56: 66115802.3 | D56: 66115802.3 | F56: =IFERROR(INDEX($B$9:$B$511,MATCH(0,INDEX(COUNTIF($F$8:F55,$B$9:$B$511),0,0),0)),"") -> ENERBOSCH | H56: 66115802.3 | J56: NORACID | K56: 1231635.114 | L56: 190828.2957 | M56: 204851.9421 | N56: 11648494.82 | O56: 920745.2949 | P56: 356911.5426 | Q56: 8301.387534 | R56: 21176.53135 | S56: 458630.9935 | T56: 62605.31914 | U56: 277532.0952 | V56: 79469.37216 | W56: 27870.62713 | X56: 85730.74517 | Y56: 40069.4665 | Z56: 586719.1921 | AA56: 68545.04274 | AB56: 34849.10505 | AC56: 9223.616408 | AD56: 12237.42909 | AE56: 12352.7755 | AF56: 39495.67718 | AG56: 11263.04307 | AH56: 315107.0857 | AI56: 64124.32584 | AJ56: 113412.6342 | AK56: 190120.5604 | AL56: 93935.41722 | AM56: 5381.606986 | AN56: 6040.801257 | AO56: 664271.6783 | AP56: 1901692.285 | AQ56: 62477.23169 | AR56: 285.489554 | AS56: 722035.477 | AT56: 15793.38012 | AU56: 83872.71464 | AV56: 76054.94243 | AW56: 14533.96721 | AX56: 4798.927735 | AY56: 46.2409996 | AZ56: 23921.17574 | BA56: 52228.4065 | BB56: 291.3181085 | BC56: 65142.7051 | BD56: 53560.97575 | BE56: 91642.64859 | BF56: 44.25940447 | BG56: 2066.612839 | BH56: 237781.8754 | BI56: 74577.79532 | BJ56: 3686.353401 | BK56: 1532.800215 | BL56: 31344.18488 | BM56: 19214.78686 | BN56: 714609.748 | BO56: 312271.9915 | BP56: 89082.15661 | BQ56: 841.2187896 | BR56: 40573.99756 | BS56: 15045.25773 | BT56: 235505.5313 | BU56: 8496.795488 | BV56: 358276.5891 | BW56: 15637.77589 | BX56: 15500.98066 | BY56: 3161.430447 | BZ56: 9103773.033 | CA56: 447209.4736 | CB56: 33417.0597 | CC56: 1362.772279 | CD56: 8906.269396 | CE56: 206007.8073 | CF56: 50309.25899 | CG56: 1038.318085 | CH56: 47269.7423 | CI56: 6784.709795 | CJ56: 9903.753901 | CK56: 4691.663188 | CL56: 33713.51488 | CM56: 614686.6934 | CN56: 6170.01697 | CO56: 13880.32548 | CP56: 33339.9643 | CQ56: 40818.71402 | CR56: 1222.601267 | CS56: 16327.28835 | CT56: 10730.50301 | CU56: 205213.7737 | CV56: 14472.09585 | CW56: 192761.5895 | CX56: 72983.29723 | CY56: 372113.1606 | CZ56: 34081.15116 | DA56: 20016.95612 | DB56: 22286.49394 | DC56: 61819.01915 | DD56: 19643.53553 | DE56: 16157.24255 | DF56: 51405.03905 | DG56: 7858.808793 | DH56: 40983.1043 | DI56: 65290.95714 | DJ56: 2813.109113 | DK56: 52985.54332 | DL56: 215570.7132 | DM56: 1435.580153 | DN56: 15378.12416 | DO56: 18.28881596 | DP56: 38647.03378 | DQ56: 90083.19606 | DR56: 14858.44348 | DS56: 22347.31548 | DT56: 23490.04006 | DU56: 20092.7784 | DV56: 291517.9646 | DW56: 7360.982175 | DX56: 20365.71679 | DY56: 103031.2384 | DZ56: 153506.4015 | EA56: 18009.49758 | EB56: 27207.16895 | EC56: 26346.09881 | ED56: 604325.2782 | EE56: 1288.287252 | EF56: 19358.79557 | EG56: 107894.1624 | EH56: 30352.55089 | EI56: 91804.0014 | EJ56: 6.559013737 | EK56: 149715.3149 | EL56: 35338.29712 | EM56: 19829.82178 | EN56: 57629.13705 | EO56: 97093.42614 | EP56: 31477.15959 | EQ56: 1145.482995 | ER56: 20564.97432 | ES56: 34471.71707 | ET56: 37537.0411 | EU56: 31201.95758 | EV56: 47996.78038 | EW56: 33733.58385 | EX56: 89745.89417 | EY56: 30191.31182 | EZ56: 28050.43765 | FA56: 33127.57499 | FB56: 15939.25574 | FC56: 29303.80107 | FD56: 29361.44719 | FE56: 32397.6075 | FF56: 583638.9814 | FG56: 32604.462 | FH56: 28251.6858 | FI56: 36729.53952 | FJ56: 163719.6413 | FK56: 31805.92245 | FL56: 35048.78587 | FM56: 33687.76624 | FN56: 30318.47267 | FO56: 78058.04165 | FP56: 24504.23421 | FQ56: 62590.98495 | FR56: 44800.31379 | FS56: 48960.1639 | FT56: 23498.33339 | FU56: 72400.67352 | FV56: 98198.05113 | FW56: 34665.77203 | FX56: 35204.48558 | FY56: 34155.71657 | FZ56: 0.0001392289154 | GA56: 171.3243493 | GB56: 24830.68923 | GC56: 25781.43035 | GD56: 35462.53386 | GE56: 36782.81348 | GF56: 33495.45385 | GG56: 5060.088687 | GH56: 7435.134871 | GI56: 40188.59195 | GJ56: 58742.8899 | GK56: 34611.71974 | GL56: 1022785.335 | GM56: 23156.94527 | GN56: 16001.02254 | GO56: 90662.7673 | GP56: 31555.41156 | GQ56: 14480.93024 | GR56: 89723.29296 | GS56: 25506.22978 | GT56: 21315.1419 | GU56: 5968.702501 | GV56: 13750.78567 | GW56: 23806.47663 | GX56: 18895.4621 | GY56: 94.59021986 | GZ56: 395.7860651 | HA56: 2617705.556 | HB56: 462260.8847 | HC56: 634995.7112 | HD56: 1436948.588 | HE56: 917661.5274 | HF56: 222291.0506 | HG56: 109923.4331 | HH56: 104675.3965 | HI56: 104496.6274 | HJ56: 360.8135299 | HK56: 56383.9828 | HL56: 49546.49589 | HM56: 120539.8063 | HN56: 7793.65334 | HO56: 2410.640244 | HP56: 413596.729 | HQ56: 96583.71177 | HR56: 2213785.1 | HS56: 1605858.117 | HT56: 259970.4653 | HU56: 6136.24901 | HV56: 35718.83703 | HW56: 144930.37 | HX56: 52822237.5
A57: =+MATCH(B57,RUT[EMPRESA],0) -> 168 | B57: HIDROMUCHI | C57: 302115.9933 | D57: 302115.9933 | F57: =IFERROR(INDEX($B$9:$B$511,MATCH(0,INDEX(COUNTIF($F$8:F56,$B$9:$B$511),0,0),0)),"") -> HIDROMUCHI | H57: 302115.9933 | J57: TAMAKAYA_ENERGIA | K57: 148683796.4 | L57: 23036916.66 | M57: 24729860.42 | N57: 1406213913 | O57: 111152974.1 | P57: 43086594.84 | Q57: 1002148.932 | R57: 2556444.714 | S57: 55366233.46 | T57: 7557755.068 | U57: 33503856.02 | V57: 9593594.578 | W57: 3364560.334 | X57: 10349471.62 | Y57: 4837212.2 | Z57: 70829124.56 | AA57: 8274802.386 | AB57: 4207006.752 | AC57: 1113481.005 | AD57: 1477310.442 | AE57: 1491235.137 | AF57: 4767943.978 | AG57: 1359681.925 | AH57: 38039933.45 | AI57: 7741130.551 | AJ57: 13691247.36 | AK57: 22951478.39 | AL57: 11339945 | AM57: 649671.1148 | AN57: 729249.4782 | AO57: 80191311.42 | AP57: 229573536.3 | AQ57: 7542292.268 | AR57: 34464.48566 | AS57: 87164594.97 | AT57: 1906587.176 | AU57: 10125168.96 | AV57: 9181402.388 | AW57: 1754550.026 | AX57: 579329.6945 | AY57: 5582.243712 | AZ57: 2887779.979 | BA57: 6305047.389 | BB57: 35168.11257 | BC57: 7864069.961 | BD57: 6465916.019 | BE57: 11063160.47 | BF57: 5343.024252 | BG57: 249482.8534 | BH57: 28705183.5 | BI57: 9003080.222 | BJ57: 445018.9933 | BK57: 185040.6444 | BL57: 3783890.496 | BM57: 2319621.636 | BN57: 86268156.11 | BO57: 37697679.03 | BP57: 10754056.2 | BQ57: 101552.4824 | BR57: 4898119.519 | BS57: 1816273.352 | BT57: 28430381.75 | BU57: 1025738.708 | BV57: 43251384.14 | BW57: 1887802.533 | BX57: 1871288.522 | BY57: 381649.951 | BZ57: 1099013434 | CA57: 53987420.12 | CB57: 4034129.301 | CC57: 164514.7607 | CD57: 1075170.666 | CE57: 24869397.22 | CF57: 6073366.646 | CG57: 125346.4383 | CH57: 5706434.204 | CI57: 819054.6034 | CJ57: 1195587.648 | CK57: 566380.6482 | CL57: 4069917.564 | CM57: 74205379.62 | CN57: 744848.4836 | CO57: 1675641.969 | CP57: 4024822.294 | CQ57: 4927661.85 | CR57: 147593.2245 | CS57: 1971040.928 | CT57: 1295393.34 | CU57: 24773540.97 | CV57: 1747080.875 | CW57: 23270305.14 | CX57: 8810591.37 | CY57: 44921744.1 | CZ57: 4114298.856 | DA57: 2416460.033 | DB57: 2690440.123 | DC57: 7462832.419 | DD57: 2371380.455 | DE57: 1950512.886 | DF57: 6205649.931 | DG57: 948720.5369 | DH57: 4947507.153 | DI57: 7881967.044 | DJ57: 339600.3718 | DK57: 6396449.441 | DL57: 26023837.48 | DM57: 173304.1749 | DN57: 1856457.205 | DO57: 2207.837824 | DP57: 4665495.192 | DQ57: 10874902.34 | DR57: 1793721.014 | DS57: 2697782.539 | DT57: 2835732.998 | DU57: 2425613.349 | DV57: 35192239.33 | DW57: 888622.582 | DX57: 2458562.649 | DY57: 12437998.48 | DZ57: 18531393.18 | EA57: 2174118.325 | EB57: 3284467.228 | EC57: 3180518.278 | ED57: 72954542.8 | EE57: 155522.8795 | EF57: 2337006.462 | EG57: 13025053.84 | EH57: 3664179.794 | EI57: 11082639.09 | EJ57: 791.8084277 | EK57: 18073730.73 | EL57: 4266062.338 | EM57: 2393869.053 | EN57: 6957027.112 | EO57: 11721181.9 | EP57: 3799943.291 | EQ57: 138283.4563 | ER57: 2482617.149 | ES57: 4161448.228 | ET57: 4531496.15 | EU57: 3766720.724 | EV57: 5794202.716 | EW57: 4072340.303 | EX57: 10834183.04 | EY57: 3644714.907 | EZ57: 3386267.178 | FA57: 3999182.517 | FB57: 1924197.377 | FC57: 3537574.029 | FD57: 3544533.107 | FE57: 3911060.365 | FF57: 70457279.52 | FG57: 3936031.975 | FH57: 3410561.985 | FI57: 4434014.031 | FJ57: 19764342.17 | FK57: 3839631.758 | FL57: 4231112.351 | FM57: 4066809.171 | FN57: 3660065.848 | FO57: 9423217.836 | FP57: 2958167.179 | FQ57: 7556024.636 | FR57: 5408323.179 | FS57: 5910503.005 | FT57: 2836734.174 | FU57: 8740256.655 | FV57: 11854532.95 | FW57: 4184874.67 | FX57: 4249908.522 | FY57: 4123300.441 | FZ57: 0.01680780572 | GA57: 20682.38749 | GB57: 2997577.042 | GC57: 3112351.132 | GD57: 4281060.279 | GE57: 4440445.298 | GF57: 4043593.093 | GG57: 610857.2155 | GH57: 897574.344 | GI57: 4851593.102 | GJ57: 7091480.084 | GK57: 4178349.442 | GL57: 123471314.5 | GM57: 2795521.577 | GN57: 1931653.906 | GO57: 10944868.56 | GP57: 3809389.92 | GQ57: 1748147.369 | GR57: 10831454.6 | GS57: 3079128.739 | GT57: 2573177.869 | GU57: 720545.6692 | GV57: 1660003.839 | GW57: 2873933.427 | GX57: 2281072.542 | GY57: 11418.9932 | GZ57: 47779.55261 | HA57: 316011126.7 | HB57: 55804436.31 | HC57: 76657097.52 | HD57: 173469373.3 | HE57: 110780699.7 | HF57: 26835121 | HG57: 13270028.74 | HH57: 12636482.32 | HI57: 12614901.2 | HJ57: 43557.64529 | HK57: 6806711.277 | HL57: 5981285.385 | HM57: 14551644.24 | HN57: 940854.928 | HO57: 291014.0667 | HP57: 49929667.61 | HQ57: 11659648.85 | HR57: 267249585.1 | HS57: 193860242.1 | HT57: 31383804.58 | HU57: 740771.9934 | HV57: 4312001.365 | HW57: 17496089.05 | HX57: 6376735055
A58: =+MATCH(B58,RUT[EMPRESA],0) -> 184 | B58: LA ARENA SPA | C58: -152567768.1 | D58: -152567768.1 | F58: =IFERROR(INDEX($B$9:$B$511,MATCH(0,INDEX(COUNTIF($F$8:F57,$B$9:$B$511),0,0),0)),"") -> LA ARENA SPA | G58: -152567768.1 | J58: POZO_ALMONTE_SOLAR_2 | K58: 100241.6237 | L58: 15531.33554 | M58: 16672.70693 | N58: 948060.0398 | O58: 74938.59371 | P58: 29048.69482 | Q58: 675.6421249 | R58: 1723.537973 | S58: 37327.54527 | T58: 5095.388052 | U58: 22588.07624 | V58: 6467.937469 | W58: 2268.364133 | X58: 6977.54473 | Y58: 3261.216198 | Z58: 47752.5233 | AA58: 5578.81657 | AB58: 2836.335888 | AC58: 750.7014657 | AD58: 995.9928457 | AE58: 1005.380782 | AF58: 3214.516024 | AG58: 916.6884841 | AH58: 25646.26938 | AI58: 5219.018579 | AJ58: 9230.547643 | AK58: 15473.73363 | AL58: 7645.315273 | AM58: 438.0039318 | AN58: 491.6551337 | AO58: 54064.44723 | AP58: 154776.9468 | AQ58: 5084.963135 | AR58: 23.23572633 | AS58: 58765.78849 | AT58: 1285.408356 | AU58: 6826.321372 | AV58: 6190.040244 | AW58: 1182.905924 | AX58: 390.5802155 | AY58: 3.763511473 | AZ58: 1946.921998 | BA58: 4250.820891 | BB58: 23.7101069 | BC58: 5301.903509 | BD58: 4359.277448 | BE58: 7458.70899 | BF58: 3.602231309 | BG58: 168.1996755 | BH58: 19352.84323 | BI58: 6069.81663 | BJ58: 300.0288367 | BK58: 124.7531681 | BL58: 2551.073732 | BM58: 1563.873433 | BN58: 58161.41539 | BO58: 25415.52373 | BP58: 7250.312955 | BQ58: 68.46600622 | BR58: 3302.279506 | BS58: 1224.519378 | BT58: 19167.57373 | BU58: 691.5461946 | BV58: 29159.79467 | BW58: 1272.743875 | BX58: 1261.610239 | BY58: 257.3058511 | BZ58: 740947.5262 | CA58: 36397.95851 | CB58: 2719.783065 | CC58: 110.9147543 | CD58: 724.8728909 | CE58: 16766.78171 | CF58: 4094.623279 | CG58: 84.50773256 | CH58: 3847.239874 | CI58: 552.20115 | CJ58: 806.0572167 | CK58: 381.8500549 | CL58: 2743.911272 | CM58: 50028.77194 | CN58: 502.171879 | CO58: 1129.706638 | CP58: 2713.508342 | CQ58: 3322.196749 | CR58: 99.50636741 | CS58: 1328.862645 | CT58: 873.3455489 | CU58: 16702.15606 | CV58: 1177.870272 | CW58: 15688.6845 | CX58: 5940.04193 | CY58: 30285.94021 | CZ58: 2773.832844 | DA58: 1629.161235 | DB58: 1813.876784 | DC58: 5031.391835 | DD58: 1598.768884 | DE58: 1315.022777 | DF58: 4183.807788 | DG58: 639.6210574 | DH58: 3335.57632 | DI58: 5313.969603 | DJ58: 228.9563053 | DK58: 4312.443545 | DL58: 17545.09763 | DM58: 116.8405187 | DN58: 1251.611064 | DO58: 1.488509533 | DP58: 3145.445737 | DQ58: 7331.786615 | DR58: 1209.314743 | DS58: 1818.826992 | DT58: 1911.832271 | DU58: 1635.332339 | DV58: 23726.373 | DW58: 599.1034171 | DX58: 1657.546538 | DY58: 8385.615606 | DZ58: 12493.74167 | EA58: 1465.776072 | EB58: 2214.365896 | EC58: 2144.284207 | ED58: 49185.4661 | EE58: 104.8524879 | EF58: 1575.594167 | EG58: 8781.404413 | EH58: 2470.365574 | EI58: 7471.841343 | EJ58: 0.5338319601 | EK58: 12185.18869 | EL58: 2876.150771 | EM58: 1613.930547 | EN58: 4690.381271 | EO58: 7902.342649 | EP58: 2561.896419 | EQ58: 93.22978378 | ER58: 1673.763921 | ES58: 2805.620636 | ET58: 3055.104476 | EU58: 2539.497986 | EV58: 3906.41282 | EW58: 2745.544667 | EX58: 7304.333932 | EY58: 2457.242477 | EZ58: 2282.998743 | FA58: 2696.222176 | FB58: 1297.281036 | FC58: 2385.008812 | FD58: 2389.700576 | FE58: 2636.810809 | FF58: 47501.82786 | FG58: 2653.646502 | FH58: 2299.37814 | FI58: 2989.382682 | FJ58: 13324.98765 | FK58: 2588.654118 | FL58: 2852.587723 | FM58: 2741.815615 | FN58: 2467.59198 | FO58: 6353.070606 | FP58: 1994.376579 | FQ58: 5094.221406 | FR58: 3646.25541 | FS58: 3984.821699 | FT58: 1912.507257 | FU58: 5892.622733 | FV58: 7992.247038 | FW58: 2821.414586 | FX58: 2865.259976 | FY58: 2779.901653 | FZ58: 1.13317105e-05 | GA58: 13.94392768 | GB58: 2020.946446 | GC58: 2098.326372 | GD58: 2886.262283 | GE58: 2993.718599 | GF58: 2726.16349 | GG58: 411.8358599 | GH58: 605.1386353 | GI58: 3270.911706 | GJ58: 4781.028568 | GK58: 2817.015322 | GL58: 83243.53662 | GM58: 1884.722 | GN58: 1302.308178 | GO58: 7378.957373 | GP58: 2568.265273 | GQ58: 1178.589295 | GR58: 7302.49444 | GS58: 2075.928056 | GT58: 1734.819355 | GU58: 485.7870837 | GV58: 1119.163515 | GW58: 1937.586746 | GX58: 1537.883892 | GY58: 7.698609044 | GZ58: 32.21265565 | HA58: 213052.5936 | HB58: 37622.97871 | HC58: 51681.7038 | HD58: 116951.8943 | HE58: 74687.60876 | HF58: 18092.05957 | HG58: 8946.564854 | HH58: 8519.432084 | HI58: 8504.882241 | HJ58: 29.3662739 | HK58: 4589.039338 | HL58: 4032.542708 | HM58: 9810.621479 | HN58: 634.3181164 | HO58: 196.1997425 | HP58: 33662.24884 | HQ58: 7860.857475 | HR58: 180177.8875 | HS58: 130699.282 | HT58: 21158.7517 | HU58: 499.4235365 | HV58: 2907.122556 | HW58: 11795.74653 | HX58: 4299152.237
A59: =+MATCH(B59,RUT[EMPRESA],0) -> 34 | B59: CARDONES SA | C59: -1249073.028 | D59: -1249073.028 | F59: =IFERROR(INDEX($B$9:$B$511,MATCH(0,INDEX(COUNTIF($F$8:F58,$B$9:$B$511),0,0),0)),"") -> CARDONES SA | G59: -1249073.028 | J59: POZO_ALMONTE_SOLAR_3 | K59: =$HX59*K$67/$HX$67 -> 102188.9903 | L59: 15833.05854 | M59: 16996.60305 | N59: 966477.7426 | O59: 76394.40525 | P59: 29613.01587 | Q59: 688.7676396 | R59: 1757.020673 | S59: 38052.69727 | T59: 5194.374761 | U59: =$HX59*U$67/$HX$67 -> 23026.88861 | V59: 6593.58832 | W59: 2312.431022 | X59: 7113.095582 | Y59: 3324.570952 | Z59: 48680.1985 | AA59: 5687.194713 | AB59: 2891.436609 | AC59: 765.2851376 | AD59: 1015.341726 | AE59: =$HX59*AE$67/$HX$67 -> 1024.912039 | AF59: 3276.963547 | AG59: 934.4967404 | AH59: 26144.49244 | AI59: 5320.407025 | AJ59: 9409.866965 | AK59: 15774.33761 | AL59: 7793.83872 | AM59: 446.5129143 | AN59: 501.2063834 | AO59: =$HX59*AO$67/$HX$67 -> 55114.74245 | AP59: 157783.7562 | AQ59: 5183.747322 | AR59: 23.68712043 | AS59: 59907.41537 | AT59: 1310.379632 | AU59: 6958.934449 | AV59: 6310.292462 | AW59: 1205.885913 | AX59: 398.1679104 | AY59: =$HX59*AY$67/$HX$67 -> 3.83662418 | AZ59: 1984.744319 | BA59: 4333.400424 | BB59: 24.17071666 | BC59: 5404.902137 | BD59: 4443.963938 | BE59: 7603.607287 | BF59: 3.672210871 | BG59: 171.4672446 | BH59: 19728.80562 | BI59: =$HX59*BI$67/$HX$67 -> 6187.733296 | BJ59: 305.8574148 | BK59: 127.1767138 | BL59: 2600.632743 | BM59: 1594.254375 | BN59: 59291.30128 | BO59: 25909.26416 | BP59: 7391.1628 | BQ59: 69.79607659 | BR59: 3366.431986 | BS59: =$HX59*BS$67/$HX$67 -> 1248.307781 | BT59: 19539.93694 | BU59: 704.9806732 | BV59: 29726.27402 | BW59: 1297.469121 | BX59: 1286.119196 | BY59: 262.3044615 | BZ59: 755341.711 | CA59: 37105.05169 | CB59: 2772.619546 | CC59: =$HX59*CC$67/$HX$67 -> 113.0694648 | CD59: 738.9547981 | CE59: 17092.50539 | CF59: 4174.168405 | CG59: 86.14944115 | CH59: 3921.97915 | CI59: 562.9286106 | CJ59: 821.7162696 | CK59: 389.2681514 | CL59: 2797.216486 | CM59: =$HX59*CM$67/$HX$67 -> 51000.6672 | CN59: 511.9274346 | CO59: 1151.65314 | CP59: 2766.222926 | CQ59: 3386.736156 | CR59: 101.4394504 | CS59: 1354.678096 | CT59: 890.3117938 | CU59: 17026.62428 | CV59: 1200.752435 | CW59: =$HX59*CW$67/$HX$67 -> 15993.46428 | CX59: 6055.437498 | CY59: 30874.29688 | CZ59: 2827.719335 | DA59: 1660.810505 | DB59: 1849.114472 | DC59: 5129.135307 | DD59: 1629.82773 | DE59: 1340.569364 | DF59: 4265.085477 | DG59: =$HX59*DG$67/$HX$67 -> 652.0468006 | DH59: 3400.375648 | DI59: 5417.202636 | DJ59: 233.4041768 | DK59: 4396.220205 | DL59: 17885.94144 | DM59: 119.1103475 | DN59: 1275.92577 | DO59: 1.5174264 | DP59: 3206.55145 | DQ59: =$HX59*DQ$67/$HX$67 -> 7474.219226 | DR59: 1232.807769 | DS59: 1854.160846 | DT59: 1948.972913 | DU59: 1667.101493 | DV59: 24187.29876 | DW59: 610.7420352 | DX59: 1689.747241 | DY59: 8548.520665 | DZ59: 12736.45417 | EA59: =$HX59*EA$67/$HX$67 -> 1494.251303 | EB59: 2257.383776 | EC59: 2185.940629 | ED59: 50140.97869 | EE59: 106.8894285 | EF59: 1606.202804 | EG59: 8951.998352 | EH59: 2518.35669 | EI59: 7616.99476 | EJ59: 0.5442025675 | EK59: =$HX59*EK$67/$HX$67 -> 12421.90702 | EL59: 2932.024965 | EM59: 1645.283934 | EN59: 4781.500024 | EO59: 8055.859296 | EP59: 2611.665679 | EQ59: 95.04093327 | ER59: 1706.279675 | ES59: 2860.12466 | ET59: 3114.455154 | EU59: =$HX59*EU$67/$HX$67 -> 2588.832118 | EV59: 3982.301632 | EW59: 2798.881612 | EX59: 7446.233227 | EY59: 2504.978654 | EZ59: 2327.349934 | FA59: 2748.600946 | FB59: 1322.482959 | FC59: 2431.341726 | FD59: 2436.124635 | FE59: =$HX59*FE$67/$HX$67 -> 2688.03541 | FF59: 48424.63286 | FG59: 2705.198166 | FH59: 2344.04753 | FI59: 3047.456601 | FJ59: 13583.84854 | FK59: 2638.943193 | FL59: 2908.004164 | FM59: 2795.080116 | FN59: 2515.529214 | FO59: =$HX59*FO$67/$HX$67 -> 6476.489969 | FP59: 2033.120787 | FQ59: 5193.185451 | FR59: 3717.090216 | FS59: 4062.233739 | FT59: 1949.661012 | FU59: 6007.097102 | FV59: 8147.510233 | FW59: 2876.225435 | FX59: 2920.922597 | FY59: =$HX59*FY$67/$HX$67 -> 2833.906041 | FZ59: 1.155184853e-05 | GA59: 14.21481255 | GB59: 2060.20682 | GC59: 2139.089984 | GD59: 2942.33291 | GE59: 3051.876751 | GF59: 2779.123922 | GG59: 419.8364824 | GH59: 616.8944979 | GI59: =$HX59*GI$67/$HX$67 -> 3334.454813 | GJ59: 4873.908301 | GK59: 2871.740707 | GL59: 84860.68602 | GM59: 1921.335978 | GN59: 1327.607762 | GO59: 7522.306358 | GP59: 2618.15826 | GQ59: 1201.485426 | GR59: 7444.358001 | GS59: =$HX59*GS$67/$HX$67 -> 2116.256542 | GT59: 1768.521216 | GU59: 495.2243364 | GV59: 1140.905198 | GW59: 1975.227713 | GX59: 1567.759941 | GY59: 7.848167815 | GZ59: 32.83844209 | HA59: 217191.508 | HB59: 38353.87002 | HC59: =$HX59*HC$67/$HX$67 -> 52685.71011 | HD59: 119223.8868 | HE59: 76138.54449 | HF59: 18443.52906 | HG59: 9120.367321 | HH59: 8684.936759 | HI59: 8670.10426 | HJ59: 29.93676446 | HK59: 4678.189349 | HL59: 4110.881811 | HM59: =$HX59*HM$67/$HX$67 -> 10001.20974 | HN59: 646.6408408 | HO59: 200.0112612 | HP59: 34316.19613 | HQ59: 8013.568202 | HR59: 183678.154 | HS59: 133238.3412 | HT59: 21569.79697 | HU59: 509.1257008 | HV59: 2963.59843 | HW59: 12024.89927 | HX59: 4382670.691
A60: =+MATCH(B60,RUT[EMPRESA],0) -> 32 | B60: CAPULLO | C60: -22638789.75 | D60: -22638789.75 | F60: =IFERROR(INDEX($B$9:$B$511,MATCH(0,INDEX(COUNTIF($F$8:F59,$B$9:$B$511),0,0),0)),"") -> CAPULLO | G60: -22638789.75 | J60: HORNITOS | K60: 30327964.85 | L60: 4698984.121 | M60: 5044304.46 | N60: 286834255.9 | O60: 22672568.05 | P60: 8788642.507 | Q60: 204414.5919 | R60: 521454.0337 | S60: 11293397.28 | T60: 1541602.619 | U60: 6833991.275 | V60: 1956865.55 | W60: 686290.4362 | X60: 2111046.523 | Y60: 986676.4574 | Z60: 14447459.99 | AA60: 1687863.25 | AB60: 858129.5065 | AC60: 227123.6919 | AD60: 301336.2601 | AE60: 304176.5672 | AF60: 972547.3844 | AG60: 277342.8351 | AH60: 7759243.388 | AI60: 1579006.864 | AJ60: 2792689.443 | AK60: 4681556.742 | AL60: 2313079.579 | AM60: 132517.4848 | AN60: 148749.5818 | AO60: 16357123.86 | AP60: 46827551.53 | AQ60: 1538448.575 | AR60: 7029.936916 | AS60: 17779508.16 | AT60: 388898.5232 | AU60: 2065294.105 | AV60: 1872788.128 | AW60: 357886.5538 | AX60: 118169.5049 | AY60: 1138.645199 | AZ60: 589038.5622 | BA60: 1286079.991 | BB60: 7173.460102 | BC60: 1604083.586 | BD60: 1318893.373 | BE60: 2256622.105 | BF60: 1089.850108 | BG60: 50888.57958 | BH60: 5855175.996 | BI60: 1836414.64 | BJ60: 90773.31025 | BK60: 37743.89875 | BL60: 771823.8348 | BM60: 473147.7478 | BN60: 17596655.91 | BO60: 7689431.611 | BP60: 2193572.173 | BQ60: 20714.29564 | BR60: 999100.1046 | BS60: 370476.647 | BT60: 5799122.964 | BU60: 209226.3462 | BV60: 8822255.613 | BW60: 385066.9018 | BX60: 381698.4357 | BY60: 77847.52996 | BZ60: 224172650.9 | CA60: 11012152.09 | CB60: 822866.6106 | CC60: 33557.10575 | CD60: 219309.2922 | CE60: 5072766.654 | CF60: 1238822.619 | CG60: 25567.69779 | CH60: 1163977.112 | CI60: 167067.6954 | CJ60: 243871.4979 | CK60: 115528.2068 | CL60: 830166.5665 | CM60: 15136135.87 | CN60: 151931.4086 | CO60: 341791.1834 | CP60: 820968.202 | CQ60: 1005126.039 | CR60: 30105.51406 | CS60: 402045.5584 | CT60: 264229.4899 | CU60: 5053214.254 | CV60: 356363.0244 | CW60: 4746589.832 | CX60: 1797151.483 | CY60: 9162969.391 | CZ60: 839219.2967 | DA60: 492900.4821 | DB60: 548785.9163 | DC60: 1522240.652 | DD60: 483705.3183 | DE60: 397858.3253 | DF60: 1265805.269 | DG60: 193516.4677 | DH60: 1009174.01 | DI60: 1607734.166 | DJ60: 69270.41402 | DK60: 1304723.84 | DL60: 5308245.061 | DM60: 35349.93759 | DN60: 378673.1991 | DO60: 450.3465038 | DP60: 951650.2642 | DQ60: 2218221.916 | DR60: 365876.5055 | DS60: 550283.5949 | DT60: 578422.2136 | DU60: 494767.5411 | DV60: 7178381.389 | DW60: 181257.9116 | DX60: 501488.4162 | DY60: 2537056.422 | DZ60: 3779964.289 | EA60: 443468.5266 | EB60: 669953.344 | EC60: 648750.2258 | ED60: 14880994.85 | EE60: 31722.97544 | EF60: 476693.8396 | EG60: 2656801.779 | EH60: 747405.6933 | EI60: 2260595.281 | EJ60: 161.5101224 | EK60: 3686612.013 | EL60: 870175.4443 | EM60: 488292.4583 | EN60: 1419068.377 | EO60: 2390842.856 | EP60: 775098.2238 | EQ60: 28206.54235 | ER60: 506394.9631 | ES60: 848836.6492 | ET60: 924317.6406 | EU60: 768321.6089 | EV60: 1181879.804 | EW60: 830660.7478 | EX60: 2209916.145 | EY60: 743435.3185 | EZ60: 690718.1171 | FA60: 815738.2962 | FB60: 392490.586 | FC60: 721581.1228 | FD60: 723000.6095 | FE60: 797763.4691 | FF60: 14371612.42 | FG60: 802857.0848 | FH60: 695673.6811 | FI60: 904433.6025 | FJ60: 4031456.613 | FK60: 783193.7289 | FL60: 863046.4766 | FM60: 829532.5282 | FN60: 746566.5462 | FO60: 1922112.739 | FP60: 603395.8802 | FQ60: 1541249.652 | FR60: 1103169.539 | FS60: 1205602.303 | FT60: 578626.4297 | FU60: 1782804.871 | FV60: 2418043.305 | FW60: 853615.0872 | FX60: 866880.4492 | FY60: 841055.4064 | FZ60: 0.003428393363 | GA60: 4218.716065 | GB60: 611434.5566 | GC60: 634845.7464 | GD60: 873234.6682 | GE60: 905745.4283 | GF60: 824796.9995 | GG60: 124600.3707 | GH60: 183083.8585 | GI60: 989609.8201 | GJ60: 1446493.591 | GK60: 852284.0957 | GL60: 25185217.06 | GM60: 570220.0384 | GN60: 394011.5409 | GO60: 2232493.364 | GP60: 777025.112 | GQ60: 356580.5636 | GR60: 2209359.609 | GS60: 628069.1668 | GT60: 524867.2003 | GU60: 146974.2114 | GV60: 338601.376 | GW60: 586214.1944 | GX60: 465284.6479 | GY60: 2329.203536 | GZ60: 9745.894485 | HA60: 64458768 | HB60: 11382780.26 | HC60: 15636228.12 | HD60: 35383634.14 | HE60: 22596632.9 | HF60: 5473727.64 | HG60: 2706770.843 | HH60: 2577542.413 | HI60: 2573140.378 | HJ60: 8884.725616 | HK60: 1388407.515 | HL60: 1220040.228 | HM60: 2968189.982 | HN60: 191912.0702 | HO60: 59359.96118 | HP60: 10184466.9 | HQ60: 2378291.574 | HR60: 54512571.07 | HS60: 39542887.3 | HT60: 6401551.109 | HU60: 151099.9013 | HV60: 879545.9151 | HW60: 3568786.824 | HX60: 1300702573
A61: =+MATCH(B61,RUT[EMPRESA],0) -> 24 | B61: BE FORESTALES | C61: 764085628.6 | D61: 764085628.6 | F61: =IFERROR(INDEX($B$9:$B$511,MATCH(0,INDEX(COUNTIF($F$8:F60,$B$9:$B$511),0,0),0)),"") -> BE FORESTALES | H61: 764085628.6 | J61: ON GROUP | K61: 1320582.506 | L61: 204609.7145 | M61: 219646.1338 | N61: 12489736.86 | O61: 987240.5512 | P61: 382687.3187 | Q61: 8900.905006 | R61: 22705.87816 | S61: 491752.8412 | T61: 67126.60941 | U61: 297575.171 | V61: 85208.56659 | W61: 29883.41449 | X61: 91922.12938 | Y61: 42963.2412 | Z61: 629091.4347 | AA61: 73495.2936 | AB61: 37365.87074 | AC61: 9889.736279 | AD61: 13121.20334 | AE61: 13244.87995 | AF61: 42348.01342 | AG61: 12076.44819 | AH61: 337863.7878 | AI61: 68755.31718 | AJ61: 121603.1752 | AK61: 203850.8672 | AL61: 100719.3342 | AM61: 5770.26098 | AN61: 6477.061567 | AO61: 712244.6799 | AP61: 2039030.501 | AQ61: 66989.27162 | AR61: 306.1073092 | AS61: 774180.1194 | AT61: 16933.96141 | AU61: 89929.91383 | AV61: 81547.55034 | AW61: 15583.59502 | AX61: 5145.501246 | AY61: 49.58047593 | AZ61: 25648.73788 | BA61: 56000.28706 | BB61: 312.3567957 | BC61: 69847.24271 | BD61: 57429.09305 | BE61: 98260.98423 | BF61: 47.45577208 | BG61: 2215.861443 | BH61: 254954.2322 | BI61: 79963.72522 | BJ61: 3952.577964 | BK61: 1643.497434 | BL61: 33607.82892 | BM61: 20602.45855 | BN61: 766218.112 | BO61: 334823.9461 | BP61: 95515.57622 | BQ61: 901.9707254 | BR61: 43504.20896 | BS61: 16131.81041 | BT61: 252513.493 | BU61: 9110.425117 | BV61: 384150.9474 | BW61: 16767.11961 | BX61: 16620.44517 | BY61: 3389.745627 | BZ61: 9761237.942 | CA61: 479506.4712 | CB61: 35830.40459 | CC61: 1461.190259 | CD61: 9549.470799 | CE61: 220885.4744 | CF61: 53942.54073 | CG61: 1113.304325 | CH61: 50683.51335 | CI61: 7274.694396 | CJ61: 10618.99259 | CK61: 5030.490166 | CL61: 36148.26945 | CM61: 659078.7196 | CN61: 6615.609103 | CO61: 14882.74798 | CP61: 35747.74144 | CQ61: 43766.59859 | CR61: 1310.896244 | CS61: 17506.42794 | CT61: 11505.44864 | CU61: 220034.0965 | CV61: 15517.25538 | CW61: 206682.6286 | CX61: 78254.07416 | CY61: 398986.7815 | CZ61: 36542.45604 | DA61: 21462.55963 | DB61: 23896.00108 | DC61: 66283.52366 | DD61: 21062.17099 | DE61: 17324.1016 | DF61: 55117.45687 | DG61: 8426.363694 | DH61: 43942.86097 | DI61: 70006.20136 | DJ61: 3016.268893 | DK61: 56812.10351 | DL61: 231139.0033 | DM61: 1539.256241 | DN61: 16488.7161 | DO61: 19.60961501 | DP61: 41438.08189 | DQ61: 96588.90968 | DR61: 15931.50464 | DS61: 23961.21509 | DT61: 25186.46604 | DU61: 21543.85771 | DV61: 312571.0853 | DW61: 7892.584562 | DX61: 21836.50742 | DY61: 110472.046 | DZ61: 164592.4723 | EA61: 19310.12454 | EB61: 29172.04206 | EC61: 28248.78634 | ED61: 647969.0139 | EE61: 1381.326001 | EF61: 20756.86742 | EG61: 115686.1652 | EH61: 32544.58018 | EI61: 98433.98978 | EJ61: 7.032698807 | EK61: 160527.5974 | EL61: 37890.39175 | EM61: 21261.91064 | EN61: 61791.05268 | EO61: 104105.4112 | EP61: 33750.40693 | EQ61: 1228.208572 | ER61: 22050.15513 | ES61: 36961.2282 | ET61: 40247.92671 | EU61: 33455.33012 | EV61: 51463.05735 | EW61: 36169.78778 | EX61: 96227.24821 | EY61: 32371.69659 | EZ61: 30076.21074 | FA61: 35520.0136 | FB61: 17090.37202 | FC61: 31420.09074 | FD61: 31481.90001 | FE61: 34737.32862 | FF61: 625788.7745 | FG61: 34959.12194 | FH61: 30291.99282 | FI61: 39382.10821 | FJ61: 175543.3015 | FK61: 34102.9127 | FL61: 37579.97231 | FM61: 36120.66127 | FN61: 32508.04086 | FO61: 83695.31128 | FP61: 26273.90422 | FQ61: 67111.24002 | FR61: 48035.74531 | FS61: 52496.01542 | FT61: 25195.3583 | FU61: 77629.37397 | FV61: 105289.811 | FW61: 37169.29761 | FX61: 37746.91648 | FY61: 36622.40648 | FZ61: 0.0001492838811 | GA61: 183.6972135 | GB61: 26623.93548 | GC61: 27643.33812 | GD61: 38023.60074 | GE61: 39439.22956 | GF61: 35914.46028 | GG61: 5425.522968 | GH61: 7972.092488 | GI61: 43090.96977 | GJ61: 62985.23959 | GK61: 37111.34172 | GL61: 1096649.816 | GM61: 24829.31549 | GN61: 17156.59955 | GO61: 97210.33695 | GP61: 33834.31018 | GQ61: 15526.72778 | GR61: 96203.01477 | GS61: 27348.26285 | GT61: 22854.49902 | GU61: 6399.755915 | GV61: 14743.85294 | GW61: 25525.75532 | GX61: 20260.07249 | GY61: 101.421426 | GZ61: 424.3693182 | HA61: 2806753.497 | HB61: 495644.8794 | HC61: 680854.4332 | HD61: 1540723.503 | HE61: 983934.0772 | HF61: 238344.6763 | HG61: 117861.9878 | HH61: 112234.9434 | HI61: 112043.2639 | HJ61: 386.8711033 | HK61: 60455.9747 | HL61: 53124.69168 | HM61: 129245.0642 | HN61: 8356.502783 | HO61: 2584.734145 | HP61: 443466.2496 | HQ61: 103558.8858 | HR61: 2373662.331 | HS61: 1721831.5 | HT61: 278745.2587 | HU61: 6579.402456 | HV61: 38298.41385 | HW61: 155397.0888 | HX61: 56637003.91
A62: =+MATCH(B62,RUT[EMPRESA],0) -> 10 | B62: ALLIPEN | C62: -7471720.606 | D62: -7471720.606 | F62: =IFERROR(INDEX($B$9:$B$511,MATCH(0,INDEX(COUNTIF($F$8:F61,$B$9:$B$511),0,0),0)),"") -> ALLIPEN | G62: -7471720.606 | J62: HIDROANGOL | K62: 3598670.222 | L62: 557574.3152 | M62: 598549.5018 | N62: 34035316.93 | O62: 2690292.471 | P62: 1042846.965 | Q62: 24255.52485 | R62: 61874.94323 | S62: 1340057.359 | T62: 182924.2242 | U62: 810911.0198 | V62: 232198.6925 | W62: 81434.18027 | X62: 250493.5725 | Y62: 117077.5291 | Z62: 1714313.648 | AA62: 200279.2883 | AB62: 101824.3432 | AC62: 26950.15214 | AD62: 35756.10272 | AE62: 36093.12924 | AF62: 115400.9947 | AG62: 32909.07936 | AH62: 920700.0294 | AI62: 187362.5551 | AJ62: 331376.2856 | AK62: 555506.4089 | AL62: 274466.5078 | AM62: 15724.32337 | AN62: 17650.39933 | AO62: 1940911.46 | AP62: 5556486.105 | AQ62: 182549.9701 | AR62: 834.1616317 | AS62: 2109689.42 | AT62: 46146.10779 | AU62: 245064.6601 | AV62: 222222.1934 | AW62: 42466.27462 | AX62: 14021.81388 | AY62: 135.1099091 | AZ62: 69894.42068 | BA62: 152604.2974 | BB62: 851.1918749 | BC62: 190338.1207 | BD62: 156497.8834 | BE62: 267767.3499 | BF62: 129.3199577 | BG62: 6038.361522 | BH62: 694766.2862 | BI62: 217906.1705 | BJ62: 10771.02305 | BK62: 4478.633669 | BL62: 91583.44337 | BM62: 56142.99276 | BN62: 2087992.451 | BO62: 912416.27 | BP62: 260285.9407 | BQ62: 2457.926843 | BR62: 118551.7002 | BS62: 43960.19595 | BT62: 688115.1186 | BU62: 24826.4803 | BV62: 1046835.445 | BW62: 45691.45341 | BX62: 45291.75635 | BY62: 9237.269607 | BZ62: 26599986.1 | CA62: 1306685.233 | CB62: 97640.10158 | CC62: 3981.835175 | CD62: 26022.90735 | CE62: 601926.7826 | CF62: 146996.8095 | CG62: 3033.824167 | CH62: 138115.7553 | CI62: 19823.99886 | CJ62: 28937.42135 | CK62: 13708.40147 | CL62: 98506.30326 | CM62: 1796030.881 | CN62: 18027.95006 | CO62: 40556.42244 | CP62: 97414.8393 | CQ62: 119266.7284 | CR62: 3572.27455 | CS62: 47706.11501 | CT62: 31353.06974 | CU62: 599606.7245 | CV62: 42285.49494 | CW62: 563223.1365 | CX62: 213247.2641 | CY62: 1087264.024 | CZ62: 99580.48646 | DA62: 58486.82219 | DB62: 65118.10289 | DC62: 180626.7626 | DD62: 57395.73802 | DE62: 47209.26429 | DF62: 150198.5297 | DG62: 22962.36999 | DH62: 119747.0544 | DI62: 190771.293 | DJ62: 8219.522064 | DK62: 154816.5481 | DL62: 629868.2926 | DM62: 4194.569876 | DN62: 44932.78638 | DO62: 53.43743179 | DP62: 112921.3742 | DQ62: 263210.8418 | DR62: 43414.35015 | DS62: 65295.81516 | DT62: 68634.7009 | DU62: 58708.36458 | DV62: 851775.8273 | DW62: 21507.78835 | DX62: 59505.8534 | DY62: 301043.2597 | DZ62: 448524.8185 | EA62: 52621.30147 | EB62: 79495.64573 | EC62: 76979.71595 | ED62: 1765756.236 | EE62: 3764.200059 | EF62: 56563.76662 | EG62: 315252.0618 | EH62: 88686.02381 | EI62: 268238.8008 | EJ62: 19.16454569 | EK62: 437447.7793 | EL62: 103253.6959 | EM62: 57940.04109 | EN62: 168384.4972 | EO62: 283693.7802 | EP62: 91971.97739 | EQ62: 3346.945452 | ER62: 60088.0568 | ES62: 100721.6669 | ET62: 109678.1266 | EU62: 91167.87457 | EV62: 140240.0616 | EW62: 98564.94206 | EX62: 262225.2915 | EY62: 88214.90516 | EZ62: 81959.56215 | FA62: 96794.26663 | FB62: 46572.33651 | FC62: 85621.71951 | FD62: 85790.15364 | FE62: 94661.40095 | FF62: 1705313.691 | FG62: 95265.80166 | FH62: 82547.58185 | FI62: 107318.7169 | FJ62: 478366.5155 | FK62: 92932.57773 | FL62: 102407.7834 | FM62: 98431.06924 | FN62: 88586.45188 | FO62: 228074.9768 | FP62: 71598.03822 | FQ62: 182882.3416 | FR62: 130900.4212 | FS62: 143054.9372 | FT62: 68658.93287 | FU62: 211544.9168 | FV62: 286921.3441 | FW62: 101288.6691 | FX62: 102862.7168 | FY62: 99798.35644 | FZ62: 0.0004068079466 | GA62: 500.5864375 | GB62: 72551.89535 | GC62: 75329.83155 | GD62: 103616.6988 | GE62: 107474.3761 | GF62: 97869.1586 | GG62: 14784.89065 | GH62: 21724.45244 | GI62: 117425.5974 | GJ62: 171638.7315 | GK62: 101130.7357 | GL62: 2988439.584 | GM62: 67661.44325 | GN62: 46752.8107 | GO62: 264904.2701 | GP62: 92200.61902 | GQ62: 42311.30782 | GR62: 262159.2539 | GS62: 74525.73291 | GT62: 62279.94439 | GU62: 17439.73658 | GV62: 40177.92473 | GW62: 69559.28549 | GX62: 55209.96927 | GY62: 276.3797521 | GZ62: 1156.43303 | HA62: 7648579.459 | HB62: 1350663.408 | HC62: 1855371.068 | HD62: 4198568.257 | HE62: 2681282.122 | HF62: 649504.2038 | HG62: 321181.315 | HH62: 305847.2659 | HI62: 305324.9271 | HJ62: 1054.24804 | HK62: 164746.3259 | HL62: 144768.1195 | HM62: 352200.9127 | HN62: 22771.99462 | HO62: 7043.56279 | HP62: 1208473.366 | HQ62: 282204.4642 | HR62: 6468378.846 | HS62: 4692098.917 | HT62: 759598.3267 | HU62: 17929.28468 | HV62: 104365.5817 | HW62: 423466.8213 | HX62: 154339390.7
A63: =+MATCH(B63,RUT[EMPRESA],0) -> 90 | B63: EL CANELO | C63: 16713160.45 | D63: 16713160.45 | F63: =IFERROR(INDEX($B$9:$B$511,MATCH(0,INDEX(COUNTIF($F$8:F62,$B$9:$B$511),0,0),0)),"") -> EL CANELO | H63: 16713160.45 | J63: TRANSELEC | K63: 611224.4721 | L63: 94702.49993 | M63: 101662.0253 | N63: 5780807.17 | O63: 456938.9508 | P63: 177124.7561 | Q63: 4119.735752 | R63: 10509.29293 | S63: 227605.1435 | T63: 31069.18818 | U63: 137731.0588 | V63: 39438.32429 | W63: 13831.37681 | X63: 42545.66052 | Y63: 19885.30387 | Z63: 291171.5688 | AA63: 34016.89922 | AB63: 17294.59122 | AC63: 4577.410959 | AD63: 6073.078014 | AE63: 6130.321064 | AF63: 19600.54902 | AG63: 5589.518743 | AH63: 156378.4272 | AI63: 31823.02677 | AJ63: 56283.37211 | AK63: 94351.2716 | AL63: 46617.39921 | AM63: 2670.734092 | AN63: 2997.872922 | AO63: 329658.5987 | AP63: 943754.2416 | AQ63: 31005.62213 | AR63: 141.6801128 | AS63: 358325.082 | AT63: 7837.792471 | AU63: 41623.57433 | AV63: 37743.84272 | AW63: 7212.782691 | AX63: 2381.567428 | AY63: 22.94805518 | AZ63: 11871.37963 | BA63: 25919.43005 | BB63: 144.5726539 | BC63: 32328.4186 | BD63: 26580.74518 | BE63: 45479.56522 | BF63: 21.9646475 | BG63: 1025.599487 | BH63: 118004.1877 | BI63: 37010.77782 | BJ63: 1829.429338 | BK63: 760.6839003 | BL63: 15555.20189 | BM63: 9535.736534 | BN63: 354639.9099 | BO63: 154971.4529 | BP63: 44208.86796 | BQ63: 417.472273 | BR63: 20135.68787 | BS63: 7466.521217 | BT63: 116874.5048 | BU63: 4216.711002 | BV63: 177802.1887 | BW63: 7760.570647 | BX63: 7692.683174 | BY63: 1568.925434 | BZ63: 4517936.199 | CA63: 221936.9773 | CB63: 16583.90902 | CC63: 676.3040102 | CD63: 4419.920922 | CE63: 102235.6474 | CF63: 24967.01329 | CG63: 515.2868867 | CH63: 23458.59009 | CI63: 3367.052964 | CJ63: 4914.943297 | CK63: 2328.335172 | CL63: 16731.03105 | CM63: 305051.0215 | CN63: 3061.9989 | CO63: 6888.399427 | CP63: 16545.64882 | CQ63: 20257.13349 | CR63: 606.741238 | CS63: 8102.755507 | CT63: 5325.234689 | CU63: 101841.5918 | CV63: 7182.077747 | CW63: 95661.93705 | CX63: 36219.47507 | CY63: 184668.8743 | CZ63: 16913.47818 | DA63: 9933.829668 | DB63: 11060.13489 | DC63: 30678.9705 | DD63: 9748.511953 | DE63: 8018.366747 | DF63: 25510.81687 | DG63: 3900.096871 | DH63: 20338.71558 | DI63: 32401.99175 | DJ63: 1396.063747 | DK63: 26295.1749 | DL63: 106981.4378 | DM63: 712.4364279 | DN63: 7631.713088 | DO63: 9.07620427 | DP63: 19179.39213 | DQ63: 44705.65455 | DR63: 7373.810774 | DS63: 11090.31884 | DT63: 11657.41961 | DU63: 9971.458047 | DV63: 144671.8366 | DW63: 3653.040086 | DX63: 10106.90938 | DY63: 51131.38914 | DZ63: 76180.7358 | EA63: 8937.586726 | EB63: 13502.12192 | EC63: 13074.79801 | ED63: 299908.9543 | EE63: 639.3392703 | EF63: 9607.203845 | EG63: 53544.71601 | EH63: 15063.08296 | EI63: 45559.6399 | EJ63: 3.255046614 | EK63: 74299.33044 | EL63: 17537.36293 | EM63: 9840.960367 | EN63: 28599.65461 | EO63: 48184.62664 | EP63: 15621.19335 | EQ63: 568.469696 | ER63: 10205.79507 | ES63: 17107.30461 | ET63: 18628.53524 | EU63: 15484.61864 | EV63: 23819.39781 | EW63: 16740.99069 | EX63: 44538.2615 | EY63: 14983.06472 | EZ63: 13920.61151 | FA63: 16440.24622 | FB63: 7910.186274 | FC63: 14542.6191 | FD63: 14571.22719 | FE63: 16077.98472 | FF63: 289642.9504 | FG63: 16180.64055 | FH63: 14020.48508 | FI63: 18227.79583 | FJ63: 81249.26788 | FK63: 15784.34873 | FL63: 17393.68697 | FM63: 16718.25275 | FN63: 15046.17093 | FO63: 38737.92225 | FP63: 12160.7345 | FQ63: 31062.07455 | FR63: 22233.08497 | FS63: 24297.49687 | FT63: 11661.53535 | FU63: 35930.33597 | FV63: 48732.8197 | FW63: 17203.60841 | FX63: 17470.95618 | FY63: 16950.48281 | FZ63: 6.909523715e-05 | GA63: 85.02326196 | GB63: 12322.74457 | GC63: 12794.56957 | GD63: 17599.018 | GE63: 18254.23414 | GF63: 16622.81374 | GG63: 2511.173968 | GH63: 3689.8399 | GI63: 19944.42235 | GJ63: 29152.37756 | GK63: 17176.78384 | GL63: 507578.4372 | GM63: 11492.11441 | GN63: 7940.839331 | GO63: 44993.2788 | GP63: 15660.02751 | GQ63: 7186.461996 | GR63: 44527.04518 | GS63: 12657.99558 | GT63: 10578.08129 | GU63: 2962.092419 | GV63: 6824.112608 | GW63: 11814.45782 | GX63: 9377.265 | GY63: 46.9423586 | GZ63: 196.4170442 | HA63: 1299090.679 | HB63: 229406.5523 | HC63: 315129.7928 | HD63: 713115.5422 | HE63: 455408.5671 | HF63: 110316.5446 | HG63: 54551.78374 | HH63: 51947.33668 | HI63: 51858.61884 | HJ63: 179.0611982 | HK63: 27981.72098 | HL63: 24588.47628 | HM63: 59820.37911 | HN63: 3867.762126 | HO63: 1196.330223 | HP63: 205255.9556 | HQ63: 47931.67031 | HR63: 1098636.775 | HS63: 796940.3993 | HT63: 129015.7357 | HU63: 3045.240849 | HV63: 17726.21376 | HW63: 71924.70228 | HX63: 26214131
A64: =+MATCH(B64,RUT[EMPRESA],0) -> 33 | B64: CARBOMET | C64: 88757322.78 | D64: 88757322.78 | F64: =IFERROR(INDEX($B$9:$B$511,MATCH(0,INDEX(COUNTIF($F$8:F63,$B$9:$B$511),0,0),0)),"") -> CARBOMET | H64: 88757322.78 | J64: STS | K64: 442.3392658 | L64: 68.53559732 | M64: 73.57216162 | N64: 4183.533409 | O64: 330.6838146 | P64: 128.1840603 | Q64: 2.98142658 | R64: 7.6055085 | S64: 164.7163958 | T64: 22.48457403 | U64: 99.6750919 | V64: 28.54126464 | W64: 10.00967949 | X64: 30.79002412 | Y64: 14.39086803 | Z64: 210.7190138 | AA64: 24.61781377 | AB64: 12.51598575 | AC64: 3.312643219 | AD64: 4.395047961 | AE64: 4.436474393 | AF64: 14.18479275 | AG64: 4.04509919 | AH64: 113.1700739 | AI64: 23.03012222 | AJ64: 40.73191868 | AK64: 68.2814156 | AL64: 33.73671553 | AM64: 1.932793289 | AN64: 2.169541581 | AO64: 238.5718327 | AP64: 682.9889466 | AQ64: 22.43857168 | AR64: 0.1025329972 | AS64: 259.3175845 | AT64: 5.672160598 | AU64: 30.1227162 | AV64: 27.31497909 | AW64: 5.219844992 | AX64: 1.723525211 | AY64: 0.01660736169 | AZ64: 8.591241992 | BA64: 18.7577268 | BB64: 0.1046263108 | BC64: 23.39587107 | BD64: 19.23631635 | BE64: 32.9132723 | BF64: 0.0158956758 | BG64: 0.7422198305 | BH64: 85.39888069 | BI64: 26.78446469 | BJ64: 1.323946385 | BK64: 0.5505021041 | BL64: 11.25720074 | BM64: 6.900951925 | BN64: 256.6506489 | BO64: 112.1518556 | BP64: 31.99367677 | BQ64: 0.3021220307 | BR64: 14.57206934 | BS64: 5.403473951 | BT64: 84.58133631 | BU64: 3.051606953 | BV64: 128.674314 | BW64: 5.616275655 | BX64: 5.567145922 | BY64: 1.135421365 | BZ64: 3269.601713 | CA64: 160.61438 | CB64: 12.00166956 | CC64: 0.4894369139 | CD64: 3.19866868 | CE64: 73.98728826 | CF64: 18.06846884 | CG64: 0.372909845 | CH64: 16.97683256 | CI64: 2.436714831 | CJ64: 3.556913227 | CK64: 1.685001366 | CL64: 12.10814083 | CM64: 220.7634855 | CN64: 2.215949143 | CO64: 4.985090886 | CP64: 11.9739809 | CQ64: 14.65995877 | CR64: 0.4390947778 | CS64: 5.863912663 | CT64: 3.8538385 | CU64: 73.7021127 | CV64: 5.19762402 | CW64: 69.22993586 | CX64: 26.21180392 | CY64: 133.6436907 | CZ64: 12.24017666 | DA64: 7.189049396 | DB64: 8.004149324 | DC64: 22.20217597 | DD64: 7.054936143 | DE64: 5.802841054 | DF64: 18.46201604 | DG64: 2.822475319 | DH64: 14.7189992 | DI64: 23.4491155 | DJ64: 1.010322461 | DK64: 19.02965096 | DL64: 77.42178663 | DM64: 0.515585715 | DN64: 5.523022258 | DO64: 0.006568391346 | DP64: 13.88000419 | DQ64: 32.35319807 | DR64: 5.336379992 | DS64: 8.025993257 | DT64: 8.436400484 | DU64: 7.216280815 | DV64: 104.6980887 | DW64: 2.643681893 | DX64: 7.314306086 | DY64: 37.00346135 | DZ64: 55.13151433 | EA64: 6.468074711 | EB64: 9.771399822 | EC64: 9.46214822 | ED64: 217.0422041 | EE64: 0.4626857666 | EF64: 6.952672364 | EG64: 38.74997067 | EH64: 10.9010574 | EI64: 32.97122184 | EJ64: 0.002355656547 | EK64: 53.76995322 | EL64: 12.6916781 | EM64: 7.121840473 | EN64: 20.69738827 | EO64: 34.87090806 | EP64: 11.30495834 | EQ64: 0.411397906 | ER64: 7.385869027 | ES64: 12.38044762 | ET64: 13.48135256 | EU64: 11.2061201 | EV64: 17.23794681 | EW64: 12.11534856 | EX64: 32.23205678 | EY64: 10.84314871 | EZ64: 10.07425808 | FA64: 11.8977017 | FB64: 5.724551533 | FC64: 10.52440102 | FD64: 10.54510451 | FE64: 11.63553535 | FF64: 209.6127624 | FG64: 11.70982673 | FH64: 10.14653594 | FI64: 13.19134 | FJ64: 58.79957878 | FK64: 11.42303286 | FL64: 12.58770072 | FM64: 12.09889326 | FN64: 10.88881828 | FO64: 28.03438813 | FP64: 8.800646268 | FQ64: 22.47942593 | FR64: 16.08994229 | FS64: 17.58394406 | FT64: 8.439379015 | FU64: 26.00255579 | FV64: 35.2676319 | FW64: 12.45014207 | FX64: 12.64361995 | FY64: 12.26695668 | FZ64: 5.000378399e-08 | GA64: 0.06153079432 | GB64: 8.917891927 | GC64: 9.259348683 | GD64: 12.73629747 | GE64: 13.21047323 | GF64: 12.02982465 | GG64: 1.817320641 | GH64: 2.670313685 | GI64: 14.4336517 | GJ64: 21.09739036 | GK64: 12.4307293 | GL64: 367.3312891 | GM64: 8.316770164 | GN64: 5.746734956 | GO64: 32.56134991 | GP64: 11.33306238 | GQ64: 5.200796873 | GR64: 32.2239396 | GS64: 9.160510952 | GT64: 7.655290198 | GU64: 2.143647458 | GV64: 4.938566923 | GW64: 8.550048038 | GX64: 6.786267083 | GY64: 0.03397188658 | GZ64: 0.1421457666 | HA64: 940.1436679 | HB64: 166.0200639 | HC64: 228.0574282 | HD64: 516.0771857 | HE64: 329.5762857 | HF64: 79.83538222 | HG64: 39.47877918 | HH64: 37.5939574 | HI64: 37.52975287 | HJ64: 0.1295854511 | HK64: 20.25019364 | HL64: 17.79452401 | HM64: 43.29162817 | HN64: 2.799074869 | HO64: 0.8657765788 | HP64: 148.5424306 | HQ64: 34.68784517 | HR64: 795.0764513 | HS64: 576.740702 | HT64: 93.36786797 | HU64: 2.203821449 | HV64: 12.82834824 | HW64: 52.05144992 | HX64: 18971
A65: =+MATCH(B65,RUT[EMPRESA],0) -> 235 | B65: ORAZUL_CHILE | C65: -8129702.181 | D65: -8129702.181 | F65: =IFERROR(INDEX($B$9:$B$511,MATCH(0,INDEX(COUNTIF($F$8:F64,$B$9:$B$511),0,0),0)),"") -> ORAZUL_CHILE | G65: -8129702.181 | J65: EDELNOR_TRANSMISION | K65: 120199.5398 | L65: 18623.59482 | M65: 19992.21108 | N65: 1136816.985 | O65: 89858.72476 | P65: 34832.23455 | Q65: 810.1611831 | R65: 2066.691095 | S65: 44759.38833 | T65: 6109.870093 | U65: 27085.31913 | V65: 7755.69148 | W65: 2719.991105 | X65: 8366.760575 | Y65: 3910.518121 | Z65: 57259.9596 | AA65: 6689.548307 | AB65: 3401.044953 | AC65: 900.1646955 | AD65: 1194.293121 | AE65: 1205.550177 | AF65: 3854.520033 | AG65: 1099.199413 | AH65: 30752.39269 | AI65: 6258.115222 | AJ65: 11068.33207 | AK65: 18554.52447 | AL65: 9167.482959 | AM65: 525.2096791 | AN65: 589.5427329 | AO65: 64828.57554 | AP65: 185592.7416 | AQ65: 6097.369595 | AR65: 27.86191512 | AS65: 70465.94487 | AT65: 1541.330708 | AU65: 8185.428935 | AV65: 7422.465448 | AW65: 1418.420236 | AX65: 468.3439913 | AY65: 4.512819428 | AZ65: 2334.550454 | BA65: 5097.151221 | BB65: 28.43074395 | BC65: 6357.502383 | BD65: 5227.201272 | BE65: 8943.723721 | BF65: 4.319428691 | BG65: 201.6879101 | BH65: 23205.9574 | BI65: 7278.305541 | BJ65: 359.7640057 | BK65: 149.5912859 | BL65: 3058.987645 | BM65: 1875.237651 | BN65: 69741.24224 | BO65: 30475.70603 | BP65: 8693.836434 | BQ65: 82.09745745 | BR65: 3959.757056 | BS65: 1468.31885 | BT65: 22983.80109 | BU65: 829.2317227 | BV65: 34965.45416 | BW65: 1526.144752 | BX65: 1512.794431 | BY65: 308.5349552 | BZ65: 888468.7652 | CA65: 43644.72262 | CB65: 3261.286684 | CC65: 132.9976703 | CD65: 869.1937006 | CE65: 20105.01596 | CF65: 4909.854963 | CG65: 101.3330609 | CH65: 4613.217994 | CI65: 662.1433455 | CJ65: 966.5416708 | CK65: 457.8756724 | CL65: 3290.218772 | CM65: 59989.40499 | CN65: 602.1533421 | CO65: 1354.629075 | CP65: 3253.762677 | CQ65: 3983.639784 | CR65: 119.3178953 | CS65: 1593.436663 | CT65: 1047.226982 | CU65: 20027.52347 | CV65: 1412.381996 | CW65: 18812.27165 | CX65: 7122.692946 | CY65: 36315.81314 | CZ65: 3326.097672 | DA65: 1953.524129 | DB65: 2175.016191 | DC65: 6033.132351 | DD65: 1917.080719 | DE65: 1576.841303 | DF65: 5016.795937 | DG65: 766.9683897 | DH65: 3999.683202 | DI65: 6371.970814 | DJ65: 274.541069 | DK65: 5171.042828 | DL65: 21038.2931 | DM65: 140.1032431 | DN65: 1500.804439 | DO65: 1.784868941 | DP65: 3771.697982 | DQ65: 8791.531343 | DR65: 1450.087001 | DS65: 2180.951977 | DT65: 2292.474429 | DU65: 1960.923888 | DV65: 28450.24861 | DW65: 718.3837646 | DX65: 1987.560892 | DY65: 10055.17568 | DZ65: 14981.2218 | EA65: 1757.609292 | EB65: 2655.241921 | EC65: 2571.207102 | ED65: 58978.19857 | EE65: 125.7284182 | EF65: 1889.29196 | EG65: 10529.76528 | EH65: 2962.210648 | EI65: 8959.470701 | EJ65: 0.640116885 | EK65: 14611.23652 | EL65: 3448.786903 | EM65: 1935.26104 | EN65: 5624.227234 | EO65: 9475.683995 | EP65: 3071.965108 | EQ65: 111.7916559 | ER65: 2007.007125 | ES65: 3364.214352 | ET65: 3663.369949 | EU65: 3045.10719 | EV65: 4684.17216 | EW65: 3292.177373 | EX65: 8758.612883 | EY65: 2946.474767 | EZ65: 2737.539437 | FA65: 3233.034868 | FB65: 1555.567215 | FC65: 2859.859517 | FD65: 2865.485402 | FE65: 3161.79481 | FF65: 56959.35116 | FG65: 3181.982458 | FH65: 2757.179941 | FI65: 3584.563071 | FJ65: 15977.96727 | FK65: 3104.050215 | FL65: 3420.532497 | FM65: 3287.705873 | FN65: 2958.884836 | FO65: 7617.954844 | FP65: 2391.453152 | FQ65: 6108.47117 | FR65: 4372.217906 | FS65: 4778.192098 | FT65: 2293.283804 | FU65: 7065.832678 | FV65: 9583.488177 | FW65: 3383.152848 | FX65: 3435.727771 | FY65: 3333.374768 | FZ65: 1.358783244e-05 | GA65: 16.72013708 | GB65: 2423.313028 | GC65: 2516.09915 | GD65: 3460.911598 | GE65: 3589.762261 | GF65: 3268.93744 | GG65: 493.8315939 | GH65: 725.6205832 | GI65: 3922.143987 | GJ65: 5732.922235 | GK65: 3377.877698 | GL65: 99817.16596 | GM65: 2259.966554 | GN65: 1561.595252 | GO65: 8848.093709 | GP65: 3079.60199 | GQ65: 1413.244175 | GR65: 8756.407153 | GS65: 2489.241372 | GT65: 2080.218579 | GU65: 582.5063653 | GV65: 1341.986835 | GW65: 2323.35657 | GX65: 1844.073641 | GY65: 9.231387418 | GZ65: 38.62613393 | HA65: 255470.9585 | HB65: 45113.642 | HC65: 61971.43243 | HD65: 140236.7934 | HE65: 89557.76919 | HF65: 21694.15411 | HG65: 10727.80885 | HH65: 10215.63476 | HI65: 10198.18807 | HJ65: 35.21304301 | HK65: 5502.708316 | HL65: 4835.414268 | HM65: 11763.8975 | HN65: 760.6096433 | HO65: 235.262737 | HP65: 40364.33837 | HQ65: 9425.939203 | HR65: 216050.9612 | HS65: 156721.2597 | HT65: 25371.4188 | HU65: 598.8578099 | HV65: 3485.925111 | HW65: 14144.25716 | HX65: 5155105.246
A66: =+MATCH(B66,RUT[EMPRESA],0) -> 170 | B66: HIDRONALCAS | C66: 80484256.45 | D66: 80484256.45 | F66: =IFERROR(INDEX($B$9:$B$511,MATCH(0,INDEX(COUNTIF($F$8:F65,$B$9:$B$511),0,0),0)),"") -> HIDRONALCAS | H66: 80484256.45 | J66: TEN | K66: 154872.3246 | L66: 23995.76093 | M66: 25759.16853 | N66: 1464743.454 | O66: 115779.3916 | P66: 44879.94832 | Q66: 1043.86045 | R66: 2662.849247 | S66: 57670.69099 | T66: 7872.324517 | U66: 34898.35604 | V66: 9992.899891 | W66: 3504.600316 | X66: 10780.23811 | Y66: 5038.547009 | Z66: 73777.1797 | AA66: 8619.216832 | AB66: 4382.111102 | AC66: 1159.826395 | AD66: 1538.799169 | AE66: 1553.303438 | AF66: 4966.3957 | AG66: 1416.274709 | AH66: 39623.23442 | AI66: 8063.332468 | AJ66: 14261.10549 | AK66: 23906.76654 | AL66: 11811.93704 | AM66: 676.7117747 | AN66: 759.6023548 | AO66: 83529.04021 | AP66: 239128.8633 | AQ66: 7856.218123 | AR66: 35.89896907 | AS66: 90792.56629 | AT66: 1985.943291 | AU66: 10546.5995 | AV66: 9563.551408 | AW66: 1827.578039 | AX66: 603.4425985 | AY66: 5.814588279 | AZ66: 3007.975374 | BA66: 6567.476544 | BB66: 36.63188239 | BC66: 8191.388871 | BD66: 6735.040861 | BE66: 11523.63216 | BF66: 5.565412008 | BG66: 259.8668474 | BH66: 29899.9528 | BI66: 9377.807103 | BJ66: 463.5416072 | BK66: 192.74242 | BL66: 3941.383871 | BM66: 2416.169102 | BN66: 89858.81578 | BO66: 39266.73466 | BP66: 11201.66234 | BQ66: 105.7793075 | BR66: 5101.989417 | BS66: 1891.870418 | BT66: 29613.71324 | BU66: 1068.432081 | BV66: 45051.5965 | BW66: 1966.376791 | BX66: 1949.175434 | BY66: 397.5350139 | BZ66: 1144756.654 | CA66: 56234.48857 | CB66: 4202.038134 | CC66: 171.3622065 | CD66: 1119.9215 | CE66: 25904.51314 | CF66: 6326.152768 | CG66: 130.5636172 | CH66: 5943.947836 | CI66: 853.1453556 | CJ66: 1245.350486 | CK66: 589.9545861 | CL66: 4239.315978 | CM66: 77293.9615 | CN66: 775.8506231 | CO66: 1745.385665 | CP66: 4192.343749 | CQ66: 5132.761362 | CR66: 153.7363608 | CS66: 2053.079741 | CT66: 1349.310299 | CU66: 25804.66715 | CV66: 1819.798007 | CW66: 24238.86353 | CX66: 9177.306466 | CY66: 46791.4803 | CZ66: 4285.544512 | DA66: 2517.038114 | DB66: 2802.421824 | DC66: 7773.45099 | DD66: 2470.08223 | DE66: 2031.69728 | DF66: 6463.941958 | DG66: 988.2082543 | DH66: 5153.432667 | DI66: 8210.030868 | DJ66: 353.735244 | DK66: 6662.68294 | DL66: 27107.0036 | DM66: 180.5174543 | DN66: 1933.726806 | DO66: 2.299732615 | DP66: 4859.682783 | DQ66: 11327.53834 | DR66: 1868.379405 | DS66: 2810.069847 | DT66: 2953.76209 | DU66: 2526.57241 | DV66: 36657.01336 | DW66: 925.6088978 | DX66: 2560.893128 | DY66: 12955.69379 | DZ66: 19302.70822 | EA66: 2264.609641 | EB66: 3421.17357 | EC66: 3312.898048 | ED66: 75991.06225 | EE66: 161.9960645 | EF66: 2434.27752 | EG66: 13567.18361 | EH66: 3816.69056 | EI66: 11543.92152 | EJ66: 0.8247651376 | EK66: 18825.9969 | EL66: 4443.624705 | EM66: 2493.50685 | EN66: 7246.593017 | EO66: 12209.04181 | EP66: 3958.104816 | EQ66: 144.0391007 | ER66: 2585.948826 | ES66: 4334.656338 | ET66: 4720.106423 | EU66: 3923.499457 | EV66: 6035.369456 | EW66: 4241.839557 | EX66: 11285.12422 | EY66: 3796.415504 | EZ66: 3527.210644 | FA66: 4165.636792 | FB66: 2004.286465 | FC66: 3684.8152 | FD66: 3692.06393 | FE66: 4073.846813 | FF66: 73389.8577 | FG66: 4099.857794 | FH66: 3552.516652 | FI66: 4618.566896 | FJ66: 20586.9751 | FK66: 3999.445199 | FL66: 4407.220027 | FM66: 4236.078208 | FN66: 3812.405384 | FO66: 9815.431716 | FP66: 3081.292236 | FQ66: 7870.522061 | FR66: 5633.428812 | FS66: 6156.510405 | FT66: 2954.804936 | FU66: 9104.044273 | FV66: 12347.94321 | FW66: 4359.057837 | FX66: 4426.798533 | FY66: 4294.920762 | FZ66: 1.750738147e-05 | GA66: 21.54323137 | GB66: 3122.342419 | GC66: 3241.893645 | GD66: 4459.246892 | GE66: 4625.265845 | GF66: 4211.895829 | GG66: 636.2823604 | GH66: 934.9332507 | GI66: 5053.526474 | GJ66: 7386.642201 | GK66: 4352.261016 | GL66: 128610.4469 | GM66: 2911.876986 | GN66: 2012.053349 | GO66: 11400.4167 | GP66: 3967.944634 | GQ66: 1820.90889 | GR66: 11282.28222 | GS66: 3207.288466 | GT66: 2680.278872 | GU66: 750.5362752 | GV66: 1729.096643 | GW66: 2993.5525 | GX66: 2376.015515 | GY66: 11.89427539 | GZ66: 49.76823673 | HA66: 329164.1655 | HB66: 58127.13275 | HC66: 79847.72499 | HD66: 180689.5286 | HE66: 115391.6223 | HF66: 27952.05442 | HG66: 13822.35487 | HH66: 13162.43893 | HI66: 13139.95957 | HJ66: 45.37060487 | HK66: 7090.020725 | HL66: 6230.238894 | HM66: 15157.31387 | HN66: 980.0152625 | HO66: 303.126676 | HP66: 52007.84398 | HQ66: 12144.94763 | HR66: 278373.0674 | HS66: 201929.1076 | HT66: 32690.06365 | HU66: 771.6044609 | HV66: 4491.475809 | HW66: 18224.31258 | HX66: 6642148
A67: =+MATCH(B67,RUT[EMPRESA],0) -> 163 | B67: HIDROCALLAO | C67: 15380401.41 | D67: 15380401.41 | F67: =IFERROR(INDEX($B$9:$B$511,MATCH(0,INDEX(COUNTIF($F$8:F66,$B$9:$B$511),0,0),0)),"") -> HIDROCALLAO | H67: 15380401.41 | J67: Total | K67: 1303363506 | L67: 201941820 | M67: 216782180.3 | N67: 1.232688389e+10 | O67: 974367977.6 | P67: 377697480.4 | Q67: 8784846.61 | R67: 22409817.5 | S67: 485340903.7 | T67: 66251349.35 | U67: 293695105.2 | V67: 84097536.92 | W67: 29493766.34 | X67: 90723561.94 | Y67: 42403045.93 | Z67: 620888747.1 | AA67: 72536992.62 | AB67: 36878659.27 | AC67: 9760784.568 | AD67: 12950116.71 | AE67: 13072180.71 | AF67: 41795840.07 | AG67: 11918984.07 | AH67: 333458401 | AI67: 67858820.49 | AJ67: 120017598.3 | AK67: 201192867.3 | AL67: 99406060.51 | AM67: 5695022.873 | AN67: 6392607.528 | AO67: 702957761.9 | AP67: 2012443698 | AQ67: 66115802.3 | AR67: 302115.9933 | AS67: 764085628.6 | AT67: 16713160.45 | AU67: 88757322.78 | AV67: 80484256.45 | AW67: 15380401.41 | AX67: 5078409.346 | AY67: 48933.99891 | AZ67: 25314305.44 | BA67: 55270102.49 | BB67: 308283.9931 | BC67: 68936508.47 | BD67: 56680278.36 | BE67: 96979764.82 | BF67: 46836.99896 | BG67: 2186968.951 | BH67: 251629898.4 | BI67: 78921082.73 | BJ67: 3901040.524 | BK67: 1622067.964 | BL67: 33169618.35 | BM67: 20333824.26 | BN67: 756227437.4 | BO67: 330458195.7 | BP67: 94270154.03 | BQ67: 890209.9802 | BR67: 42936960.05 | BS67: 15921468.65 | BT67: 249220983.8 | BU67: 8991634.8 | BV67: 379142024.9 | BW67: 16548494.09 | BX67: 16403732.13 | BY67: 3345546.926 | BZ67: 9633961713 | CA67: 473254213.5 | CB67: 35363213.97 | CC67: 1442137.882 | CD67: 9424955.79 | CE67: 218005361.2 | CF67: 53239187 | CG67: 1098788.013 | CH67: 50022653.89 | CI67: 7179840.068 | CJ67: 10480532.14 | CK67: 4964897.89 | CL67: 35676934.21 | CM67: 650485029.5 | CN67: 6529348.55 | CO67: 14688692.67 | CP67: 35281628.66 | CQ67: 43195928.39 | CR67: 1293803.542 | CS67: 17278162.62 | CT67: 11355429.75 | CU67: 217165084.4 | CV67: 15314926.77 | CW67: 203987705.5 | CX67: 77233723.71 | CY67: 393784415.4 | CZ67: 36065981.02 | DA67: 21182710.53 | DB67: 23584422.48 | DC67: 65419256.55 | DD67: 20787542.54 | DE67: 17098213.62 | DF67: 54398783.48 | DG67: 8316492.815 | DH67: 43369892.49 | DI67: 69093394.46 | DJ67: 2976939.934 | DK67: 56071333.7 | DL67: 228125194.9 | DM67: 1519185.966 | DN67: 16273720.67 | DO67: 19353.92635 | DP67: 40897773.09 | DQ67: 95329492.36 | DR67: 15723774.65 | DS67: 23648786.16 | DT67: 24858061.13 | DU67: 21262948.57 | DV67: 308495488.6 | DW67: 7789673.598 | DX67: 21551782.44 | DY67: 109031607.3 | DZ67: 162446360.4 | EA67: 19058340.92 | EB67: 28791669.45 | EC67: 27880452.02 | ED67: 639520182.6 | EE67: 1363314.97 | EF67: 20486219.8 | EG67: 114177739.9 | EH67: 32120233.24 | EI67: 97150514.56 | EJ67: 6940.999846 | EK67: 158434487.2 | EL67: 37396341.08 | EM67: 20984677.79 | EN67: 60985362.64 | EO67: 102747986.6 | EP67: 33310337.29 | EQ67: 1212194.03 | ER67: 21762644.4 | ES67: 36479292.84 | ET67: 39723136.27 | EU67: 33019107.97 | EV67: 50792033.46 | EW67: 35698171.96 | EX67: 94972546.57 | EY67: 31949603.87 | EZ67: 29684048.74 | FA67: 35056870.15 | FB67: 16867531.62 | FC67: 31010405.96 | FD67: 31071409.3 | FE67: 34284390.56 | FF67: 617629150.1 | FG67: 34503291.93 | FH67: 29897017.24 | FI67: 38868607.14 | FJ67: 173254402.4 | FK67: 33658246.75 | FL67: 37089969.18 | FM67: 35649686.01 | FN67: 32084170.36 | FO67: 82604012.85 | FP67: 25931320.27 | FQ67: 66236180.36 | FR67: 47409409.95 | FS67: 51811522.85 | FT67: 24866837.45 | FU67: 76617168.96 | FV67: 103916943.2 | FW67: 36684649.24 | FX67: 37254736.58 | FY67: 36144889 | FZ67: 0.1473373771 | GA67: 181301.996 | GB67: 26276787.49 | GC67: 27282898.2 | GD67: 37527813.17 | GE67: 38924983.68 | GF67: 35446173.66 | GG67: 5354779.881 | GH67: 7868144.825 | GI67: 42529109.05 | GJ67: 62163978.62 | GK67: 36627449.04 | GL67: 1082350661 | GM67: 24505567.46 | GN67: 16932895.62 | GO67: 95942816.87 | GP67: 33393146.53 | GQ67: 15324275.66 | GR67: 94948629.1 | GS67: 26991670.4 | GT67: 22556500.5 | GU67: 6316309.86 | GV67: 14551608.68 | GW67: 25192926.44 | GX67: 19995902.56 | GY67: 100098.9978 | GZ67: 418835.9907 | HA67: 2770156397 | HB67: 489182193.9 | HC67: 671976810.8 | HD67: 1520634097 | HE67: 971104616.5 | HF67: 235236913.6 | HG67: 116325192 | HH67: 110771518.4 | HI67: 110582338.1 | HJ67: 381826.7129 | HK67: 59667692.67 | HL67: 52432001.83 | HM67: 127559845.2 | HN67: 8247542.817 | HO67: 2551031.943 | HP67: 437683918.3 | HQ67: 102208587.3 | HR67: 2342712282 | HS67: 1699380637 | HT67: 275110715 | HU67: 6493614 | HV67: 37799043 | HW67: 153370875 | HX67: =SUM($HX$9:$HX$66) -> 5.589851722e+10
A68: =+MATCH(B68,RUT[EMPRESA],0) -> 280 | B68: RUCATAYO | C68: -172105871.6 | D68: -172105871.6 | F68: =IFERROR(INDEX($B$9:$B$511,MATCH(0,INDEX(COUNTIF($F$8:F67,$B$9:$B$511),0,0),0)),"") -> RUCATAYO | G68: -172105871.6
A69: =+MATCH(B69,RUT[EMPRESA],0) -> 181 | B69: KALTEMP | C69: 5078409.346 | D69: 5078409.346 | F69: =IFERROR(INDEX($B$9:$B$511,MATCH(0,INDEX(COUNTIF($F$8:F68,$B$9:$B$511),0,0),0)),"") -> KALTEMP | H69: 5078409.346
A70: =+MATCH(B70,RUT[EMPRESA],0) -> 127 | B70: ESTANCILLA SPA | C70: 48933.99891 | D70: 48933.99891 | F70: =IFERROR(INDEX($B$9:$B$511,MATCH(0,INDEX(COUNTIF($F$8:F69,$B$9:$B$511),0,0),0)),"") -> ESTANCILLA SPA | H70: 48933.99891
A71: =+MATCH(B71,RUT[EMPRESA],0) -> 217 | B71: MAPOCHO TREBAL | C71: 25314305.44 | D71: 25314305.44 | F71: =IFERROR(INDEX($B$9:$B$511,MATCH(0,INDEX(COUNTIF($F$8:F70,$B$9:$B$511),0,0),0)),"") -> MAPOCHO TREBAL | H71: 25314305.44
A72: =+MATCH(B72,RUT[EMPRESA],0) -> 318 | B72: UCUQUER | C72: 55270102.49 | D72: 55270102.49 | F72: =IFERROR(INDEX($B$9:$B$511,MATCH(0,INDEX(COUNTIF($F$8:F71,$B$9:$B$511),0,0),0)),"") -> UCUQUER | H72: 55270102.49
A73: =+MATCH(B73,RUT[EMPRESA],0) -> 303 | B73: TAMM | C73: 308283.9931 | D73: 308283.9931 | F73: =IFERROR(INDEX($B$9:$B$511,MATCH(0,INDEX(COUNTIF($F$8:F72,$B$9:$B$511),0,0),0)),"") -> TAMM | H73: 308283.9931
A74: =+MATCH(B74,RUT[EMPRESA],0) -> 301 | B74: TALINAY | C74: -52537468.92 | D74: =+C74 -> -52537468.92 | F74: =IFERROR(INDEX($B$9:$B$511,MATCH(0,INDEX(COUNTIF($F$8:F73,$B$9:$B$511),0,0),0)),"") -> TALINAY | G74: =IF(SUMIF($B$9:$B$400,F74,$D$9:$D$400)<-0.00001,SUMIF($B$9:$B$400,F74,$D$9:$D$400),"") -> -52537468.92 | H74: =IF(SUMIF($B$9:$B$400,F74,$D$9:$D$400)>0.00001,SUMIF($B$9:$B$400,F74,$D$9:$D$400),"") -> 
A75: =+MATCH(B75,RUT[EMPRESA],0) -> 279 | B75: ROBLERIA | C75: 68936508.47 | D75: 68936508.47 | F75: =IFERROR(INDEX($B$9:$B$511,MATCH(0,INDEX(COUNTIF($F$8:F74,$B$9:$B$511),0,0),0)),"") -> ROBLERIA | H75: 68936508.47
A76: =+MATCH(B76,RUT[EMPRESA],0) -> 135 | B76: GENERHOM | C76: 56680278.36 | D76: 56680278.36 | F76: =IFERROR(INDEX($B$9:$B$511,MATCH(0,INDEX(COUNTIF($F$8:F75,$B$9:$B$511),0,0),0)),"") -> GENERHOM | H76: 56680278.36
A77: =+MATCH(B77,RUT[EMPRESA],0) -> 323 | B77: WENKE | C77: -105504.0023 | D77: -105504.0023 | F77: =IFERROR(INDEX($B$9:$B$511,MATCH(0,INDEX(COUNTIF($F$8:F76,$B$9:$B$511),0,0),0)),"") -> WENKE | G77: -105504.0023
A78: =+MATCH(B78,RUT[EMPRESA],0) -> 160 | B78: HESA | C78: 0 | D78: 0 | F78: =IFERROR(INDEX($B$9:$B$511,MATCH(0,INDEX(COUNTIF($F$8:F77,$B$9:$B$511),0,0),0)),"") -> HESA
A79: =+MATCH(B79,RUT[EMPRESA],0) -> 162 | B79: HIDROBONITO | C79: 96979764.82 | D79: 96979764.82 | F79: =IFERROR(INDEX($B$9:$B$511,MATCH(0,INDEX(COUNTIF($F$8:F78,$B$9:$B$511),0,0),0)),"") -> HIDROBONITO | H79: 96979764.82
A80: =+MATCH(B80,RUT[EMPRESA],0) -> 20 | B80: ARRAYAN | C80: -15127.00034 | D80: -15127.00034 | F80: =IFERROR(INDEX($B$9:$B$511,MATCH(0,INDEX(COUNTIF($F$8:F79,$B$9:$B$511),0,0),0)),"") -> ARRAYAN | G80: -15127.00034
A81: =+MATCH(B81,RUT[EMPRESA],0) -> 299 | B81: SUBSOLE | C81: 46836.99896 | D81: 46836.99896 | F81: =IFERROR(INDEX($B$9:$B$511,MATCH(0,INDEX(COUNTIF($F$8:F80,$B$9:$B$511),0,0),0)),"") -> SUBSOLE | H81: 46836.99896
A82: =+MATCH(B82,RUT[EMPRESA],0) -> 293 | B82: SOLAIREDIRECT | C82: 2186968.951 | D82: 2186968.951 | F82: =IFERROR(INDEX($B$9:$B$511,MATCH(0,INDEX(COUNTIF($F$8:F81,$B$9:$B$511),0,0),0)),"") -> SOLAIREDIRECT | H82: 2186968.951
A83: =+MATCH(B83,RUT[EMPRESA],0) -> 286 | B83: SANTAMARTA | C83: 251629898.4 | D83: 251629898.4 | F83: =IFERROR(INDEX($B$9:$B$511,MATCH(0,INDEX(COUNTIF($F$8:F82,$B$9:$B$511),0,0),0)),"") -> SANTAMARTA | H83: 251629898.4
A84: =+MATCH(B84,RUT[EMPRESA],0) -> 275 | B84: RIO HUASCO | C84: 78921082.73 | D84: 78921082.73 | F84: =IFERROR(INDEX($B$9:$B$511,MATCH(0,INDEX(COUNTIF($F$8:F83,$B$9:$B$511),0,0),0)),"") -> RIO HUASCO | H84: 78921082.73
A85: =+MATCH(B85,RUT[EMPRESA],0) -> 285 | B85: SANTA IRENE | C85: 3901040.524 | D85: 3901040.524 | F85: =IFERROR(INDEX($B$9:$B$511,MATCH(0,INDEX(COUNTIF($F$8:F84,$B$9:$B$511),0,0),0)),"") -> SANTA IRENE | H85: 3901040.524
A86: =+MATCH(B86,RUT[EMPRESA],0) -> 64 | B86: CONTRA | C86: 1622067.964 | D86: 1622067.964 | F86: =IFERROR(INDEX($B$9:$B$511,MATCH(0,INDEX(COUNTIF($F$8:F85,$B$9:$B$511),0,0),0)),"") -> CONTRA | H86: 1622067.964
A87: =+MATCH(B87,RUT[EMPRESA],0) -> 60 | B87: COLMITO | C87: 33169618.35 | D87: 33169618.35 | F87: =IFERROR(INDEX($B$9:$B$511,MATCH(0,INDEX(COUNTIF($F$8:F86,$B$9:$B$511),0,0),0)),"") -> COLMITO | H87: 33169618.35
A88: =+MATCH(B88,RUT[EMPRESA],0) -> 62 | B88: COMMONPLACE | C88: 20333824.26 | D88: 20333824.26 | F88: =IFERROR(INDEX($B$9:$B$511,MATCH(0,INDEX(COUNTIF($F$8:F87,$B$9:$B$511),0,0),0)),"") -> COMMONPLACE | H88: 20333824.26
A89: =+MATCH(B89,RUT[EMPRESA],0) -> 3 | B89: AELA_GENERACION | C89: -631119819.6 | D89: -631119819.6 | F89: =IFERROR(INDEX($B$9:$B$511,MATCH(0,INDEX(COUNTIF($F$8:F88,$B$9:$B$511),0,0),0)),"") -> AELA_GENERACION | G89: -631119819.6
A90: =+MATCH(B90,RUT[EMPRESA],0) -> 7 | B90: AGUAS DEL MELADO | C90: -76598928.12 | D90: -76598928.12 | F90: =IFERROR(INDEX($B$9:$B$511,MATCH(0,INDEX(COUNTIF($F$8:F89,$B$9:$B$511),0,0),0)),"") -> AGUAS DEL MELADO | G90: -76598928.12
A91: =+MATCH(B91,RUT[EMPRESA],0) -> 14 | B91: AMANECER SOLAR | C91: 756227437.4 | D91: 756227437.4 | F91: =IFERROR(INDEX($B$9:$B$511,MATCH(0,INDEX(COUNTIF($F$8:F90,$B$9:$B$511),0,0),0)),"") -> AMANECER SOLAR | H91: 756227437.4
A92: =+MATCH(B92,RUT[EMPRESA],0) -> 282 | B92: SAN_ANDRES_SPA | C92: 330458195.7 | D92: 330458195.7 | F92: =IFERROR(INDEX($B$9:$B$511,MATCH(0,INDEX(COUNTIF($F$8:F91,$B$9:$B$511),0,0),0)),"") -> SAN_ANDRES_SPA | H92: 330458195.7
A93: =+MATCH(B93,RUT[EMPRESA],0) -> 193 | B93: LAS_PAMPAS | C93: 0 | D93: 0 | F93: =IFERROR(INDEX($B$9:$B$511,MATCH(0,INDEX(COUNTIF($F$8:F92,$B$9:$B$511),0,0),0)),"") -> LAS_PAMPAS
A94: =+MATCH(B94,RUT[EMPRESA],0) -> 113 | B94: ENERGIA_LEON | C94: 94270154.03 | D94: 94270154.03 | F94: =IFERROR(INDEX($B$9:$B$511,MATCH(0,INDEX(COUNTIF($F$8:F93,$B$9:$B$511),0,0),0)),"") -> ENERGIA_LEON | H94: 94270154.03
A95: =+MATCH(B95,RUT[EMPRESA],0) -> 115 | B95: ENERGIAS_DEL_FUTURO | C95: 890209.9802 | D95: 890209.9802 | F95: =IFERROR(INDEX($B$9:$B$511,MATCH(0,INDEX(COUNTIF($F$8:F94,$B$9:$B$511),0,0),0)),"") -> ENERGIAS_DEL_FUTURO | H95: 890209.9802
A96: =+MATCH(B96,RUT[EMPRESA],0) -> 112 | B96: ENERGIA_BIOBIO | C96: 0 | D96: 0 | F96: =IFERROR(INDEX($B$9:$B$511,MATCH(0,INDEX(COUNTIF($F$8:F95,$B$9:$B$511),0,0),0)),"") -> ENERGIA_BIOBIO
A97: =+MATCH(B97,RUT[EMPRESA],0) -> 120 | B97: ENORCHILE | C97: -861152397.1 | D97: -861152397.1 | F97: =IFERROR(INDEX($B$9:$B$511,MATCH(0,INDEX(COUNTIF($F$8:F96,$B$9:$B$511),0,0),0)),"") -> ENORCHILE | G97: -861152397.1
A98: =+MATCH(B98,RUT[EMPRESA],0) -> 21 | B98: ARRAYAN_EOLICO | C98: -407826797.8 | D98: -407826797.8 | F98: =IFERROR(INDEX($B$9:$B$511,MATCH(0,INDEX(COUNTIF($F$8:F97,$B$9:$B$511),0,0),0)),"") -> ARRAYAN_EOLICO | G98: -407826797.8
A99: =+MATCH(B99,RUT[EMPRESA],0) -> 310 | B99: TOMAVAL | C99: 0 | D99: 0 | F99: =IFERROR(INDEX($B$9:$B$511,MATCH(0,INDEX(COUNTIF($F$8:F98,$B$9:$B$511),0,0),0)),"") -> TOMAVAL
A100: =+MATCH(B100,RUT[EMPRESA],0) -> 29 | B100: BIOCRUZ | C100: 42936960.05 | D100: 42936960.05 | F100: =IFERROR(INDEX($B$9:$B$511,MATCH(0,INDEX(COUNTIF($F$8:F99,$B$9:$B$511),0,0),0)),"") -> BIOCRUZ | H100: 42936960.05
A101: =+MATCH(B101,RUT[EMPRESA],0) -> 157 | B101: HBS | C101: 15921468.65 | D101: 15921468.65 | F101: =IFERROR(INDEX($B$9:$B$511,MATCH(0,INDEX(COUNTIF($F$8:F100,$B$9:$B$511),0,0),0)),"") -> HBS | H101: 15921468.65
A102: =+MATCH(B102,RUT[EMPRESA],0) -> 9 | B102: ALBA | C102: 249220983.8 | D102: 249220983.8 | F102: =IFERROR(INDEX($B$9:$B$511,MATCH(0,INDEX(COUNTIF($F$8:F101,$B$9:$B$511),0,0),0)),"") -> ALBA | H102: 249220983.8
A103: =+MATCH(B103,RUT[EMPRESA],0) -> 204 | B103: LOS_PADRES | C103: 8991634.8 | D103: 8991634.8 | F103: =IFERROR(INDEX($B$9:$B$511,MATCH(0,INDEX(COUNTIF($F$8:F102,$B$9:$B$511),0,0),0)),"") -> LOS_PADRES | H103: 8991634.8
A104: =+MATCH(B104,RUT[EMPRESA],0) -> 11 | B104: ALMEYDA | C104: -186632270 | D104: -186632270 | F104: =IFERROR(INDEX($B$9:$B$511,MATCH(0,INDEX(COUNTIF($F$8:F103,$B$9:$B$511),0,0),0)),"") -> ALMEYDA | G104: -186632270
A105: =+MATCH(B105,RUT[EMPRESA],0) -> 201 | B105: LOS_CURUROS | C105: 379142024.9 | D105: 379142024.9 | F105: =IFERROR(INDEX($B$9:$B$511,MATCH(0,INDEX(COUNTIF($F$8:F104,$B$9:$B$511),0,0),0)),"") -> LOS_CURUROS | H105: 379142024.9
A106: =+MATCH(B106,RUT[EMPRESA],0) -> 199 | B106: LOMAS_COLORADAS | C106: 16548494.09 | D106: 16548494.09 | F106: =IFERROR(INDEX($B$9:$B$511,MATCH(0,INDEX(COUNTIF($F$8:F105,$B$9:$B$511),0,0),0)),"") -> LOMAS_COLORADAS | H106: 16548494.09
A107: =+MATCH(B107,RUT[EMPRESA],0) -> 239 | B107: PAMA | C107: 16403732.13 | D107: 16403732.13 | F107: =IFERROR(INDEX($B$9:$B$511,MATCH(0,INDEX(COUNTIF($F$8:F106,$B$9:$B$511),0,0),0)),"") -> PAMA | H107: 16403732.13
A108: =+MATCH(B108,RUT[EMPRESA],0) -> 278 | B108: RIO_PUMA | C108: 3345546.926 | D108: 3345546.926 | F108: =IFERROR(INDEX($B$9:$B$511,MATCH(0,INDEX(COUNTIF($F$8:F107,$B$9:$B$511),0,0),0)),"") -> RIO_PUMA | H108: 3345546.926
A109: =+MATCH(B109,RUT[EMPRESA],0) -> 351 | B109: CCAMPESINO | C109: 9633961713 | D109: 9633961713 | F109: =IFERROR(INDEX($B$9:$B$511,MATCH(0,INDEX(COUNTIF($F$8:F108,$B$9:$B$511),0,0),0)),"") -> CCAMPESINO | H109: 9633961713
A110: =+MATCH(B110,RUT[EMPRESA],0) -> 339 | B110: PH_PUNTA_SIERRA | C110: 473254213.5 | D110: 473254213.5 | F110: =IFERROR(INDEX($B$9:$B$511,MATCH(0,INDEX(COUNTIF($F$8:F109,$B$9:$B$511),0,0),0)),"") -> PH_PUNTA_SIERRA | H110: 473254213.5
A111: =+MATCH(B111,RUT[EMPRESA],0) -> 319 | B111: UCUQUER_DOS | C111: 35363213.97 | D111: 35363213.97 | F111: =IFERROR(INDEX($B$9:$B$511,MATCH(0,INDEX(COUNTIF($F$8:F110,$B$9:$B$511),0,0),0)),"") -> UCUQUER_DOS | H111: 35363213.97
A112: =+MATCH(B112,RUT[EMPRESA],0) -> 260 | B112: PUNTA_PALMERAS | C112: -3810992.478 | D112: -3810992.478 | F112: =IFERROR(INDEX($B$9:$B$511,MATCH(0,INDEX(COUNTIF($F$8:F111,$B$9:$B$511),0,0),0)),"") -> PUNTA_PALMERAS | G112: -3810992.478
A113: =+MATCH(B113,RUT[EMPRESA],0) -> 81 | B113: EBCO_ATACAMA | C113: 1442137.882 | D113: 1442137.882 | F113: =IFERROR(INDEX($B$9:$B$511,MATCH(0,INDEX(COUNTIF($F$8:F112,$B$9:$B$511),0,0),0)),"") -> EBCO_ATACAMA | H113: 1442137.882
A114: =+MATCH(B114,RUT[EMPRESA],0) -> 340 | B114: ATRIA_ENERGIA | C114: 9424955.79 | D114: 9424955.79 | F114: =IFERROR(INDEX($B$9:$B$511,MATCH(0,INDEX(COUNTIF($F$8:F113,$B$9:$B$511),0,0),0)),"") -> ATRIA_ENERGIA | H114: 9424955.79
A115: =+MATCH(B115,RUT[EMPRESA],0) -> 122 | B115: EOLICA_TALTAL | C115: -259988406.9 | D115: -259988406.9 | F115: =IFERROR(INDEX($B$9:$B$511,MATCH(0,INDEX(COUNTIF($F$8:F114,$B$9:$B$511),0,0),0)),"") -> EOLICA_TALTAL | G115: -259988406.9
A116: =+MATCH(B116,RUT[EMPRESA],0) -> 265 | B116: PV_SALVADOR | C116: 218005361.2 | D116: 218005361.2 | F116: =IFERROR(INDEX($B$9:$B$511,MATCH(0,INDEX(COUNTIF($F$8:F115,$B$9:$B$511),0,0),0)),"") -> PV_SALVADOR | H116: 218005361.2
A117: =+MATCH(B117,RUT[EMPRESA],0) -> 59 | B117: COLLIL | C117: 53239187 | D117: 53239187 | F117: =IFERROR(INDEX($B$9:$B$511,MATCH(0,INDEX(COUNTIF($F$8:F116,$B$9:$B$511),0,0),0)),"") -> COLLIL | H117: 53239187
A118: =+MATCH(B118,RUT[EMPRESA],0) -> 218 | B118: MARIA_ELENA | C118: 1098788.013 | D118: 1098788.013 | F118: =IFERROR(INDEX($B$9:$B$511,MATCH(0,INDEX(COUNTIF($F$8:F117,$B$9:$B$511),0,0),0)),"") -> MARIA_ELENA | H118: 1098788.013
A119: =+MATCH(B119,RUT[EMPRESA],0) -> 192 | B119: LAS_FLORES | C119: 50022653.89 | D119: 50022653.89 | F119: =IFERROR(INDEX($B$9:$B$511,MATCH(0,INDEX(COUNTIF($F$8:F118,$B$9:$B$511),0,0),0)),"") -> LAS_FLORES | H119: 50022653.89
A120: =+MATCH(B120,RUT[EMPRESA],0) -> 2 | B120: ACCIONA_ENERGIA | C120: -1709100573 | D120: -1709100573 | F120: =IFERROR(INDEX($B$9:$B$511,MATCH(0,INDEX(COUNTIF($F$8:F119,$B$9:$B$511),0,0),0)),"") -> ACCIONA_ENERGIA | G120: -1709100573
A121: =+MATCH(B121,RUT[EMPRESA],0) -> 26 | B121: BESALCO | C121: 7179840.068 | D121: 7179840.068 | F121: =IFERROR(INDEX($B$9:$B$511,MATCH(0,INDEX(COUNTIF($F$8:F120,$B$9:$B$511),0,0),0)),"") -> BESALCO | H121: 7179840.068
A122: =+MATCH(B122,RUT[EMPRESA],0) -> 198 | B122: LLEUQUEREO | C122: 10480532.14 | D122: 10480532.14 | F122: =IFERROR(INDEX($B$9:$B$511,MATCH(0,INDEX(COUNTIF($F$8:F121,$B$9:$B$511),0,0),0)),"") -> LLEUQUEREO | H122: 10480532.14
A123: =+MATCH(B123,RUT[EMPRESA],0) -> 73 | B123: CURILEUFU | C123: 4964897.89 | D123: 4964897.89 | F123: =IFERROR(INDEX($B$9:$B$511,MATCH(0,INDEX(COUNTIF($F$8:F122,$B$9:$B$511),0,0),0)),"") -> CURILEUFU | H123: 4964897.89
A124: =+MATCH(B124,RUT[EMPRESA],0) -> 180 | B124: JAVIERA | C124: -479524885.2 | D124: -479524885.2 | F124: =IFERROR(INDEX($B$9:$B$511,MATCH(0,INDEX(COUNTIF($F$8:F123,$B$9:$B$511),0,0),0)),"") -> JAVIERA | G124: -479524885.2
A125: =+MATCH(B125,RUT[EMPRESA],0) -> 80 | B125: DOSAL | C125: 0 | D125: 0 | F125: =IFERROR(INDEX($B$9:$B$511,MATCH(0,INDEX(COUNTIF($F$8:F124,$B$9:$B$511),0,0),0)),"") -> DOSAL
A126: =+MATCH(B126,RUT[EMPRESA],0) -> 202 | B126: LOS_GUINDOS | C126: -5056106.112 | D126: -5056106.112 | F126: =IFERROR(INDEX($B$9:$B$511,MATCH(0,INDEX(COUNTIF($F$8:F125,$B$9:$B$511),0,0),0)),"") -> LOS_GUINDOS | G126: -5056106.112
A127: =+MATCH(B127,RUT[EMPRESA],0) -> 28 | B127: BIOBIO_NEGRETE | C127: 35676934.21 | D127: 35676934.21 | F127: =IFERROR(INDEX($B$9:$B$511,MATCH(0,INDEX(COUNTIF($F$8:F126,$B$9:$B$511),0,0),0)),"") -> BIOBIO_NEGRETE | H127: 35676934.21
A128: =+MATCH(B128,RUT[EMPRESA],0) -> 210 | B128: LUZ_DEL_NORTE | C128: 650485029.5 | D128: 650485029.5 | F128: =IFERROR(INDEX($B$9:$B$511,MATCH(0,INDEX(COUNTIF($F$8:F127,$B$9:$B$511),0,0),0)),"") -> LUZ_DEL_NORTE | H128: 650485029.5
A129: =+MATCH(B129,RUT[EMPRESA],0) -> 270 | B129: RAKI | C129: 6529348.55 | D129: 6529348.55 | F129: =IFERROR(INDEX($B$9:$B$511,MATCH(0,INDEX(COUNTIF($F$8:F128,$B$9:$B$511),0,0),0)),"") -> RAKI | H129: 6529348.55
A130: =+MATCH(B130,RUT[EMPRESA],0) -> 311 | B130: TRAILELFU | C130: 14688692.67 | D130: 14688692.67 | F130: =IFERROR(INDEX($B$9:$B$511,MATCH(0,INDEX(COUNTIF($F$8:F129,$B$9:$B$511),0,0),0)),"") -> TRAILELFU | H130: 14688692.67
A131: =+MATCH(B131,RUT[EMPRESA],0) -> 123 | B131: ERNC1 | C131: -129922553.5 | D131: -129922553.5 | F131: =IFERROR(INDEX($B$9:$B$511,MATCH(0,INDEX(COUNTIF($F$8:F130,$B$9:$B$511),0,0),0)),"") -> ERNC1 | G131: -129922553.5
A132: =+MATCH(B132,RUT[EMPRESA],0) -> 153 | B132: GR_PAN_DE_AZUCAR | C132: 35281628.66 | D132: 35281628.66 | F132: =IFERROR(INDEX($B$9:$B$511,MATCH(0,INDEX(COUNTIF($F$8:F131,$B$9:$B$511),0,0),0)),"") -> GR_PAN_DE_AZUCAR | H132: 35281628.66
A133: =+MATCH(B133,RUT[EMPRESA],0) -> 258 | B133: PUCLARO | C133: 43195928.39 | D133: 43195928.39 | F133: =IFERROR(INDEX($B$9:$B$511,MATCH(0,INDEX(COUNTIF($F$8:F132,$B$9:$B$511),0,0),0)),"") -> PUCLARO | H133: 43195928.39
A134: =+MATCH(B134,RUT[EMPRESA],0) -> 176 | B134: HUAJACHE | C134: 1293803.542 | D134: 1293803.542 | F134: =IFERROR(INDEX($B$9:$B$511,MATCH(0,INDEX(COUNTIF($F$8:F133,$B$9:$B$511),0,0),0)),"") -> HUAJACHE | H134: 1293803.542
A135: =+MATCH(B135,RUT[EMPRESA],0) -> 97 | B135: EL_MIRADOR | C135: 17278162.62 | D135: 17278162.62 | F135: =IFERROR(INDEX($B$9:$B$511,MATCH(0,INDEX(COUNTIF($F$8:F134,$B$9:$B$511),0,0),0)),"") -> EL_MIRADOR | H135: 17278162.62
A136: =+MATCH(B136,RUT[EMPRESA],0) -> 277 | B136: RIO_MULCHEN | C136: 11355429.75 | D136: 11355429.75 | F136: =IFERROR(INDEX($B$9:$B$511,MATCH(0,INDEX(COUNTIF($F$8:F135,$B$9:$B$511),0,0),0)),"") -> RIO_MULCHEN | H136: 11355429.75
A137: =+MATCH(B137,RUT[EMPRESA],0) -> 89 | B137: EGP_SUR | C137: 217165084.4 | D137: 217165084.4 | F137: =IFERROR(INDEX($B$9:$B$511,MATCH(0,INDEX(COUNTIF($F$8:F136,$B$9:$B$511),0,0),0)),"") -> EGP_SUR | H137: 217165084.4
A138: =+MATCH(B138,RUT[EMPRESA],0) -> 16 | B138: ANDES_GENERACION | C138: 15314926.77 | D138: =+C138 -> 15314926.77 | F138: =IFERROR(INDEX($B$9:$B$511,MATCH(0,INDEX(COUNTIF($F$8:F137,$B$9:$B$511),0,0),0)),"") -> ANDES_GENERACION | G138: =IF(SUMIF($B$9:$B$400,F138,$D$9:$D$400)<-0.00001,SUMIF($B$9:$B$400,F138,$D$9:$D$400),"") ->  | H138: =IF(SUMIF($B$9:$B$400,F138,$D$9:$D$400)>0.00001,SUMIF($B$9:$B$400,F138,$D$9:$D$400),"") -> 15314926.77
A139: =+MATCH(B139,RUT[EMPRESA],0) -> 98 | B139: EL_MORADO | C139: 203987705.5 | D139: 203987705.5 | F139: =IFERROR(INDEX($B$9:$B$511,MATCH(0,INDEX(COUNTIF($F$8:F138,$B$9:$B$511),0,0),0)),"") -> EL_MORADO | H139: 203987705.5
A140: =+MATCH(B140,RUT[EMPRESA],0) -> 35 | B140: CAREN | C140: 77233723.71 | D140: 77233723.71 | F140: =IFERROR(INDEX($B$9:$B$511,MATCH(0,INDEX(COUNTIF($F$8:F139,$B$9:$B$511),0,0),0)),"") -> CAREN | H140: 77233723.71
A141: =+MATCH(B141,RUT[EMPRESA],0) -> 51 | B141: CHUNGUNGO | C141: 393784415.4 | D141: 393784415.4 | F141: =IFERROR(INDEX($B$9:$B$511,MATCH(0,INDEX(COUNTIF($F$8:F140,$B$9:$B$511),0,0),0)),"") -> CHUNGUNGO | H141: 393784415.4
A142: =+MATCH(B142,RUT[EMPRESA],0) -> 295 | B142: SPVP4 | C142: 36065981.02 | D142: 36065981.02 | F142: =IFERROR(INDEX($B$9:$B$511,MATCH(0,INDEX(COUNTIF($F$8:F141,$B$9:$B$511),0,0),0)),"") -> SPVP4 | H142: 36065981.02
A143: =+MATCH(B143,RUT[EMPRESA],0) -> 272 | B143: RENOVALIA_6 | C143: 21182710.53 | D143: 21182710.53 | F143: =IFERROR(INDEX($B$9:$B$511,MATCH(0,INDEX(COUNTIF($F$8:F142,$B$9:$B$511),0,0),0)),"") -> RENOVALIA_6 | H143: 21182710.53
A144: =+MATCH(B144,RUT[EMPRESA],0) -> 273 | B144: RENOVALIA_7 | C144: 23584422.48 | D144: 23584422.48 | F144: =IFERROR(INDEX($B$9:$B$511,MATCH(0,INDEX(COUNTIF($F$8:F143,$B$9:$B$511),0,0),0)),"") -> RENOVALIA_7 | H144: 23584422.48
A145: =+MATCH(B145,RUT[EMPRESA],0) -> 6 | B145: AGSA | C145: -12288495.53 | D145: -12288495.53 | F145: =IFERROR(INDEX($B$9:$B$511,MATCH(0,INDEX(COUNTIF($F$8:F144,$B$9:$B$511),0,0),0)),"") -> AGSA | G145: -12288495.53
A146: =+MATCH(B146,RUT[EMPRESA],0) -> 296 | B146: STERICYCLE | C146: 65419256.55 | D146: 65419256.55 | F146: =IFERROR(INDEX($B$9:$B$511,MATCH(0,INDEX(COUNTIF($F$8:F145,$B$9:$B$511),0,0),0)),"") -> STERICYCLE | H146: 65419256.55
A147: =+MATCH(B147,RUT[EMPRESA],0) -> 309 | B147: TILTIL_SOLAR | C147: 20787542.54 | D147: 20787542.54 | F147: =IFERROR(INDEX($B$9:$B$511,MATCH(0,INDEX(COUNTIF($F$8:F146,$B$9:$B$511),0,0),0)),"") -> TILTIL_SOLAR | H147: 20787542.54
